Workbook

Sheet Instructions and Choices
A1: Activity & Demand Modelling
A2: This tool will help you forecast your Trust's activity over the next five years. On each tab, the inputs required are at the top. | T2: Once you have entered all the inputs for one scenario, you can click the button shown below.
A3: Make sure that you use this document in conjunction with the written guidance provided, which explains many of the inputs here in greater detail | T3: That set of inputs & the corresponding outputs will be saved in a new file in the same folder as this model.
A5: Instructions
C6: Cells | D6: Type of cell | F6: Instructions
D7: Input cells | F7: Input cells are the ones that can be edited, and that will then flow through the model.
F8: These include the assumptions made in the model that can be changed, and the main inputs.
C10: sample | D10: Calculation cells | F10: Calculation cells are grey with orange text and should not be changed. These cells will
F11: contain formulas. Changing these cells will change the way the model works.
C13: sample | D13: Total cells | F13: Total cells are also grey like calculation cells, as they contain formulas and should not
F14: be changed. The numbers are in black to show that they are important totals for the model.
A21: Choices
B23: Last completed financial year
C24: 2014
B26: Specialties
C27: Paediatrics
C28: Obstetrics
C29: Test 3
C30: Test Spec 4
C31: Test Spec 5
C32: Test Spec 6
C33: Test Spec 7
C34: Test Spec 8
C35: Test Spec 9
C36: Everything else

Sheet Outputs >>

Sheet Summary Output
B2: ='Summary Calculations'!AQ2 -> Forecast activity
B4: ='Demographic Change'!C3 -> 2013/14 | C4: ='Demographic Change'!D3 -> 2014/15 | D4: ='Demographic Change'!E3 -> 2015/16 | E4: ='Demographic Change'!F3 -> 2016/17 | F4: ='Demographic Change'!G3 -> 2017/18 | G4: ='Demographic Change'!H3 -> 2018/19
A5: By Specialty
A6: ='Instructions and Choices'!C27 -> Paediatrics | B6: =SUMIF('Summary Calculations'!$E$6:$E$455,'Summary Output'!$A6,'Summary Calculations'!AP$6:AP$455) -> 11520 | C6: =SUMIF('Summary Calculations'!$E$6:$E$455,'Summary Output'!$A6,'Summary Calculations'!AQ$6:AQ$455) -> 11438.72775 | D6: =SUMIF('Summary Calculations'!$E$6:$E$455,'Summary Output'!$A6,'Summary Calculations'!AR$6:AR$455) -> 11533.33005 | E6: =SUMIF('Summary Calculations'!$E$6:$E$455,'Summary Output'!$A6,'Summary Calculations'!AS$6:AS$455) -> 11528.83016 | F6: =SUMIF('Summary Calculations'!$E$6:$E$455,'Summary Output'!$A6,'Summary Calculations'!AT$6:AT$455) -> 11516.50895 | G6: =SUMIF('Summary Calculations'!$E$6:$E$455,'Summary Output'!$A6,'Summary Calculations'!AU$6:AU$455) -> 11516.19196
A7: ='Instructions and Choices'!C28 -> Obstetrics | B7: =SUMIF('Summary Calculations'!$E$6:$E$455,'Summary Output'!$A7,'Summary Calculations'!AP$6:AP$455) -> 13770 | C7: =SUMIF('Summary Calculations'!$E$6:$E$455,'Summary Output'!$A7,'Summary Calculations'!AQ$6:AQ$455) -> 16526.31131 | D7: =SUMIF('Summary Calculations'!$E$6:$E$455,'Summary Output'!$A7,'Summary Calculations'!AR$6:AR$455) -> 15706.80271 | E7: =SUMIF('Summary Calculations'!$E$6:$E$455,'Summary Output'!$A7,'Summary Calculations'!AS$6:AS$455) -> 15706.80271 | F7: =SUMIF('Summary Calculations'!$E$6:$E$455,'Summary Output'!$A7,'Summary Calculations'!AT$6:AT$455) -> 15435.45534 | G7: =SUMIF('Summary Calculations'!$E$6:$E$455,'Summary Output'!$A7,'Summary Calculations'!AU$6:AU$455) -> 15163.88125
A8: ='Instructions and Choices'!C29 -> Test 3 | B8: =SUMIF('Summary Calculations'!$E$6:$E$455,'Summary Output'!$A8,'Summary Calculations'!AP$6:AP$455) -> 16020 | C8: =SUMIF('Summary Calculations'!$E$6:$E$455,'Summary Output'!$A8,'Summary Calculations'!AQ$6:AQ$455) -> 16024.56218 | D8: =SUMIF('Summary Calculations'!$E$6:$E$455,'Summary Output'!$A8,'Summary Calculations'!AR$6:AR$455) -> 16029.52486 | E8: =SUMIF('Summary Calculations'!$E$6:$E$455,'Summary Output'!$A8,'Summary Calculations'!AS$6:AS$455) -> 16037.46381 | F8: =SUMIF('Summary Calculations'!$E$6:$E$455,'Summary Output'!$A8,'Summary Calculations'!AT$6:AT$455) -> 16045.50418 | G8: =SUMIF('Summary Calculations'!$E$6:$E$455,'Summary Output'!$A8,'Summary Calculations'!AU$6:AU$455) -> 16053.50125
A9: ='Instructions and Choices'!C30 -> Test Spec 4 | B9: =SUMIF('Summary Calculations'!$E$6:$E$455,'Summary Output'!$A9,'Summary Calculations'!AP$6:AP$455) -> 18270 | C9: =SUMIF('Summary Calculations'!$E$6:$E$455,'Summary Output'!$A9,'Summary Calculations'!AQ$6:AQ$455) -> 16356.79601 | D9: =SUMIF('Summary Calculations'!$E$6:$E$455,'Summary Output'!$A9,'Summary Calculations'!AR$6:AR$455) -> 17909.61339 | E9: =SUMIF('Summary Calculations'!$E$6:$E$455,'Summary Output'!$A9,'Summary Calculations'!AS$6:AS$455) -> 18352.3055 | F9: =SUMIF('Summary Calculations'!$E$6:$E$455,'Summary Output'!$A9,'Summary Calculations'!AT$6:AT$455) -> 18366.63682 | G9: =SUMIF('Summary Calculations'!$E$6:$E$455,'Summary Output'!$A9,'Summary Calculations'!AU$6:AU$455) -> 18381.9559
A10: ='Instructions and Choices'!C31 -> Test Spec 5 | B10: =SUMIF('Summary Calculations'!$E$6:$E$455,'Summary Output'!$A10,'Summary Calculations'!AP$6:AP$455) -> 20520 | C10: =SUMIF('Summary Calculations'!$E$6:$E$455,'Summary Output'!$A10,'Summary Calculations'!AQ$6:AQ$455) -> 20529.83437 | D10: =SUMIF('Summary Calculations'!$E$6:$E$455,'Summary Output'!$A10,'Summary Calculations'!AR$6:AR$455) -> 20540.18174 | E10: =SUMIF('Summary Calculations'!$E$6:$E$455,'Summary Output'!$A10,'Summary Calculations'!AS$6:AS$455) -> 20556.5972 | F10: =SUMIF('Summary Calculations'!$E$6:$E$455,'Summary Output'!$A10,'Summary Calculations'!AT$6:AT$455) -> 20573.19945 | G10: =SUMIF('Summary Calculations'!$E$6:$E$455,'Summary Output'!$A10,'Summary Calculations'!AU$6:AU$455) -> 20589.81056
A11: ='Instructions and Choices'!C32 -> Test Spec 6 | B11: =SUMIF('Summary Calculations'!$E$6:$E$455,'Summary Output'!$A11,'Summary Calculations'!AP$6:AP$455) -> 20520 | C11: =SUMIF('Summary Calculations'!$E$6:$E$455,'Summary Output'!$A11,'Summary Calculations'!AQ$6:AQ$455) -> 20529.83437 | D11: =SUMIF('Summary Calculations'!$E$6:$E$455,'Summary Output'!$A11,'Summary Calculations'!AR$6:AR$455) -> 20540.18174 | E11: =SUMIF('Summary Calculations'!$E$6:$E$455,'Summary Output'!$A11,'Summary Calculations'!AS$6:AS$455) -> 20556.5972 | F11: =SUMIF('Summary Calculations'!$E$6:$E$455,'Summary Output'!$A11,'Summary Calculations'!AT$6:AT$455) -> 20573.19945 | G11: =SUMIF('Summary Calculations'!$E$6:$E$455,'Summary Output'!$A11,'Summary Calculations'!AU$6:AU$455) -> 20589.81056
A12: ='Instructions and Choices'!C33 -> Test Spec 7 | B12: =SUMIF('Summary Calculations'!$E$6:$E$455,'Summary Output'!$A12,'Summary Calculations'!AP$6:AP$455) -> 20520 | C12: =SUMIF('Summary Calculations'!$E$6:$E$455,'Summary Output'!$A12,'Summary Calculations'!AQ$6:AQ$455) -> 20529.83437 | D12: =SUMIF('Summary Calculations'!$E$6:$E$455,'Summary Output'!$A12,'Summary Calculations'!AR$6:AR$455) -> 20540.18174 | E12: =SUMIF('Summary Calculations'!$E$6:$E$455,'Summary Output'!$A12,'Summary Calculations'!AS$6:AS$455) -> 20556.5972 | F12: =SUMIF('Summary Calculations'!$E$6:$E$455,'Summary Output'!$A12,'Summary Calculations'!AT$6:AT$455) -> 20573.19945 | G12: =SUMIF('Summary Calculations'!$E$6:$E$455,'Summary Output'!$A12,'Summary Calculations'!AU$6:AU$455) -> 20589.81056
A13: ='Instructions and Choices'!C34 -> Test Spec 8 | B13: =SUMIF('Summary Calculations'!$E$6:$E$455,'Summary Output'!$A13,'Summary Calculations'!AP$6:AP$455) -> 20520 | C13: =SUMIF('Summary Calculations'!$E$6:$E$455,'Summary Output'!$A13,'Summary Calculations'!AQ$6:AQ$455) -> 20529.83437 | D13: =SUMIF('Summary Calculations'!$E$6:$E$455,'Summary Output'!$A13,'Summary Calculations'!AR$6:AR$455) -> 20540.18174 | E13: =SUMIF('Summary Calculations'!$E$6:$E$455,'Summary Output'!$A13,'Summary Calculations'!AS$6:AS$455) -> 20556.5972 | F13: =SUMIF('Summary Calculations'!$E$6:$E$455,'Summary Output'!$A13,'Summary Calculations'!AT$6:AT$455) -> 20573.19945 | G13: =SUMIF('Summary Calculations'!$E$6:$E$455,'Summary Output'!$A13,'Summary Calculations'!AU$6:AU$455) -> 20589.81056
A14: ='Instructions and Choices'!C35 -> Test Spec 9 | B14: =SUMIF('Summary Calculations'!$E$6:$E$455,'Summary Output'!$A14,'Summary Calculations'!AP$6:AP$455) -> 20520 | C14: =SUMIF('Summary Calculations'!$E$6:$E$455,'Summary Output'!$A14,'Summary Calculations'!AQ$6:AQ$455) -> 20529.83437 | D14: =SUMIF('Summary Calculations'!$E$6:$E$455,'Summary Output'!$A14,'Summary Calculations'!AR$6:AR$455) -> 20540.18174 | E14: =SUMIF('Summary Calculations'!$E$6:$E$455,'Summary Output'!$A14,'Summary Calculations'!AS$6:AS$455) -> 20556.5972 | F14: =SUMIF('Summary Calculations'!$E$6:$E$455,'Summary Output'!$A14,'Summary Calculations'!AT$6:AT$455) -> 20573.19945 | G14: =SUMIF('Summary Calculations'!$E$6:$E$455,'Summary Output'!$A14,'Summary Calculations'!AU$6:AU$455) -> 20589.81056
A15: ='Instructions and Choices'!C36 -> Everything else | B15: =SUMIF('Summary Calculations'!$E$6:$E$455,'Summary Output'!$A15,'Summary Calculations'!AP$6:AP$455) -> 20520 | C15: =SUMIF('Summary Calculations'!$E$6:$E$455,'Summary Output'!$A15,'Summary Calculations'!AQ$6:AQ$455) -> 20529.83437 | D15: =SUMIF('Summary Calculations'!$E$6:$E$455,'Summary Output'!$A15,'Summary Calculations'!AR$6:AR$455) -> 20540.18174 | E15: =SUMIF('Summary Calculations'!$E$6:$E$455,'Summary Output'!$A15,'Summary Calculations'!AS$6:AS$455) -> 20556.5972 | F15: =SUMIF('Summary Calculations'!$E$6:$E$455,'Summary Output'!$A15,'Summary Calculations'!AT$6:AT$455) -> 20573.19945 | G15: =SUMIF('Summary Calculations'!$E$6:$E$455,'Summary Output'!$A15,'Summary Calculations'!AU$6:AU$455) -> 20589.81056
A16: Total | B16: =SUM(B6:B15) -> 182700 | C16: =SUM(C6:C15) -> 183525.4035 | D16: 184420.3615 | E16: 184964.9854 | F16: 184803.302 | G16: 184654.3937
B18: =B4 -> 2013/14 | C18: 2014/15 | D18: 2015/16 | E18: 2016/17 | F18: 2017/18 | G18: 2018/19
A19: By POD
A20: Outpatient | B20: =SUMIF('Summary Calculations'!$F$6:$F$455,'Summary Output'!$A20,'Summary Calculations'!AP$6:AP$455) -> 31500 | C20: =SUMIF('Summary Calculations'!$F$6:$F$455,'Summary Output'!$A20,'Summary Calculations'!AQ$6:AQ$455) -> 31552.23593 | D20: =SUMIF('Summary Calculations'!$F$6:$F$455,'Summary Output'!$A20,'Summary Calculations'!AR$6:AR$455) -> 31416.20201 | E20: =SUMIF('Summary Calculations'!$F$6:$F$455,'Summary Output'!$A20,'Summary Calculations'!AS$6:AS$455) -> 31857.9114 | F20: =SUMIF('Summary Calculations'!$F$6:$F$455,'Summary Output'!$A20,'Summary Calculations'!AT$6:AT$455) -> 31826.42235 | G20: =SUMIF('Summary Calculations'!$F$6:$F$455,'Summary Output'!$A20,'Summary Calculations'!AU$6:AU$455) -> 31796.89294
A21: Elective | B21: =SUMIF('Summary Calculations'!$F$6:$F$455,'Summary Output'!$A21,'Summary Calculations'!AP$6:AP$455) -> 34200 | C21: =SUMIF('Summary Calculations'!$F$6:$F$455,'Summary Output'!$A21,'Summary Calculations'!AQ$6:AQ$455) -> 34367.97672 | D21: =SUMIF('Summary Calculations'!$F$6:$F$455,'Summary Output'!$A21,'Summary Calculations'!AR$6:AR$455) -> 34588.55694 | E21: =SUMIF('Summary Calculations'!$F$6:$F$455,'Summary Output'!$A21,'Summary Calculations'!AS$6:AS$455) -> 34608.85016 | F21: =SUMIF('Summary Calculations'!$F$6:$F$455,'Summary Output'!$A21,'Summary Calculations'!AT$6:AT$455) -> 34576.90702 | G21: =SUMIF('Summary Calculations'!$F$6:$F$455,'Summary Output'!$A21,'Summary Calculations'!AU$6:AU$455) -> 34547.24247
A22: Non-elective | B22: =SUMIF('Summary Calculations'!$F$6:$F$455,'Summary Output'!$A22,'Summary Calculations'!AP$6:AP$455) -> 37800 | C22: =SUMIF('Summary Calculations'!$F$6:$F$455,'Summary Output'!$A22,'Summary Calculations'!AQ$6:AQ$455) -> 37838.74558 | D22: =SUMIF('Summary Calculations'!$F$6:$F$455,'Summary Output'!$A22,'Summary Calculations'!AR$6:AR$455) -> 38251.03986 | E22: =SUMIF('Summary Calculations'!$F$6:$F$455,'Summary Output'!$A22,'Summary Calculations'!AS$6:AS$455) -> 38276.76849 | F22: =SUMIF('Summary Calculations'!$F$6:$F$455,'Summary Output'!$A22,'Summary Calculations'!AT$6:AT$455) -> 38244.21991 | G22: =SUMIF('Summary Calculations'!$F$6:$F$455,'Summary Output'!$A22,'Summary Calculations'!AU$6:AU$455) -> 38214.37519
A23: A&E | B23: =SUMIF('Summary Calculations'!$F$6:$F$455,'Summary Output'!$A23,'Summary Calculations'!AP$6:AP$455) -> 38700 | C23: =SUMIF('Summary Calculations'!$F$6:$F$455,'Summary Output'!$A23,'Summary Calculations'!AQ$6:AQ$455) -> 38953.95384 | D23: =SUMIF('Summary Calculations'!$F$6:$F$455,'Summary Output'!$A23,'Summary Calculations'!AR$6:AR$455) -> 39166.66059 | E23: =SUMIF('Summary Calculations'!$F$6:$F$455,'Summary Output'!$A23,'Summary Calculations'!AS$6:AS$455) -> 39193.74808 | F23: =SUMIF('Summary Calculations'!$F$6:$F$455,'Summary Output'!$A23,'Summary Calculations'!AT$6:AT$455) -> 39161.04813 | G23: =SUMIF('Summary Calculations'!$F$6:$F$455,'Summary Output'!$A23,'Summary Calculations'!AU$6:AU$455) -> 39131.15837
A24: Community | B24: =SUMIF('Summary Calculations'!$F$6:$F$455,'Summary Output'!$A24,'Summary Calculations'!AP$6:AP$455) -> 40500 | C24: =SUMIF('Summary Calculations'!$F$6:$F$455,'Summary Output'!$A24,'Summary Calculations'!AQ$6:AQ$455) -> 40812.49139 | D24: =SUMIF('Summary Calculations'!$F$6:$F$455,'Summary Output'!$A24,'Summary Calculations'!AR$6:AR$455) -> 40997.90205 | E24: =SUMIF('Summary Calculations'!$F$6:$F$455,'Summary Output'!$A24,'Summary Calculations'!AS$6:AS$455) -> 41027.70725 | F24: =SUMIF('Summary Calculations'!$F$6:$F$455,'Summary Output'!$A24,'Summary Calculations'!AT$6:AT$455) -> 40994.70458 | G24: =SUMIF('Summary Calculations'!$F$6:$F$455,'Summary Output'!$A24,'Summary Calculations'!AU$6:AU$455) -> 40964.72473
A25: Total | B25: =SUM(B20:B24) -> 182700 | C25: =SUM(C20:C24) -> 183525.4035 | D25: =SUM(D20:D24) -> 184420.3615 | E25: 184964.9854 | F25: 184803.302 | G25: 184654.3937

Sheet Impact of assumptions
A1: Tables | L1: Category | M1: Sub Category | Z1: Overall | AA1: Overall
B2: Overall | D2: ='Demographic Change'!C3 -> 2013/14 | E2: Post Demographic Change | F2: Post Non-Demographic Change | G2: Post Commissioner Plans | H2: Post trust Strategic Changes | I2: ='Demographic Change'!H3 -> 2018/19 | L2: By Speciality | M2: Paediatrics | N2: << Choose from the drop down list | Z2: By Speciality | AA2: ='Instructions and Choices'!$C27 -> Paediatrics | AB2: ='Instructions and Choices'!$C28 -> Obstetrics | AC2: ='Instructions and Choices'!$C29 -> Test 3 | AD2: ='Instructions and Choices'!$C30 -> Test Spec 4 | AE2: ='Instructions and Choices'!$C31 -> Test Spec 5 | AF2: ='Instructions and Choices'!$C32 -> Test Spec 6 | AG2: ='Instructions and Choices'!$C33 -> Test Spec 7 | AH2: ='Instructions and Choices'!$C34 -> Test Spec 8 | AI2: ='Instructions and Choices'!$C35 -> Test Spec 9 | AJ2: ='Instructions and Choices'!$C36 -> Everything else
C3: Overall | D3: =SUM('Summary Calculations'!$H$6:$H$455) -> 182700 | E3: =SUM('Summary Calculations'!$N$6:$N$455)-D3 -> 521.1395415 | F3: =SUM('Summary Calculations'!$U$6:$U$455)-SUM('Summary Calculations'!$N$6:$N$455) -> 1431.569123 | G3: =SUM('Summary Calculations'!$AB$6:$AB$455)-SUM('Summary Calculations'!$U$6:$U$455) -> -976.9935433 | H3: =SUM('Summary Calculations'!$AI$6:$AI$455)-SUM('Summary Calculations'!$AB$6:$AB$455) -> 978.6785756 | I3: =SUM('Summary Calculations'!$AU$6:$AU$455) -> 184654.3937 | Z3: By POD | AA3: Outpatient | AB3: Elective | AC3: Non-Elective | AD3: A&E | AE3: Community
L4: 2 | M4: 3 | N4: 4 | O4: 5 | P4: 6 | Q4: 7
B5: By Speciality | D5: =D2 -> 2013/14 | E5: Post Demographic Change | F5: Post Non-Demographic Change | G5: Post Commissioner Plans | H5: Post trust Strategic Changes | I5: =I2 -> 2018/19 | M5: Post Demographic Change | N5: Post Non-Demographic Change | O5: Post Commissioner Plans | P5: Post New Trust Strategic Changes
C6: ='Instructions and Choices'!C27 -> Paediatrics | D6: =SUMIF('Summary Calculations'!$E$6:$E$455,'Impact of assumptions'!$C6,'Summary Calculations'!$H$6:$H$455) -> 11520 | E6: =SUMIF('Summary Calculations'!$E$6:$E$455,'Impact of assumptions'!$C6,'Summary Calculations'!$N$6:$N$455)-D6 -> -2.520129863 | F6: =SUMIF('Summary Calculations'!$E$6:$E$455,'Impact of assumptions'!$C6,'Summary Calculations'!$U$6:$U$455)-SUMIF('Summary Calculations'!$E$6:$E$455,'Impact of assumptions'!$C6,'Summary Calculations'!$N$6:$N$455) -> 53 | G6: =SUMIF('Summary Calculations'!$E$6:$E$455,'Impact of assumptions'!$C6,'Summary Calculations'!$AB$6:$AB$455)-SUMIF('Summary Calculations'!$E$6:$E$455,'Impact of assumptions'!$C6,'Summary Calculations'!$U$6:$U$455) -> -111.5823994 | H6: =SUMIF('Summary Calculations'!$E$6:$E$455,'Impact of assumptions'!$C6,'Summary Calculations'!$AI$6:$AI$455)-SUMIF('Summary Calculations'!$E$6:$E$455,'Impact of assumptions'!$C6,'Summary Calculations'!$AB$6:$AB$455) -> 57.29448735 | I6: =SUMIF('Summary Calculations'!$E$6:$E$455,'Impact of assumptions'!$C6,'Summary Calculations'!$AU$6:$AU$455) -> 11516.19196 | M6: =VLOOKUP($M$2,$C:$I,M$4,FALSE) -> -2.520129863 | N6: 53 | O6: -111.5823994 | P6: 57.29448735
C7: ='Instructions and Choices'!C28 -> Obstetrics | D7: =SUMIF('Summary Calculations'!$E$6:$E$455,'Impact of assumptions'!$C7,'Summary Calculations'!$H$6:$H$455) -> 13770 | E7: =SUMIF('Summary Calculations'!$E$6:$E$455,'Impact of assumptions'!$C7,'Summary Calculations'!$N$6:$N$455)-D7 -> 15.69123147 | F7: =SUMIF('Summary Calculations'!$E$6:$E$455,'Impact of assumptions'!$C7,'Summary Calculations'!$U$6:$U$455)-SUMIF('Summary Calculations'!$E$6:$E$455,'Impact of assumptions'!$C7,'Summary Calculations'!$N$6:$N$455) -> 1378.569123 | G7: =SUMIF('Summary Calculations'!$E$6:$E$455,'Impact of assumptions'!$C7,'Summary Calculations'!$AB$6:$AB$455)-SUMIF('Summary Calculations'!$E$6:$E$455,'Impact of assumptions'!$C7,'Summary Calculations'!$U$6:$U$455) -> -75.82130177 | H7: =SUMIF('Summary Calculations'!$E$6:$E$455,'Impact of assumptions'!$C7,'Summary Calculations'!$AI$6:$AI$455)-SUMIF('Summary Calculations'!$E$6:$E$455,'Impact of assumptions'!$C7,'Summary Calculations'!$AB$6:$AB$455) -> 75.44219526 | I7: =SUMIF('Summary Calculations'!$E$6:$E$455,'Impact of assumptions'!$C7,'Summary Calculations'!$AU$6:$AU$455) -> 15163.88125
C8: ='Instructions and Choices'!C29 -> Test 3 | D8: =SUMIF('Summary Calculations'!$E$6:$E$455,'Impact of assumptions'!$C8,'Summary Calculations'!$H$6:$H$455) -> 16020 | E8: =SUMIF('Summary Calculations'!$E$6:$E$455,'Impact of assumptions'!$C8,'Summary Calculations'!$N$6:$N$455)-D8 -> 33.90259281 | F8: =SUMIF('Summary Calculations'!$E$6:$E$455,'Impact of assumptions'!$C8,'Summary Calculations'!$U$6:$U$455)-SUMIF('Summary Calculations'!$E$6:$E$455,'Impact of assumptions'!$C8,'Summary Calculations'!$N$6:$N$455) -> 0 | G8: =SUMIF('Summary Calculations'!$E$6:$E$455,'Impact of assumptions'!$C8,'Summary Calculations'!$AB$6:$AB$455)-SUMIF('Summary Calculations'!$E$6:$E$455,'Impact of assumptions'!$C8,'Summary Calculations'!$U$6:$U$455) -> -80.26951296 | H8: =SUMIF('Summary Calculations'!$E$6:$E$455,'Impact of assumptions'!$C8,'Summary Calculations'!$AI$6:$AI$455)-SUMIF('Summary Calculations'!$E$6:$E$455,'Impact of assumptions'!$C8,'Summary Calculations'!$AB$6:$AB$455) -> 79.8681654 | I8: =SUMIF('Summary Calculations'!$E$6:$E$455,'Impact of assumptions'!$C8,'Summary Calculations'!$AU$6:$AU$455) -> 16053.50125
C9: ='Instructions and Choices'!C30 -> Test Spec 4 | D9: =SUMIF('Summary Calculations'!$E$6:$E$455,'Impact of assumptions'!$C9,'Summary Calculations'!$H$6:$H$455) -> 18270 | E9: =SUMIF('Summary Calculations'!$E$6:$E$455,'Impact of assumptions'!$C9,'Summary Calculations'!$N$6:$N$455)-D9 -> 52.11395415 | F9: =SUMIF('Summary Calculations'!$E$6:$E$455,'Impact of assumptions'!$C9,'Summary Calculations'!$U$6:$U$455)-SUMIF('Summary Calculations'!$E$6:$E$455,'Impact of assumptions'!$C9,'Summary Calculations'!$N$6:$N$455) -> 0 | G9: =SUMIF('Summary Calculations'!$E$6:$E$455,'Impact of assumptions'!$C9,'Summary Calculations'!$AB$6:$AB$455)-SUMIF('Summary Calculations'!$E$6:$E$455,'Impact of assumptions'!$C9,'Summary Calculations'!$U$6:$U$455) -> -91.61056977 | H9: =SUMIF('Summary Calculations'!$E$6:$E$455,'Impact of assumptions'!$C9,'Summary Calculations'!$AI$6:$AI$455)-SUMIF('Summary Calculations'!$E$6:$E$455,'Impact of assumptions'!$C9,'Summary Calculations'!$AB$6:$AB$455) -> 151.4525169 | I9: =SUMIF('Summary Calculations'!$E$6:$E$455,'Impact of assumptions'!$C9,'Summary Calculations'!$AU$6:$AU$455) -> 18381.9559
C10: ='Instructions and Choices'!C31 -> Test Spec 5 | D10: =SUMIF('Summary Calculations'!$E$6:$E$455,'Impact of assumptions'!$C10,'Summary Calculations'!$H$6:$H$455) -> 20520 | E10: =SUMIF('Summary Calculations'!$E$6:$E$455,'Impact of assumptions'!$C10,'Summary Calculations'!$N$6:$N$455)-D10 -> 70.32531548 | F10: =SUMIF('Summary Calculations'!$E$6:$E$455,'Impact of assumptions'!$C10,'Summary Calculations'!$U$6:$U$455)-SUMIF('Summary Calculations'!$E$6:$E$455,'Impact of assumptions'!$C10,'Summary Calculations'!$N$6:$N$455) -> 0 | G10: =SUMIF('Summary Calculations'!$E$6:$E$455,'Impact of assumptions'!$C10,'Summary Calculations'!$AB$6:$AB$455)-SUMIF('Summary Calculations'!$E$6:$E$455,'Impact of assumptions'!$C10,'Summary Calculations'!$U$6:$U$455) -> -102.9516266 | H10: =SUMIF('Summary Calculations'!$E$6:$E$455,'Impact of assumptions'!$C10,'Summary Calculations'!$AI$6:$AI$455)-SUMIF('Summary Calculations'!$E$6:$E$455,'Impact of assumptions'!$C10,'Summary Calculations'!$AB$6:$AB$455) -> 102.4368684 | I10: =SUMIF('Summary Calculations'!$E$6:$E$455,'Impact of assumptions'!$C10,'Summary Calculations'!$AU$6:$AU$455) -> 20589.81056
C11: ='Instructions and Choices'!C32 -> Test Spec 6 | D11: =SUMIF('Summary Calculations'!$E$6:$E$455,'Impact of assumptions'!$C11,'Summary Calculations'!$H$6:$H$455) -> 20520 | E11: =SUMIF('Summary Calculations'!$E$6:$E$455,'Impact of assumptions'!$C11,'Summary Calculations'!$N$6:$N$455)-D11 -> 70.32531548 | F11: =SUMIF('Summary Calculations'!$E$6:$E$455,'Impact of assumptions'!$C11,'Summary Calculations'!$U$6:$U$455)-SUMIF('Summary Calculations'!$E$6:$E$455,'Impact of assumptions'!$C11,'Summary Calculations'!$N$6:$N$455) -> 0 | G11: =SUMIF('Summary Calculations'!$E$6:$E$455,'Impact of assumptions'!$C11,'Summary Calculations'!$AB$6:$AB$455)-SUMIF('Summary Calculations'!$E$6:$E$455,'Impact of assumptions'!$C11,'Summary Calculations'!$U$6:$U$455) -> -102.9516266 | H11: =SUMIF('Summary Calculations'!$E$6:$E$455,'Impact of assumptions'!$C11,'Summary Calculations'!$AI$6:$AI$455)-SUMIF('Summary Calculations'!$E$6:$E$455,'Impact of assumptions'!$C11,'Summary Calculations'!$AB$6:$AB$455) -> 102.4368684 | I11: =SUMIF('Summary Calculations'!$E$6:$E$455,'Impact of assumptions'!$C11,'Summary Calculations'!$AU$6:$AU$455) -> 20589.81056
C12: ='Instructions and Choices'!C33 -> Test Spec 7 | D12: =SUMIF('Summary Calculations'!$E$6:$E$455,'Impact of assumptions'!$C12,'Summary Calculations'!$H$6:$H$455) -> 20520 | E12: =SUMIF('Summary Calculations'!$E$6:$E$455,'Impact of assumptions'!$C12,'Summary Calculations'!$N$6:$N$455)-D12 -> 70.32531548 | F12: =SUMIF('Summary Calculations'!$E$6:$E$455,'Impact of assumptions'!$C12,'Summary Calculations'!$U$6:$U$455)-SUMIF('Summary Calculations'!$E$6:$E$455,'Impact of assumptions'!$C12,'Summary Calculations'!$N$6:$N$455) -> 0 | G12: =SUMIF('Summary Calculations'!$E$6:$E$455,'Impact of assumptions'!$C12,'Summary Calculations'!$AB$6:$AB$455)-SUMIF('Summary Calculations'!$E$6:$E$455,'Impact of assumptions'!$C12,'Summary Calculations'!$U$6:$U$455) -> -102.9516266 | H12: =SUMIF('Summary Calculations'!$E$6:$E$455,'Impact of assumptions'!$C12,'Summary Calculations'!$AI$6:$AI$455)-SUMIF('Summary Calculations'!$E$6:$E$455,'Impact of assumptions'!$C12,'Summary Calculations'!$AB$6:$AB$455) -> 102.4368684 | I12: =SUMIF('Summary Calculations'!$E$6:$E$455,'Impact of assumptions'!$C12,'Summary Calculations'!$AU$6:$AU$455) -> 20589.81056
C13: ='Instructions and Choices'!C34 -> Test Spec 8 | D13: =SUMIF('Summary Calculations'!$E$6:$E$455,'Impact of assumptions'!$C13,'Summary Calculations'!$H$6:$H$455) -> 20520 | E13: =SUMIF('Summary Calculations'!$E$6:$E$455,'Impact of assumptions'!$C13,'Summary Calculations'!$N$6:$N$455)-D13 -> 70.32531548 | F13: =SUMIF('Summary Calculations'!$E$6:$E$455,'Impact of assumptions'!$C13,'Summary Calculations'!$U$6:$U$455)-SUMIF('Summary Calculations'!$E$6:$E$455,'Impact of assumptions'!$C13,'Summary Calculations'!$N$6:$N$455) -> 0 | G13: =SUMIF('Summary Calculations'!$E$6:$E$455,'Impact of assumptions'!$C13,'Summary Calculations'!$AB$6:$AB$455)-SUMIF('Summary Calculations'!$E$6:$E$455,'Impact of assumptions'!$C13,'Summary Calculations'!$U$6:$U$455) -> -102.9516266 | H13: =SUMIF('Summary Calculations'!$E$6:$E$455,'Impact of assumptions'!$C13,'Summary Calculations'!$AI$6:$AI$455)-SUMIF('Summary Calculations'!$E$6:$E$455,'Impact of assumptions'!$C13,'Summary Calculations'!$AB$6:$AB$455) -> 102.4368684 | I13: =SUMIF('Summary Calculations'!$E$6:$E$455,'Impact of assumptions'!$C13,'Summary Calculations'!$AU$6:$AU$455) -> 20589.81056
C14: ='Instructions and Choices'!C35 -> Test Spec 9 | D14: =SUMIF('Summary Calculations'!$E$6:$E$455,'Impact of assumptions'!$C14,'Summary Calculations'!$H$6:$H$455) -> 20520 | E14: =SUMIF('Summary Calculations'!$E$6:$E$455,'Impact of assumptions'!$C14,'Summary Calculations'!$N$6:$N$455)-D14 -> 70.32531548 | F14: =SUMIF('Summary Calculations'!$E$6:$E$455,'Impact of assumptions'!$C14,'Summary Calculations'!$U$6:$U$455)-SUMIF('Summary Calculations'!$E$6:$E$455,'Impact of assumptions'!$C14,'Summary Calculations'!$N$6:$N$455) -> 0 | G14: =SUMIF('Summary Calculations'!$E$6:$E$455,'Impact of assumptions'!$C14,'Summary Calculations'!$AB$6:$AB$455)-SUMIF('Summary Calculations'!$E$6:$E$455,'Impact of assumptions'!$C14,'Summary Calculations'!$U$6:$U$455) -> -102.9516266 | H14: =SUMIF('Summary Calculations'!$E$6:$E$455,'Impact of assumptions'!$C14,'Summary Calculations'!$AI$6:$AI$455)-SUMIF('Summary Calculations'!$E$6:$E$455,'Impact of assumptions'!$C14,'Summary Calculations'!$AB$6:$AB$455) -> 102.4368684 | I14: =SUMIF('Summary Calculations'!$E$6:$E$455,'Impact of assumptions'!$C14,'Summary Calculations'!$AU$6:$AU$455) -> 20589.81056
C15: ='Instructions and Choices'!C36 -> Everything else | D15: =SUMIF('Summary Calculations'!$E$6:$E$455,'Impact of assumptions'!$C15,'Summary Calculations'!$H$6:$H$455) -> 20520 | E15: =SUMIF('Summary Calculations'!$E$6:$E$455,'Impact of assumptions'!$C15,'Summary Calculations'!$N$6:$N$455)-D15 -> 70.32531548 | F15: =SUMIF('Summary Calculations'!$E$6:$E$455,'Impact of assumptions'!$C15,'Summary Calculations'!$U$6:$U$455)-SUMIF('Summary Calculations'!$E$6:$E$455,'Impact of assumptions'!$C15,'Summary Calculations'!$N$6:$N$455) -> 0 | G15: =SUMIF('Summary Calculations'!$E$6:$E$455,'Impact of assumptions'!$C15,'Summary Calculations'!$AB$6:$AB$455)-SUMIF('Summary Calculations'!$E$6:$E$455,'Impact of assumptions'!$C15,'Summary Calculations'!$U$6:$U$455) -> -102.9516266 | H15: =SUMIF('Summary Calculations'!$E$6:$E$455,'Impact of assumptions'!$C15,'Summary Calculations'!$AI$6:$AI$455)-SUMIF('Summary Calculations'!$E$6:$E$455,'Impact of assumptions'!$C15,'Summary Calculations'!$AB$6:$AB$455) -> 102.4368684 | I15: =SUMIF('Summary Calculations'!$E$6:$E$455,'Impact of assumptions'!$C15,'Summary Calculations'!$AU$6:$AU$455) -> 20589.81056
B17: By POD | D17: =D5 -> 2013/14 | E17: Post Demographic Change | F17: Post Non-Demographic Change | G17: Post Commissioner Plans | H17: Post trust Strategic Changes | I17: =I5 -> 2018/19
C18: Outpatient | D18: =SUMIF('Summary Calculations'!$F$6:$F$455,'Impact of assumptions'!$C18,'Summary Calculations'!$H$6:$H$455) -> 31500 | E18: =SUMIF('Summary Calculations'!$F$6:$F$455,'Impact of assumptions'!$C18,'Summary Calculations'!$N$6:$N$455)-D18 -> 63.4344589 | F18: =SUMIF('Summary Calculations'!$F$6:$F$455,'Impact of assumptions'!$C18,'Summary Calculations'!$U$6:$U$455)-SUMIF('Summary Calculations'!$F$6:$F$455,'Impact of assumptions'!$C18,'Summary Calculations'!$N$6:$N$455) -> 233.1678608 | G18: =SUMIF('Summary Calculations'!$F$6:$F$455,'Impact of assumptions'!$C18,'Summary Calculations'!$AB$6:$AB$455)-SUMIF('Summary Calculations'!$F$6:$F$455,'Impact of assumptions'!$C18,'Summary Calculations'!$U$6:$U$455) -> -168.2390578 | H18: =SUMIF('Summary Calculations'!$F$6:$F$455,'Impact of assumptions'!$C18,'Summary Calculations'!$AI$6:$AI$455)-SUMIF('Summary Calculations'!$F$6:$F$455,'Impact of assumptions'!$C18,'Summary Calculations'!$AB$6:$AB$455) -> 168.5296739 | I18: =SUMIF('Summary Calculations'!$F$6:$F$455,'Impact of assumptions'!$C18,'Summary Calculations'!$AU$6:$AU$455) -> 31796.89294
C19: Elective | D19: =SUMIF('Summary Calculations'!$F$6:$F$455,'Impact of assumptions'!$C19,'Summary Calculations'!$H$6:$H$455) -> 34200 | E19: =SUMIF('Summary Calculations'!$F$6:$F$455,'Impact of assumptions'!$C19,'Summary Calculations'!$N$6:$N$455)-D19 -> 85.2880925 | F19: =SUMIF('Summary Calculations'!$F$6:$F$455,'Impact of assumptions'!$C19,'Summary Calculations'!$U$6:$U$455)-SUMIF('Summary Calculations'!$F$6:$F$455,'Impact of assumptions'!$C19,'Summary Calculations'!$N$6:$N$455) -> 261.6389129 | G19: =SUMIF('Summary Calculations'!$F$6:$F$455,'Impact of assumptions'!$C19,'Summary Calculations'!$AB$6:$AB$455)-SUMIF('Summary Calculations'!$F$6:$F$455,'Impact of assumptions'!$C19,'Summary Calculations'!$U$6:$U$455) -> -182.7888708 | H19: =SUMIF('Summary Calculations'!$F$6:$F$455,'Impact of assumptions'!$C19,'Summary Calculations'!$AI$6:$AI$455)-SUMIF('Summary Calculations'!$F$6:$F$455,'Impact of assumptions'!$C19,'Summary Calculations'!$AB$6:$AB$455) -> 183.1043388 | I19: =SUMIF('Summary Calculations'!$F$6:$F$455,'Impact of assumptions'!$C19,'Summary Calculations'!$AU$6:$AU$455) -> 34547.24247
C20: Non-Elective | D20: =SUMIF('Summary Calculations'!$F$6:$F$455,'Impact of assumptions'!$C20,'Summary Calculations'!$H$6:$H$455) -> 37800 | E20: =SUMIF('Summary Calculations'!$F$6:$F$455,'Impact of assumptions'!$C20,'Summary Calculations'!$N$6:$N$455)-D20 -> 114.4262706 | F20: =SUMIF('Summary Calculations'!$F$6:$F$455,'Impact of assumptions'!$C20,'Summary Calculations'!$U$6:$U$455)-SUMIF('Summary Calculations'!$F$6:$F$455,'Impact of assumptions'!$C20,'Summary Calculations'!$N$6:$N$455) -> 299.6003156 | G20: =SUMIF('Summary Calculations'!$F$6:$F$455,'Impact of assumptions'!$C20,'Summary Calculations'!$AB$6:$AB$455)-SUMIF('Summary Calculations'!$F$6:$F$455,'Impact of assumptions'!$C20,'Summary Calculations'!$U$6:$U$455) -> -202.1886214 | H20: =SUMIF('Summary Calculations'!$F$6:$F$455,'Impact of assumptions'!$C20,'Summary Calculations'!$AI$6:$AI$455)-SUMIF('Summary Calculations'!$F$6:$F$455,'Impact of assumptions'!$C20,'Summary Calculations'!$AB$6:$AB$455) -> 202.5372254 | I20: =SUMIF('Summary Calculations'!$F$6:$F$455,'Impact of assumptions'!$C20,'Summary Calculations'!$AU$6:$AU$455) -> 38214.37519
C21: A&E | D21: =SUMIF('Summary Calculations'!$F$6:$F$455,'Impact of assumptions'!$C21,'Summary Calculations'!$H$6:$H$455) -> 38700 | E21: =SUMIF('Summary Calculations'!$F$6:$F$455,'Impact of assumptions'!$C21,'Summary Calculations'!$N$6:$N$455)-D21 -> 121.7108152 | F21: =SUMIF('Summary Calculations'!$F$6:$F$455,'Impact of assumptions'!$C21,'Summary Calculations'!$U$6:$U$455)-SUMIF('Summary Calculations'!$F$6:$F$455,'Impact of assumptions'!$C21,'Summary Calculations'!$N$6:$N$455) -> 309.0906663 | G21: =SUMIF('Summary Calculations'!$F$6:$F$455,'Impact of assumptions'!$C21,'Summary Calculations'!$AB$6:$AB$455)-SUMIF('Summary Calculations'!$F$6:$F$455,'Impact of assumptions'!$C21,'Summary Calculations'!$U$6:$U$455) -> -207.038559 | H21: =SUMIF('Summary Calculations'!$F$6:$F$455,'Impact of assumptions'!$C21,'Summary Calculations'!$AI$6:$AI$455)-SUMIF('Summary Calculations'!$F$6:$F$455,'Impact of assumptions'!$C21,'Summary Calculations'!$AB$6:$AB$455) -> 207.3954471 | I21: =SUMIF('Summary Calculations'!$F$6:$F$455,'Impact of assumptions'!$C21,'Summary Calculations'!$AU$6:$AU$455) -> 39131.15837
C22: Community | D22: =SUMIF('Summary Calculations'!$F$6:$F$455,'Impact of assumptions'!$C22,'Summary Calculations'!$H$6:$H$455) -> 40500 | E22: =SUMIF('Summary Calculations'!$F$6:$F$455,'Impact of assumptions'!$C22,'Summary Calculations'!$N$6:$N$455)-D22 -> 136.2799042 | F22: =SUMIF('Summary Calculations'!$F$6:$F$455,'Impact of assumptions'!$C22,'Summary Calculations'!$U$6:$U$455)-SUMIF('Summary Calculations'!$F$6:$F$455,'Impact of assumptions'!$C22,'Summary Calculations'!$N$6:$N$455) -> 328.0713676 | G22: =SUMIF('Summary Calculations'!$F$6:$F$455,'Impact of assumptions'!$C22,'Summary Calculations'!$AB$6:$AB$455)-SUMIF('Summary Calculations'!$F$6:$F$455,'Impact of assumptions'!$C22,'Summary Calculations'!$U$6:$U$455) -> -216.7384343 | H22: =SUMIF('Summary Calculations'!$F$6:$F$455,'Impact of assumptions'!$C22,'Summary Calculations'!$AI$6:$AI$455)-SUMIF('Summary Calculations'!$F$6:$F$455,'Impact of assumptions'!$C22,'Summary Calculations'!$AB$6:$AB$455) -> 217.1118904 | I22: =SUMIF('Summary Calculations'!$F$6:$F$455,'Impact of assumptions'!$C22,'Summary Calculations'!$AU$6:$AU$455) -> 40964.72473

Sheet Full Output
D2: ='Summary Calculations'!AQ2 -> Forecast activity
B5: ='Summary Calculations'!AK5 -> Unique | C5: ='Summary Calculations'!AL5 -> w/o Age | D5: ='Summary Calculations'!AM5 -> Specialty | E5: ='Summary Calculations'!AN5 -> POD | F5: ='Summary Calculations'!AO5 -> Age Band | G5: ='Summary Calculations'!AP5 -> 2013/14 | H5: ='Summary Calculations'!AQ5 -> 2014/15 | I5: ='Summary Calculations'!AR5 -> 2015/16 | J5: ='Summary Calculations'!AS5 -> 2016/17 | K5: ='Summary Calculations'!AT5 -> 2017/18 | L5: ='Summary Calculations'!AU5 -> 2018/19
B6: ='Summary Calculations'!AK6 -> AAA | C6: ='Summary Calculations'!AL6 -> AA | D6: ='Summary Calculations'!AM6 -> Paediatrics | E6: ='Summary Calculations'!AN6 -> Outpatient | F6: ='Summary Calculations'!AO6 -> 0-18 | G6: ='Summary Calculations'!AP6 -> 120 | H6: ='Summary Calculations'!AQ6 -> 120.3478294 | I6: ='Summary Calculations'!AR6 -> 122.7942717 | J6: ='Summary Calculations'!AS6 -> 124.8554865 | K6: ='Summary Calculations'!AT6 -> 126.8522876 | L6: ='Summary Calculations'!AU6 -> 128.9989256
B7: ='Summary Calculations'!AK7 -> AAB | C7: ='Summary Calculations'!AL7 -> AA | D7: ='Summary Calculations'!AM7 -> Paediatrics | E7: ='Summary Calculations'!AN7 -> Outpatient | F7: ='Summary Calculations'!AO7 -> 19-24 | G7: ='Summary Calculations'!AP7 -> 140 | H7: ='Summary Calculations'!AQ7 -> 140.9707916 | I7: ='Summary Calculations'!AR7 -> 144.4002848 | J7: ='Summary Calculations'!AS7 -> 147.6951419 | K7: ='Summary Calculations'!AT7 -> 150.9240442 | L7: ='Summary Calculations'!AU7 -> 154.3416621
B8: ='Summary Calculations'!AK8 -> AAC | C8: ='Summary Calculations'!AL8 -> AA | D8: ='Summary Calculations'!AM8 -> Paediatrics | E8: ='Summary Calculations'!AN8 -> Outpatient | F8: ='Summary Calculations'!AO8 -> 25-34 | G8: ='Summary Calculations'!AP8 -> 160 | H8: ='Summary Calculations'!AQ8 -> 160.2134669 | I8: ='Summary Calculations'!AR8 -> 163.2205124 | J8: ='Summary Calculations'!AS8 -> 165.5778528 | K8: ='Summary Calculations'!AT8 -> 167.8506511 | L8: ='Summary Calculations'!AU8 -> 170.3224984
B9: ='Summary Calculations'!AK9 -> AAD | C9: ='Summary Calculations'!AL9 -> AA | D9: ='Summary Calculations'!AM9 -> Paediatrics | E9: ='Summary Calculations'!AN9 -> Outpatient | F9: ='Summary Calculations'!AO9 -> 35-44 | G9: ='Summary Calculations'!AP9 -> 180 | H9: ='Summary Calculations'!AQ9 -> 172.7247947 | I9: ='Summary Calculations'!AR9 -> 168.4550914 | J9: ='Summary Calculations'!AS9 -> 159.2464146 | K9: ='Summary Calculations'!AT9 -> 149.8535712 | L9: ='Summary Calculations'!AU9 -> 140.5328686
B10: ='Summary Calculations'!AK10 -> AAE | C10: ='Summary Calculations'!AL10 -> AA | D10: ='Summary Calculations'!AM10 -> Paediatrics | E10: ='Summary Calculations'!AN10 -> Outpatient | F10: ='Summary Calculations'!AO10 -> 45-54 | G10: ='Summary Calculations'!AP10 -> 200 | H10: ='Summary Calculations'!AQ10 -> 196.8161865 | I10: ='Summary Calculations'!AR10 -> 197.0613174 | J10: ='Summary Calculations'!AS10 -> 194.552042 | K10: ='Summary Calculations'!AT10 -> 191.8899559 | L10: ='Summary Calculations'!AU10 -> 189.4007126
B11: ='Summary Calculations'!AK11 -> AAF | C11: ='Summary Calculations'!AL11 -> AA | D11: ='Summary Calculations'!AM11 -> Paediatrics | E11: ='Summary Calculations'!AN11 -> Outpatient | F11: ='Summary Calculations'!AO11 -> 55-64 | G11: ='Summary Calculations'!AP11 -> 220 | H11: ='Summary Calculations'!AQ11 -> 222.717055 | I11: ='Summary Calculations'!AR11 -> 229.3195482 | J11: ='Summary Calculations'!AS11 -> 236.373276 | K11: ='Summary Calculations'!AT11 -> 243.3282537 | L11: ='Summary Calculations'!AU11 -> 250.5946097
B12: ='Summary Calculations'!AK12 -> AAG | C12: ='Summary Calculations'!AL12 -> AA | D12: ='Summary Calculations'!AM12 -> Paediatrics | E12: ='Summary Calculations'!AN12 -> Outpatient | F12: ='Summary Calculations'!AO12 -> 65-74 | G12: ='Summary Calculations'!AP12 -> 240 | H12: ='Summary Calculations'!AQ12 -> 244.2986818 | I12: ='Summary Calculations'!AR12 -> 252.8604014 | J12: ='Summary Calculations'!AS12 -> 262.6728192 | K12: ='Summary Calculations'!AT12 -> 272.3954528 | L12: ='Summary Calculations'!AU12 -> 282.4868904
B13: ='Summary Calculations'!AK13 -> AAH | C13: ='Summary Calculations'!AL13 -> AA | D13: ='Summary Calculations'!AM13 -> Paediatrics | E13: ='Summary Calculations'!AN13 -> Outpatient | F13: ='Summary Calculations'!AO13 -> 75-84 | G13: ='Summary Calculations'!AP13 -> 260 | H13: ='Summary Calculations'!AQ13 -> 260.1552208 | I13: ='Summary Calculations'!AR13 -> 264.8465058 | J13: ='Summary Calculations'!AS13 -> 268.3643888 | K13: ='Summary Calculations'!AT13 -> 271.7454175 | L13: ='Summary Calculations'!AU13 -> 275.448795
B14: ='Summary Calculations'!AK14 -> AAI | C14: ='Summary Calculations'!AL14 -> AA | D14: ='Summary Calculations'!AM14 -> Paediatrics | E14: ='Summary Calculations'!AN14 -> Outpatient | F14: ='Summary Calculations'!AO14 -> 85+ | G14: ='Summary Calculations'!AP14 -> 280 | H14: ='Summary Calculations'!AQ14 -> 266.2646834 | I14: ='Summary Calculations'!AR14 -> 257.1604195 | J14: ='Summary Calculations'!AS14 -> 239.018456 | K14: ='Summary Calculations'!AT14 -> 220.5797454 | L14: ='Summary Calculations'!AU14 -> 202.204219
B15: ='Summary Calculations'!AK15 -> ABA | C15: ='Summary Calculations'!AL15 -> AB | D15: ='Summary Calculations'!AM15 -> Paediatrics | E15: ='Summary Calculations'!AN15 -> Elective | F15: ='Summary Calculations'!AO15 -> 0-18 | G15: ='Summary Calculations'!AP15 -> 150 | H15: ='Summary Calculations'!AQ15 -> 150.4930122 | I15: ='Summary Calculations'!AR15 -> 153.4788641 | J15: ='Summary Calculations'!AS15 -> 156.1110784 | K15: ='Summary Calculations'!AT15 -> 158.6095091 | L15: ='Summary Calculations'!AU15 -> 161.2961067
B16: ='Summary Calculations'!AK16 -> ABB | C16: ='Summary Calculations'!AL16 -> AB | D16: ='Summary Calculations'!AM16 -> Paediatrics | E16: ='Summary Calculations'!AN16 -> Elective | F16: ='Summary Calculations'!AO16 -> 19-24 | G16: ='Summary Calculations'!AP16 -> 170 | H16: ='Summary Calculations'!AQ16 -> 171.2450727 | I16: ='Summary Calculations'!AR16 -> 175.327238 | J16: ='Summary Calculations'!AS16 -> 179.3920429 | K16: ='Summary Calculations'!AT16 -> 183.3159375 | L16: ='Summary Calculations'!AU16 -> 187.4700249
B17: ='Summary Calculations'!AK17 -> ABC | C17: ='Summary Calculations'!AL17 -> AB | D17: ='Summary Calculations'!AM17 -> Paediatrics | E17: ='Summary Calculations'!AN17 -> Elective | F17: ='Summary Calculations'!AO17 -> 25-34 | G17: ='Summary Calculations'!AP17 -> 190 | H17: ='Summary Calculations'!AQ17 -> 190.3271292 | I17: ='Summary Calculations'!AR17 -> 193.8067108 | J17: ='Summary Calculations'!AS17 -> 196.6762614 | K17: ='Summary Calculations'!AT17 -> 199.3781459 | L17: ='Summary Calculations'!AU17 -> 202.3174842
B18: ='Summary Calculations'!AK18 -> ABD | C18: ='Summary Calculations'!AL18 -> AB | D18: ='Summary Calculations'!AM18 -> Paediatrics | E18: ='Summary Calculations'!AN18 -> Elective | F18: ='Summary Calculations'!AO18 -> 35-44 | G18: ='Summary Calculations'!AP18 -> 210 | H18: ='Summary Calculations'!AQ18 -> 201.5902554 | I18: ='Summary Calculations'!AR18 -> 196.5130458 | J18: ='Summary Calculations'!AS18 -> 185.8371481 | K18: ='Summary Calculations'!AT18 -> 174.8778444 | L18: ='Summary Calculations'!AU18 -> 164.0032594
B19: ='Summary Calculations'!AK19 -> ABE | C19: ='Summary Calculations'!AL19 -> AB | D19: ='Summary Calculations'!AM19 -> Paediatrics | E19: ='Summary Calculations'!AN19 -> Elective | F19: ='Summary Calculations'!AO19 -> 45-54 | G19: ='Summary Calculations'!AP19 -> 230 | H19: ='Summary Calculations'!AQ19 -> 226.4262184 | I19: ='Summary Calculations'!AR19 -> 226.5998813 | J19: ='Summary Calculations'!AS19 -> 223.7946568 | K19: ='Summary Calculations'!AT19 -> 220.7348917 | L19: ='Summary Calculations'!AU19 -> 217.8749134
B20: ='Summary Calculations'!AK20 -> ABF | C20: ='Summary Calculations'!AL20 -> AB | D20: ='Summary Calculations'!AM20 -> Paediatrics | E20: ='Summary Calculations'!AN20 -> Elective | F20: ='Summary Calculations'!AO20 -> 55-64 | G20: ='Summary Calculations'!AP20 -> 250 | H20: ='Summary Calculations'!AQ20 -> 253.1855195 | I20: ='Summary Calculations'!AR20 -> 260.566669 | J20: ='Summary Calculations'!AS20 -> 268.6777989 | K20: ='Summary Calculations'!AT20 -> 276.5863681 | L20: ='Summary Calculations'!AU20 -> 284.8503985
B21: ='Summary Calculations'!AK21 -> ABG | C21: ='Summary Calculations'!AL21 -> AB | D21: ='Summary Calculations'!AM21 -> Paediatrics | E21: ='Summary Calculations'!AN21 -> Elective | F21: ='Summary Calculations'!AO21 -> 65-74 | G21: ='Summary Calculations'!AP21 -> 270 | H21: ='Summary Calculations'!AQ21 -> 274.9423918 | I21: ='Summary Calculations'!AR21 -> 284.4420509 | J21: ='Summary Calculations'!AS21 -> 295.5859162 | K21: ='Summary Calculations'!AT21 -> 306.5302083 | L21: ='Summary Calculations'!AU21 -> 317.8912682
B22: ='Summary Calculations'!AK22 -> ABH | C22: ='Summary Calculations'!AL22 -> AB | D22: ='Summary Calculations'!AM22 -> Paediatrics | E22: ='Summary Calculations'!AN22 -> Elective | F22: ='Summary Calculations'!AO22 -> 75-84 | G22: ='Summary Calculations'!AP22 -> 290 | H22: ='Summary Calculations'!AQ22 -> 290.2854418 | I22: ='Summary Calculations'!AR22 -> 295.3788213 | J22: ='Summary Calculations'!AS22 -> 299.409527 | K22: ='Summary Calculations'!AT22 -> 303.1850507 | L22: ='Summary Calculations'!AU22 -> 307.3217554
B23: ='Summary Calculations'!AK23 -> ABI | C23: ='Summary Calculations'!AL23 -> AB | D23: ='Summary Calculations'!AM23 -> Paediatrics | E23: ='Summary Calculations'!AN23 -> Elective | F23: ='Summary Calculations'!AO23 -> 85+ | G23: ='Summary Calculations'!AP23 -> 310 | H23: ='Summary Calculations'!AQ23 -> 294.9071414 | I23: ='Summary Calculations'!AR23 -> 284.6873984 | J23: ='Summary Calculations'!AS23 -> 264.6983162 | K23: ='Summary Calculations'!AT23 -> 244.2812863 | L23: ='Summary Calculations'!AU23 -> 223.9348334
B24: ='Summary Calculations'!AK24 -> ACA | C24: ='Summary Calculations'!AL24 -> AC | D24: ='Summary Calculations'!AM24 -> Paediatrics | E24: ='Summary Calculations'!AN24 -> Non-Elective | F24: ='Summary Calculations'!AO24 -> 0-18 | G24: ='Summary Calculations'!AP24 -> 190 | H24: ='Summary Calculations'!AQ24 -> 190.9802016 | I24: ='Summary Calculations'!AR24 -> 194.516393 | J24: ='Summary Calculations'!AS24 -> 197.7928164 | K24: ='Summary Calculations'!AT24 -> 200.9604943 | L24: ='Summary Calculations'!AU24 -> 204.3675991
B25: ='Summary Calculations'!AK25 -> ACB | C25: ='Summary Calculations'!AL25 -> AC | D25: ='Summary Calculations'!AM25 -> Paediatrics | E25: ='Summary Calculations'!AN25 -> Non-Elective | F25: ='Summary Calculations'!AO25 -> 19-24 | G25: ='Summary Calculations'!AP25 -> 210 | H25: ='Summary Calculations'!AQ25 -> 211.9327767 | I25: ='Summary Calculations'!AR25 -> 216.703065 | J25: ='Summary Calculations'!AS25 -> 221.6603414 | K25: ='Summary Calculations'!AT25 -> 226.5112231 | L25: ='Summary Calculations'!AU25 -> 231.6477182
B26: ='Summary Calculations'!AK26 -> ACC | C26: ='Summary Calculations'!AL26 -> AC | D26: ='Summary Calculations'!AM26 -> Paediatrics | E26: ='Summary Calculations'!AN26 -> Non-Elective | F26: ='Summary Calculations'!AO26 -> 25-34 | G26: ='Summary Calculations'!AP26 -> 230 | H26: ='Summary Calculations'!AQ26 -> 230.8259346 | I26: ='Summary Calculations'!AR26 -> 234.7406676 | J26: ='Summary Calculations'!AS26 -> 238.1445396 | K26: ='Summary Calculations'!AT26 -> 241.4187048 | L26: ='Summary Calculations'!AU26 -> 244.9816002
B27: ='Summary Calculations'!AK27 -> ACD | C27: ='Summary Calculations'!AL27 -> AC | D27: ='Summary Calculations'!AM27 -> Paediatrics | E27: ='Summary Calculations'!AN27 -> Non-Elective | F27: ='Summary Calculations'!AO27 -> 35-44 | G27: ='Summary Calculations'!AP27 -> 250 | H27: ='Summary Calculations'!AQ27 -> 240.4362354 | I27: ='Summary Calculations'!AR27 -> 234.076271 | J27: ='Summary Calculations'!AS27 -> 221.2930094 | K27: ='Summary Calculations'!AT27 -> 208.245024 | L27: ='Summary Calculations'!AU27 -> 195.2985457
B28: ='Summary Calculations'!AK28 -> ACE | C28: ='Summary Calculations'!AL28 -> AC | D28: ='Summary Calculations'!AM28 -> Paediatrics | E28: ='Summary Calculations'!AN28 -> Non-Elective | F28: ='Summary Calculations'!AO28 -> 45-54 | G28: ='Summary Calculations'!AP28 -> 270 | H28: ='Summary Calculations'!AQ28 -> 266.3007024 | I28: ='Summary Calculations'!AR28 -> 266.1588402 | J28: ='Summary Calculations'!AS28 -> 262.7847087 | K28: ='Summary Calculations'!AT28 -> 259.1946562 | L28: ='Summary Calculations'!AU28 -> 255.8403095
B29: ='Summary Calculations'!AK29 -> ACF | C29: ='Summary Calculations'!AL29 -> AC | D29: ='Summary Calculations'!AM29 -> Paediatrics | E29: ='Summary Calculations'!AN29 -> Non-Elective | F29: ='Summary Calculations'!AO29 -> 55-64 | G29: ='Summary Calculations'!AP29 -> 290 | H29: ='Summary Calculations'!AQ29 -> 294.2432597 | I29: ='Summary Calculations'!AR29 -> 302.428099 | J29: ='Summary Calculations'!AS29 -> 311.7483904 | K29: ='Summary Calculations'!AT29 -> 320.9282059 | L29: ='Summary Calculations'!AU29 -> 330.5222015
B30: ='Summary Calculations'!AK30 -> ACG | C30: ='Summary Calculations'!AL30 -> AC | D30: ='Summary Calculations'!AM30 -> Paediatrics | E30: ='Summary Calculations'!AN30 -> Non-Elective | F30: ='Summary Calculations'!AO30 -> 65-74 | G30: ='Summary Calculations'!AP30 -> 310 | H30: ='Summary Calculations'!AQ30 -> 316.2636702 | I30: ='Summary Calculations'!AR30 -> 326.7661191 | J30: ='Summary Calculations'!AS30 -> 339.4658693 | K30: ='Summary Calculations'!AT30 -> 352.0386424 | L30: ='Summary Calculations'!AU30 -> 365.0920236
B31: ='Summary Calculations'!AK31 -> ACH | C31: ='Summary Calculations'!AL31 -> AC | D31: ='Summary Calculations'!AM31 -> Paediatrics | E31: ='Summary Calculations'!AN31 -> Non-Elective | F31: ='Summary Calculations'!AO31 -> 75-84 | G31: ='Summary Calculations'!AP31 -> 330 | H31: ='Summary Calculations'!AQ31 -> 330.9412237 | I31: ='Summary Calculations'!AR31 -> 336.3106221 | J31: ='Summary Calculations'!AS31 -> 340.7971906 | K31: ='Summary Calculations'!AT31 -> 345.0983263 | L31: ='Summary Calculations'!AU31 -> 349.8122898
B32: ='Summary Calculations'!AK32 -> ACI | C32: ='Summary Calculations'!AL32 -> AC | D32: ='Summary Calculations'!AM32 -> Paediatrics | E32: ='Summary Calculations'!AN32 -> Non-Elective | F32: ='Summary Calculations'!AO32 -> 85+ | G32: ='Summary Calculations'!AP32 -> 350 | H32: ='Summary Calculations'!AQ32 -> 333.5810032 | I32: ='Summary Calculations'!AR32 -> 321.6028461 | J32: ='Summary Calculations'!AS32 -> 298.9317042 | K32: ='Summary Calculations'!AT32 -> 275.8771153 | L32: ='Summary Calculations'!AU32 -> 252.9029066
B33: ='Summary Calculations'!AK33 -> ADA | C33: ='Summary Calculations'!AL33 -> AD | D33: ='Summary Calculations'!AM33 -> Paediatrics | E33: ='Summary Calculations'!AN33 -> A&E | F33: ='Summary Calculations'!AO33 -> 0-18 | G33: ='Summary Calculations'!AP33 -> 200 | H33: ='Summary Calculations'!AQ33 -> 200.8580102 | I33: ='Summary Calculations'!AR33 -> 204.777828 | J33: ='Summary Calculations'!AS33 -> 208.2142207 | K33: ='Summary Calculations'!AT33 -> 211.5492617 | L33: ='Summary Calculations'!AU33 -> 215.1365637
B34: ='Summary Calculations'!AK34 -> ADB | C34: ='Summary Calculations'!AL34 -> AD | D34: ='Summary Calculations'!AM34 -> Paediatrics | E34: ='Summary Calculations'!AN34 -> A&E | F34: ='Summary Calculations'!AO34 -> 19-24 | G34: ='Summary Calculations'!AP34 -> 220 | H34: ='Summary Calculations'!AQ34 -> 221.8328854 | I34: ='Summary Calculations'!AR34 -> 227.0485695 | J34: ='Summary Calculations'!AS34 -> 232.22815 | K34: ='Summary Calculations'!AT34 -> 237.31082 | L34: ='Summary Calculations'!AU34 -> 242.6929735
B35: ='Summary Calculations'!AK35 -> ADC | C35: ='Summary Calculations'!AL35 -> AD | D35: ='Summary Calculations'!AM35 -> Paediatrics | E35: ='Summary Calculations'!AN35 -> A&E | F35: ='Summary Calculations'!AO35 -> 25-34 | G35: ='Summary Calculations'!AP35 -> 240 | H35: ='Summary Calculations'!AQ35 -> 240.6536329 | I35: ='Summary Calculations'!AR35 -> 244.9751719 | J35: ='Summary Calculations'!AS35 -> 248.5120846 | K35: ='Summary Calculations'!AT35 -> 251.9293407 | L35: ='Summary Calculations'!AU35 -> 255.6481551
B36: ='Summary Calculations'!AK36 -> ADD | C36: ='Summary Calculations'!AL36 -> AD | D36: ='Summary Calculations'!AM36 -> Paediatrics | E36: ='Summary Calculations'!AN36 -> A&E | F36: ='Summary Calculations'!AO36 -> 35-44 | G36: ='Summary Calculations'!AP36 -> 260 | H36: ='Summary Calculations'!AQ36 -> 249.8375271 | I36: ='Summary Calculations'!AR36 -> 243.4675355 | J36: ='Summary Calculations'!AS36 -> 230.1571721 | K36: ='Summary Calculations'!AT36 -> 216.5870075 | L36: ='Summary Calculations'!AU36 -> 203.1225494
B37: ='Summary Calculations'!AK37 -> ADE | C37: ='Summary Calculations'!AL37 -> AD | D37: ='Summary Calculations'!AM37 -> Paediatrics | E37: ='Summary Calculations'!AN37 -> A&E | F37: ='Summary Calculations'!AO37 -> 45-54 | G37: ='Summary Calculations'!AP37 -> 280 | H37: ='Summary Calculations'!AQ37 -> 275.924963 | I37: ='Summary Calculations'!AR37 -> 276.0485642 | J37: ='Summary Calculations'!AS37 -> 272.5322088 | K37: ='Summary Calculations'!AT37 -> 268.8095782 | L37: ='Summary Calculations'!AU37 -> 265.3316325
B38: ='Summary Calculations'!AK38 -> ADF | C38: ='Summary Calculations'!AL38 -> AD | D38: ='Summary Calculations'!AM38 -> Paediatrics | E38: ='Summary Calculations'!AN38 -> A&E | F38: ='Summary Calculations'!AO38 -> 55-64 | G38: ='Summary Calculations'!AP38 -> 300 | H38: ='Summary Calculations'!AQ38 -> 304.1264508 | I38: ='Summary Calculations'!AR38 -> 312.892913 | J38: ='Summary Calculations'!AS38 -> 322.5157701 | K38: ='Summary Calculations'!AT38 -> 332.0133708 | L38: ='Summary Calculations'!AU38 -> 341.9398239
B39: ='Summary Calculations'!AK39 -> ADG | C39: ='Summary Calculations'!AL39 -> AD | D39: ='Summary Calculations'!AM39 -> Paediatrics | E39: ='Summary Calculations'!AN39 -> A&E | F39: ='Summary Calculations'!AO39 -> 65-74 | G39: ='Summary Calculations'!AP39 -> 320 | H39: ='Summary Calculations'!AQ39 -> 326.1835123 | I39: ='Summary Calculations'!AR39 -> 337.3460542 | J39: ='Summary Calculations'!AS39 -> 350.4353258 | K39: ='Summary Calculations'!AT39 -> 363.415169 | L39: ='Summary Calculations'!AU39 -> 376.8915663
B40: ='Summary Calculations'!AK40 -> ADH | C40: ='Summary Calculations'!AL40 -> AD | D40: ='Summary Calculations'!AM40 -> Paediatrics | E40: ='Summary Calculations'!AN40 -> A&E | F40: ='Summary Calculations'!AO40 -> 75-84 | G40: ='Summary Calculations'!AP40 -> 340 | H40: ='Summary Calculations'!AQ40 -> 340.6749959 | I40: ='Summary Calculations'!AR40 -> 346.5420113 | J40: ='Summary Calculations'!AS40 -> 351.143361 | K40: ='Summary Calculations'!AT40 -> 355.5758517 | L40: ='Summary Calculations'!AU40 -> 360.4340656
B41: ='Summary Calculations'!AK41 -> ADI | C41: ='Summary Calculations'!AL41 -> AD | D41: ='Summary Calculations'!AM41 -> Paediatrics | E41: ='Summary Calculations'!AN41 -> A&E | F41: ='Summary Calculations'!AO41 -> 85+ | G41: ='Summary Calculations'!AP41 -> 360 | H41: ='Summary Calculations'!AQ41 -> 342.8152875 | I41: ='Summary Calculations'!AR41 -> 330.8298363 | J41: ='Summary Calculations'!AS41 -> 307.4892329 | K41: ='Summary Calculations'!AT41 -> 283.7752803 | L41: ='Summary Calculations'!AU41 -> 260.1441518
B42: ='Summary Calculations'!AK42 -> AEA | C42: ='Summary Calculations'!AL42 -> AE | D42: ='Summary Calculations'!AM42 -> Paediatrics | E42: ='Summary Calculations'!AN42 -> Community | F42: ='Summary Calculations'!AO42 -> 0-18 | G42: ='Summary Calculations'!AP42 -> 220 | H42: ='Summary Calculations'!AQ42 -> 220.9863757 | I42: ='Summary Calculations'!AR42 -> 225.3025856 | J42: ='Summary Calculations'!AS42 -> 229.0579206 | K42: ='Summary Calculations'!AT42 -> 232.727734 | L42: ='Summary Calculations'!AU42 -> 236.6754952
B43: ='Summary Calculations'!AK43 -> AEB | C43: ='Summary Calculations'!AL43 -> AE | D43: ='Summary Calculations'!AM43 -> Paediatrics | E43: ='Summary Calculations'!AN43 -> Community | F43: ='Summary Calculations'!AO43 -> 19-24 | G43: ='Summary Calculations'!AP43 -> 240 | H43: ='Summary Calculations'!AQ43 -> 242.0461322 | I43: ='Summary Calculations'!AR43 -> 247.7410017 | J43: ='Summary Calculations'!AS43 -> 253.3644417 | K43: ='Summary Calculations'!AT43 -> 258.9107262 | L43: ='Summary Calculations'!AU43 -> 264.784248
B44: ='Summary Calculations'!AK44 -> AEC | C44: ='Summary Calculations'!AL44 -> AE | D44: ='Summary Calculations'!AM44 -> Paediatrics | E44: ='Summary Calculations'!AN44 -> Community | F44: ='Summary Calculations'!AO44 -> 25-34 | G44: ='Summary Calculations'!AP44 -> 260 | H44: ='Summary Calculations'!AQ44 -> 260.7583274 | I44: ='Summary Calculations'!AR44 -> 265.4451139 | J44: ='Summary Calculations'!AS44 -> 269.2476115 | K44: ='Summary Calculations'!AT44 -> 272.9510683 | L44: ='Summary Calculations'!AU44 -> 276.9817475
B45: ='Summary Calculations'!AK45 -> AED | C45: ='Summary Calculations'!AL45 -> AE | D45: ='Summary Calculations'!AM45 -> Paediatrics | E45: ='Summary Calculations'!AN45 -> Community | F45: ='Summary Calculations'!AO45 -> 35-44 | G45: ='Summary Calculations'!AP45 -> 280 | H45: ='Summary Calculations'!AQ45 -> 269.1076317 | I45: ='Summary Calculations'!AR45 -> 262.2504857 | J45: ='Summary Calculations'!AS45 -> 247.8856788 | K45: ='Summary Calculations'!AT45 -> 233.2711478 | L45: ='Summary Calculations'!AU45 -> 218.7707239
B46: ='Summary Calculations'!AK46 -> AEE | C46: ='Summary Calculations'!AL46 -> AE | D46: ='Summary Calculations'!AM46 -> Paediatrics | E46: ='Summary Calculations'!AN46 -> Community | F46: ='Summary Calculations'!AO46 -> 45-54 | G46: ='Summary Calculations'!AP46 -> 300 | H46: ='Summary Calculations'!AQ46 -> 295.6908424 | I46: ='Summary Calculations'!AR46 -> 295.8279979 | J46: ='Summary Calculations'!AS46 -> 292.0271972 | K46: ='Summary Calculations'!AT46 -> 288.0394047 | L46: ='Summary Calculations'!AU46 -> 284.3142545
B47: ='Summary Calculations'!AK47 -> AEF | C47: ='Summary Calculations'!AL47 -> AE | D47: ='Summary Calculations'!AM47 -> Paediatrics | E47: ='Summary Calculations'!AN47 -> Community | F47: ='Summary Calculations'!AO47 -> 55-64 | G47: ='Summary Calculations'!AP47 -> 320 | H47: ='Summary Calculations'!AQ47 -> 324.4640431 | I47: ='Summary Calculations'!AR47 -> 333.8220412 | J47: ='Summary Calculations'!AS47 -> 344.0502831 | K47: ='Summary Calculations'!AT47 -> 354.18343 | L47: ='Summary Calculations'!AU47 -> 364.7747673
B48: ='Summary Calculations'!AK48 -> AEG | C48: ='Summary Calculations'!AL48 -> AE | D48: ='Summary Calculations'!AM48 -> Paediatrics | E48: ='Summary Calculations'!AN48 -> Community | F48: ='Summary Calculations'!AO48 -> 65-74 | G48: ='Summary Calculations'!AP48 -> 340 | H48: ='Summary Calculations'!AQ48 -> 346.6367481 | I48: ='Summary Calculations'!AR48 -> 358.5049296 | J48: ='Summary Calculations'!AS48 -> 372.37375 | K48: ='Summary Calculations'!AT48 -> 386.1676875 | L48: ='Summary Calculations'!AU48 -> 400.4900584
B49: ='Summary Calculations'!AK49 -> AEH | C49: ='Summary Calculations'!AL49 -> AE | D49: ='Summary Calculations'!AM49 -> Paediatrics | E49: ='Summary Calculations'!AN49 -> Community | F49: ='Summary Calculations'!AO49 -> 75-84 | G49: ='Summary Calculations'!AP49 -> 360 | H49: ='Summary Calculations'!AQ49 -> 360.7841928 | I49: ='Summary Calculations'!AR49 -> 367.0033544 | J49: ='Summary Calculations'!AS49 -> 371.8350168 | K49: ='Summary Calculations'!AT49 -> 376.5301737 | L49: ='Summary Calculations'!AU49 -> 381.6768295
B50: ='Summary Calculations'!AK50 -> AEI | C50: ='Summary Calculations'!AL50 -> AE | D50: ='Summary Calculations'!AM50 -> Paediatrics | E50: ='Summary Calculations'!AN50 -> Community | F50: ='Summary Calculations'!AO50 -> 85+ | G50: ='Summary Calculations'!AP50 -> 380 | H50: ='Summary Calculations'!AQ50 -> 361.9302933 | I50: ='Summary Calculations'!AR50 -> 349.2820957 | J50: ='Summary Calculations'!AS50 -> 324.6035384 | K50: ='Summary Calculations'!AT50 -> 299.5708827 | L50: ='Summary Calculations'!AU50 -> 274.6259326
B51: ='Summary Calculations'!AK51 -> BAA | C51: ='Summary Calculations'!AL51 -> BA | D51: ='Summary Calculations'!AM51 -> Obstetrics | E51: ='Summary Calculations'!AN51 -> Outpatient | F51: ='Summary Calculations'!AO51 -> 0-18 | G51: ='Summary Calculations'!AP51 -> 170 | H51: ='Summary Calculations'!AQ51 -> 206.2833852 | I51: ='Summary Calculations'!AR51 -> 198.1248483 | J51: ='Summary Calculations'!AS51 -> 201.5482401 | K51: ='Summary Calculations'!AT51 -> 201.3889435 | L51: ='Summary Calculations'!AU51 -> 201.1399025
B52: ='Summary Calculations'!AK52 -> BAB | C52: ='Summary Calculations'!AL52 -> BA | D52: ='Summary Calculations'!AM52 -> Obstetrics | E52: ='Summary Calculations'!AN52 -> Outpatient | F52: ='Summary Calculations'!AO52 -> 19-24 | G52: ='Summary Calculations'!AP52 -> 190 | H52: ='Summary Calculations'!AQ52 -> 231.4797562 | I52: ='Summary Calculations'!AR52 -> 223.1961912 | J52: ='Summary Calculations'!AS52 -> 228.3996737 | K52: ='Summary Calculations'!AT52 -> 229.5374984 | L52: ='Summary Calculations'!AU52 -> 230.5436713
B53: ='Summary Calculations'!AK53 -> BAC | C53: ='Summary Calculations'!AL53 -> BA | D53: ='Summary Calculations'!AM53 -> Obstetrics | E53: ='Summary Calculations'!AN53 -> Outpatient | F53: ='Summary Calculations'!AO53 -> 25-34 | G53: ='Summary Calculations'!AP53 -> 210 | H53: ='Summary Calculations'!AQ53 -> 254.4231605 | I53: ='Summary Calculations'!AR53 -> 243.9872955 | J53: ='Summary Calculations'!AS53 -> 247.6311428 | K53: ='Summary Calculations'!AT53 -> 246.8834554 | L53: ='Summary Calculations'!AU53 -> 246.0457104
B54: ='Summary Calculations'!AK54 -> BAD | C54: ='Summary Calculations'!AL54 -> BA | D54: ='Summary Calculations'!AM54 -> Obstetrics | E54: ='Summary Calculations'!AN54 -> Outpatient | F54: ='Summary Calculations'!AO54 -> 35-44 | G54: ='Summary Calculations'!AP54 -> 230 | H54: ='Summary Calculations'!AQ54 -> 267.0350868 | I54: ='Summary Calculations'!AR54 -> 245.1504172 | J54: ='Summary Calculations'!AS54 -> 231.86153 | K54: ='Summary Calculations'!AT54 -> 214.5813993 | L54: ='Summary Calculations'!AU54 -> 197.6413032
B55: ='Summary Calculations'!AK55 -> BAE | C55: ='Summary Calculations'!AL55 -> BA | D55: ='Summary Calculations'!AM55 -> Obstetrics | E55: ='Summary Calculations'!AN55 -> Outpatient | F55: ='Summary Calculations'!AO55 -> 45-54 | G55: ='Summary Calculations'!AP55 -> 250 | H55: ='Summary Calculations'!AQ55 -> 297.6659362 | I55: ='Summary Calculations'!AR55 -> 280.5463088 | J55: ='Summary Calculations'!AS55 -> 277.1082846 | K55: ='Summary Calculations'!AT55 -> 268.8016318 | L55: ='Summary Calculations'!AU55 -> 260.5770052
B56: ='Summary Calculations'!AK56 -> BAF | C56: ='Summary Calculations'!AL56 -> BA | D56: ='Summary Calculations'!AM56 -> Obstetrics | E56: ='Summary Calculations'!AN56 -> Outpatient | F56: ='Summary Calculations'!AO56 -> 55-64 | G56: ='Summary Calculations'!AP56 -> 270 | H56: ='Summary Calculations'!AQ56 -> 330.7142217 | I56: ='Summary Calculations'!AR56 -> 320.5349017 | J56: ='Summary Calculations'!AS56 -> 330.5545666 | K56: ='Summary Calculations'!AT56 -> 334.6595844 | L56: ='Summary Calculations'!AU56 -> 338.4989104
B57: ='Summary Calculations'!AK57 -> BAG | C57: ='Summary Calculations'!AL57 -> BA | D57: ='Summary Calculations'!AM57 -> Obstetrics | E57: ='Summary Calculations'!AN57 -> Outpatient | F57: ='Summary Calculations'!AO57 -> 65-74 | G57: ='Summary Calculations'!AP57 -> 290 | H57: ='Summary Calculations'!AQ57 -> 357.1627783 | I57: ='Summary Calculations'!AR57 -> 347.9851758 | J57: ='Summary Calculations'!AS57 -> 361.6642613 | K57: ='Summary Calculations'!AT57 -> 368.8554922 | L57: ='Summary Calculations'!AU57 -> 375.689901
B58: ='Summary Calculations'!AK58 -> BAH | C58: ='Summary Calculations'!AL58 -> BA | D58: ='Summary Calculations'!AM58 -> Obstetrics | E58: ='Summary Calculations'!AN58 -> Outpatient | F58: ='Summary Calculations'!AO58 -> 75-84 | G58: ='Summary Calculations'!AP58 -> 310 | H58: ='Summary Calculations'!AQ58 -> 375.300553 | I58: ='Summary Calculations'!AR58 -> 359.6464331 | J58: ='Summary Calculations'!AS58 -> 364.6002273 | K58: ='Summary Calculations'!AT58 -> 363.0949593 | L58: ='Summary Calculations'!AU58 -> 361.4711904
B59: ='Summary Calculations'!AK59 -> BAI | C59: ='Summary Calculations'!AL59 -> BA | D59: ='Summary Calculations'!AM59 -> Obstetrics | E59: ='Summary Calculations'!AN59 -> Outpatient | F59: ='Summary Calculations'!AO59 -> 85+ | G59: ='Summary Calculations'!AP59 -> 330 | H59: ='Summary Calculations'!AQ59 -> 379.6888011 | I59: ='Summary Calculations'!AR59 -> 345.1860196 | J59: ='Summary Calculations'!AS59 -> 320.9896645 | K59: ='Summary Calculations'!AT59 -> 291.3340085 | L59: ='Summary Calculations'!AU59 -> 262.295348
B60: ='Summary Calculations'!AK60 -> BBA | C60: ='Summary Calculations'!AL60 -> BB | D60: ='Summary Calculations'!AM60 -> Obstetrics | E60: ='Summary Calculations'!AN60 -> Elective | F60: ='Summary Calculations'!AO60 -> 0-18 | G60: ='Summary Calculations'!AP60 -> 200 | H60: ='Summary Calculations'!AQ60 -> 242.6863356 | I60: ='Summary Calculations'!AR60 -> 233.1374263 | J60: ='Summary Calculations'!AS60 -> 237.1155765 | K60: ='Summary Calculations'!AT60 -> 236.9281689 | L60: ='Summary Calculations'!AU60 -> 236.6351794
B61: ='Summary Calculations'!AK61 -> BBB | C61: ='Summary Calculations'!AL61 -> BB | D61: ='Summary Calculations'!AM61 -> Obstetrics | E61: ='Summary Calculations'!AN61 -> Elective | F61: ='Summary Calculations'!AO61 -> 19-24 | G61: ='Summary Calculations'!AP61 -> 220 | H61: ='Summary Calculations'!AQ61 -> 268.0291914 | I61: ='Summary Calculations'!AR61 -> 258.4924337 | J61: ='Summary Calculations'!AS61 -> 264.4627801 | K61: ='Summary Calculations'!AT61 -> 265.7802613 | L61: ='Summary Calculations'!AU61 -> 266.9453036
B62: ='Summary Calculations'!AK62 -> BBC | C62: ='Summary Calculations'!AL62 -> BB | D62: ='Summary Calculations'!AM62 -> Obstetrics | E62: ='Summary Calculations'!AN62 -> Elective | F62: ='Summary Calculations'!AO62 -> 25-34 | G62: ='Summary Calculations'!AP62 -> 240 | H62: ='Summary Calculations'!AQ62 -> 290.7693263 | I62: ='Summary Calculations'!AR62 -> 278.901684 | J62: ='Summary Calculations'!AS62 -> 283.0070204 | K62: ='Summary Calculations'!AT62 -> 282.1525205 | L62: ='Summary Calculations'!AU62 -> 281.1950976
B63: ='Summary Calculations'!AK63 -> BBD | C63: ='Summary Calculations'!AL63 -> BB | D63: ='Summary Calculations'!AM63 -> Obstetrics | E63: ='Summary Calculations'!AN63 -> Elective | F63: ='Summary Calculations'!AO63 -> 35-44 | G63: ='Summary Calculations'!AP63 -> 260 | H63: ='Summary Calculations'!AQ63 -> 301.8657503 | I63: ='Summary Calculations'!AR63 -> 277.1852556 | J63: ='Summary Calculations'!AS63 -> 262.1043383 | K63: ='Summary Calculations'!AT63 -> 242.5702774 | L63: ='Summary Calculations'!AU63 -> 223.4206036
B64: ='Summary Calculations'!AK64 -> BBE | C64: ='Summary Calculations'!AL64 -> BB | D64: ='Summary Calculations'!AM64 -> Obstetrics | E64: ='Summary Calculations'!AN64 -> Elective | F64: ='Summary Calculations'!AO64 -> 45-54 | G64: ='Summary Calculations'!AP64 -> 280 | H64: ='Summary Calculations'!AQ64 -> 333.3858486 | I64: ='Summary Calculations'!AR64 -> 314.2784178 | J64: ='Summary Calculations'!AS64 -> 310.3612788 | K64: ='Summary Calculations'!AT64 -> 301.0578276 | L64: ='Summary Calculations'!AU64 -> 291.8462458
B65: ='Summary Calculations'!AK65 -> BBF | C65: ='Summary Calculations'!AL65 -> BB | D65: ='Summary Calculations'!AM65 -> Obstetrics | E65: ='Summary Calculations'!AN65 -> Elective | F65: ='Summary Calculations'!AO65 -> 55-64 | G65: ='Summary Calculations'!AP65 -> 300 | H65: ='Summary Calculations'!AQ65 -> 367.4602464 | I65: ='Summary Calculations'!AR65 -> 356.2253255 | J65: ='Summary Calculations'!AS65 -> 367.2828518 | K65: ='Summary Calculations'!AT65 -> 371.8439827 | L65: ='Summary Calculations'!AU65 -> 376.1099005
B66: ='Summary Calculations'!AK66 -> BBG | C66: ='Summary Calculations'!AL66 -> BB | D66: ='Summary Calculations'!AM66 -> Obstetrics | E66: ='Summary Calculations'!AN66 -> Elective | F66: ='Summary Calculations'!AO66 -> 65-74 | G66: ='Summary Calculations'!AP66 -> 320 | H66: ='Summary Calculations'!AQ66 -> 394.1106519 | I66: ='Summary Calculations'!AR66 -> 384.0649723 | J66: ='Summary Calculations'!AS66 -> 399.0778056 | K66: ='Summary Calculations'!AT66 -> 407.0129569 | L66: ='Summary Calculations'!AU66 -> 414.5543735
B67: ='Summary Calculations'!AK67 -> BBH | C67: ='Summary Calculations'!AL67 -> BB | D67: ='Summary Calculations'!AM67 -> Obstetrics | E67: ='Summary Calculations'!AN67 -> Elective | F67: ='Summary Calculations'!AO67 -> 75-84 | G67: ='Summary Calculations'!AP67 -> 340 | H67: ='Summary Calculations'!AQ67 -> 411.6199613 | I67: ='Summary Calculations'!AR67 -> 394.5344737 | J67: ='Summary Calculations'!AS67 -> 399.8841203 | K67: ='Summary Calculations'!AT67 -> 398.2331812 | L67: ='Summary Calculations'!AU67 -> 396.4522733
B68: ='Summary Calculations'!AK68 -> BBI | C68: ='Summary Calculations'!AL68 -> BB | D68: ='Summary Calculations'!AM68 -> Obstetrics | E68: ='Summary Calculations'!AN68 -> Elective | F68: ='Summary Calculations'!AO68 -> 85+ | G68: ='Summary Calculations'!AP68 -> 360 | H68: ='Summary Calculations'!AQ68 -> 414.2059649 | I68: ='Summary Calculations'!AR68 -> 376.646326 | J68: ='Summary Calculations'!AS68 -> 350.170543 | K68: ='Summary Calculations'!AT68 -> 317.8189184 | L68: ='Summary Calculations'!AU68 -> 286.1403797
B69: ='Summary Calculations'!AK69 -> BCA | C69: ='Summary Calculations'!AL69 -> BC | D69: ='Summary Calculations'!AM69 -> Obstetrics | E69: ='Summary Calculations'!AN69 -> Non-Elective | F69: ='Summary Calculations'!AO69 -> 0-18 | G69: ='Summary Calculations'!AP69 -> 240 | H69: ='Summary Calculations'!AQ69 -> 291.2236027 | I69: ='Summary Calculations'!AR69 -> 279.8265893 | J69: ='Summary Calculations'!AS69 -> 284.5386918 | K69: ='Summary Calculations'!AT69 -> 284.3138026 | L69: ='Summary Calculations'!AU69 -> 283.9622153
B70: ='Summary Calculations'!AK70 -> BCB | C70: ='Summary Calculations'!AL70 -> BC | D70: ='Summary Calculations'!AM70 -> Obstetrics | E70: ='Summary Calculations'!AN70 -> Non-Elective | F70: ='Summary Calculations'!AO70 -> 19-24 | G70: ='Summary Calculations'!AP70 -> 260 | H70: ='Summary Calculations'!AQ70 -> 316.7617717 | I70: ='Summary Calculations'!AR70 -> 305.5584075 | J70: ='Summary Calculations'!AS70 -> 312.5469219 | K70: ='Summary Calculations'!AT70 -> 314.1039451 | L70: ='Summary Calculations'!AU70 -> 315.4808133
B71: ='Summary Calculations'!AK71 -> BCC | C71: ='Summary Calculations'!AL71 -> BC | D71: ='Summary Calculations'!AM71 -> Obstetrics | E71: ='Summary Calculations'!AN71 -> Non-Elective | F71: ='Summary Calculations'!AO71 -> 25-34 | G71: ='Summary Calculations'!AP71 -> 280 | H71: ='Summary Calculations'!AQ71 -> 339.2308807 | I71: ='Summary Calculations'!AR71 -> 325.4570333 | J71: ='Summary Calculations'!AS71 -> 330.1748571 | K71: ='Summary Calculations'!AT71 -> 329.1779406 | L71: ='Summary Calculations'!AU71 -> 328.0609472
B72: ='Summary Calculations'!AK72 -> BCD | C72: ='Summary Calculations'!AL72 -> BC | D72: ='Summary Calculations'!AM72 -> Obstetrics | E72: ='Summary Calculations'!AN72 -> Non-Elective | F72: ='Summary Calculations'!AO72 -> 35-44 | G72: ='Summary Calculations'!AP72 -> 300 | H72: ='Summary Calculations'!AQ72 -> 348.3066349 | I72: ='Summary Calculations'!AR72 -> 319.8996515 | J72: ='Summary Calculations'!AS72 -> 302.4280827 | K72: ='Summary Calculations'!AT72 -> 279.8887817 | L72: ='Summary Calculations'!AU72 -> 257.7930041
B73: ='Summary Calculations'!AK73 -> BCE | C73: ='Summary Calculations'!AL73 -> BC | D73: ='Summary Calculations'!AM73 -> Obstetrics | E73: ='Summary Calculations'!AN73 -> Non-Elective | F73: ='Summary Calculations'!AO73 -> 45-54 | G73: ='Summary Calculations'!AP73 -> 320 | H73: ='Summary Calculations'!AQ73 -> 381.0123984 | I73: ='Summary Calculations'!AR73 -> 359.2545194 | J73: ='Summary Calculations'!AS73 -> 354.6986043 | K73: ='Summary Calculations'!AT73 -> 344.0660887 | L73: ='Summary Calculations'!AU73 -> 333.5385666
B74: ='Summary Calculations'!AK74 -> BCF | C74: ='Summary Calculations'!AL74 -> BC | D74: ='Summary Calculations'!AM74 -> Obstetrics | E74: ='Summary Calculations'!AN74 -> Non-Elective | F74: ='Summary Calculations'!AO74 -> 55-64 | G74: ='Summary Calculations'!AP74 -> 340 | H74: ='Summary Calculations'!AQ74 -> 416.4549459 | I74: ='Summary Calculations'!AR74 -> 403.8110412 | J74: ='Summary Calculations'!AS74 -> 416.2538987 | K74: ='Summary Calculations'!AT74 -> 421.4231803 | L74: ='Summary Calculations'!AU74 -> 426.2578872
B75: ='Summary Calculations'!AK75 -> BCG | C75: ='Summary Calculations'!AL75 -> BC | D75: ='Summary Calculations'!AM75 -> Obstetrics | E75: ='Summary Calculations'!AN75 -> Non-Elective | F75: ='Summary Calculations'!AO75 -> 65-74 | G75: ='Summary Calculations'!AP75 -> 360 | H75: ='Summary Calculations'!AQ75 -> 443.3744834 | I75: ='Summary Calculations'!AR75 -> 432.1683499 | J75: ='Summary Calculations'!AS75 -> 448.9625313 | K75: ='Summary Calculations'!AT75 -> 457.8895765 | L75: ='Summary Calculations'!AU75 -> 466.3736702
B76: ='Summary Calculations'!AK76 -> BCH | C76: ='Summary Calculations'!AL76 -> BC | D76: ='Summary Calculations'!AM76 -> Obstetrics | E76: ='Summary Calculations'!AN76 -> Non-Elective | F76: ='Summary Calculations'!AO76 -> 75-84 | G76: ='Summary Calculations'!AP76 -> 380 | H76: ='Summary Calculations'!AQ76 -> 460.0458391 | I76: ='Summary Calculations'!AR76 -> 441.0475073 | J76: ='Summary Calculations'!AS76 -> 446.9293109 | K76: ='Summary Calculations'!AT76 -> 445.0841437 | L76: ='Summary Calculations'!AU76 -> 443.0937172
B77: ='Summary Calculations'!AK77 -> BCI | C77: ='Summary Calculations'!AL77 -> BC | D77: ='Summary Calculations'!AM77 -> Obstetrics | E77: ='Summary Calculations'!AN77 -> Non-Elective | F77: ='Summary Calculations'!AO77 -> 85+ | G77: ='Summary Calculations'!AP77 -> 400 | H77: ='Summary Calculations'!AQ77 -> 460.2288499 | I77: ='Summary Calculations'!AR77 -> 418.5881805 | J77: ='Summary Calculations'!AS77 -> 389.0783812 | K77: ='Summary Calculations'!AT77 -> 353.1321316 | L77: ='Summary Calculations'!AU77 -> 317.9337552
B78: ='Summary Calculations'!AK78 -> BDA | C78: ='Summary Calculations'!AL78 -> BD | D78: ='Summary Calculations'!AM78 -> Obstetrics | E78: ='Summary Calculations'!AN78 -> A&E | F78: ='Summary Calculations'!AO78 -> 0-18 | G78: ='Summary Calculations'!AP78 -> 250 | H78: ='Summary Calculations'!AQ78 -> 303.3579195 | I78: ='Summary Calculations'!AR78 -> 291.4996542 | J78: ='Summary Calculations'!AS78 -> 296.3944707 | K78: ='Summary Calculations'!AT78 -> 296.1602111 | L78: ='Summary Calculations'!AU78 -> 295.7939743
B79: ='Summary Calculations'!AK79 -> BDB | C79: ='Summary Calculations'!AL79 -> BD | D79: ='Summary Calculations'!AM79 -> Obstetrics | E79: ='Summary Calculations'!AN79 -> A&E | F79: ='Summary Calculations'!AO79 -> 19-24 | G79: ='Summary Calculations'!AP79 -> 270 | H79: ='Summary Calculations'!AQ79 -> 328.9449167 | I79: ='Summary Calculations'!AR79 -> 317.3254846 | J79: ='Summary Calculations'!AS79 -> 324.5679574 | K79: ='Summary Calculations'!AT79 -> 326.1848661 | L79: ='Summary Calculations'!AU79 -> 327.6146908
B80: ='Summary Calculations'!AK80 -> BDC | C80: ='Summary Calculations'!AL80 -> BD | D80: ='Summary Calculations'!AM80 -> Obstetrics | E80: ='Summary Calculations'!AN80 -> A&E | F80: ='Summary Calculations'!AO80 -> 25-34 | G80: ='Summary Calculations'!AP80 -> 290 | H80: ='Summary Calculations'!AQ80 -> 351.3462693 | I80: ='Summary Calculations'!AR80 -> 337.0962535 | J80: ='Summary Calculations'!AS80 -> 341.9668163 | K80: ='Summary Calculations'!AT80 -> 340.9342956 | L80: ='Summary Calculations'!AU80 -> 339.7774096
B81: ='Summary Calculations'!AK81 -> BDD | C81: ='Summary Calculations'!AL81 -> BD | D81: ='Summary Calculations'!AM81 -> Obstetrics | E81: ='Summary Calculations'!AN81 -> A&E | F81: ='Summary Calculations'!AO81 -> 35-44 | G81: ='Summary Calculations'!AP81 -> 310 | H81: ='Summary Calculations'!AQ81 -> 359.9168561 | I81: ='Summary Calculations'!AR81 -> 330.5784233 | J81: ='Summary Calculations'!AS81 -> 312.5090188 | K81: ='Summary Calculations'!AT81 -> 289.2184077 | L81: ='Summary Calculations'!AU81 -> 266.3861043
B82: ='Summary Calculations'!AK82 -> BDE | C82: ='Summary Calculations'!AL82 -> BD | D82: ='Summary Calculations'!AM82 -> Obstetrics | E82: ='Summary Calculations'!AN82 -> A&E | F82: ='Summary Calculations'!AO82 -> 45-54 | G82: ='Summary Calculations'!AP82 -> 330 | H82: ='Summary Calculations'!AQ82 -> 392.9190358 | I82: ='Summary Calculations'!AR82 -> 370.4985389 | J82: ='Summary Calculations'!AS82 -> 365.7829357 | K82: ='Summary Calculations'!AT82 -> 354.8181539 | L82: ='Summary Calculations'!AU82 -> 343.9616468
B83: ='Summary Calculations'!AK83 -> BDF | C83: ='Summary Calculations'!AL83 -> BD | D83: ='Summary Calculations'!AM83 -> Obstetrics | E83: ='Summary Calculations'!AN83 -> A&E | F83: ='Summary Calculations'!AO83 -> 55-64 | G83: ='Summary Calculations'!AP83 -> 350 | H83: ='Summary Calculations'!AQ83 -> 428.7036208 | I83: ='Summary Calculations'!AR83 -> 415.7072652 | J83: ='Summary Calculations'!AS83 -> 428.4966604 | K83: ='Summary Calculations'!AT83 -> 433.8179798 | L83: ='Summary Calculations'!AU83 -> 438.7948839
B84: ='Summary Calculations'!AK84 -> BDG | C84: ='Summary Calculations'!AL84 -> BD | D84: ='Summary Calculations'!AM84 -> Obstetrics | E84: ='Summary Calculations'!AN84 -> A&E | F84: ='Summary Calculations'!AO84 -> 65-74 | G84: ='Summary Calculations'!AP84 -> 370 | H84: ='Summary Calculations'!AQ84 -> 455.6904412 | I84: ='Summary Calculations'!AR84 -> 444.1937863 | J84: ='Summary Calculations'!AS84 -> 461.4337127 | K84: ='Summary Calculations'!AT84 -> 470.6087314 | L84: ='Summary Calculations'!AU84 -> 479.3284944
B85: ='Summary Calculations'!AK85 -> BDH | C85: ='Summary Calculations'!AL85 -> BD | D85: ='Summary Calculations'!AM85 -> Obstetrics | E85: ='Summary Calculations'!AN85 -> A&E | F85: ='Summary Calculations'!AO85 -> 75-84 | G85: ='Summary Calculations'!AP85 -> 390 | H85: ='Summary Calculations'!AQ85 -> 472.1523086 | I85: ='Summary Calculations'!AR85 -> 452.675177 | J85: ='Summary Calculations'!AS85 -> 458.6906086 | K85: ='Summary Calculations'!AT85 -> 456.7968843 | L85: ='Summary Calculations'!AU85 -> 454.7540782
B86: ='Summary Calculations'!AK86 -> BDI | C86: ='Summary Calculations'!AL86 -> BD | D86: ='Summary Calculations'!AM86 -> Obstetrics | E86: ='Summary Calculations'!AN86 -> A&E | F86: ='Summary Calculations'!AO86 -> 85+ | G86: ='Summary Calculations'!AP86 -> 410 | H86: ='Summary Calculations'!AQ86 -> 471.7345711 | I86: ='Summary Calculations'!AR86 -> 429.0729383 | J86: ='Summary Calculations'!AS86 -> 398.8053407 | K86: ='Summary Calculations'!AT86 -> 361.9604349 | L86: ='Summary Calculations'!AU86 -> 325.8820991
B87: ='Summary Calculations'!AK87 -> BEA | C87: ='Summary Calculations'!AL87 -> BE | D87: ='Summary Calculations'!AM87 -> Obstetrics | E87: ='Summary Calculations'!AN87 -> Community | F87: ='Summary Calculations'!AO87 -> 0-18 | G87: ='Summary Calculations'!AP87 -> 270 | H87: ='Summary Calculations'!AQ87 -> 327.626553 | I87: ='Summary Calculations'!AR87 -> 314.8465267 | J87: ='Summary Calculations'!AS87 -> 320.1060283 | K87: ='Summary Calculations'!AT87 -> 319.853028 | L87: ='Summary Calculations'!AU87 -> 319.4574922
B88: ='Summary Calculations'!AK88 -> BEB | C88: ='Summary Calculations'!AL88 -> BE | D88: ='Summary Calculations'!AM88 -> Obstetrics | E88: ='Summary Calculations'!AN88 -> Community | F88: ='Summary Calculations'!AO88 -> 19-24 | G88: ='Summary Calculations'!AP88 -> 290 | H88: ='Summary Calculations'!AQ88 -> 353.3112069 | I88: ='Summary Calculations'!AR88 -> 340.8601988 | J88: ='Summary Calculations'!AS88 -> 348.6100283 | K88: ='Summary Calculations'!AT88 -> 350.346708 | L88: ='Summary Calculations'!AU88 -> 351.8824457
B89: ='Summary Calculations'!AK89 -> BEC | C89: ='Summary Calculations'!AL89 -> BE | D89: ='Summary Calculations'!AM89 -> Obstetrics | E89: ='Summary Calculations'!AN89 -> Community | F89: ='Summary Calculations'!AO89 -> 25-34 | G89: ='Summary Calculations'!AP89 -> 310 | H89: ='Summary Calculations'!AQ89 -> 375.5770465 | I89: ='Summary Calculations'!AR89 -> 360.3750611 | J89: ='Summary Calculations'!AS89 -> 365.5507347 | K89: ='Summary Calculations'!AT89 -> 364.4470056 | L89: ='Summary Calculations'!AU89 -> 363.2103344
B90: ='Summary Calculations'!AK90 -> BED | C90: ='Summary Calculations'!AL90 -> BE | D90: ='Summary Calculations'!AM90 -> Obstetrics | E90: ='Summary Calculations'!AN90 -> Community | F90: ='Summary Calculations'!AO90 -> 35-44 | G90: ='Summary Calculations'!AP90 -> 330 | H90: ='Summary Calculations'!AQ90 -> 383.1372984 | I90: ='Summary Calculations'!AR90 -> 351.9361326 | J90: ='Summary Calculations'!AS90 -> 332.6708909 | K90: ='Summary Calculations'!AT90 -> 307.8776598 | L90: ='Summary Calculations'!AU90 -> 283.5723045
B91: ='Summary Calculations'!AK91 -> BEE | C91: ='Summary Calculations'!AL91 -> BE | D91: ='Summary Calculations'!AM91 -> Obstetrics | E91: ='Summary Calculations'!AN91 -> Community | F91: ='Summary Calculations'!AO91 -> 45-54 | G91: ='Summary Calculations'!AP91 -> 350 | H91: ='Summary Calculations'!AQ91 -> 416.7323107 | I91: ='Summary Calculations'!AR91 -> 392.9865722 | J91: ='Summary Calculations'!AS91 -> 387.9515985 | K91: ='Summary Calculations'!AT91 -> 376.3222845 | L91: ='Summary Calculations'!AU91 -> 364.8078072
B92: ='Summary Calculations'!AK92 -> BEF | C92: ='Summary Calculations'!AL92 -> BE | D92: ='Summary Calculations'!AM92 -> Obstetrics | E92: ='Summary Calculations'!AN92 -> Community | F92: ='Summary Calculations'!AO92 -> 55-64 | G92: ='Summary Calculations'!AP92 -> 370 | H92: ='Summary Calculations'!AQ92 -> 453.2009705 | I92: ='Summary Calculations'!AR92 -> 439.4995165 | J92: ='Summary Calculations'!AS92 -> 452.9821839 | K92: ='Summary Calculations'!AT92 -> 458.6075786 | L92: ='Summary Calculations'!AU92 -> 463.8688772
B93: ='Summary Calculations'!AK93 -> BEG | C93: ='Summary Calculations'!AL93 -> BE | D93: ='Summary Calculations'!AM93 -> Obstetrics | E93: ='Summary Calculations'!AN93 -> Community | F93: ='Summary Calculations'!AO93 -> 65-74 | G93: ='Summary Calculations'!AP93 -> 390 | H93: ='Summary Calculations'!AQ93 -> 480.322357 | I93: ='Summary Calculations'!AR93 -> 468.2442676 | J93: ='Summary Calculations'!AS93 -> 486.3760756 | K93: ='Summary Calculations'!AT93 -> 496.0470412 | L93: ='Summary Calculations'!AU93 -> 505.2381427
B94: ='Summary Calculations'!AK94 -> BEH | C94: ='Summary Calculations'!AL94 -> BE | D94: ='Summary Calculations'!AM94 -> Obstetrics | E94: ='Summary Calculations'!AN94 -> Community | F94: ='Summary Calculations'!AO94 -> 75-84 | G94: ='Summary Calculations'!AP94 -> 410 | H94: ='Summary Calculations'!AQ94 -> 496.3652475 | I94: ='Summary Calculations'!AR94 -> 475.9299517 | J94: ='Summary Calculations'!AS94 -> 482.2132039 | K94: ='Summary Calculations'!AT94 -> 480.2223655 | L94: ='Summary Calculations'!AU94 -> 478.0748002
B95: ='Summary Calculations'!AK95 -> BEI | C95: ='Summary Calculations'!AL95 -> BE | D95: ='Summary Calculations'!AM95 -> Obstetrics | E95: ='Summary Calculations'!AN95 -> Community | F95: ='Summary Calculations'!AO95 -> 85+ | G95: ='Summary Calculations'!AP95 -> 430 | H95: ='Summary Calculations'!AQ95 -> 494.7460136 | I95: ='Summary Calculations'!AR95 -> 450.0417767 | J95: ='Summary Calculations'!AS95 -> 418.2592597 | K95: ='Summary Calculations'!AT95 -> 379.6170414 | L95: ='Summary Calculations'!AU95 -> 341.7787868
B96: ='Summary Calculations'!AK96 -> CAA | C96: ='Summary Calculations'!AL96 -> CA | D96: ='Summary Calculations'!AM96 -> Test 3 | E96: ='Summary Calculations'!AN96 -> Outpatient | F96: ='Summary Calculations'!AO96 -> 0-18 | G96: ='Summary Calculations'!AP96 -> 220 | H96: ='Summary Calculations'!AQ96 -> 222.4624743 | I96: ='Summary Calculations'!AR96 -> 224.9304485 | J96: ='Summary Calculations'!AS96 -> 228.7957317 | K96: ='Summary Calculations'!AT96 -> 232.6973087 | L96: ='Summary Calculations'!AU96 -> 236.6351794
B97: ='Summary Calculations'!AK97 -> CAB | C97: ='Summary Calculations'!AL97 -> CA | D97: ='Summary Calculations'!AM97 -> Test 3 | E97: ='Summary Calculations'!AN97 -> Outpatient | F97: ='Summary Calculations'!AO97 -> 19-24 | G97: ='Summary Calculations'!AP97 -> 240 | H97: ='Summary Calculations'!AQ97 -> 243.6629013 | I97: ='Summary Calculations'!AR97 -> 247.3318026 | J97: ='Summary Calculations'!AS97 -> 253.0744307 | K97: ='Summary Calculations'!AT97 -> 258.8768779 | L97: ='Summary Calculations'!AU97 -> 264.7391441
B98: ='Summary Calculations'!AK98 -> CAC | C98: ='Summary Calculations'!AL98 -> CA | D98: ='Summary Calculations'!AM98 -> Test 3 | E98: ='Summary Calculations'!AN98 -> Outpatient | F98: ='Summary Calculations'!AO98 -> 25-34 | G98: ='Summary Calculations'!AP98 -> 260 | H98: ='Summary Calculations'!AQ98 -> 262.5000863 | I98: ='Summary Calculations'!AR98 -> 265.0066725 | J98: ='Summary Calculations'!AS98 -> 268.93942 | K98: ='Summary Calculations'!AT98 -> 272.9153844 | L98: ='Summary Calculations'!AU98 -> 276.9345658
B99: ='Summary Calculations'!AK99 -> CAD | C99: ='Summary Calculations'!AL99 -> CA | D99: ='Summary Calculations'!AM99 -> Test 3 | E99: ='Summary Calculations'!AN99 -> Outpatient | F99: ='Summary Calculations'!AO99 -> 35-44 | G99: ='Summary Calculations'!AP99 -> 280 | H99: ='Summary Calculations'!AQ99 -> 270.9051605 | I99: ='Summary Calculations'!AR99 -> 261.817321 | J99: ='Summary Calculations'!AS99 -> 247.601939 | K99: ='Summary Calculations'!AT99 -> 233.2406514 | L99: ='Summary Calculations'!AU99 -> 218.7334581
B100: ='Summary Calculations'!AK100 -> CAE | C100: ='Summary Calculations'!AL100 -> CA | D100: ='Summary Calculations'!AM100 -> Test 3 | E100: ='Summary Calculations'!AN100 -> Outpatient | F100: ='Summary Calculations'!AO100 -> 45-54 | G100: ='Summary Calculations'!AP100 -> 300 | H100: ='Summary Calculations'!AQ100 -> 297.6659362 | I100: ='Summary Calculations'!AR100 -> 295.3393725 | J100: ='Summary Calculations'!AS100 -> 291.6929312 | K100: ='Summary Calculations'!AT100 -> 288.0017483 | L100: ='Summary Calculations'!AU100 -> 284.2658238
B101: ='Summary Calculations'!AK101 -> CAF | C101: ='Summary Calculations'!AL101 -> CA | D101: ='Summary Calculations'!AM101 -> Test 3 | E101: ='Summary Calculations'!AN101 -> Outpatient | F101: ='Summary Calculations'!AO101 -> 55-64 | G101: ='Summary Calculations'!AP101 -> 320 | H101: ='Summary Calculations'!AQ101 -> 326.6313301 | I101: ='Summary Calculations'!AR101 -> 333.2706602 | J101: ='Summary Calculations'!AS101 -> 343.6564695 | K101: ='Summary Calculations'!AT101 -> 354.1371263 | L101: ='Summary Calculations'!AU101 -> 364.7126308
B102: ='Summary Calculations'!AK102 -> CAG | C102: ='Summary Calculations'!AL102 -> CA | D102: ='Summary Calculations'!AM102 -> Test 3 | E102: ='Summary Calculations'!AN102 -> Outpatient | F102: ='Summary Calculations'!AO102 -> 65-74 | G102: ='Summary Calculations'!AP102 -> 340 | H102: ='Summary Calculations'!AQ102 -> 348.9521397 | I102: ='Summary Calculations'!AR102 -> 357.9127794 | J102: ='Summary Calculations'!AS102 -> 371.9475162 | K102: ='Summary Calculations'!AT102 -> 386.1172024 | L102: ='Summary Calculations'!AU102 -> 400.4218381
B103: ='Summary Calculations'!AK103 -> CAH | C103: ='Summary Calculations'!AL103 -> CA | D103: ='Summary Calculations'!AM103 -> Test 3 | E103: ='Summary Calculations'!AN103 -> Outpatient | F103: ='Summary Calculations'!AO103 -> 75-84 | G103: ='Summary Calculations'!AP103 -> 360 | H103: ='Summary Calculations'!AQ103 -> 363.1940835 | I103: ='Summary Calculations'!AR103 -> 366.3971671 | J103: ='Summary Calculations'!AS103 -> 371.4093997 | K103: ='Summary Calculations'!AT103 -> 376.4809486 | L103: ='Summary Calculations'!AU103 -> 381.6118139
B104: ='Summary Calculations'!AK104 -> CAI | C104: ='Summary Calculations'!AL104 -> CA | D104: ='Summary Calculations'!AM104 -> Test 3 | E104: ='Summary Calculations'!AN104 -> Outpatient | F104: ='Summary Calculations'!AO104 -> 85+ | G104: ='Summary Calculations'!AP104 -> 380 | H104: ='Summary Calculations'!AQ104 -> 364.3478395 | I104: ='Summary Calculations'!AR104 -> 348.705179 | J104: ='Summary Calculations'!AS104 -> 324.2319843 | K104: ='Summary Calculations'!AT104 -> 299.5317187 | L104: ='Summary Calculations'!AU104 -> 274.5791522
B105: ='Summary Calculations'!AK105 -> CBA | C105: ='Summary Calculations'!AL105 -> CB | D105: ='Summary Calculations'!AM105 -> Test 3 | E105: ='Summary Calculations'!AN105 -> Elective | F105: ='Summary Calculations'!AO105 -> 0-18 | G105: ='Summary Calculations'!AP105 -> 250 | H105: ='Summary Calculations'!AQ105 -> 252.7982662 | I105: ='Summary Calculations'!AR105 -> 255.6027824 | J105: ='Summary Calculations'!AS105 -> 259.9951497 | K105: ='Summary Calculations'!AT105 -> 264.4287599 | L105: ='Summary Calculations'!AU105 -> 268.903613
B106: ='Summary Calculations'!AK106 -> CBB | C106: ='Summary Calculations'!AL106 -> CB | D106: ='Summary Calculations'!AM106 -> Test 3 | E106: ='Summary Calculations'!AN106 -> Elective | F106: ='Summary Calculations'!AO106 -> 19-24 | G106: ='Summary Calculations'!AP106 -> 270 | H106: ='Summary Calculations'!AQ106 -> 274.120764 | I106: ='Summary Calculations'!AR106 -> 278.2482779 | J106: ='Summary Calculations'!AS106 -> 284.7087345 | K106: ='Summary Calculations'!AT106 -> 291.2364876 | L106: ='Summary Calculations'!AU106 -> 297.8315371
B107: ='Summary Calculations'!AK107 -> CBC | C107: ='Summary Calculations'!AL107 -> CB | D107: ='Summary Calculations'!AM107 -> Test 3 | E107: ='Summary Calculations'!AN107 -> Elective | F107: ='Summary Calculations'!AO107 -> 25-34 | G107: ='Summary Calculations'!AP107 -> 290 | H107: ='Summary Calculations'!AQ107 -> 292.7885578 | I107: ='Summary Calculations'!AR107 -> 295.5843655 | J107: ='Summary Calculations'!AS107 -> 299.9708915 | K107: ='Summary Calculations'!AT107 -> 304.4056211 | L107: ='Summary Calculations'!AU107 -> 308.8885542
B108: ='Summary Calculations'!AK108 -> CBD | C108: ='Summary Calculations'!AL108 -> CB | D108: ='Summary Calculations'!AM108 -> Test 3 | E108: ='Summary Calculations'!AN108 -> Elective | F108: ='Summary Calculations'!AO108 -> 35-44 | G108: ='Summary Calculations'!AP108 -> 310 | H108: ='Summary Calculations'!AQ108 -> 299.9307134 | I108: ='Summary Calculations'!AR108 -> 289.8691768 | J108: ='Summary Calculations'!AS108 -> 274.1307182 | K108: ='Summary Calculations'!AT108 -> 258.2307212 | L108: ='Summary Calculations'!AU108 -> 242.1691857
B109: ='Summary Calculations'!AK109 -> CBE | C109: ='Summary Calculations'!AL109 -> CB | D109: ='Summary Calculations'!AM109 -> Test 3 | E109: ='Summary Calculations'!AN109 -> Elective | F109: ='Summary Calculations'!AO109 -> 45-54 | G109: ='Summary Calculations'!AP109 -> 330 | H109: ='Summary Calculations'!AQ109 -> 327.4325299 | I109: ='Summary Calculations'!AR109 -> 324.8733097 | J109: ='Summary Calculations'!AS109 -> 320.8622243 | K109: ='Summary Calculations'!AT109 -> 316.8019232 | L109: ='Summary Calculations'!AU109 -> 312.6924062
B110: ='Summary Calculations'!AK110 -> CBF | C110: ='Summary Calculations'!AL110 -> CB | D110: ='Summary Calculations'!AM110 -> Test 3 | E110: ='Summary Calculations'!AN110 -> Elective | F110: ='Summary Calculations'!AO110 -> 55-64 | G110: ='Summary Calculations'!AP110 -> 350 | H110: ='Summary Calculations'!AQ110 -> 357.2530173 | I110: ='Summary Calculations'!AR110 -> 364.5147846 | J110: ='Summary Calculations'!AS110 -> 375.8742635 | K110: ='Summary Calculations'!AT110 -> 387.3374819 | L110: ='Summary Calculations'!AU110 -> 398.9044399
B111: ='Summary Calculations'!AK111 -> CBG | C111: ='Summary Calculations'!AL111 -> CB | D111: ='Summary Calculations'!AM111 -> Test 3 | E111: ='Summary Calculations'!AN111 -> Elective | F111: ='Summary Calculations'!AO111 -> 65-74 | G111: ='Summary Calculations'!AP111 -> 370 | H111: ='Summary Calculations'!AQ111 -> 379.7420344 | I111: ='Summary Calculations'!AR111 -> 389.4933187 | J111: ='Summary Calculations'!AS111 -> 404.7664147 | K111: ='Summary Calculations'!AT111 -> 420.1863673 | L111: ='Summary Calculations'!AU111 -> 435.7531767
B112: ='Summary Calculations'!AK112 -> CBH | C112: ='Summary Calculations'!AL112 -> CB | D112: ='Summary Calculations'!AM112 -> Test 3 | E112: ='Summary Calculations'!AN112 -> Elective | F112: ='Summary Calculations'!AO112 -> 75-84 | G112: ='Summary Calculations'!AP112 -> 390 | H112: ='Summary Calculations'!AQ112 -> 393.4602572 | I112: ='Summary Calculations'!AR112 -> 396.9302643 | J112: ='Summary Calculations'!AS112 -> 402.360183 | K112: ='Summary Calculations'!AT112 -> 407.854361 | L112: ='Summary Calculations'!AU112 -> 413.4127984
B113: ='Summary Calculations'!AK113 -> CBI | C113: ='Summary Calculations'!AL113 -> CB | D113: ='Summary Calculations'!AM113 -> Test 3 | E113: ='Summary Calculations'!AN113 -> Elective | F113: ='Summary Calculations'!AO113 -> 85+ | G113: ='Summary Calculations'!AP113 -> 410 | H113: ='Summary Calculations'!AQ113 -> 393.1121426 | I113: ='Summary Calculations'!AR113 -> 376.2345352 | J113: ='Summary Calculations'!AS113 -> 349.8292462 | K113: ='Summary Calculations'!AT113 -> 323.1789597 | L113: ='Summary Calculations'!AU113 -> 296.2564537
B114: ='Summary Calculations'!AK114 -> CCA | C114: ='Summary Calculations'!AL114 -> CC | D114: ='Summary Calculations'!AM114 -> Test 3 | E114: ='Summary Calculations'!AN114 -> Non-Elective | F114: ='Summary Calculations'!AO114 -> 0-18 | G114: ='Summary Calculations'!AP114 -> 290 | H114: ='Summary Calculations'!AQ114 -> 293.2459888 | I114: ='Summary Calculations'!AR114 -> 296.4992276 | J114: ='Summary Calculations'!AS114 -> 301.5943737 | K114: ='Summary Calculations'!AT114 -> 306.7373615 | L114: ='Summary Calculations'!AU114 -> 311.928191
B115: ='Summary Calculations'!AK115 -> CCB | C115: ='Summary Calculations'!AL115 -> CC | D115: ='Summary Calculations'!AM115 -> Test 3 | E115: ='Summary Calculations'!AN115 -> Non-Elective | F115: ='Summary Calculations'!AO115 -> 19-24 | G115: ='Summary Calculations'!AP115 -> 310 | H115: ='Summary Calculations'!AQ115 -> 314.7312475 | I115: ='Summary Calculations'!AR115 -> 319.470245 | J115: ='Summary Calculations'!AS115 -> 326.8878063 | K115: ='Summary Calculations'!AT115 -> 334.3826339 | L115: ='Summary Calculations'!AU115 -> 341.9547278
B116: ='Summary Calculations'!AK116 -> CCC | C116: ='Summary Calculations'!AL116 -> CC | D116: ='Summary Calculations'!AM116 -> Test 3 | E116: ='Summary Calculations'!AN116 -> Non-Elective | F116: ='Summary Calculations'!AO116 -> 25-34 | G116: ='Summary Calculations'!AP116 -> 330 | H116: ='Summary Calculations'!AQ116 -> 333.1731864 | I116: ='Summary Calculations'!AR116 -> 336.3546228 | J116: ='Summary Calculations'!AS116 -> 341.3461869 | K116: ='Summary Calculations'!AT116 -> 346.3926033 | L116: ='Summary Calculations'!AU116 -> 351.493872
B117: ='Summary Calculations'!AK117 -> CCD | C117: ='Summary Calculations'!AL117 -> CC | D117: ='Summary Calculations'!AM117 -> Test 3 | E117: ='Summary Calculations'!AN117 -> Non-Elective | F117: ='Summary Calculations'!AO117 -> 35-44 | G117: ='Summary Calculations'!AP117 -> 350 | H117: ='Summary Calculations'!AQ117 -> 338.6314506 | I117: ='Summary Calculations'!AR117 -> 327.2716513 | J117: ='Summary Calculations'!AS117 -> 309.5024238 | K117: ='Summary Calculations'!AT117 -> 291.5508142 | L117: ='Summary Calculations'!AU117 -> 273.4168226
B118: ='Summary Calculations'!AK118 -> CCE | C118: ='Summary Calculations'!AL118 -> CC | D118: ='Summary Calculations'!AM118 -> Test 3 | E118: ='Summary Calculations'!AN118 -> Non-Elective | F118: ='Summary Calculations'!AO118 -> 45-54 | G118: ='Summary Calculations'!AP118 -> 370 | H118: ='Summary Calculations'!AQ118 -> 367.1213214 | I118: ='Summary Calculations'!AR118 -> 364.2518927 | J118: ='Summary Calculations'!AS118 -> 359.7546152 | K118: ='Summary Calculations'!AT118 -> 355.2021563 | L118: ='Summary Calculations'!AU118 -> 350.5945161
B119: ='Summary Calculations'!AK119 -> CCF | C119: ='Summary Calculations'!AL119 -> CC | D119: ='Summary Calculations'!AM119 -> Test 3 | E119: ='Summary Calculations'!AN119 -> Non-Elective | F119: ='Summary Calculations'!AO119 -> 55-64 | G119: ='Summary Calculations'!AP119 -> 390 | H119: ='Summary Calculations'!AQ119 -> 398.0819336 | I119: ='Summary Calculations'!AR119 -> 406.1736172 | J119: ='Summary Calculations'!AS119 -> 418.8313222 | K119: ='Summary Calculations'!AT119 -> 431.6046227 | L119: ='Summary Calculations'!AU119 -> 444.4935187
B120: ='Summary Calculations'!AK120 -> CCG | C120: ='Summary Calculations'!AL120 -> CC | D120: ='Summary Calculations'!AM120 -> Test 3 | E120: ='Summary Calculations'!AN120 -> Non-Elective | F120: ='Summary Calculations'!AO120 -> 65-74 | G120: ='Summary Calculations'!AP120 -> 410 | H120: ='Summary Calculations'!AQ120 -> 420.7952273 | I120: ='Summary Calculations'!AR120 -> 431.6007045 | J120: ='Summary Calculations'!AS120 -> 448.524946 | K120: ='Summary Calculations'!AT120 -> 465.6119206 | L120: ='Summary Calculations'!AU120 -> 482.8616282
B121: ='Summary Calculations'!AK121 -> CCH | C121: ='Summary Calculations'!AL121 -> CC | D121: ='Summary Calculations'!AM121 -> Test 3 | E121: ='Summary Calculations'!AN121 -> Non-Elective | F121: ='Summary Calculations'!AO121 -> 75-84 | G121: ='Summary Calculations'!AP121 -> 430 | H121: ='Summary Calculations'!AQ121 -> 433.8151553 | I121: ='Summary Calculations'!AR121 -> 437.6410607 | J121: ='Summary Calculations'!AS121 -> 443.627894 | K121: ='Summary Calculations'!AT121 -> 449.6855775 | L121: ='Summary Calculations'!AU121 -> 455.814111
B122: ='Summary Calculations'!AK122 -> CCI | C122: ='Summary Calculations'!AL122 -> CC | D122: ='Summary Calculations'!AM122 -> Test 3 | E122: ='Summary Calculations'!AN122 -> Non-Elective | F122: ='Summary Calculations'!AO122 -> 85+ | G122: ='Summary Calculations'!AP122 -> 450 | H122: ='Summary Calculations'!AQ122 -> 431.4645468 | I122: ='Summary Calculations'!AR122 -> 412.9403435 | J122: ='Summary Calculations'!AS122 -> 383.9589288 | K122: ='Summary Calculations'!AT122 -> 354.7086143 | L122: ='Summary Calculations'!AU122 -> 325.1595224
B123: ='Summary Calculations'!AK123 -> CDA | C123: ='Summary Calculations'!AL123 -> CD | D123: ='Summary Calculations'!AM123 -> Test 3 | E123: ='Summary Calculations'!AN123 -> A&E | F123: ='Summary Calculations'!AO123 -> 0-18 | G123: ='Summary Calculations'!AP123 -> 300 | H123: ='Summary Calculations'!AQ123 -> 303.3579195 | I123: ='Summary Calculations'!AR123 -> 306.7233389 | J123: ='Summary Calculations'!AS123 -> 311.9941797 | K123: ='Summary Calculations'!AT123 -> 317.3145119 | L123: ='Summary Calculations'!AU123 -> 322.6843356
B124: ='Summary Calculations'!AK124 -> CDB | C124: ='Summary Calculations'!AL124 -> CD | D124: ='Summary Calculations'!AM124 -> Test 3 | E124: ='Summary Calculations'!AN124 -> A&E | F124: ='Summary Calculations'!AO124 -> 19-24 | G124: ='Summary Calculations'!AP124 -> 320 | H124: ='Summary Calculations'!AQ124 -> 324.8838684 | I124: ='Summary Calculations'!AR124 -> 329.7757368 | J124: ='Summary Calculations'!AS124 -> 337.4325743 | K124: ='Summary Calculations'!AT124 -> 345.1691705 | L124: ='Summary Calculations'!AU124 -> 352.9855254
B125: ='Summary Calculations'!AK125 -> CDC | C125: ='Summary Calculations'!AL125 -> CD | D125: ='Summary Calculations'!AM125 -> Test 3 | E125: ='Summary Calculations'!AN125 -> A&E | F125: ='Summary Calculations'!AO125 -> 25-34 | G125: ='Summary Calculations'!AP125 -> 340 | H125: ='Summary Calculations'!AQ125 -> 343.2693436 | I125: ='Summary Calculations'!AR125 -> 346.5471872 | J125: ='Summary Calculations'!AS125 -> 351.6900107 | K125: ='Summary Calculations'!AT125 -> 356.8893488 | L125: ='Summary Calculations'!AU125 -> 362.1452015
B126: ='Summary Calculations'!AK126 -> CDD | C126: ='Summary Calculations'!AL126 -> CD | D126: ='Summary Calculations'!AM126 -> Test 3 | E126: ='Summary Calculations'!AN126 -> A&E | F126: ='Summary Calculations'!AO126 -> 35-44 | G126: ='Summary Calculations'!AP126 -> 360 | H126: ='Summary Calculations'!AQ126 -> 348.3066349 | I126: ='Summary Calculations'!AR126 -> 336.6222699 | J126: ='Summary Calculations'!AS126 -> 318.3453502 | K126: ='Summary Calculations'!AT126 -> 299.8808375 | L126: ='Summary Calculations'!AU126 -> 281.2287318
B127: ='Summary Calculations'!AK127 -> CDE | C127: ='Summary Calculations'!AL127 -> CD | D127: ='Summary Calculations'!AM127 -> Test 3 | E127: ='Summary Calculations'!AN127 -> A&E | F127: ='Summary Calculations'!AO127 -> 45-54 | G127: ='Summary Calculations'!AP127 -> 380 | H127: ='Summary Calculations'!AQ127 -> 377.0435192 | I127: ='Summary Calculations'!AR127 -> 374.0965385 | J127: ='Summary Calculations'!AS127 -> 369.4777129 | K127: ='Summary Calculations'!AT127 -> 364.8022145 | L127: ='Summary Calculations'!AU127 -> 360.0700435
B128: ='Summary Calculations'!AK128 -> CDF | C128: ='Summary Calculations'!AL128 -> CD | D128: ='Summary Calculations'!AM128 -> Test 3 | E128: ='Summary Calculations'!AN128 -> A&E | F128: ='Summary Calculations'!AO128 -> 55-64 | G128: ='Summary Calculations'!AP128 -> 400 | H128: ='Summary Calculations'!AQ128 -> 408.2891627 | I128: ='Summary Calculations'!AR128 -> 416.5883253 | J128: ='Summary Calculations'!AS128 -> 429.5705869 | K128: ='Summary Calculations'!AT128 -> 442.6714079 | L128: ='Summary Calculations'!AU128 -> 455.8907884
B129: ='Summary Calculations'!AK129 -> CDG | C129: ='Summary Calculations'!AL129 -> CD | D129: ='Summary Calculations'!AM129 -> Test 3 | E129: ='Summary Calculations'!AN129 -> A&E | F129: ='Summary Calculations'!AO129 -> 65-74 | G129: ='Summary Calculations'!AP129 -> 420 | H129: ='Summary Calculations'!AQ129 -> 431.0585255 | I129: ='Summary Calculations'!AR129 -> 442.127551 | J129: ='Summary Calculations'!AS129 -> 459.4645788 | K129: ='Summary Calculations'!AT129 -> 476.9683089 | L129: ='Summary Calculations'!AU129 -> 494.6387411
B130: ='Summary Calculations'!AK130 -> CDH | C130: ='Summary Calculations'!AL130 -> CD | D130: ='Summary Calculations'!AM130 -> Test 3 | E130: ='Summary Calculations'!AN130 -> A&E | F130: ='Summary Calculations'!AO130 -> 75-84 | G130: ='Summary Calculations'!AP130 -> 440 | H130: ='Summary Calculations'!AQ130 -> 443.9038799 | I130: ='Summary Calculations'!AR130 -> 447.8187598 | J130: ='Summary Calculations'!AS130 -> 453.9448218 | K130: ='Summary Calculations'!AT130 -> 460.1433816 | L130: ='Summary Calculations'!AU130 -> 466.4144392
B131: ='Summary Calculations'!AK131 -> CDI | C131: ='Summary Calculations'!AL131 -> CD | D131: ='Summary Calculations'!AM131 -> Test 3 | E131: ='Summary Calculations'!AN131 -> A&E | F131: ='Summary Calculations'!AO131 -> 85+ | G131: ='Summary Calculations'!AP131 -> 460 | H131: ='Summary Calculations'!AQ131 -> 441.0526478 | I131: ='Summary Calculations'!AR131 -> 422.1167956 | J131: ='Summary Calculations'!AS131 -> 392.4913494 | K131: ='Summary Calculations'!AT131 -> 362.591028 | L131: ='Summary Calculations'!AU131 -> 332.3852895
B132: ='Summary Calculations'!AK132 -> CEA | C132: ='Summary Calculations'!AL132 -> CE | D132: ='Summary Calculations'!AM132 -> Test 3 | E132: ='Summary Calculations'!AN132 -> Community | F132: ='Summary Calculations'!AO132 -> 0-18 | G132: ='Summary Calculations'!AP132 -> 320 | H132: ='Summary Calculations'!AQ132 -> 323.5817807 | I132: ='Summary Calculations'!AR132 -> 327.1715615 | J132: ='Summary Calculations'!AS132 -> 332.7937916 | K132: ='Summary Calculations'!AT132 -> 338.4688127 | L132: ='Summary Calculations'!AU132 -> 344.1966246
B133: ='Summary Calculations'!AK133 -> CEB | C133: ='Summary Calculations'!AL133 -> CE | D133: ='Summary Calculations'!AM133 -> Test 3 | E133: ='Summary Calculations'!AN133 -> Community | F133: ='Summary Calculations'!AO133 -> 19-24 | G133: ='Summary Calculations'!AP133 -> 340 | H133: ='Summary Calculations'!AQ133 -> 345.1891102 | I133: ='Summary Calculations'!AR133 -> 350.3867203 | J133: ='Summary Calculations'!AS133 -> 358.5221102 | K133: ='Summary Calculations'!AT133 -> 366.7422436 | L133: ='Summary Calculations'!AU133 -> 375.0471208
B134: ='Summary Calculations'!AK134 -> CEC | C134: ='Summary Calculations'!AL134 -> CE | D134: ='Summary Calculations'!AM134 -> Test 3 | E134: ='Summary Calculations'!AN134 -> Community | F134: ='Summary Calculations'!AO134 -> 25-34 | G134: ='Summary Calculations'!AP134 -> 360 | H134: ='Summary Calculations'!AQ134 -> 363.4616579 | I134: ='Summary Calculations'!AR134 -> 366.9323158 | J134: ='Summary Calculations'!AS134 -> 372.3776584 | K134: ='Summary Calculations'!AT134 -> 377.8828399 | L134: ='Summary Calculations'!AU134 -> 383.4478604
B135: ='Summary Calculations'!AK135 -> CED | C135: ='Summary Calculations'!AL135 -> CE | D135: ='Summary Calculations'!AM135 -> Test 3 | E135: ='Summary Calculations'!AN135 -> Community | F135: ='Summary Calculations'!AO135 -> 35-44 | G135: ='Summary Calculations'!AP135 -> 380 | H135: ='Summary Calculations'!AQ135 -> 367.6570035 | I135: ='Summary Calculations'!AR135 -> 355.3235071 | J135: ='Summary Calculations'!AS135 -> 336.031203 | K135: ='Summary Calculations'!AT135 -> 316.540884 | L135: ='Summary Calculations'!AU135 -> 296.8525502
B136: ='Summary Calculations'!AK136 -> CEE | C136: ='Summary Calculations'!AL136 -> CE | D136: ='Summary Calculations'!AM136 -> Test 3 | E136: ='Summary Calculations'!AN136 -> Community | F136: ='Summary Calculations'!AO136 -> 45-54 | G136: ='Summary Calculations'!AP136 -> 400 | H136: ='Summary Calculations'!AQ136 -> 396.887915 | I136: ='Summary Calculations'!AR136 -> 393.78583 | J136: ='Summary Calculations'!AS136 -> 388.9239083 | K136: ='Summary Calculations'!AT136 -> 384.0023311 | L136: ='Summary Calculations'!AU136 -> 379.0210984
B137: ='Summary Calculations'!AK137 -> CEF | C137: ='Summary Calculations'!AL137 -> CE | D137: ='Summary Calculations'!AM137 -> Test 3 | E137: ='Summary Calculations'!AN137 -> Community | F137: ='Summary Calculations'!AO137 -> 55-64 | G137: ='Summary Calculations'!AP137 -> 420 | H137: ='Summary Calculations'!AQ137 -> 428.7036208 | I137: ='Summary Calculations'!AR137 -> 437.4177416 | J137: ='Summary Calculations'!AS137 -> 451.0491162 | K137: ='Summary Calculations'!AT137 -> 464.8049783 | L137: ='Summary Calculations'!AU137 -> 478.6853279
B138: ='Summary Calculations'!AK138 -> CEG | C138: ='Summary Calculations'!AL138 -> CE | D138: ='Summary Calculations'!AM138 -> Test 3 | E138: ='Summary Calculations'!AN138 -> Community | F138: ='Summary Calculations'!AO138 -> 65-74 | G138: ='Summary Calculations'!AP138 -> 440 | H138: ='Summary Calculations'!AQ138 -> 451.5851219 | I138: ='Summary Calculations'!AR138 -> 463.1812439 | J138: ='Summary Calculations'!AS138 -> 481.3438445 | K138: ='Summary Calculations'!AT138 -> 499.6810855 | L138: ='Summary Calculations'!AU138 -> 518.1929669
B139: ='Summary Calculations'!AK139 -> CEH | C139: ='Summary Calculations'!AL139 -> CE | D139: ='Summary Calculations'!AM139 -> Test 3 | E139: ='Summary Calculations'!AN139 -> Community | F139: ='Summary Calculations'!AO139 -> 75-84 | G139: ='Summary Calculations'!AP139 -> 460 | H139: ='Summary Calculations'!AQ139 -> 464.081329 | I139: ='Summary Calculations'!AR139 -> 468.1741579 | J139: ='Summary Calculations'!AS139 -> 474.5786773 | K139: ='Summary Calculations'!AT139 -> 481.0589899 | L139: ='Summary Calculations'!AU139 -> 487.6150955
B140: ='Summary Calculations'!AK140 -> CEI | C140: ='Summary Calculations'!AL140 -> CE | D140: ='Summary Calculations'!AM140 -> Test 3 | E140: ='Summary Calculations'!AN140 -> Community | F140: ='Summary Calculations'!AO140 -> 85+ | G140: ='Summary Calculations'!AP140 -> 480 | H140: ='Summary Calculations'!AQ140 -> 460.2288499 | I140: ='Summary Calculations'!AR140 -> 440.4696998 | J140: ='Summary Calculations'!AS140 -> 409.5561907 | K140: ='Summary Calculations'!AT140 -> 378.3558553 | L140: ='Summary Calculations'!AU140 -> 346.8368238
B141: ='Summary Calculations'!AK141 -> DAA | C141: ='Summary Calculations'!AL141 -> DA | D141: ='Summary Calculations'!AM141 -> Test Spec 4 | E141: ='Summary Calculations'!AN141 -> Outpatient | F141: ='Summary Calculations'!AO141 -> 0-18 | G141: ='Summary Calculations'!AP141 -> 270 | H141: ='Summary Calculations'!AQ141 -> 239.1023423 | I141: ='Summary Calculations'!AR141 -> 239.4559743 | J141: ='Summary Calculations'!AS141 -> 281.6430376 | K141: ='Summary Calculations'!AT141 -> 286.4765727 | L141: ='Summary Calculations'!AU141 -> 291.3717151
B142: ='Summary Calculations'!AK142 -> DAB | C142: ='Summary Calculations'!AL142 -> DA | D142: ='Summary Calculations'!AM142 -> Test Spec 4 | E142: ='Summary Calculations'!AN142 -> Outpatient | F142: ='Summary Calculations'!AO142 -> 19-24 | G142: ='Summary Calculations'!AP142 -> 290 | H142: ='Summary Calculations'!AQ142 -> 257.8470406 | I142: ='Summary Calculations'!AR142 -> 259.240627 | J142: ='Summary Calculations'!AS142 -> 306.7220815 | K142: ='Summary Calculations'!AT142 -> 313.7882571 | L142: ='Summary Calculations'!AU142 -> 320.9459606
B143: ='Summary Calculations'!AK143 -> DAC | C143: ='Summary Calculations'!AL143 -> DA | D143: ='Summary Calculations'!AM143 -> Test Spec 4 | E143: ='Summary Calculations'!AN143 -> Outpatient | F143: ='Summary Calculations'!AO143 -> 25-34 | G143: ='Summary Calculations'!AP143 -> 310 | H143: ='Summary Calculations'!AQ143 -> 274.0966833 | I143: ='Summary Calculations'!AR143 -> 274.0826213 | J143: ='Summary Calculations'!AS143 -> 321.6272429 | K143: ='Summary Calculations'!AT143 -> 326.4171978 | L143: ='Summary Calculations'!AU143 -> 331.2779342
B144: ='Summary Calculations'!AK144 -> DAD | C144: ='Summary Calculations'!AL144 -> DA | D144: ='Summary Calculations'!AM144 -> Test Spec 4 | E144: ='Summary Calculations'!AN144 -> Outpatient | F144: ='Summary Calculations'!AO144 -> 35-44 | G144: ='Summary Calculations'!AP144 -> 330 | H144: ='Summary Calculations'!AQ144 -> 279.6141663 | I144: ='Summary Calculations'!AR144 -> 267.6644091 | J144: ='Summary Calculations'!AS144 -> 292.6981436 | K144: ='Summary Calculations'!AT144 -> 275.7508264 | L144: ='Summary Calculations'!AU144 -> 258.6414492
B145: ='Summary Calculations'!AK145 -> DAE | C145: ='Summary Calculations'!AL145 -> DA | D145: ='Summary Calculations'!AM145 -> Test Spec 4 | E145: ='Summary Calculations'!AN145 -> Outpatient | F145: ='Summary Calculations'!AO145 -> 45-54 | G145: ='Summary Calculations'!AP145 -> 350 | H145: ='Summary Calculations'!AQ145 -> 304.1318559 | I145: ='Summary Calculations'!AR145 -> 298.8852491 | J145: ='Summary Calculations'!AS145 -> 341.3364854 | K145: ='Summary Calculations'!AT145 -> 337.053299 | L145: ='Summary Calculations'!AU145 -> 332.7349619
B146: ='Summary Calculations'!AK146 -> DAF | C146: ='Summary Calculations'!AL146 -> DA | D146: ='Summary Calculations'!AM146 -> Test Spec 4 | E146: ='Summary Calculations'!AN146 -> Outpatient | F146: ='Summary Calculations'!AO146 -> 55-64 | G146: ='Summary Calculations'!AP146 -> 370 | H146: ='Summary Calculations'!AQ146 -> 330.7467377 | I146: ='Summary Calculations'!AR146 -> 334.2605873 | J146: ='Summary Calculations'!AS146 -> 398.5531885 | K146: ='Summary Calculations'!AT146 -> 410.7521763 | L146: ='Summary Calculations'!AU146 -> 423.0868696
B147: ='Summary Calculations'!AK147 -> DAG | C147: ='Summary Calculations'!AL147 -> DA | D147: ='Summary Calculations'!AM147 -> Test Spec 4 | E147: ='Summary Calculations'!AN147 -> Outpatient | F147: ='Summary Calculations'!AO147 -> 65-74 | G147: ='Summary Calculations'!AP147 -> 390 | H147: ='Summary Calculations'!AQ147 -> 350.5399656 | I147: ='Summary Calculations'!AR147 -> 356.1223574 | J147: ='Summary Calculations'!AS147 -> 427.9345693 | K147: ='Summary Calculations'!AT147 -> 444.2848554 | L147: ='Summary Calculations'!AU147 -> 460.8190691
B148: ='Summary Calculations'!AK148 -> DAH | C148: ='Summary Calculations'!AL148 -> DA | D148: ='Summary Calculations'!AM148 -> Test Spec 4 | E148: ='Summary Calculations'!AN148 -> Outpatient | F148: ='Summary Calculations'!AO148 -> 75-84 | G148: ='Summary Calculations'!AP148 -> 410 | H148: ='Summary Calculations'!AQ148 -> 362.2480908 | I148: ='Summary Calculations'!AR148 -> 361.967691 | J148: ='Summary Calculations'!AS148 -> 424.2718959 | K148: ='Summary Calculations'!AT148 -> 430.1114743 | L148: ='Summary Calculations'!AU148 -> 436.043849
B149: ='Summary Calculations'!AK149 -> DAI | C149: ='Summary Calculations'!AL149 -> DA | D149: ='Summary Calculations'!AM149 -> Test Spec 4 | E149: ='Summary Calculations'!AN149 -> Outpatient | F149: ='Summary Calculations'!AO149 -> 85+ | G149: ='Summary Calculations'!AP149 -> 430 | H149: ='Summary Calculations'!AQ149 -> 361.0663715 | I149: ='Summary Calculations'!AR149 -> 342.2784849 | J149: ='Summary Calculations'!AS149 -> 368.0024679 | K149: ='Summary Calculations'!AT149 -> 340.0042503 | L149: ='Summary Calculations'!AU149 -> 311.7305862
B150: ='Summary Calculations'!AK150 -> DBA | C150: ='Summary Calculations'!AL150 -> DB | D150: ='Summary Calculations'!AM150 -> Test Spec 4 | E150: ='Summary Calculations'!AN150 -> Elective | F150: ='Summary Calculations'!AO150 -> 0-18 | G150: ='Summary Calculations'!AP150 -> 300 | H150: ='Summary Calculations'!AQ150 -> 273.961836 | I150: ='Summary Calculations'!AR150 -> 307.5863511 | J150: ='Summary Calculations'!AS150 -> 312.9367085 | K150: ='Summary Calculations'!AT150 -> 318.307303 | L150: ='Summary Calculations'!AU150 -> 323.7463501
B151: ='Summary Calculations'!AK151 -> DBB | C151: ='Summary Calculations'!AL151 -> DB | D151: ='Summary Calculations'!AM151 -> Test Spec 4 | E151: ='Summary Calculations'!AN151 -> Elective | F151: ='Summary Calculations'!AO151 -> 19-24 | G151: ='Summary Calculations'!AP151 -> 320 | H151: ='Summary Calculations'!AQ151 -> 293.4018707 | I151: ='Summary Calculations'!AR151 -> 330.7036103 | J151: ='Summary Calculations'!AS151 -> 338.451952 | K151: ='Summary Calculations'!AT151 -> 346.2491113 | L151: ='Summary Calculations'!AU151 -> 354.1472669
B152: ='Summary Calculations'!AK152 -> DBC | C152: ='Summary Calculations'!AL152 -> DB | D152: ='Summary Calculations'!AM152 -> Test Spec 4 | E152: ='Summary Calculations'!AN152 -> Elective | F152: ='Summary Calculations'!AO152 -> 25-34 | G152: ='Summary Calculations'!AP152 -> 340 | H152: ='Summary Calculations'!AQ152 -> 310.0057509 | I152: ='Summary Calculations'!AR152 -> 347.5222497 | J152: ='Summary Calculations'!AS152 -> 352.7524599 | K152: ='Summary Calculations'!AT152 -> 358.0059589 | L152: ='Summary Calculations'!AU152 -> 363.3370891
B153: ='Summary Calculations'!AK153 -> DBD | C153: ='Summary Calculations'!AL153 -> DB | D153: ='Summary Calculations'!AM153 -> Test Spec 4 | E153: ='Summary Calculations'!AN153 -> Elective | F153: ='Summary Calculations'!AO153 -> 35-44 | G153: ='Summary Calculations'!AP153 -> 360 | H153: ='Summary Calculations'!AQ153 -> 314.5549171 | I153: ='Summary Calculations'!AR153 -> 337.5694071 | J153: ='Summary Calculations'!AS153 -> 319.3070658 | K153: ='Summary Calculations'!AT153 -> 300.8190834 | L153: ='Summary Calculations'!AU153 -> 282.1543082
B154: ='Summary Calculations'!AK154 -> DBE | C154: ='Summary Calculations'!AL154 -> DB | D154: ='Summary Calculations'!AM154 -> Test Spec 4 | E154: ='Summary Calculations'!AN154 -> Elective | F154: ='Summary Calculations'!AO154 -> 45-54 | G154: ='Summary Calculations'!AP154 -> 380 | H154: ='Summary Calculations'!AQ154 -> 340.5071309 | I154: ='Summary Calculations'!AR154 -> 375.1491153 | J154: ='Summary Calculations'!AS154 -> 370.5938984 | K154: ='Summary Calculations'!AT154 -> 365.9435818 | L154: ='Summary Calculations'!AU154 -> 361.2551014
B155: ='Summary Calculations'!AK155 -> DBF | C155: ='Summary Calculations'!AL155 -> DB | D155: ='Summary Calculations'!AM155 -> Test Spec 4 | E155: ='Summary Calculations'!AN155 -> Elective | F155: ='Summary Calculations'!AO155 -> 55-64 | G155: ='Summary Calculations'!AP155 -> 400 | H155: ='Summary Calculations'!AQ155 -> 368.7249992 | I155: ='Summary Calculations'!AR155 -> 417.7604591 | J155: ='Summary Calculations'!AS155 -> 430.8683119 | K155: ='Summary Calculations'!AT155 -> 444.0564068 | L155: ='Summary Calculations'!AU155 -> 457.3912104
B156: ='Summary Calculations'!AK156 -> DBG | C156: ='Summary Calculations'!AL156 -> DB | D156: ='Summary Calculations'!AM156 -> Test Spec 4 | E156: ='Summary Calculations'!AN156 -> Elective | F156: ='Summary Calculations'!AO156 -> 65-74 | G156: ='Summary Calculations'!AP156 -> 420 | H156: ='Summary Calculations'!AQ156 -> 389.2879582 | I156: ='Summary Calculations'!AR156 -> 443.3715432 | J156: ='Summary Calculations'!AS156 -> 460.8526131 | K156: ='Summary Calculations'!AT156 -> 478.4606135 | L156: ='Summary Calculations'!AU156 -> 496.2666898
B157: ='Summary Calculations'!AK157 -> DBH | C157: ='Summary Calculations'!AL157 -> DB | D157: ='Summary Calculations'!AM157 -> Test Spec 4 | E157: ='Summary Calculations'!AN157 -> Elective | F157: ='Summary Calculations'!AO157 -> 75-84 | G157: ='Summary Calculations'!AP157 -> 440 | H157: ='Summary Calculations'!AQ157 -> 400.8885681 | I157: ='Summary Calculations'!AR157 -> 449.0787651 | J157: ='Summary Calculations'!AS157 -> 455.3161809 | K157: ='Summary Calculations'!AT157 -> 461.5830456 | L157: ='Summary Calculations'!AU157 -> 467.9494964
B158: ='Summary Calculations'!AK158 -> DBI | C158: ='Summary Calculations'!AL158 -> DB | D158: ='Summary Calculations'!AM158 -> Test Spec 4 | E158: ='Summary Calculations'!AN158 -> Elective | F158: ='Summary Calculations'!AO158 -> 85+ | G158: ='Summary Calculations'!AP158 -> 460 | H158: ='Summary Calculations'!AQ158 -> 398.313627 | I158: ='Summary Calculations'!AR158 -> 423.3044846 | J158: ='Summary Calculations'!AS158 -> 393.6770587 | K158: ='Summary Calculations'!AT158 -> 363.725477 | L158: ='Summary Calculations'!AU158 -> 333.4792317
B159: ='Summary Calculations'!AK159 -> DCA | C159: ='Summary Calculations'!AL159 -> DC | D159: ='Summary Calculations'!AM159 -> Test Spec 4 | E159: ='Summary Calculations'!AN159 -> Non-Elective | F159: ='Summary Calculations'!AO159 -> 0-18 | G159: ='Summary Calculations'!AP159 -> 340 | H159: ='Summary Calculations'!AQ159 -> 294.8263435 | I159: ='Summary Calculations'!AR159 -> 348.5978645 | J159: ='Summary Calculations'!AS159 -> 354.6616029 | K159: ='Summary Calculations'!AT159 -> 360.7482767 | L159: ='Summary Calculations'!AU159 -> 366.9125301
B160: ='Summary Calculations'!AK160 -> DCB | C160: ='Summary Calculations'!AL160 -> DC | D160: ='Summary Calculations'!AM160 -> Test Spec 4 | E160: ='Summary Calculations'!AN160 -> Non-Elective | F160: ='Summary Calculations'!AO160 -> 19-24 | G160: ='Summary Calculations'!AP160 -> 360 | H160: ='Summary Calculations'!AQ160 -> 313.4252327 | I160: ='Summary Calculations'!AR160 -> 372.0415616 | J160: ='Summary Calculations'!AS160 -> 380.758446 | K160: ='Summary Calculations'!AT160 -> 389.5302502 | L160: ='Summary Calculations'!AU160 -> 398.4156752
B161: ='Summary Calculations'!AK161 -> DCC | C161: ='Summary Calculations'!AL161 -> DC | D161: ='Summary Calculations'!AM161 -> Test Spec 4 | E161: ='Summary Calculations'!AN161 -> Non-Elective | F161: ='Summary Calculations'!AO161 -> 25-34 | G161: ='Summary Calculations'!AP161 -> 380 | H161: ='Summary Calculations'!AQ161 -> 328.9977941 | I161: ='Summary Calculations'!AR161 -> 388.4072203 | J161: ='Summary Calculations'!AS161 -> 394.2527493 | K161: ='Summary Calculations'!AT161 -> 400.124307 | L161: ='Summary Calculations'!AU161 -> 406.082629
B162: ='Summary Calculations'!AK162 -> DCD | C162: ='Summary Calculations'!AL162 -> DC | D162: ='Summary Calculations'!AM162 -> Test Spec 4 | E162: ='Summary Calculations'!AN162 -> Non-Elective | F162: ='Summary Calculations'!AO162 -> 35-44 | G162: ='Summary Calculations'!AP162 -> 400 | H162: ='Summary Calculations'!AQ162 -> 331.8734613 | I162: ='Summary Calculations'!AR162 -> 375.0771191 | J162: ='Summary Calculations'!AS162 -> 354.7856286 | K162: ='Summary Calculations'!AT162 -> 334.243426 | L162: ='Summary Calculations'!AU162 -> 313.5047869
B163: ='Summary Calculations'!AK163 -> DCE | C163: ='Summary Calculations'!AL163 -> DC | D163: ='Summary Calculations'!AM163 -> Test Spec 4 | E163: ='Summary Calculations'!AN163 -> Non-Elective | F163: ='Summary Calculations'!AO163 -> 45-54 | G163: ='Summary Calculations'!AP163 -> 420 | H163: ='Summary Calculations'!AQ163 -> 357.3637206 | I163: ='Summary Calculations'!AR163 -> 414.6384958 | J163: ='Summary Calculations'!AS163 -> 409.6037824 | K163: ='Summary Calculations'!AT163 -> 404.4639588 | L163: ='Summary Calculations'!AU163 -> 399.2819542
B164: ='Summary Calculations'!AK164 -> DCF | C164: ='Summary Calculations'!AL164 -> DC | D164: ='Summary Calculations'!AM164 -> Test Spec 4 | E164: ='Summary Calculations'!AN164 -> Non-Elective | F164: ='Summary Calculations'!AO164 -> 55-64 | G164: ='Summary Calculations'!AP164 -> 440 | H164: ='Summary Calculations'!AQ164 -> 385.1357419 | I164: ='Summary Calculations'!AR164 -> 459.536505 | J164: ='Summary Calculations'!AS164 -> 473.9551431 | K164: ='Summary Calculations'!AT164 -> 488.4620475 | L164: ='Summary Calculations'!AU164 -> 503.1303314
B165: ='Summary Calculations'!AK165 -> DCG | C165: ='Summary Calculations'!AL165 -> DC | D165: ='Summary Calculations'!AM165 -> Test Spec 4 | E165: ='Summary Calculations'!AN165 -> Non-Elective | F165: ='Summary Calculations'!AO165 -> 65-74 | G165: ='Summary Calculations'!AP165 -> 460 | H165: ='Summary Calculations'!AQ165 -> 404.8536576 | I165: ='Summary Calculations'!AR165 -> 485.5974045 | J165: ='Summary Calculations'!AS165 -> 504.7433381 | K165: ='Summary Calculations'!AT165 -> 524.0282909 | L165: ='Summary Calculations'!AU165 -> 543.5301841
B166: ='Summary Calculations'!AK166 -> DCH | C166: ='Summary Calculations'!AL166 -> DC | D166: ='Summary Calculations'!AM166 -> Test Spec 4 | E166: ='Summary Calculations'!AN166 -> Non-Elective | F166: ='Summary Calculations'!AO166 -> 75-84 | G166: ='Summary Calculations'!AP166 -> 480 | H166: ='Summary Calculations'!AQ166 -> 415.2702207 | I166: ='Summary Calculations'!AR166 -> 489.9041074 | J166: ='Summary Calculations'!AS166 -> 496.708561 | K166: ='Summary Calculations'!AT166 -> 503.5451406 | L166: ='Summary Calculations'!AU166 -> 510.4903598
B167: ='Summary Calculations'!AK167 -> DCI | C167: ='Summary Calculations'!AL167 -> DC | D167: ='Summary Calculations'!AM167 -> Test Spec 4 | E167: ='Summary Calculations'!AN167 -> Non-Elective | F167: ='Summary Calculations'!AO167 -> 85+ | G167: ='Summary Calculations'!AP167 -> 500 | H167: ='Summary Calculations'!AQ167 -> 411.107967 | I167: ='Summary Calculations'!AR167 -> 460.1135702 | J167: ='Summary Calculations'!AS167 -> 427.9098464 | K167: ='Summary Calculations'!AT167 -> 395.3537794 | L167: ='Summary Calculations'!AU167 -> 362.4774258
B168: ='Summary Calculations'!AK168 -> DDA | C168: ='Summary Calculations'!AL168 -> DD | D168: ='Summary Calculations'!AM168 -> Test Spec 4 | E168: ='Summary Calculations'!AN168 -> A&E | F168: ='Summary Calculations'!AO168 -> 0-18 | G168: ='Summary Calculations'!AP168 -> 350 | H168: ='Summary Calculations'!AQ168 -> 322.8470291 | I168: ='Summary Calculations'!AR168 -> 358.8507429 | J168: ='Summary Calculations'!AS168 -> 365.0928265 | K168: ='Summary Calculations'!AT168 -> 371.3585202 | L168: ='Summary Calculations'!AU168 -> 377.7040751
B169: ='Summary Calculations'!AK169 -> DDB | C169: ='Summary Calculations'!AL169 -> DD | D169: ='Summary Calculations'!AM169 -> Test Spec 4 | E169: ='Summary Calculations'!AN169 -> A&E | F169: ='Summary Calculations'!AO169 -> 19-24 | G169: ='Summary Calculations'!AP169 -> 370 | H169: ='Summary Calculations'!AQ169 -> 342.6687978 | I169: ='Summary Calculations'!AR169 -> 382.3760494 | J169: ='Summary Calculations'!AS169 -> 391.3350695 | K169: ='Summary Calculations'!AT169 -> 400.3505349 | L169: ='Summary Calculations'!AU169 -> 409.4827773
B170: ='Summary Calculations'!AK170 -> DDC | C170: ='Summary Calculations'!AL170 -> DD | D170: ='Summary Calculations'!AM170 -> Test Spec 4 | E170: ='Summary Calculations'!AN170 -> A&E | F170: ='Summary Calculations'!AO170 -> 25-34 | G170: ='Summary Calculations'!AP170 -> 390 | H170: ='Summary Calculations'!AQ170 -> 359.1826722 | I170: ='Summary Calculations'!AR170 -> 398.6284629 | J170: ='Summary Calculations'!AS170 -> 404.6278217 | K170: ='Summary Calculations'!AT170 -> 410.653894 | L170: ='Summary Calculations'!AU170 -> 416.769014
B171: ='Summary Calculations'!AK171 -> DDD | C171: ='Summary Calculations'!AL171 -> DD | D171: ='Summary Calculations'!AM171 -> Test Spec 4 | E171: ='Summary Calculations'!AN171 -> A&E | F171: ='Summary Calculations'!AO171 -> 35-44 | G171: ='Summary Calculations'!AP171 -> 410 | H171: ='Summary Calculations'!AQ171 -> 361.8576604 | I171: ='Summary Calculations'!AR171 -> 384.454047 | J171: ='Summary Calculations'!AS171 -> 363.6552693 | K171: ='Summary Calculations'!AT171 -> 342.5995116 | L171: ='Summary Calculations'!AU171 -> 321.3424066
B172: ='Summary Calculations'!AK172 -> DDE | C172: ='Summary Calculations'!AL172 -> DD | D172: ='Summary Calculations'!AM172 -> Test Spec 4 | E172: ='Summary Calculations'!AN172 -> A&E | F172: ='Summary Calculations'!AO172 -> 45-54 | G172: ='Summary Calculations'!AP172 -> 430 | H172: ='Summary Calculations'!AQ172 -> 389.1983648 | I172: ='Summary Calculations'!AR172 -> 424.5108409 | J172: ='Summary Calculations'!AS172 -> 419.3562534 | K172: ='Summary Calculations'!AT172 -> 414.0940531 | L172: ='Summary Calculations'!AU172 -> 408.7886674
B173: ='Summary Calculations'!AK173 -> DDF | C173: ='Summary Calculations'!AL173 -> DD | D173: ='Summary Calculations'!AM173 -> Test Spec 4 | E173: ='Summary Calculations'!AN173 -> A&E | F173: ='Summary Calculations'!AO173 -> 55-64 | G173: ='Summary Calculations'!AP173 -> 450 | H173: ='Summary Calculations'!AQ173 -> 419.0009836 | I173: ='Summary Calculations'!AR173 -> 469.9805165 | J173: ='Summary Calculations'!AS173 -> 484.7268509 | K173: ='Summary Calculations'!AT173 -> 499.5634577 | L173: ='Summary Calculations'!AU173 -> 514.5651117
B174: ='Summary Calculations'!AK174 -> DDG | C174: ='Summary Calculations'!AL174 -> DD | D174: ='Summary Calculations'!AM174 -> Test Spec 4 | E174: ='Summary Calculations'!AN174 -> A&E | F174: ='Summary Calculations'!AO174 -> 65-74 | G174: ='Summary Calculations'!AP174 -> 470 | H174: ='Summary Calculations'!AQ174 -> 440.0271505 | I174: ='Summary Calculations'!AR174 -> 496.1538698 | J174: ='Summary Calculations'!AS174 -> 515.7160194 | K174: ='Summary Calculations'!AT174 -> 535.4202103 | L174: ='Summary Calculations'!AU174 -> 555.3460577
B175: ='Summary Calculations'!AK175 -> DDH | C175: ='Summary Calculations'!AL175 -> DD | D175: ='Summary Calculations'!AM175 -> Test Spec 4 | E175: ='Summary Calculations'!AN175 -> A&E | F175: ='Summary Calculations'!AO175 -> 75-84 | G175: ='Summary Calculations'!AP175 -> 490 | H175: ='Summary Calculations'!AQ175 -> 450.9485679 | I175: ='Summary Calculations'!AR175 -> 500.1104429 | J175: ='Summary Calculations'!AS175 -> 507.056656 | K175: ='Summary Calculations'!AT175 -> 514.0356644 | L175: ='Summary Calculations'!AU175 -> 521.1255756
B176: ='Summary Calculations'!AK176 -> DDI | C176: ='Summary Calculations'!AL176 -> DD | D176: ='Summary Calculations'!AM176 -> Test Spec 4 | E176: ='Summary Calculations'!AN176 -> A&E | F176: ='Summary Calculations'!AO176 -> 85+ | G176: ='Summary Calculations'!AP176 -> 510 | H176: ='Summary Calculations'!AQ176 -> 446.0642784 | I176: ='Summary Calculations'!AR176 -> 469.3158416 | J176: ='Summary Calculations'!AS176 -> 436.4680434 | K176: ='Summary Calculations'!AT176 -> 403.260855 | L176: ='Summary Calculations'!AU176 -> 369.7269743
B177: ='Summary Calculations'!AK177 -> DEA | C177: ='Summary Calculations'!AL177 -> DE | D177: ='Summary Calculations'!AM177 -> Test Spec 4 | E177: ='Summary Calculations'!AN177 -> Community | F177: ='Summary Calculations'!AO177 -> 0-18 | G177: ='Summary Calculations'!AP177 -> 370 | H177: ='Summary Calculations'!AQ177 -> 344.7045971 | I177: ='Summary Calculations'!AR177 -> 379.3564996 | J177: ='Summary Calculations'!AS177 -> 385.9552738 | K177: ='Summary Calculations'!AT177 -> 392.579007 | L177: ='Summary Calculations'!AU177 -> 399.2871652
B178: ='Summary Calculations'!AK178 -> DEB | C178: ='Summary Calculations'!AL178 -> DE | D178: ='Summary Calculations'!AM178 -> Test Spec 4 | E178: ='Summary Calculations'!AN178 -> Community | F178: ='Summary Calculations'!AO178 -> 19-24 | G178: ='Summary Calculations'!AP178 -> 390 | H178: ='Summary Calculations'!AQ178 -> 364.7993411 | I178: ='Summary Calculations'!AR178 -> 403.0450251 | J178: ='Summary Calculations'!AS178 -> 412.4883165 | K178: ='Summary Calculations'!AT178 -> 421.9911044 | L178: ='Summary Calculations'!AU178 -> 431.6169815
B179: ='Summary Calculations'!AK179 -> DEC | C179: ='Summary Calculations'!AL179 -> DE | D179: ='Summary Calculations'!AM179 -> Test Spec 4 | E179: ='Summary Calculations'!AN179 -> Community | F179: ='Summary Calculations'!AO179 -> 25-34 | G179: ='Summary Calculations'!AP179 -> 410 | H179: ='Summary Calculations'!AQ179 -> 381.3741284 | I179: ='Summary Calculations'!AR179 -> 419.0709482 | J179: ='Summary Calculations'!AS179 -> 425.3779664 | K179: ='Summary Calculations'!AT179 -> 431.7130681 | L179: ='Summary Calculations'!AU179 -> 438.1417839
B180: ='Summary Calculations'!AK180 -> DED | C180: ='Summary Calculations'!AL180 -> DE | D180: ='Summary Calculations'!AM180 -> Test Spec 4 | E180: ='Summary Calculations'!AN180 -> Community | F180: ='Summary Calculations'!AO180 -> 35-44 | G180: ='Summary Calculations'!AP180 -> 430 | H180: ='Summary Calculations'!AQ180 -> 383.3001341 | I180: ='Summary Calculations'!AR180 -> 403.207903 | J180: ='Summary Calculations'!AS180 -> 381.3945508 | K180: ='Summary Calculations'!AT180 -> 359.3116829 | L180: ='Summary Calculations'!AU180 -> 337.0176459
B181: ='Summary Calculations'!AK181 -> DEE | C181: ='Summary Calculations'!AL181 -> DE | D181: ='Summary Calculations'!AM181 -> Test Spec 4 | E181: ='Summary Calculations'!AN181 -> Community | F181: ='Summary Calculations'!AO181 -> 45-54 | G181: ='Summary Calculations'!AP181 -> 450 | H181: ='Summary Calculations'!AQ181 -> 411.3690999 | I181: ='Summary Calculations'!AR181 -> 444.2555312 | J181: ='Summary Calculations'!AS181 -> 438.8611955 | K181: ='Summary Calculations'!AT181 -> 433.3542416 | L181: ='Summary Calculations'!AU181 -> 427.8020938
B182: ='Summary Calculations'!AK182 -> DEF | C182: ='Summary Calculations'!AL182 -> DE | D182: ='Summary Calculations'!AM182 -> Test Spec 4 | E182: ='Summary Calculations'!AN182 -> Community | F182: ='Summary Calculations'!AO182 -> 55-64 | G182: ='Summary Calculations'!AP182 -> 470 | H182: ='Summary Calculations'!AQ182 -> 441.9946249 | I182: ='Summary Calculations'!AR182 -> 490.8685394 | J182: ='Summary Calculations'!AS182 -> 506.2702665 | K182: ='Summary Calculations'!AT182 -> 521.766278 | L182: ='Summary Calculations'!AU182 -> 537.4346722
B183: ='Summary Calculations'!AK183 -> DEG | C183: ='Summary Calculations'!AL183 -> DE | D183: ='Summary Calculations'!AM183 -> Test Spec 4 | E183: ='Summary Calculations'!AN183 -> Community | F183: ='Summary Calculations'!AO183 -> 65-74 | G183: ='Summary Calculations'!AP183 -> 490 | H183: ='Summary Calculations'!AQ183 -> 463.3341356 | I183: ='Summary Calculations'!AR183 -> 517.2668004 | J183: ='Summary Calculations'!AS183 -> 537.6613819 | K183: ='Summary Calculations'!AT183 -> 558.204049 | L183: ='Summary Calculations'!AU183 -> 578.9778048
B184: ='Summary Calculations'!AK184 -> DEH | C184: ='Summary Calculations'!AL184 -> DE | D184: ='Summary Calculations'!AM184 -> Test Spec 4 | E184: ='Summary Calculations'!AN184 -> Community | F184: ='Summary Calculations'!AO184 -> 75-84 | G184: ='Summary Calculations'!AP184 -> 510 | H184: ='Summary Calculations'!AQ184 -> 474.0429689 | I184: ='Summary Calculations'!AR184 -> 520.5231141 | J184: ='Summary Calculations'!AS184 -> 527.7528461 | K184: ='Summary Calculations'!AT184 -> 535.0167119 | L184: ='Summary Calculations'!AU184 -> 542.3960072
B185: ='Summary Calculations'!AK185 -> DEI | C185: ='Summary Calculations'!AL185 -> DE | D185: ='Summary Calculations'!AM185 -> Test Spec 4 | E185: ='Summary Calculations'!AN185 -> Community | F185: ='Summary Calculations'!AO185 -> 85+ | G185: ='Summary Calculations'!AP185 -> 530 | H185: ='Summary Calculations'!AQ185 -> 468.1874203 | I185: ='Summary Calculations'!AR185 -> 487.7203844 | J185: ='Summary Calculations'!AS185 -> 453.5844372 | K185: ='Summary Calculations'!AT185 -> 419.0750061 | L185: ='Summary Calculations'!AU185 -> 384.2260714
B186: ='Summary Calculations'!AK186 -> EAA | C186: ='Summary Calculations'!AL186 -> EA | D186: ='Summary Calculations'!AM186 -> Test Spec 5 | E186: ='Summary Calculations'!AN186 -> Outpatient | F186: ='Summary Calculations'!AO186 -> 0-18 | G186: ='Summary Calculations'!AP186 -> 320 | H186: ='Summary Calculations'!AQ186 -> 323.5817807 | I186: ='Summary Calculations'!AR186 -> 327.1715615 | J186: ='Summary Calculations'!AS186 -> 332.7937916 | K186: ='Summary Calculations'!AT186 -> 338.4688127 | L186: ='Summary Calculations'!AU186 -> 344.1966246
B187: ='Summary Calculations'!AK187 -> EAB | C187: ='Summary Calculations'!AL187 -> EA | D187: ='Summary Calculations'!AM187 -> Test Spec 5 | E187: ='Summary Calculations'!AN187 -> Outpatient | F187: ='Summary Calculations'!AO187 -> 19-24 | G187: ='Summary Calculations'!AP187 -> 340 | H187: ='Summary Calculations'!AQ187 -> 345.1891102 | I187: ='Summary Calculations'!AR187 -> 350.3867203 | J187: ='Summary Calculations'!AS187 -> 358.5221102 | K187: ='Summary Calculations'!AT187 -> 366.7422436 | L187: ='Summary Calculations'!AU187 -> 375.0471208
B188: ='Summary Calculations'!AK188 -> EAC | C188: ='Summary Calculations'!AL188 -> EA | D188: ='Summary Calculations'!AM188 -> Test Spec 5 | E188: ='Summary Calculations'!AN188 -> Outpatient | F188: ='Summary Calculations'!AO188 -> 25-34 | G188: ='Summary Calculations'!AP188 -> 360 | H188: ='Summary Calculations'!AQ188 -> 363.4616579 | I188: ='Summary Calculations'!AR188 -> 366.9323158 | J188: ='Summary Calculations'!AS188 -> 372.3776584 | K188: ='Summary Calculations'!AT188 -> 377.8828399 | L188: ='Summary Calculations'!AU188 -> 383.4478604
B189: ='Summary Calculations'!AK189 -> EAD | C189: ='Summary Calculations'!AL189 -> EA | D189: ='Summary Calculations'!AM189 -> Test Spec 5 | E189: ='Summary Calculations'!AN189 -> Outpatient | F189: ='Summary Calculations'!AO189 -> 35-44 | G189: ='Summary Calculations'!AP189 -> 380 | H189: ='Summary Calculations'!AQ189 -> 367.6570035 | I189: ='Summary Calculations'!AR189 -> 355.3235071 | J189: ='Summary Calculations'!AS189 -> 336.031203 | K189: ='Summary Calculations'!AT189 -> 316.540884 | L189: ='Summary Calculations'!AU189 -> 296.8525502
B190: ='Summary Calculations'!AK190 -> EAE | C190: ='Summary Calculations'!AL190 -> EA | D190: ='Summary Calculations'!AM190 -> Test Spec 5 | E190: ='Summary Calculations'!AN190 -> Outpatient | F190: ='Summary Calculations'!AO190 -> 45-54 | G190: ='Summary Calculations'!AP190 -> 400 | H190: ='Summary Calculations'!AQ190 -> 396.887915 | I190: ='Summary Calculations'!AR190 -> 393.78583 | J190: ='Summary Calculations'!AS190 -> 388.9239083 | K190: ='Summary Calculations'!AT190 -> 384.0023311 | L190: ='Summary Calculations'!AU190 -> 379.0210984
B191: ='Summary Calculations'!AK191 -> EAF | C191: ='Summary Calculations'!AL191 -> EA | D191: ='Summary Calculations'!AM191 -> Test Spec 5 | E191: ='Summary Calculations'!AN191 -> Outpatient | F191: ='Summary Calculations'!AO191 -> 55-64 | G191: ='Summary Calculations'!AP191 -> 420 | H191: ='Summary Calculations'!AQ191 -> 428.7036208 | I191: ='Summary Calculations'!AR191 -> 437.4177416 | J191: ='Summary Calculations'!AS191 -> 451.0491162 | K191: ='Summary Calculations'!AT191 -> 464.8049783 | L191: ='Summary Calculations'!AU191 -> 478.6853279
B192: ='Summary Calculations'!AK192 -> EAG | C192: ='Summary Calculations'!AL192 -> EA | D192: ='Summary Calculations'!AM192 -> Test Spec 5 | E192: ='Summary Calculations'!AN192 -> Outpatient | F192: ='Summary Calculations'!AO192 -> 65-74 | G192: ='Summary Calculations'!AP192 -> 440 | H192: ='Summary Calculations'!AQ192 -> 451.5851219 | I192: ='Summary Calculations'!AR192 -> 463.1812439 | J192: ='Summary Calculations'!AS192 -> 481.3438445 | K192: ='Summary Calculations'!AT192 -> 499.6810855 | L192: ='Summary Calculations'!AU192 -> 518.1929669
B193: ='Summary Calculations'!AK193 -> EAH | C193: ='Summary Calculations'!AL193 -> EA | D193: ='Summary Calculations'!AM193 -> Test Spec 5 | E193: ='Summary Calculations'!AN193 -> Outpatient | F193: ='Summary Calculations'!AO193 -> 75-84 | G193: ='Summary Calculations'!AP193 -> 460 | H193: ='Summary Calculations'!AQ193 -> 464.081329 | I193: ='Summary Calculations'!AR193 -> 468.1741579 | J193: ='Summary Calculations'!AS193 -> 474.5786773 | K193: ='Summary Calculations'!AT193 -> 481.0589899 | L193: ='Summary Calculations'!AU193 -> 487.6150955
B194: ='Summary Calculations'!AK194 -> EAI | C194: ='Summary Calculations'!AL194 -> EA | D194: ='Summary Calculations'!AM194 -> Test Spec 5 | E194: ='Summary Calculations'!AN194 -> Outpatient | F194: ='Summary Calculations'!AO194 -> 85+ | G194: ='Summary Calculations'!AP194 -> 480 | H194: ='Summary Calculations'!AQ194 -> 460.2288499 | I194: ='Summary Calculations'!AR194 -> 440.4696998 | J194: ='Summary Calculations'!AS194 -> 409.5561907 | K194: ='Summary Calculations'!AT194 -> 378.3558553 | L194: ='Summary Calculations'!AU194 -> 346.8368238
B195: ='Summary Calculations'!AK195 -> EBA | C195: ='Summary Calculations'!AL195 -> EB | D195: ='Summary Calculations'!AM195 -> Test Spec 5 | E195: ='Summary Calculations'!AN195 -> Elective | F195: ='Summary Calculations'!AO195 -> 0-18 | G195: ='Summary Calculations'!AP195 -> 350 | H195: ='Summary Calculations'!AQ195 -> 353.9175727 | I195: ='Summary Calculations'!AR195 -> 357.8438954 | J195: ='Summary Calculations'!AS195 -> 363.9932096 | K195: ='Summary Calculations'!AT195 -> 370.2002639 | L195: ='Summary Calculations'!AU195 -> 376.4650582
B196: ='Summary Calculations'!AK196 -> EBB | C196: ='Summary Calculations'!AL196 -> EB | D196: ='Summary Calculations'!AM196 -> Test Spec 5 | E196: ='Summary Calculations'!AN196 -> Elective | F196: ='Summary Calculations'!AO196 -> 19-24 | G196: ='Summary Calculations'!AP196 -> 370 | H196: ='Summary Calculations'!AQ196 -> 375.6469728 | I196: ='Summary Calculations'!AR196 -> 381.3031957 | J196: ='Summary Calculations'!AS196 -> 390.156414 | K196: ='Summary Calculations'!AT196 -> 399.1018534 | L196: ='Summary Calculations'!AU196 -> 408.1395138
B197: ='Summary Calculations'!AK197 -> EBC | C197: ='Summary Calculations'!AL197 -> EB | D197: ='Summary Calculations'!AM197 -> Test Spec 5 | E197: ='Summary Calculations'!AN197 -> Elective | F197: ='Summary Calculations'!AO197 -> 25-34 | G197: ='Summary Calculations'!AP197 -> 390 | H197: ='Summary Calculations'!AQ197 -> 393.7501294 | I197: ='Summary Calculations'!AR197 -> 397.5100088 | J197: ='Summary Calculations'!AS197 -> 403.4091299 | K197: ='Summary Calculations'!AT197 -> 409.3730766 | L197: ='Summary Calculations'!AU197 -> 415.4018487
B198: ='Summary Calculations'!AK198 -> EBD | C198: ='Summary Calculations'!AL198 -> EB | D198: ='Summary Calculations'!AM198 -> Test Spec 5 | E198: ='Summary Calculations'!AN198 -> Elective | F198: ='Summary Calculations'!AO198 -> 35-44 | G198: ='Summary Calculations'!AP198 -> 410 | H198: ='Summary Calculations'!AQ198 -> 396.6825564 | I198: ='Summary Calculations'!AR198 -> 383.3753629 | J198: ='Summary Calculations'!AS198 -> 362.5599822 | K198: ='Summary Calculations'!AT198 -> 341.5309538 | L198: ='Summary Calculations'!AU198 -> 320.2882779
B199: ='Summary Calculations'!AK199 -> EBE | C199: ='Summary Calculations'!AL199 -> EB | D199: ='Summary Calculations'!AM199 -> Test Spec 5 | E199: ='Summary Calculations'!AN199 -> Elective | F199: ='Summary Calculations'!AO199 -> 45-54 | G199: ='Summary Calculations'!AP199 -> 430 | H199: ='Summary Calculations'!AQ199 -> 426.6545086 | I199: ='Summary Calculations'!AR199 -> 423.3197672 | J199: ='Summary Calculations'!AS199 -> 418.0932014 | K199: ='Summary Calculations'!AT199 -> 412.8025059 | L199: ='Summary Calculations'!AU199 -> 407.4476808
B200: ='Summary Calculations'!AK200 -> EBF | C200: ='Summary Calculations'!AL200 -> EB | D200: ='Summary Calculations'!AM200 -> Test Spec 5 | E200: ='Summary Calculations'!AN200 -> Elective | F200: ='Summary Calculations'!AO200 -> 55-64 | G200: ='Summary Calculations'!AP200 -> 450 | H200: ='Summary Calculations'!AQ200 -> 459.325308 | I200: ='Summary Calculations'!AR200 -> 468.661866 | J200: ='Summary Calculations'!AS200 -> 483.2669102 | K200: ='Summary Calculations'!AT200 -> 498.0053339 | L200: ='Summary Calculations'!AU200 -> 512.877137
B201: ='Summary Calculations'!AK201 -> EBG | C201: ='Summary Calculations'!AL201 -> EB | D201: ='Summary Calculations'!AM201 -> Test Spec 5 | E201: ='Summary Calculations'!AN201 -> Elective | F201: ='Summary Calculations'!AO201 -> 65-74 | G201: ='Summary Calculations'!AP201 -> 470 | H201: ='Summary Calculations'!AQ201 -> 482.3750166 | I201: ='Summary Calculations'!AR201 -> 494.7617832 | J201: ='Summary Calculations'!AS201 -> 514.162743 | K201: ='Summary Calculations'!AT201 -> 533.7502504 | L201: ='Summary Calculations'!AU201 -> 553.5243055
B202: ='Summary Calculations'!AK202 -> EBH | C202: ='Summary Calculations'!AL202 -> EB | D202: ='Summary Calculations'!AM202 -> Test Spec 5 | E202: ='Summary Calculations'!AN202 -> Elective | F202: ='Summary Calculations'!AO202 -> 75-84 | G202: ='Summary Calculations'!AP202 -> 490 | H202: ='Summary Calculations'!AQ202 -> 494.3475026 | I202: ='Summary Calculations'!AR202 -> 498.7072552 | J202: ='Summary Calculations'!AS202 -> 505.5294606 | K202: ='Summary Calculations'!AT202 -> 512.4324022 | L202: ='Summary Calculations'!AU202 -> 519.41608
B203: ='Summary Calculations'!AK203 -> EBI | C203: ='Summary Calculations'!AL203 -> EB | D203: ='Summary Calculations'!AM203 -> Test Spec 5 | E203: ='Summary Calculations'!AN203 -> Elective | F203: ='Summary Calculations'!AO203 -> 85+ | G203: ='Summary Calculations'!AP203 -> 510 | H203: ='Summary Calculations'!AQ203 -> 488.993153 | I203: ='Summary Calculations'!AR203 -> 467.999056 | J203: ='Summary Calculations'!AS203 -> 435.1534526 | K203: ='Summary Calculations'!AT203 -> 402.0030962 | L203: ='Summary Calculations'!AU203 -> 368.5141253
... 252 more rows

Sheet Inputs >>

Sheet Summary Input (hidden)
A4: ='Demographic Change'!A1 -> Demographic change | B4: ='Demographic Change'!C2 -> Actual | C4: ='Demographic Change'!D2 -> Forecast
B5: ='Demographic Change'!C3 -> 2013/14 | C5: ='Demographic Change'!D3 -> 2014/15 | D5: ='Demographic Change'!E3 -> 2015/16 | E5: ='Demographic Change'!F3 -> 2016/17 | F5: ='Demographic Change'!G3 -> 2017/18 | G5: ='Demographic Change'!H3 -> 2018/19
A6: ='Demographic Change'!A4 -> Expected population aged:
A7: ='Demographic Change'!B5 -> 0-18 | B7: ='Demographic Change'!C5 -> 12123 | C7: ='Demographic Change'!D5 -> 12259 | D7: ='Demographic Change'!E5 -> 12395 | E7: ='Demographic Change'!F5 -> 12608 | F7: ='Demographic Change'!G5 -> 12823 | G7: ='Demographic Change'!H5 -> 13040
A8: ='Demographic Change'!B6 -> 19-24 | B8: ='Demographic Change'!C6 -> 12036 | C8: ='Demographic Change'!D6 -> 12220 | D8: ='Demographic Change'!E6 -> 12404 | E8: ='Demographic Change'!F6 -> 12692 | F8: ='Demographic Change'!G6 -> 12983 | G8: ='Demographic Change'!H6 -> 13277
A9: ='Demographic Change'!B7 -> 25-34 | B9: ='Demographic Change'!C7 -> 12032 | C9: ='Demographic Change'!D7 -> 12148 | D9: ='Demographic Change'!E7 -> 12264 | E9: ='Demographic Change'!F7 -> 12446 | F9: ='Demographic Change'!G7 -> 12630 | G9: ='Demographic Change'!H7 -> 12816
A10: ='Demographic Change'!B8 -> 35-44 | B10: ='Demographic Change'!C8 -> 13433 | C10: ='Demographic Change'!D8 -> 12997 | D10: ='Demographic Change'!E8 -> 12561 | E10: ='Demographic Change'!F8 -> 11879 | F10: ='Demographic Change'!G8 -> 11190 | G10: ='Demographic Change'!H8 -> 10494
A11: ='Demographic Change'!B9 -> 45-54 | B11: ='Demographic Change'!C9 -> 13410 | C11: ='Demographic Change'!D9 -> 13306 | D11: ='Demographic Change'!E9 -> 13202 | E11: ='Demographic Change'!F9 -> 13039 | F11: ='Demographic Change'!G9 -> 12874 | G11: ='Demographic Change'!H9 -> 12707
A12: ='Demographic Change'!B10 -> 55-64 | B12: ='Demographic Change'!C10 -> 13495 | C12: ='Demographic Change'!D10 -> 13775 | D12: ='Demographic Change'!E10 -> 14055 | E12: ='Demographic Change'!F10 -> 14493 | F12: ='Demographic Change'!G10 -> 14935 | G12: ='Demographic Change'!H10 -> 15381
A13: ='Demographic Change'!B11 -> 65-74 | B13: ='Demographic Change'!C11 -> 12597 | C13: ='Demographic Change'!D11 -> 12929 | D13: ='Demographic Change'!E11 -> 13261 | E13: ='Demographic Change'!F11 -> 13781 | F13: ='Demographic Change'!G11 -> 14306 | G13: ='Demographic Change'!H11 -> 14836
A14: ='Demographic Change'!B12 -> 75-84 | B14: ='Demographic Change'!C12 -> 12138 | C14: ='Demographic Change'!D12 -> 12246 | D14: ='Demographic Change'!E12 -> 12354 | E14: ='Demographic Change'!F12 -> 12523 | F14: ='Demographic Change'!G12 -> 12694 | G14: ='Demographic Change'!H12 -> 12867
A15: ='Demographic Change'!B13 -> 85+ | B15: ='Demographic Change'!C13 -> 15061 | C15: ='Demographic Change'!D13 -> 14441 | D15: ='Demographic Change'!E13 -> 13821 | E15: ='Demographic Change'!F13 -> 12851 | F15: ='Demographic Change'!G13 -> 11872 | G15: ='Demographic Change'!H13 -> 10883
B16: ='Demographic Change'!C14 -> 116325 | C16: ='Demographic Change'!D14 -> 116321 | D16: ='Demographic Change'!E14 -> 116317 | E16: ='Demographic Change'!F14 -> 116312 | F16: ='Demographic Change'!G14 -> 116307 | G16: ='Demographic Change'!H14 -> 116301
A17: ='Demographic Change'!A15 -> % Change
A18: ='Demographic Change'!B16 -> 0-18 | C18: ='Demographic Change'!D16 -> 0.01121834529 | D18: ='Demographic Change'!E16 -> 0.0110938902 | E18: ='Demographic Change'!F16 -> 0.01718434853 | F18: ='Demographic Change'!G16 -> 0.01705266497 | G18: ='Demographic Change'!H16 -> 0.01692271699
A19: ='Demographic Change'!B17 -> 19-24 | C19: ='Demographic Change'!D17 -> 0.01528747092 | D19: ='Demographic Change'!E17 -> 0.01505728314 | E19: ='Demographic Change'!F17 -> 0.02321831667 | F19: ='Demographic Change'!G17 -> 0.02292782855 | G19: ='Demographic Change'!H17 -> 0.0226449973
A20: ='Demographic Change'!B18 -> 25-34 | C20: ='Demographic Change'!D18 -> 0.009640957447 | D20: ='Demographic Change'!E18 -> 0.009548896938 | E20: ='Demographic Change'!F18 -> 0.01484018265 | F20: ='Demographic Change'!G18 -> 0.0147838663 | G20: ='Demographic Change'!H18 -> 0.01472684086
A21: ='Demographic Change'!B19 -> 35-44 | C21: ='Demographic Change'!D19 -> -0.03245738108 | D21: ='Demographic Change'!E19 -> -0.03354620297 | E21: ='Demographic Change'!F19 -> -0.0542950402 | F21: ='Demographic Change'!G19 -> -0.05800151528 | G21: ='Demographic Change'!H19 -> -0.06219839142
A22: ='Demographic Change'!B20 -> 45-54 | C22: ='Demographic Change'!D20 -> -0.007755406413 | D22: ='Demographic Change'!E20 -> -0.007816022847 | E22: ='Demographic Change'!F20 -> -0.01234661415 | F22: ='Demographic Change'!G20 -> -0.01265434466 | G22: ='Demographic Change'!H20 -> -0.01297188131
A23: ='Demographic Change'!B21 -> 55-64 | C23: ='Demographic Change'!D21 -> 0.02074842534 | D23: ='Demographic Change'!E21 -> 0.02032667877 | E23: ='Demographic Change'!F21 -> 0.03116328709 | F23: ='Demographic Change'!G21 -> 0.03049748154 | G23: ='Demographic Change'!H21 -> 0.02986273853
A24: ='Demographic Change'!B22 -> 65-74 | C24: ='Demographic Change'!D22 -> 0.02635548146 | D24: ='Demographic Change'!E22 -> 0.02567870678 | E24: ='Demographic Change'!F22 -> 0.03921272906 | F24: ='Demographic Change'!G22 -> 0.03809592918 | G24: ='Demographic Change'!H22 -> 0.0370473927
A25: ='Demographic Change'!B23 -> 75-84 | C25: ='Demographic Change'!D23 -> 0.008897676718 | D25: ='Demographic Change'!E23 -> 0.008819206271 | E25: ='Demographic Change'!F23 -> 0.01367977983 | F25: ='Demographic Change'!G23 -> 0.01365487503 | G25: ='Demographic Change'!H23 -> 0.0136284859
A26: ='Demographic Change'!B24 -> 85+ | C26: ='Demographic Change'!D24 -> -0.04116592524 | D26: ='Demographic Change'!E24 -> -0.04293331487 | E26: ='Demographic Change'!F24 -> -0.07018305477 | F26: ='Demographic Change'!G24 -> -0.07618084196 | G26: ='Demographic Change'!H24 -> -0.08330525606
C28: ='Non-Demographic Change'!D8 -> 2014/15 | D28: ='Non-Demographic Change'!E8 -> 2015/16 | E28: ='Non-Demographic Change'!F8 -> 2016/17 | F28: ='Non-Demographic Change'!G8 -> 2017/18 | G28: ='Non-Demographic Change'!H8 -> 2018/19
A29: ='Non-Demographic Change'!B10 -> Demand increase / (decline) by service line
A30: ='Non-Demographic Change'!B11 -> 1 | B30: ='Non-Demographic Change'!C11 -> Paediatrics
B31: ='Non-Demographic Change'!C12 -> Outpatient | C31: ='Non-Demographic Change'!D12 -> 7.809802144 | D31: ='Non-Demographic Change'!E12 -> 8.587814499 | E31: ='Non-Demographic Change'!F12 -> 9.363456745 | F31: ='Non-Demographic Change'!G12 -> 7.798618324 | G31: ='Non-Demographic Change'!H12 -> 8.26197071
B32: ='Non-Demographic Change'!C13 -> Elective | C32: ='Non-Demographic Change'!D13 -> 8.983122424 | D32: ='Non-Demographic Change'!E13 -> 9.880056732 | E32: ='Non-Demographic Change'!F13 -> 10.77589063 | F32: ='Non-Demographic Change'!G13 -> 8.977929936 | G32: ='Non-Demographic Change'!H13 -> 9.514486401
B33: ='Non-Demographic Change'!C14 -> Non-elective | C33: ='Non-Demographic Change'!D14 -> 10.54754946 | D33: ='Non-Demographic Change'!E14 -> 11.60304638 | E33: ='Non-Demographic Change'!F14 -> 12.65913581 | F33: ='Non-Demographic Change'!G14 -> 10.55034542 | G33: ='Non-Demographic Change'!H14 -> 11.18450732
B34: ='Non-Demographic Change'!C15 -> A&E | C34: ='Non-Demographic Change'!D15 -> 10.93865622 | D34: ='Non-Demographic Change'!E15 -> 12.03379379 | E34: ='Non-Demographic Change'!F15 -> 13.12994711 | F34: ='Non-Demographic Change'!G15 -> 10.94344929 | G34: ='Non-Demographic Change'!H15 -> 11.60201255
B35: ='Non-Demographic Change'!C16 -> Community | C35: ='Non-Demographic Change'!D16 -> 11.72086974 | D35: ='Non-Demographic Change'!E16 -> 12.89528861 | E35: ='Non-Demographic Change'!F16 -> 14.0715697 | F35: ='Non-Demographic Change'!G16 -> 11.72965703 | G35: ='Non-Demographic Change'!H16 -> 12.43702301
B36: ='Non-Demographic Change'!C17 -> Change in number of cases | C36: ='Non-Demographic Change'!D17 -> 50 | D36: ='Non-Demographic Change'!E17 -> 55 | E36: ='Non-Demographic Change'!F17 -> 60 | F36: ='Non-Demographic Change'!G17 -> 50 | G36: ='Non-Demographic Change'!H17 -> 53
A39: ='Non-Demographic Change'!B20 -> 2 | B39: ='Non-Demographic Change'!C20 -> Obstetrics
B40: ='Non-Demographic Change'!C21 -> Outpatient | C40: ='Non-Demographic Change'!D21 -> 0.2 | D40: ='Non-Demographic Change'!E21 -> 0.15 | E40: ='Non-Demographic Change'!F21 -> 0.14 | F40: ='Non-Demographic Change'!G21 -> 0.12 | G40: ='Non-Demographic Change'!H21 -> 0.1
B41: ='Non-Demographic Change'!C22 -> Elective | C41: ='Non-Demographic Change'!D22 -> 0.2 | D41: ='Non-Demographic Change'!E22 -> 0.15 | E41: ='Non-Demographic Change'!F22 -> 0.14 | F41: ='Non-Demographic Change'!G22 -> 0.12 | G41: ='Non-Demographic Change'!H22 -> 0.1
B42: ='Non-Demographic Change'!C23 -> Non-elective | C42: ='Non-Demographic Change'!D23 -> 0.2 | D42: ='Non-Demographic Change'!E23 -> 0.15 | E42: ='Non-Demographic Change'!F23 -> 0.14 | F42: ='Non-Demographic Change'!G23 -> 0.12 | G42: ='Non-Demographic Change'!H23 -> 0.1
B43: ='Non-Demographic Change'!C24 -> A&E | C43: ='Non-Demographic Change'!D24 -> 0.2 | D43: ='Non-Demographic Change'!E24 -> 0.15 | E43: ='Non-Demographic Change'!F24 -> 0.14 | F43: ='Non-Demographic Change'!G24 -> 0.12 | G43: ='Non-Demographic Change'!H24 -> 0.1
B44: ='Non-Demographic Change'!C25 -> Community | C44: ='Non-Demographic Change'!D25 -> 0.2 | D44: ='Non-Demographic Change'!E25 -> 0.15 | E44: ='Non-Demographic Change'!F25 -> 0.14 | F44: ='Non-Demographic Change'!G25 -> 0.12 | G44: ='Non-Demographic Change'!H25 -> 0.1
B45: ='Non-Demographic Change'!C26 -> Percentage | C45: ='Non-Demographic Change'!D26 -> 0.2 | D45: ='Non-Demographic Change'!E26 -> 0.15 | E45: ='Non-Demographic Change'!F26 -> 0.14 | F45: ='Non-Demographic Change'!G26 -> 0.12 | G45: ='Non-Demographic Change'!H26 -> 0.1
A48: ='Non-Demographic Change'!B29 -> 3 | B48: ='Non-Demographic Change'!C29 -> Test Spec 1
B49: ='Non-Demographic Change'!C30 -> Outpatient | C49: ='Non-Demographic Change'!D30 -> 0.12 | D49: ='Non-Demographic Change'!E30 -> 0.11 | E49: ='Non-Demographic Change'!F30 -> 0.1 | F49: ='Non-Demographic Change'!G30 -> 0.08 | G49: ='Non-Demographic Change'!H30 -> 0.06
B50: ='Non-Demographic Change'!C31 -> Elective | C50: ='Non-Demographic Change'!D31 -> 0.12 | D50: ='Non-Demographic Change'!E31 -> 0.11 | E50: ='Non-Demographic Change'!F31 -> 0.1 | F50: ='Non-Demographic Change'!G31 -> 0.08 | G50: ='Non-Demographic Change'!H31 -> 0.06
B51: ='Non-Demographic Change'!C32 -> Non-elective | C51: ='Non-Demographic Change'!D32 -> 0.12 | D51: ='Non-Demographic Change'!E32 -> 0.11 | E51: ='Non-Demographic Change'!F32 -> 0.1 | F51: ='Non-Demographic Change'!G32 -> 0.08 | G51: ='Non-Demographic Change'!H32 -> 0.06
B52: ='Non-Demographic Change'!C33 -> A&E | C52: ='Non-Demographic Change'!D33 -> 0.12 | D52: ='Non-Demographic Change'!E33 -> 0.11 | E52: ='Non-Demographic Change'!F33 -> 0.1 | F52: ='Non-Demographic Change'!G33 -> 0.08 | G52: ='Non-Demographic Change'!H33 -> 0.06
B53: ='Non-Demographic Change'!C34 -> Community | C53: ='Non-Demographic Change'!D34 -> 0.12 | D53: ='Non-Demographic Change'!E34 -> 0.11 | E53: ='Non-Demographic Change'!F34 -> 0.1 | F53: ='Non-Demographic Change'!G34 -> 0.08 | G53: ='Non-Demographic Change'!H34 -> 0.06
B54: ='Non-Demographic Change'!C35 -> Percentage | C54: ='Non-Demographic Change'!D35 -> 0.12 | D54: ='Non-Demographic Change'!E35 -> 0.11 | E54: ='Non-Demographic Change'!F35 -> 0.1 | F54: ='Non-Demographic Change'!G35 -> 0.08 | G54: ='Non-Demographic Change'!H35 -> 0.06
A57: ='Non-Demographic Change'!B38 -> 4 | B57: ='Non-Demographic Change'!C38 -> Test Spec 2
B58: ='Non-Demographic Change'!C39 -> Outpatient | C58: ='Non-Demographic Change'!D39 -> 0 | D58: ='Non-Demographic Change'!E39 -> 0 | E58: ='Non-Demographic Change'!F39 -> 0 | F58: ='Non-Demographic Change'!G39 -> 0 | G58: ='Non-Demographic Change'!H39 -> 0
B59: ='Non-Demographic Change'!C40 -> Elective | C59: ='Non-Demographic Change'!D40 -> 0 | D59: ='Non-Demographic Change'!E40 -> 0 | E59: ='Non-Demographic Change'!F40 -> 0 | F59: ='Non-Demographic Change'!G40 -> 0 | G59: ='Non-Demographic Change'!H40 -> 0
B60: ='Non-Demographic Change'!C41 -> Non-elective | C60: ='Non-Demographic Change'!D41 -> 0 | D60: ='Non-Demographic Change'!E41 -> 0 | E60: ='Non-Demographic Change'!F41 -> 0 | F60: ='Non-Demographic Change'!G41 -> 0 | G60: ='Non-Demographic Change'!H41 -> 0
B61: ='Non-Demographic Change'!C42 -> A&E | C61: ='Non-Demographic Change'!D42 -> 0 | D61: ='Non-Demographic Change'!E42 -> 0 | E61: ='Non-Demographic Change'!F42 -> 0 | F61: ='Non-Demographic Change'!G42 -> 0 | G61: ='Non-Demographic Change'!H42 -> 0
B62: ='Non-Demographic Change'!C43 -> Community | C62: ='Non-Demographic Change'!D43 -> 0 | D62: ='Non-Demographic Change'!E43 -> 0 | E62: ='Non-Demographic Change'!F43 -> 0 | F62: ='Non-Demographic Change'!G43 -> 0 | G62: ='Non-Demographic Change'!H43 -> 0
B63: ='Non-Demographic Change'!C44 -> Number of cases | C63: ='Non-Demographic Change'!D44 -> 150 | D63: ='Non-Demographic Change'!E44 -> 160 | E63: ='Non-Demographic Change'!F44 -> 140 | F63: ='Non-Demographic Change'!G44 -> 135 | G63: ='Non-Demographic Change'!H44 -> 125
A66: ='Non-Demographic Change'!B47 -> 5 | B66: ='Non-Demographic Change'!C47 -> Test Spec 3
B67: ='Non-Demographic Change'!C48 -> Outpatient | C67: ='Non-Demographic Change'!D48 -> 0.12 | D67: ='Non-Demographic Change'!E48 -> 0.12 | E67: ='Non-Demographic Change'!F48 -> 0.12 | F67: ='Non-Demographic Change'!G48 -> 0.11 | G67: ='Non-Demographic Change'!H48 -> 0.1
B68: ='Non-Demographic Change'!C49 -> Elective | C68: ='Non-Demographic Change'!D49 -> 0.12 | D68: ='Non-Demographic Change'!E49 -> 0.12 | E68: ='Non-Demographic Change'!F49 -> 0.12 | F68: ='Non-Demographic Change'!G49 -> 0.11 | G68: ='Non-Demographic Change'!H49 -> 0.1
B69: ='Non-Demographic Change'!C50 -> Non-elective | C69: ='Non-Demographic Change'!D50 -> 0.12 | D69: ='Non-Demographic Change'!E50 -> 0.12 | E69: ='Non-Demographic Change'!F50 -> 0.12 | F69: ='Non-Demographic Change'!G50 -> 0.11 | G69: ='Non-Demographic Change'!H50 -> 0.1
B70: ='Non-Demographic Change'!C51 -> A&E | C70: ='Non-Demographic Change'!D51 -> 0.12 | D70: ='Non-Demographic Change'!E51 -> 0.12 | E70: ='Non-Demographic Change'!F51 -> 0.12 | F70: ='Non-Demographic Change'!G51 -> 0.11 | G70: ='Non-Demographic Change'!H51 -> 0.1
B71: ='Non-Demographic Change'!C52 -> Community | C71: ='Non-Demographic Change'!D52 -> 0.12 | D71: ='Non-Demographic Change'!E52 -> 0.12 | E71: ='Non-Demographic Change'!F52 -> 0.12 | F71: ='Non-Demographic Change'!G52 -> 0.11 | G71: ='Non-Demographic Change'!H52 -> 0.1
B72: ='Non-Demographic Change'!C53 -> Percentage | C72: ='Non-Demographic Change'!D53 -> 0.12 | D72: ='Non-Demographic Change'!E53 -> 0.12 | E72: ='Non-Demographic Change'!F53 -> 0.12 | F72: ='Non-Demographic Change'!G53 -> 0.11 | G72: ='Non-Demographic Change'!H53 -> 0.1
A75: ='Non-Demographic Change'!B56 -> 6 | B75: ='Non-Demographic Change'!C56 -> Choose Specialty
B76: ='Non-Demographic Change'!C57 -> Outpatient | C76: ='Non-Demographic Change'!D57 -> 0 | D76: ='Non-Demographic Change'!E57 -> 0 | E76: ='Non-Demographic Change'!F57 -> 0 | F76: ='Non-Demographic Change'!G57 -> 0 | G76: ='Non-Demographic Change'!H57 -> 0
B77: ='Non-Demographic Change'!C58 -> Elective | C77: ='Non-Demographic Change'!D58 -> 0 | D77: ='Non-Demographic Change'!E58 -> 0 | E77: ='Non-Demographic Change'!F58 -> 0 | F77: ='Non-Demographic Change'!G58 -> 0 | G77: ='Non-Demographic Change'!H58 -> 0
B78: ='Non-Demographic Change'!C59 -> Non-elective | C78: ='Non-Demographic Change'!D59 -> 0 | D78: ='Non-Demographic Change'!E59 -> 0 | E78: ='Non-Demographic Change'!F59 -> 0 | F78: ='Non-Demographic Change'!G59 -> 0 | G78: ='Non-Demographic Change'!H59 -> 0
B79: ='Non-Demographic Change'!C60 -> A&E | C79: ='Non-Demographic Change'!D60 -> 0 | D79: ='Non-Demographic Change'!E60 -> 0 | E79: ='Non-Demographic Change'!F60 -> 0 | F79: ='Non-Demographic Change'!G60 -> 0 | G79: ='Non-Demographic Change'!H60 -> 0
B80: ='Non-Demographic Change'!C61 -> Community | C80: ='Non-Demographic Change'!D61 -> 0 | D80: ='Non-Demographic Change'!E61 -> 0 | E80: ='Non-Demographic Change'!F61 -> 0 | F80: ='Non-Demographic Change'!G61 -> 0 | G80: ='Non-Demographic Change'!H61 -> 0
B81: ='Non-Demographic Change'!C62 -> Number of cases | C81: ='Non-Demographic Change'!D62 -> 0 | D81: ='Non-Demographic Change'!E62 -> 0 | E81: ='Non-Demographic Change'!F62 -> 0 | F81: ='Non-Demographic Change'!G62 -> 0 | G81: ='Non-Demographic Change'!H62 -> 0
A84: ='Non-Demographic Change'!B65 -> 7 | B84: ='Non-Demographic Change'!C65 -> 0
B85: ='Non-Demographic Change'!C66 -> Outpatient | C85: ='Non-Demographic Change'!D66 -> 0 | D85: ='Non-Demographic Change'!E66 -> 0 | E85: ='Non-Demographic Change'!F66 -> 0 | F85: ='Non-Demographic Change'!G66 -> 0 | G85: ='Non-Demographic Change'!H66 -> 0
B86: ='Non-Demographic Change'!C67 -> Elective | C86: ='Non-Demographic Change'!D67 -> 0 | D86: ='Non-Demographic Change'!E67 -> 0 | E86: ='Non-Demographic Change'!F67 -> 0 | F86: ='Non-Demographic Change'!G67 -> 0 | G86: ='Non-Demographic Change'!H67 -> 0
B87: ='Non-Demographic Change'!C68 -> Non-elective | C87: ='Non-Demographic Change'!D68 -> 0 | D87: ='Non-Demographic Change'!E68 -> 0 | E87: ='Non-Demographic Change'!F68 -> 0 | F87: ='Non-Demographic Change'!G68 -> 0 | G87: ='Non-Demographic Change'!H68 -> 0
B88: ='Non-Demographic Change'!C69 -> A&E | C88: ='Non-Demographic Change'!D69 -> 0 | D88: ='Non-Demographic Change'!E69 -> 0 | E88: ='Non-Demographic Change'!F69 -> 0 | F88: ='Non-Demographic Change'!G69 -> 0 | G88: ='Non-Demographic Change'!H69 -> 0
B89: ='Non-Demographic Change'!C70 -> Community | C89: ='Non-Demographic Change'!D70 -> 0 | D89: ='Non-Demographic Change'!E70 -> 0 | E89: ='Non-Demographic Change'!F70 -> 0 | F89: ='Non-Demographic Change'!G70 -> 0 | G89: ='Non-Demographic Change'!H70 -> 0
B90: ='Non-Demographic Change'!C71 -> Number of cases | C90: ='Non-Demographic Change'!D71 -> 0 | D90: ='Non-Demographic Change'!E71 -> 0 | E90: ='Non-Demographic Change'!F71 -> 0 | F90: ='Non-Demographic Change'!G71 -> 0 | G90: ='Non-Demographic Change'!H71 -> 0
A93: ='Non-Demographic Change'!B74 -> 8 | B93: ='Non-Demographic Change'!C74 -> 0
B94: ='Non-Demographic Change'!C75 -> Outpatient | C94: ='Non-Demographic Change'!D75 -> 0 | D94: ='Non-Demographic Change'!E75 -> 0 | E94: ='Non-Demographic Change'!F75 -> 0 | F94: ='Non-Demographic Change'!G75 -> 0 | G94: ='Non-Demographic Change'!H75 -> 0
B95: ='Non-Demographic Change'!C76 -> Elective | C95: ='Non-Demographic Change'!D76 -> 0 | D95: ='Non-Demographic Change'!E76 -> 0 | E95: ='Non-Demographic Change'!F76 -> 0 | F95: ='Non-Demographic Change'!G76 -> 0 | G95: ='Non-Demographic Change'!H76 -> 0
B96: ='Non-Demographic Change'!C77 -> Non-elective | C96: ='Non-Demographic Change'!D77 -> 0 | D96: ='Non-Demographic Change'!E77 -> 0 | E96: ='Non-Demographic Change'!F77 -> 0 | F96: ='Non-Demographic Change'!G77 -> 0 | G96: ='Non-Demographic Change'!H77 -> 0
B97: ='Non-Demographic Change'!C78 -> A&E | C97: ='Non-Demographic Change'!D78 -> 0 | D97: ='Non-Demographic Change'!E78 -> 0 | E97: ='Non-Demographic Change'!F78 -> 0 | F97: ='Non-Demographic Change'!G78 -> 0 | G97: ='Non-Demographic Change'!H78 -> 0
B98: ='Non-Demographic Change'!C79 -> Community | C98: ='Non-Demographic Change'!D79 -> 0 | D98: ='Non-Demographic Change'!E79 -> 0 | E98: ='Non-Demographic Change'!F79 -> 0 | F98: ='Non-Demographic Change'!G79 -> 0 | G98: ='Non-Demographic Change'!H79 -> 0
B99: ='Non-Demographic Change'!C80 -> Number of cases | C99: ='Non-Demographic Change'!D80 -> 0 | D99: ='Non-Demographic Change'!E80 -> 0 | E99: ='Non-Demographic Change'!F80 -> 0 | F99: ='Non-Demographic Change'!G80 -> 0 | G99: ='Non-Demographic Change'!H80 -> 0
A102: ='Non-Demographic Change'!B83 -> 9 | B102: ='Non-Demographic Change'!C83 -> 0
B103: ='Non-Demographic Change'!C84 -> Outpatient | C103: ='Non-Demographic Change'!D84 -> 0 | D103: ='Non-Demographic Change'!E84 -> 0 | E103: ='Non-Demographic Change'!F84 -> 0 | F103: ='Non-Demographic Change'!G84 -> 0 | G103: ='Non-Demographic Change'!H84 -> 0
B104: ='Non-Demographic Change'!C85 -> Elective | C104: ='Non-Demographic Change'!D85 -> 0 | D104: ='Non-Demographic Change'!E85 -> 0 | E104: ='Non-Demographic Change'!F85 -> 0 | F104: ='Non-Demographic Change'!G85 -> 0 | G104: ='Non-Demographic Change'!H85 -> 0
B105: ='Non-Demographic Change'!C86 -> Non-elective | C105: ='Non-Demographic Change'!D86 -> 0 | D105: ='Non-Demographic Change'!E86 -> 0 | E105: ='Non-Demographic Change'!F86 -> 0 | F105: ='Non-Demographic Change'!G86 -> 0 | G105: ='Non-Demographic Change'!H86 -> 0
B106: ='Non-Demographic Change'!C87 -> A&E | C106: ='Non-Demographic Change'!D87 -> 0 | D106: ='Non-Demographic Change'!E87 -> 0 | E106: ='Non-Demographic Change'!F87 -> 0 | F106: ='Non-Demographic Change'!G87 -> 0 | G106: ='Non-Demographic Change'!H87 -> 0
B107: ='Non-Demographic Change'!C88 -> Community | C107: ='Non-Demographic Change'!D88 -> 0 | D107: ='Non-Demographic Change'!E88 -> 0 | E107: ='Non-Demographic Change'!F88 -> 0 | F107: ='Non-Demographic Change'!G88 -> 0 | G107: ='Non-Demographic Change'!H88 -> 0
B108: ='Non-Demographic Change'!C89 -> Number of cases | C108: ='Non-Demographic Change'!D89 -> 0 | D108: ='Non-Demographic Change'!E89 -> 0 | E108: ='Non-Demographic Change'!F89 -> 0 | F108: ='Non-Demographic Change'!G89 -> 0 | G108: ='Non-Demographic Change'!H89 -> 0
A111: ='Non-Demographic Change'!B92 -> 10 | B111: ='Non-Demographic Change'!C92 -> Choose Specialty
B112: ='Non-Demographic Change'!C93 -> Outpatient | C112: ='Non-Demographic Change'!D93 -> 0 | D112: ='Non-Demographic Change'!E93 -> 0 | E112: ='Non-Demographic Change'!F93 -> 0 | F112: ='Non-Demographic Change'!G93 -> 0 | G112: ='Non-Demographic Change'!H93 -> 0
B113: ='Non-Demographic Change'!C94 -> Elective | C113: ='Non-Demographic Change'!D94 -> 0 | D113: ='Non-Demographic Change'!E94 -> 0 | E113: ='Non-Demographic Change'!F94 -> 0 | F113: ='Non-Demographic Change'!G94 -> 0 | G113: ='Non-Demographic Change'!H94 -> 0
B114: ='Non-Demographic Change'!C95 -> Non-elective | C114: ='Non-Demographic Change'!D95 -> 0 | D114: ='Non-Demographic Change'!E95 -> 0 | E114: ='Non-Demographic Change'!F95 -> 0 | F114: ='Non-Demographic Change'!G95 -> 0 | G114: ='Non-Demographic Change'!H95 -> 0
B115: ='Non-Demographic Change'!C96 -> A&E | C115: ='Non-Demographic Change'!D96 -> 0 | D115: ='Non-Demographic Change'!E96 -> 0 | E115: ='Non-Demographic Change'!F96 -> 0 | F115: ='Non-Demographic Change'!G96 -> 0 | G115: ='Non-Demographic Change'!H96 -> 0
B116: ='Non-Demographic Change'!C97 -> Community | C116: ='Non-Demographic Change'!D97 -> 0 | D116: ='Non-Demographic Change'!E97 -> 0 | E116: ='Non-Demographic Change'!F97 -> 0 | F116: ='Non-Demographic Change'!G97 -> 0 | G116: ='Non-Demographic Change'!H97 -> 0
B117: ='Non-Demographic Change'!C98 -> Number of cases | C117: ='Non-Demographic Change'!D98 -> 0 | D117: ='Non-Demographic Change'!E98 -> 0 | E117: ='Non-Demographic Change'!F98 -> 0 | F117: ='Non-Demographic Change'!G98 -> 0 | G117: ='Non-Demographic Change'!H98 -> 0
A119: ='Impact of trust strategy'!B9 -> Overall impact of strategic initiatives increase / (decline) | C119: ='Impact of trust strategy'!D8 -> 2014/15 | D119: ='Impact of trust strategy'!E8 -> 2015/16 | E119: ='Impact of trust strategy'!F8 -> 2016/17 | F119: ='Impact of trust strategy'!G8 -> 2017/18 | G119: ='Impact of trust strategy'!H8 -> 2018/19
C120: ='Impact of trust strategy'!D9 -> 0.005 | D120: ='Impact of trust strategy'!E9 -> 0.005 | E120: ='Impact of trust strategy'!F9 -> 0.005 | F120: ='Impact of trust strategy'!G9 -> 0.005 | G120: ='Impact of trust strategy'!H9 -> 0.005
A122: ='Impact of trust strategy'!B11 -> Demand increase / (decline) by service line
A123: ='Impact of trust strategy'!B12 -> 1 | B123: ='Impact of trust strategy'!C12 -> Test Spec 2
B124: ='Impact of trust strategy'!C13 -> Outpatient | C124: ='Impact of trust strategy'!D13 -> 0.1 | D124: ='Impact of trust strategy'!E13 -> 0.11 | E124: ='Impact of trust strategy'!F13 -> 0.12 | F124: ='Impact of trust strategy'!G13 -> 0.13 | G124: ='Impact of trust strategy'!H13 -> 0.14
B125: ='Impact of trust strategy'!C14 -> Elective | C125: ='Impact of trust strategy'!D14 -> 0.1 | D125: ='Impact of trust strategy'!E14 -> 0.11 | E125: ='Impact of trust strategy'!F14 -> 0.12 | F125: ='Impact of trust strategy'!G14 -> 0.13 | G125: ='Impact of trust strategy'!H14 -> 0.14
B126: ='Impact of trust strategy'!C15 -> Non-elective | C126: ='Impact of trust strategy'!D15 -> 0.1 | D126: ='Impact of trust strategy'!E15 -> 0.11 | E126: ='Impact of trust strategy'!F15 -> 0.12 | F126: ='Impact of trust strategy'!G15 -> 0.13 | G126: ='Impact of trust strategy'!H15 -> 0.14
B127: ='Impact of trust strategy'!C16 -> A&E | C127: ='Impact of trust strategy'!D16 -> 0.1 | D127: ='Impact of trust strategy'!E16 -> 0.11 | E127: ='Impact of trust strategy'!F16 -> 0.12 | F127: ='Impact of trust strategy'!G16 -> 0.13 | G127: ='Impact of trust strategy'!H16 -> 0.14
B128: ='Impact of trust strategy'!C17 -> Community | C128: ='Impact of trust strategy'!D17 -> 0.1 | D128: ='Impact of trust strategy'!E17 -> 0.11 | E128: ='Impact of trust strategy'!F17 -> 0.12 | F128: ='Impact of trust strategy'!G17 -> 0.13 | G128: ='Impact of trust strategy'!H17 -> 0.14
B129: ='Impact of trust strategy'!C18 -> Percentage | C129: ='Impact of trust strategy'!D18 -> 0.1 | D129: ='Impact of trust strategy'!E18 -> 0.11 | E129: ='Impact of trust strategy'!F18 -> 0.12 | F129: ='Impact of trust strategy'!G18 -> 0.13 | G129: ='Impact of trust strategy'!H18 -> 0.14
A132: ='Impact of trust strategy'!B21 -> 2 | B132: ='Impact of trust strategy'!C21 -> Test Spec 4
B133: ='Impact of trust strategy'!C22 -> Outpatient | C133: ='Impact of trust strategy'!D22 -> 33.74002161 | D133: ='Impact of trust strategy'!E22 -> 7.632654991 | E133: ='Impact of trust strategy'!F22 -> 9.478558492 | F133: ='Impact of trust strategy'!G22 -> 9.821309128 | G133: ='Impact of trust strategy'!H22 -> 10.33617667
B134: ='Impact of trust strategy'!C23 -> Elective | C134: ='Impact of trust strategy'!D23 -> 37.77814013 | D134: ='Impact of trust strategy'!E23 -> 9.581574738 | E134: ='Impact of trust strategy'!F23 -> 10.29361644 | F134: ='Impact of trust strategy'!G23 -> 10.66703638 | G134: ='Impact of trust strategy'!H23 -> 11.2275106
B135: ='Impact of trust strategy'!C24 -> Non-elective | C135: ='Impact of trust strategy'!D24 -> 39.6514591 | D135: ='Impact of trust strategy'!E24 -> 10.59183625 | E135: ='Impact of trust strategy'!F24 -> 11.38036038 | F135: ='Impact of trust strategy'!G24 -> 11.79467272 | G135: ='Impact of trust strategy'!H24 -> 12.41595583
B136: ='Impact of trust strategy'!C25 -> A&E | C136: ='Impact of trust strategy'!D25 -> 43.18444154 | D136: ='Impact of trust strategy'!E25 -> 10.84440163 | E136: ='Impact of trust strategy'!F25 -> 11.65204636 | F136: ='Impact of trust strategy'!G25 -> 12.0765818 | G136: ='Impact of trust strategy'!H25 -> 12.71306714
B137: ='Impact of trust strategy'!C26 -> Community | C137: ='Impact of trust strategy'!D26 -> 45.64593761 | D137: ='Impact of trust strategy'!E26 -> 11.34953239 | E137: ='Impact of trust strategy'!F26 -> 12.19541833 | F137: ='Impact of trust strategy'!G26 -> 12.64039997 | G137: ='Impact of trust strategy'!H26 -> 13.30728976
B138: ='Impact of trust strategy'!C27 -> Number of cases | C138: ='Impact of trust strategy'!D27 -> 200 | D138: ='Impact of trust strategy'!E27 -> 50 | E138: ='Impact of trust strategy'!F27 -> 55 | F138: ='Impact of trust strategy'!G27 -> 57 | G138: ='Impact of trust strategy'!H27 -> 60
A141: ='Impact of trust strategy'!B30 -> 3 | B141: ='Impact of trust strategy'!C30 -> Test Spec 3
B142: ='Impact of trust strategy'!C31 -> Outpatient | C142: ='Impact of trust strategy'!D31 -> 0 | D142: ='Impact of trust strategy'!E31 -> 0 | E142: ='Impact of trust strategy'!F31 -> 0 | F142: ='Impact of trust strategy'!G31 -> 0 | G142: ='Impact of trust strategy'!H31 -> 0
B143: ='Impact of trust strategy'!C32 -> Elective | C143: ='Impact of trust strategy'!D32 -> 0 | D143: ='Impact of trust strategy'!E32 -> 0 | E143: ='Impact of trust strategy'!F32 -> 0 | F143: ='Impact of trust strategy'!G32 -> 0 | G143: ='Impact of trust strategy'!H32 -> 0
B144: ='Impact of trust strategy'!C33 -> Non-elective | C144: ='Impact of trust strategy'!D33 -> 0 | D144: ='Impact of trust strategy'!E33 -> 0 | E144: ='Impact of trust strategy'!F33 -> 0 | F144: ='Impact of trust strategy'!G33 -> 0 | G144: ='Impact of trust strategy'!H33 -> 0
B145: ='Impact of trust strategy'!C34 -> A&E | C145: ='Impact of trust strategy'!D34 -> 0 | D145: ='Impact of trust strategy'!E34 -> 0 | E145: ='Impact of trust strategy'!F34 -> 0 | F145: ='Impact of trust strategy'!G34 -> 0 | G145: ='Impact of trust strategy'!H34 -> 0
B146: ='Impact of trust strategy'!C35 -> Community | C146: ='Impact of trust strategy'!D35 -> 0 | D146: ='Impact of trust strategy'!E35 -> 0 | E146: ='Impact of trust strategy'!F35 -> 0 | F146: ='Impact of trust strategy'!G35 -> 0 | G146: ='Impact of trust strategy'!H35 -> 0
B147: ='Impact of trust strategy'!C36 -> Number of cases | C147: ='Impact of trust strategy'!D36 -> 0 | D147: ='Impact of trust strategy'!E36 -> 0 | E147: ='Impact of trust strategy'!F36 -> 0 | F147: ='Impact of trust strategy'!G36 -> 0 | G147: ='Impact of trust strategy'!H36 -> 0
A150: ='Impact of trust strategy'!B39 -> 4 | B150: ='Impact of trust strategy'!C39 -> Choose Specialty
B151: ='Impact of trust strategy'!C40 -> Outpatient | C151: ='Impact of trust strategy'!D40 -> 0 | D151: ='Impact of trust strategy'!E40 -> 0 | E151: ='Impact of trust strategy'!F40 -> 0 | F151: ='Impact of trust strategy'!G40 -> 0 | G151: ='Impact of trust strategy'!H40 -> 0
B152: ='Impact of trust strategy'!C41 -> Elective | C152: ='Impact of trust strategy'!D41 -> 0 | D152: ='Impact of trust strategy'!E41 -> 0 | E152: ='Impact of trust strategy'!F41 -> 0 | F152: ='Impact of trust strategy'!G41 -> 0 | G152: ='Impact of trust strategy'!H41 -> 0
B153: ='Impact of trust strategy'!C42 -> Non-elective | C153: ='Impact of trust strategy'!D42 -> 0 | D153: ='Impact of trust strategy'!E42 -> 0 | E153: ='Impact of trust strategy'!F42 -> 0 | F153: ='Impact of trust strategy'!G42 -> 0 | G153: ='Impact of trust strategy'!H42 -> 0
B154: ='Impact of trust strategy'!C43 -> A&E | C154: ='Impact of trust strategy'!D43 -> 0 | D154: ='Impact of trust strategy'!E43 -> 0 | E154: ='Impact of trust strategy'!F43 -> 0 | F154: ='Impact of trust strategy'!G43 -> 0 | G154: ='Impact of trust strategy'!H43 -> 0
B155: ='Impact of trust strategy'!C44 -> Community | C155: ='Impact of trust strategy'!D44 -> 0 | D155: ='Impact of trust strategy'!E44 -> 0 | E155: ='Impact of trust strategy'!F44 -> 0 | F155: ='Impact of trust strategy'!G44 -> 0 | G155: ='Impact of trust strategy'!H44 -> 0
B156: ='Impact of trust strategy'!C45 -> Number of cases | C156: ='Impact of trust strategy'!D45 -> 0 | D156: ='Impact of trust strategy'!E45 -> 0 | E156: ='Impact of trust strategy'!F45 -> 0 | F156: ='Impact of trust strategy'!G45 -> 0 | G156: ='Impact of trust strategy'!H45 -> 0
A159: ='Impact of trust strategy'!B48 -> 5 | B159: ='Impact of trust strategy'!C48 -> Choose Specialty
B160: ='Impact of trust strategy'!C49 -> Outpatient | C160: ='Impact of trust strategy'!D49 -> 0 | D160: ='Impact of trust strategy'!E49 -> 0 | E160: ='Impact of trust strategy'!F49 -> 0 | F160: ='Impact of trust strategy'!G49 -> 0 | G160: ='Impact of trust strategy'!H49 -> 0
B161: ='Impact of trust strategy'!C50 -> Elective | C161: ='Impact of trust strategy'!D50 -> 0 | D161: ='Impact of trust strategy'!E50 -> 0 | E161: ='Impact of trust strategy'!F50 -> 0 | F161: ='Impact of trust strategy'!G50 -> 0 | G161: ='Impact of trust strategy'!H50 -> 0
B162: ='Impact of trust strategy'!C51 -> Non-elective | C162: ='Impact of trust strategy'!D51 -> 0 | D162: ='Impact of trust strategy'!E51 -> 0 | E162: ='Impact of trust strategy'!F51 -> 0 | F162: ='Impact of trust strategy'!G51 -> 0 | G162: ='Impact of trust strategy'!H51 -> 0
B163: ='Impact of trust strategy'!C52 -> A&E | C163: ='Impact of trust strategy'!D52 -> 0 | D163: ='Impact of trust strategy'!E52 -> 0 | E163: ='Impact of trust strategy'!F52 -> 0 | F163: ='Impact of trust strategy'!G52 -> 0 | G163: ='Impact of trust strategy'!H52 -> 0
B164: ='Impact of trust strategy'!C53 -> Community | C164: ='Impact of trust strategy'!D53 -> 0 | D164: ='Impact of trust strategy'!E53 -> 0 | E164: ='Impact of trust strategy'!F53 -> 0 | F164: ='Impact of trust strategy'!G53 -> 0 | G164: ='Impact of trust strategy'!H53 -> 0
B165: ='Impact of trust strategy'!C54 -> Number of cases | C165: ='Impact of trust strategy'!D54 -> 0 | D165: ='Impact of trust strategy'!E54 -> 0 | E165: ='Impact of trust strategy'!F54 -> 0 | F165: ='Impact of trust strategy'!G54 -> 0 | G165: ='Impact of trust strategy'!H54 -> 0
A168: ='Impact of trust strategy'!B57 -> 6 | B168: ='Impact of trust strategy'!C57 -> Choose Specialty
B169: ='Impact of trust strategy'!C58 -> Outpatient | C169: ='Impact of trust strategy'!D58 -> 0 | D169: ='Impact of trust strategy'!E58 -> 0 | E169: ='Impact of trust strategy'!F58 -> 0 | F169: ='Impact of trust strategy'!G58 -> 0 | G169: ='Impact of trust strategy'!H58 -> 0
B170: ='Impact of trust strategy'!C59 -> Elective | C170: ='Impact of trust strategy'!D59 -> 0 | D170: ='Impact of trust strategy'!E59 -> 0 | E170: ='Impact of trust strategy'!F59 -> 0 | F170: ='Impact of trust strategy'!G59 -> 0 | G170: ='Impact of trust strategy'!H59 -> 0
B171: ='Impact of trust strategy'!C60 -> Non-elective | C171: ='Impact of trust strategy'!D60 -> 0 | D171: ='Impact of trust strategy'!E60 -> 0 | E171: ='Impact of trust strategy'!F60 -> 0 | F171: ='Impact of trust strategy'!G60 -> 0 | G171: ='Impact of trust strategy'!H60 -> 0
B172: ='Impact of trust strategy'!C61 -> A&E | C172: ='Impact of trust strategy'!D61 -> 0 | D172: ='Impact of trust strategy'!E61 -> 0 | E172: ='Impact of trust strategy'!F61 -> 0 | F172: ='Impact of trust strategy'!G61 -> 0 | G172: ='Impact of trust strategy'!H61 -> 0
B173: ='Impact of trust strategy'!C62 -> Community | C173: ='Impact of trust strategy'!D62 -> 0 | D173: ='Impact of trust strategy'!E62 -> 0 | E173: ='Impact of trust strategy'!F62 -> 0 | F173: ='Impact of trust strategy'!G62 -> 0 | G173: ='Impact of trust strategy'!H62 -> 0
B174: ='Impact of trust strategy'!C63 -> Number of cases | C174: ='Impact of trust strategy'!D63 -> 0 | D174: ='Impact of trust strategy'!E63 -> 0 | E174: ='Impact of trust strategy'!F63 -> 0 | F174: ='Impact of trust strategy'!G63 -> 0 | G174: ='Impact of trust strategy'!H63 -> 0
A177: ='Impact of trust strategy'!B66 -> 7 | B177: ='Impact of trust strategy'!C66 -> Choose Specialty
B178: ='Impact of trust strategy'!C67 -> Outpatient | C178: ='Impact of trust strategy'!D67 -> 0 | D178: ='Impact of trust strategy'!E67 -> 0 | E178: ='Impact of trust strategy'!F67 -> 0 | F178: ='Impact of trust strategy'!G67 -> 0 | G178: ='Impact of trust strategy'!H67 -> 0
B179: ='Impact of trust strategy'!C68 -> Elective | C179: ='Impact of trust strategy'!D68 -> 0 | D179: ='Impact of trust strategy'!E68 -> 0 | E179: ='Impact of trust strategy'!F68 -> 0 | F179: ='Impact of trust strategy'!G68 -> 0 | G179: ='Impact of trust strategy'!H68 -> 0
B180: ='Impact of trust strategy'!C69 -> Non-elective | C180: ='Impact of trust strategy'!D69 -> 0 | D180: ='Impact of trust strategy'!E69 -> 0 | E180: ='Impact of trust strategy'!F69 -> 0 | F180: ='Impact of trust strategy'!G69 -> 0 | G180: ='Impact of trust strategy'!H69 -> 0
B181: ='Impact of trust strategy'!C70 -> A&E | C181: ='Impact of trust strategy'!D70 -> 0 | D181: ='Impact of trust strategy'!E70 -> 0 | E181: ='Impact of trust strategy'!F70 -> 0 | F181: ='Impact of trust strategy'!G70 -> 0 | G181: ='Impact of trust strategy'!H70 -> 0
B182: ='Impact of trust strategy'!C71 -> Community | C182: ='Impact of trust strategy'!D71 -> 0 | D182: ='Impact of trust strategy'!E71 -> 0 | E182: ='Impact of trust strategy'!F71 -> 0 | F182: ='Impact of trust strategy'!G71 -> 0 | G182: ='Impact of trust strategy'!H71 -> 0
B183: ='Impact of trust strategy'!C72 -> Number of cases | C183: ='Impact of trust strategy'!D72 -> 0 | D183: ='Impact of trust strategy'!E72 -> 0 | E183: ='Impact of trust strategy'!F72 -> 0 | F183: ='Impact of trust strategy'!G72 -> 0 | G183: ='Impact of trust strategy'!H72 -> 0
A186: ='Impact of trust strategy'!B75 -> 8 | B186: ='Impact of trust strategy'!C75 -> Choose Specialty
B187: ='Impact of trust strategy'!C76 -> Outpatient | C187: ='Impact of trust strategy'!D76 -> 0 | D187: ='Impact of trust strategy'!E76 -> 0 | E187: ='Impact of trust strategy'!F76 -> 0 | F187: ='Impact of trust strategy'!G76 -> 0 | G187: ='Impact of trust strategy'!H76 -> 0
B188: ='Impact of trust strategy'!C77 -> Elective | C188: ='Impact of trust strategy'!D77 -> 0 | D188: ='Impact of trust strategy'!E77 -> 0 | E188: ='Impact of trust strategy'!F77 -> 0 | F188: ='Impact of trust strategy'!G77 -> 0 | G188: ='Impact of trust strategy'!H77 -> 0
B189: ='Impact of trust strategy'!C78 -> Non-elective | C189: ='Impact of trust strategy'!D78 -> 0 | D189: ='Impact of trust strategy'!E78 -> 0 | E189: ='Impact of trust strategy'!F78 -> 0 | F189: ='Impact of trust strategy'!G78 -> 0 | G189: ='Impact of trust strategy'!H78 -> 0
B190: ='Impact of trust strategy'!C79 -> A&E | C190: ='Impact of trust strategy'!D79 -> 0 | D190: ='Impact of trust strategy'!E79 -> 0 | E190: ='Impact of trust strategy'!F79 -> 0 | F190: ='Impact of trust strategy'!G79 -> 0 | G190: ='Impact of trust strategy'!H79 -> 0
B191: ='Impact of trust strategy'!C80 -> Community | C191: ='Impact of trust strategy'!D80 -> 0 | D191: ='Impact of trust strategy'!E80 -> 0 | E191: ='Impact of trust strategy'!F80 -> 0 | F191: ='Impact of trust strategy'!G80 -> 0 | G191: ='Impact of trust strategy'!H80 -> 0
B192: ='Impact of trust strategy'!C81 -> Number of cases | C192: ='Impact of trust strategy'!D81 -> 0 | D192: ='Impact of trust strategy'!E81 -> 0 | E192: ='Impact of trust strategy'!F81 -> 0 | F192: ='Impact of trust strategy'!G81 -> 0 | G192: ='Impact of trust strategy'!H81 -> 0
A195: ='Impact of trust strategy'!B84 -> 9 | B195: ='Impact of trust strategy'!C84 -> Choose Specialty
B196: ='Impact of trust strategy'!C85 -> Outpatient | C196: ='Impact of trust strategy'!D85 -> 0 | D196: ='Impact of trust strategy'!E85 -> 0 | E196: ='Impact of trust strategy'!F85 -> 0 | F196: ='Impact of trust strategy'!G85 -> 0 | G196: ='Impact of trust strategy'!H85 -> 0
B197: ='Impact of trust strategy'!C86 -> Elective | C197: ='Impact of trust strategy'!D86 -> 0 | D197: ='Impact of trust strategy'!E86 -> 0 | E197: ='Impact of trust strategy'!F86 -> 0 | F197: ='Impact of trust strategy'!G86 -> 0 | G197: ='Impact of trust strategy'!H86 -> 0
B198: ='Impact of trust strategy'!C87 -> Non-elective | C198: ='Impact of trust strategy'!D87 -> 0 | D198: ='Impact of trust strategy'!E87 -> 0 | E198: ='Impact of trust strategy'!F87 -> 0 | F198: ='Impact of trust strategy'!G87 -> 0 | G198: ='Impact of trust strategy'!H87 -> 0
B199: ='Impact of trust strategy'!C88 -> A&E | C199: ='Impact of trust strategy'!D88 -> 0 | D199: ='Impact of trust strategy'!E88 -> 0 | E199: ='Impact of trust strategy'!F88 -> 0 | F199: ='Impact of trust strategy'!G88 -> 0 | G199: ='Impact of trust strategy'!H88 -> 0
B200: ='Impact of trust strategy'!C89 -> Community | C200: ='Impact of trust strategy'!D89 -> 0 | D200: ='Impact of trust strategy'!E89 -> 0 | E200: ='Impact of trust strategy'!F89 -> 0 | F200: ='Impact of trust strategy'!G89 -> 0 | G200: ='Impact of trust strategy'!H89 -> 0
B201: ='Impact of trust strategy'!C90 -> Number of cases | C201: ='Impact of trust strategy'!D90 -> 0 | D201: ='Impact of trust strategy'!E90 -> 0 | E201: ='Impact of trust strategy'!F90 -> 0 | F201: ='Impact of trust strategy'!G90 -> 0 | G201: ='Impact of trust strategy'!H90 -> 0
A204: ='Impact of trust strategy'!B93 -> 10 | B204: ='Impact of trust strategy'!C93 -> Choose Specialty
B205: ='Impact of trust strategy'!C94 -> Outpatient | C205: ='Impact of trust strategy'!D94 -> 0 | D205: ='Impact of trust strategy'!E94 -> 0 | E205: ='Impact of trust strategy'!F94 -> 0 | F205: ='Impact of trust strategy'!G94 -> 0 | G205: ='Impact of trust strategy'!H94 -> 0
B206: ='Impact of trust strategy'!C95 -> Elective | C206: ='Impact of trust strategy'!D95 -> 0 | D206: ='Impact of trust strategy'!E95 -> 0 | E206: ='Impact of trust strategy'!F95 -> 0 | F206: ='Impact of trust strategy'!G95 -> 0 | G206: ='Impact of trust strategy'!H95 -> 0
B207: ='Impact of trust strategy'!C96 -> Non-elective | C207: ='Impact of trust strategy'!D96 -> 0 | D207: ='Impact of trust strategy'!E96 -> 0 | E207: ='Impact of trust strategy'!F96 -> 0 | F207: ='Impact of trust strategy'!G96 -> 0 | G207: ='Impact of trust strategy'!H96 -> 0
B208: ='Impact of trust strategy'!C97 -> A&E | C208: ='Impact of trust strategy'!D97 -> 0 | D208: ='Impact of trust strategy'!E97 -> 0 | E208: ='Impact of trust strategy'!F97 -> 0 | F208: ='Impact of trust strategy'!G97 -> 0 | G208: ='Impact of trust strategy'!H97 -> 0
B209: ='Impact of trust strategy'!C98 -> Community | C209: ='Impact of trust strategy'!D98 -> 0 | D209: ='Impact of trust strategy'!E98 -> 0 | E209: ='Impact of trust strategy'!F98 -> 0 | F209: ='Impact of trust strategy'!G98 -> 0 | G209: ='Impact of trust strategy'!H98 -> 0
B210: ='Impact of trust strategy'!C99 -> Number of cases | C210: ='Impact of trust strategy'!D99 -> 0 | D210: ='Impact of trust strategy'!E99 -> 0 | E210: ='Impact of trust strategy'!F99 -> 0 | F210: ='Impact of trust strategy'!G99 -> 0 | G210: ='Impact of trust strategy'!H99 -> 0

Sheet Historical volumes
A1: Historical Volume by POD, Age
D3: =CONCATENATE(Year-1, "/", Year-2000) -> 2013/14
C4: Age Band | D4: 0-18 | E4: 19-24 | F4: 25-34 | G4: 35-44 | H4: 45-54 | I4: 55-64 | J4: 65-74 | K4: 75-84 | L4: 85+
B5: ='Instructions and Choices'!C27 -> Paediatrics
C6: Outpatient | D6: 120 | E6: 140 | F6: 160 | G6: 180 | H6: 200 | I6: 220 | J6: 240 | K6: 260 | L6: 280
C7: Elective | D7: 150 | E7: 170 | F7: 190 | G7: 210 | H7: 230 | I7: 250 | J7: 270 | K7: 290 | L7: 310
C8: Non-elective | D8: 190 | E8: 210 | F8: 230 | G8: 250 | H8: 270 | I8: 290 | J8: 310 | K8: 330 | L8: 350
C9: A&E | D9: 200 | E9: 220 | F9: 240 | G9: 260 | H9: 280 | I9: 300 | J9: 320 | K9: 340 | L9: 360
C10: Community | D10: 220 | E10: 240 | F10: 260 | G10: 280 | H10: 300 | I10: 320 | J10: 340 | K10: 360 | L10: 380
C11: Total | D11: =SUM(D6:D10) -> 880 | E11: =SUM(E6:E10) -> 980 | F11: 1080 | G11: 1180 | H11: 1280 | I11: 1380 | J11: 1480 | K11: 1580 | L11: 1680
B12: ='Instructions and Choices'!C28 -> Obstetrics
C13: Outpatient | D13: 170 | E13: 190 | F13: 210 | G13: 230 | H13: 250 | I13: 270 | J13: 290 | K13: 310 | L13: 330
C14: Elective | D14: 200 | E14: 220 | F14: 240 | G14: 260 | H14: 280 | I14: 300 | J14: 320 | K14: 340 | L14: 360
C15: Non-elective | D15: 240 | E15: 260 | F15: 280 | G15: 300 | H15: 320 | I15: 340 | J15: 360 | K15: 380 | L15: 400
C16: A&E | D16: 250 | E16: 270 | F16: 290 | G16: 310 | H16: 330 | I16: 350 | J16: 370 | K16: 390 | L16: 410
C17: Community | D17: 270 | E17: 290 | F17: 310 | G17: 330 | H17: 350 | I17: 370 | J17: 390 | K17: 410 | L17: 430
C18: Total | D18: =SUM(D13:D17) -> 1130 | E18: =SUM(E13:E17) -> 1230 | F18: =SUM(F13:F17) -> 1330 | G18: =SUM(G13:G17) -> 1430 | H18: =SUM(H13:H17) -> 1530 | I18: =SUM(I13:I17) -> 1630 | J18: =SUM(J13:J17) -> 1730 | K18: =SUM(K13:K17) -> 1830 | L18: =SUM(L13:L17) -> 1930
B19: ='Instructions and Choices'!C29 -> Test 3
C20: Outpatient | D20: 220 | E20: 240 | F20: 260 | G20: 280 | H20: 300 | I20: 320 | J20: 340 | K20: 360 | L20: 380
C21: Elective | D21: 250 | E21: 270 | F21: 290 | G21: 310 | H21: 330 | I21: 350 | J21: 370 | K21: 390 | L21: 410
C22: Non-elective | D22: 290 | E22: 310 | F22: 330 | G22: 350 | H22: 370 | I22: 390 | J22: 410 | K22: 430 | L22: 450
C23: A&E | D23: 300 | E23: 320 | F23: 340 | G23: 360 | H23: 380 | I23: 400 | J23: 420 | K23: 440 | L23: 460
C24: Community | D24: 320 | E24: 340 | F24: 360 | G24: 380 | H24: 400 | I24: 420 | J24: 440 | K24: 460 | L24: 480
C25: Total | D25: =SUM(D20:D24) -> 1380 | E25: =SUM(E20:E24) -> 1480 | F25: =SUM(F20:F24) -> 1580 | G25: =SUM(G20:G24) -> 1680 | H25: =SUM(H20:H24) -> 1780 | I25: =SUM(I20:I24) -> 1880 | J25: =SUM(J20:J24) -> 1980 | K25: =SUM(K20:K24) -> 2080 | L25: =SUM(L20:L24) -> 2180
B26: ='Instructions and Choices'!C30 -> Test Spec 4
C27: Outpatient | D27: 270 | E27: 290 | F27: 310 | G27: 330 | H27: 350 | I27: 370 | J27: 390 | K27: 410 | L27: 430
C28: Elective | D28: 300 | E28: 320 | F28: 340 | G28: 360 | H28: 380 | I28: 400 | J28: 420 | K28: 440 | L28: 460
C29: Non-elective | D29: 340 | E29: 360 | F29: 380 | G29: 400 | H29: 420 | I29: 440 | J29: 460 | K29: 480 | L29: 500
C30: A&E | D30: 350 | E30: 370 | F30: 390 | G30: 410 | H30: 430 | I30: 450 | J30: 470 | K30: 490 | L30: 510
C31: Community | D31: 370 | E31: 390 | F31: 410 | G31: 430 | H31: 450 | I31: 470 | J31: 490 | K31: 510 | L31: 530
C32: Total | D32: =SUM(D27:D31) -> 1630 | E32: =SUM(E27:E31) -> 1730 | F32: =SUM(F27:F31) -> 1830 | G32: =SUM(G27:G31) -> 1930 | H32: =SUM(H27:H31) -> 2030 | I32: =SUM(I27:I31) -> 2130 | J32: =SUM(J27:J31) -> 2230 | K32: =SUM(K27:K31) -> 2330 | L32: =SUM(L27:L31) -> 2430
B33: ='Instructions and Choices'!C31 -> Test Spec 5
C34: Outpatient | D34: 320 | E34: 340 | F34: 360 | G34: 380 | H34: 400 | I34: 420 | J34: 440 | K34: 460 | L34: 480
C35: Elective | D35: 350 | E35: 370 | F35: 390 | G35: 410 | H35: 430 | I35: 450 | J35: 470 | K35: 490 | L35: 510
C36: Non-elective | D36: 390 | E36: 410 | F36: 430 | G36: 450 | H36: 470 | I36: 490 | J36: 510 | K36: 530 | L36: 550
C37: A&E | D37: 400 | E37: 420 | F37: 440 | G37: 460 | H37: 480 | I37: 500 | J37: 520 | K37: 540 | L37: 560
C38: Community | D38: 420 | E38: 440 | F38: 460 | G38: 480 | H38: 500 | I38: 520 | J38: 540 | K38: 560 | L38: 580
C39: Total | D39: =SUM(D34:D38) -> 1880 | E39: =SUM(E34:E38) -> 1980 | F39: =SUM(F34:F38) -> 2080 | G39: =SUM(G34:G38) -> 2180 | H39: =SUM(H34:H38) -> 2280 | I39: =SUM(I34:I38) -> 2380 | J39: =SUM(J34:J38) -> 2480 | K39: =SUM(K34:K38) -> 2580 | L39: =SUM(L34:L38) -> 2680
B40: ='Instructions and Choices'!C32 -> Test Spec 6
C41: Outpatient | D41: 320 | E41: 340 | F41: 360 | G41: 380 | H41: 400 | I41: 420 | J41: 440 | K41: 460 | L41: 480
C42: Elective | D42: 350 | E42: 370 | F42: 390 | G42: 410 | H42: 430 | I42: 450 | J42: 470 | K42: 490 | L42: 510
C43: Non-elective | D43: 390 | E43: 410 | F43: 430 | G43: 450 | H43: 470 | I43: 490 | J43: 510 | K43: 530 | L43: 550
C44: A&E | D44: 400 | E44: 420 | F44: 440 | G44: 460 | H44: 480 | I44: 500 | J44: 520 | K44: 540 | L44: 560
C45: Community | D45: 420 | E45: 440 | F45: 460 | G45: 480 | H45: 500 | I45: 520 | J45: 540 | K45: 560 | L45: 580
C46: Total | D46: =SUM(D41:D45) -> 1880 | E46: =SUM(E41:E45) -> 1980 | F46: 2080 | G46: 2180 | H46: 2280 | I46: 2380 | J46: 2480 | K46: 2580 | L46: 2680
B48: ='Instructions and Choices'!C33 -> Test Spec 7
C49: Outpatient | D49: 320 | E49: 340 | F49: 360 | G49: 380 | H49: 400 | I49: 420 | J49: 440 | K49: 460 | L49: 480
C50: Elective | D50: 350 | E50: 370 | F50: 390 | G50: 410 | H50: 430 | I50: 450 | J50: 470 | K50: 490 | L50: 510
C51: Non-elective | D51: 390 | E51: 410 | F51: 430 | G51: 450 | H51: 470 | I51: 490 | J51: 510 | K51: 530 | L51: 550
C52: A&E | D52: 400 | E52: 420 | F52: 440 | G52: 460 | H52: 480 | I52: 500 | J52: 520 | K52: 540 | L52: 560
C53: Community | D53: 420 | E53: 440 | F53: 460 | G53: 480 | H53: 500 | I53: 520 | J53: 540 | K53: 560 | L53: 580
C54: Total | D54: =SUM(D49:D53) -> 1880 | E54: =SUM(E49:E53) -> 1980 | F54: 2080 | G54: 2180 | H54: 2280 | I54: 2380 | J54: 2480 | K54: 2580 | L54: 2680
B56: ='Instructions and Choices'!C34 -> Test Spec 8
C57: Outpatient | D57: 320 | E57: 340 | F57: 360 | G57: 380 | H57: 400 | I57: 420 | J57: 440 | K57: 460 | L57: 480
C58: Elective | D58: 350 | E58: 370 | F58: 390 | G58: 410 | H58: 430 | I58: 450 | J58: 470 | K58: 490 | L58: 510
C59: Non-elective | D59: 390 | E59: 410 | F59: 430 | G59: 450 | H59: 470 | I59: 490 | J59: 510 | K59: 530 | L59: 550
C60: A&E | D60: 400 | E60: 420 | F60: 440 | G60: 460 | H60: 480 | I60: 500 | J60: 520 | K60: 540 | L60: 560
C61: Community | D61: 420 | E61: 440 | F61: 460 | G61: 480 | H61: 500 | I61: 520 | J61: 540 | K61: 560 | L61: 580
C62: Total | D62: =SUM(D57:D61) -> 1880 | E62: =SUM(E57:E61) -> 1980 | F62: 2080 | G62: 2180 | H62: 2280 | I62: 2380 | J62: 2480 | K62: 2580 | L62: 2680
B64: ='Instructions and Choices'!C35 -> Test Spec 9
C65: Outpatient | D65: 320 | E65: 340 | F65: 360 | G65: 380 | H65: 400 | I65: 420 | J65: 440 | K65: 460 | L65: 480
C66: Elective | D66: 350 | E66: 370 | F66: 390 | G66: 410 | H66: 430 | I66: 450 | J66: 470 | K66: 490 | L66: 510
C67: Non-elective | D67: 390 | E67: 410 | F67: 430 | G67: 450 | H67: 470 | I67: 490 | J67: 510 | K67: 530 | L67: 550
C68: A&E | D68: 400 | E68: 420 | F68: 440 | G68: 460 | H68: 480 | I68: 500 | J68: 520 | K68: 540 | L68: 560
C69: Community | D69: 420 | E69: 440 | F69: 460 | G69: 480 | H69: 500 | I69: 520 | J69: 540 | K69: 560 | L69: 580
C70: Total | D70: =SUM(D65:D69) -> 1880 | E70: =SUM(E65:E69) -> 1980 | F70: 2080 | G70: 2180 | H70: 2280 | I70: 2380 | J70: 2480 | K70: 2580 | L70: 2680
B72: ='Instructions and Choices'!C36 -> Everything else
C73: Outpatient | D73: 320 | E73: 340 | F73: 360 | G73: 380 | H73: 400 | I73: 420 | J73: 440 | K73: 460 | L73: 480
C74: Elective | D74: 350 | E74: 370 | F74: 390 | G74: 410 | H74: 430 | I74: 450 | J74: 470 | K74: 490 | L74: 510
C75: Non-elective | D75: 390 | E75: 410 | F75: 430 | G75: 450 | H75: 470 | I75: 490 | J75: 510 | K75: 530 | L75: 550
C76: A&E | D76: 400 | E76: 420 | F76: 440 | G76: 460 | H76: 480 | I76: 500 | J76: 520 | K76: 540 | L76: 560
C77: Community | D77: 420 | E77: 440 | F77: 460 | G77: 480 | H77: 500 | I77: 520 | J77: 540 | K77: 560 | L77: 580
C78: Total | D78: =SUM(D73:D77) -> 1880 | E78: =SUM(E73:E77) -> 1980 | F78: 2080 | G78: 2180 | H78: 2280 | I78: 2380 | J78: 2480 | K78: 2580 | L78: 2680

Sheet Demographic Change
A1: Demographic change
C2: Actual | D2: Forecast
C3: ='Historical volumes'!D3 -> 2013/14 | D3: =CONCATENATE(Year, "/", Year+1-2000) -> 2014/15 | E3: =CONCATENATE(Year+1, "/", Year+2-2000) -> 2015/16 | F3: =CONCATENATE(Year+2, "/", Year+3-2000) -> 2016/17 | G3: =CONCATENATE(Year+3, "/", Year+4-2000) -> 2017/18 | H3: =CONCATENATE(Year+4, "/", Year+5-2000) -> 2018/19
A4: Expected population aged:
B5: 0-18 | C5: 12123 | D5: 12259 | E5: 12395 | F5: 12608 | G5: 12823 | H5: 13040
B6: 19-24 | C6: 12036 | D6: 12220 | E6: 12404 | F6: 12692 | G6: 12983 | H6: 13277
B7: 25-34 | C7: 12032 | D7: 12148 | E7: 12264 | F7: 12446 | G7: 12630 | H7: 12816
B8: 35-44 | C8: 13433 | D8: 12997 | E8: 12561 | F8: 11879 | G8: 11190 | H8: 10494
B9: 45-54 | C9: 13410 | D9: 13306 | E9: 13202 | F9: 13039 | G9: 12874 | H9: 12707
B10: 55-64 | C10: 13495 | D10: 13775 | E10: 14055 | F10: 14493 | G10: 14935 | H10: 15381
B11: 65-74 | C11: 12597 | D11: 12929 | E11: 13261 | F11: 13781 | G11: 14306 | H11: 14836
B12: 75-84 | C12: 12138 | D12: 12246 | E12: 12354 | F12: 12523 | G12: 12694 | H12: 12867
B13: 85+ | C13: 15061 | D13: 14441 | E13: 13821 | F13: 12851 | G13: 11872 | H13: 10883
C14: =SUM(C5:C13) -> 116325 | D14: =SUM(D5:D13) -> 116321 | E14: 116317 | F14: 116312 | G14: 116307 | H14: 116301
A15: % Change
B16: 0-18 | D16: =D5/C5-1 -> 0.01121834529 | E16: =E5/D5-1 -> 0.0110938902 | F16: 0.01718434853 | G16: 0.01705266497 | H16: 0.01692271699
B17: 19-24 | D17: =D6/C6-1 -> 0.01528747092 | E17: 0.01505728314 | F17: 0.02321831667 | G17: 0.02292782855 | H17: 0.0226449973
B18: 25-34 | D18: =D7/C7-1 -> 0.009640957447 | E18: 0.009548896938 | F18: 0.01484018265 | G18: 0.0147838663 | H18: 0.01472684086
B19: 35-44 | D19: =D8/C8-1 -> -0.03245738108 | E19: -0.03354620297 | F19: -0.0542950402 | G19: -0.05800151528 | H19: -0.06219839142
B20: 45-54 | D20: =D9/C9-1 -> -0.007755406413 | E20: -0.007816022847 | F20: -0.01234661415 | G20: -0.01265434466 | H20: -0.01297188131
B21: 55-64 | D21: =D10/C10-1 -> 0.02074842534 | E21: 0.02032667877 | F21: 0.03116328709 | G21: 0.03049748154 | H21: 0.02986273853
B22: 65-74 | D22: =D11/C11-1 -> 0.02635548146 | E22: 0.02567870678 | F22: 0.03921272906 | G22: 0.03809592918 | H22: 0.0370473927
B23: 75-84 | D23: =D12/C12-1 -> 0.008897676718 | E23: 0.008819206271 | F23: 0.01367977983 | G23: 0.01365487503 | H23: 0.0136284859
B24: 85+ | D24: =D13/C13-1 -> -0.04116592524 | E24: -0.04293331487 | F24: -0.07018305477 | G24: -0.07618084196 | H24: -0.08330525606

Sheet Non-Demographic Change
A1: Non-demographic change (by specialty & POD)
A2: If you believe that there will be non-demographic changes in activity which will vary by specialty, these should be included in this tab
A3: You can choose to use the absolute change in number of cases expected for each specialty, or the % change year-on-year
A4: Percentage
A5: Change in number of cases
AA7: Impact | AB7: Baseline with demographic growth added | AI7: Baseline with demographic and non-demographic growth added
D8: ='Demographic Change'!D3 -> 2014/15 | E8: ='Demographic Change'!E3 -> 2015/16 | F8: ='Demographic Change'!F3 -> 2016/17 | G8: ='Demographic Change'!G3 -> 2017/18 | H8: ='Demographic Change'!H3 -> 2018/19 | AB8: =D8 -> 2014/15 | AC8: =E8 -> 2015/16 | AD8: 2016/17 | AE8: 2017/18 | AF8: 2018/19 | AI8: =AB8 -> 2014/15 | AJ8: =AC8 -> 2015/16 | AK8: 2016/17 | AL8: 2017/18 | AM8: 2018/19
B10: Demand increase / (decline) by service line
B11: 1 | C11: Paediatrics
C12: Outpatient | D12: =IFERROR(IF($C17="Percentage",D17,D17*AB12/SUM(AB12:AB16)),0) -> 7.809802144 | E12: =IFERROR(IF($C17="Percentage",E17,E17*AC12/SUM(AC12:AC16)),0) -> 8.587814499 | F12: 9.363456745 | G12: 7.798618324 | H12: 8.26197071 | AA12: =IFERROR(CONCATENATE(INDEX('Summary Calculations'!$BC$6:$BC$15,MATCH($C$11,'Summary Calculations'!$BB$6:$BB$15,0)),INDEX('Summary Calculations'!$BE$6:$BE$15,MATCH(C12,'Summary Calculations'!$BD$6:$BD$15,0))),"NA") -> AA | AB12: =SUMIFS('Summary Calculations'!J$6:J$455,'Summary Calculations'!$E$6:$E$455,'Non-Demographic Change'!$C11,'Summary Calculations'!$F$6:$F$455,'Non-Demographic Change'!$C12) -> 1799.312497 | AC12: =SUMIFS('Summary Calculations'!K$6:K$455,'Summary Calculations'!$E$6:$E$455,'Non-Demographic Change'!$C11,'Summary Calculations'!$F$6:$F$455,'Non-Demographic Change'!$C12) -> 1798.624993 | AD12: =SUMIFS('Summary Calculations'!L$6:L$455,'Summary Calculations'!$E$6:$E$455,'Non-Demographic Change'!$C11,'Summary Calculations'!$F$6:$F$455,'Non-Demographic Change'!$C12) -> 1797.568084 | AE12: =SUMIFS('Summary Calculations'!M$6:M$455,'Summary Calculations'!$E$6:$E$455,'Non-Demographic Change'!$C11,'Summary Calculations'!$F$6:$F$455,'Non-Demographic Change'!$C12) -> 1796.504826 | AF12: =SUMIFS('Summary Calculations'!N$6:N$455,'Summary Calculations'!$E$6:$E$455,'Non-Demographic Change'!$C11,'Summary Calculations'!$F$6:$F$455,'Non-Demographic Change'!$C12) -> 1795.416629 | AI12: =IF($C17="Percentage",AB12*(1+D12),AB12+D12) -> 1807.122299 | AJ12: =IF($C17="Percentage",AC12*(1+E12),AC12+E12) -> 1807.212808 | AK12: =IF($C17="Percentage",AD12*(1+F12),AD12+F12) -> 1806.93154 | AL12: =IF($C17="Percentage",AE12*(1+G12),AE12+G12) -> 1804.303444 | AM12: =IF($C17="Percentage",AF12*(1+H12),AF12+H12) -> 1803.6786
C13: Elective | D13: =IFERROR(IF($C17="Percentage",D17,D17*AB13/SUM(AB12:AB16)),0) -> 8.983122424 | E13: =IFERROR(IF($C17="Percentage",E17,E17*AC13/SUM(AC12:AC16)),0) -> 9.880056732 | F13: 10.77589063 | G13: 8.977929936 | H13: 9.514486401 | AA13: =IFERROR(CONCATENATE(INDEX('Summary Calculations'!$BC$6:$BC$15,MATCH($C$11,'Summary Calculations'!$BB$6:$BB$15,0)),INDEX('Summary Calculations'!$BE$6:$BE$15,MATCH(C13,'Summary Calculations'!$BD$6:$BD$15,0))),"NA") -> AB | AB13: =SUMIFS('Summary Calculations'!J$6:J$455,'Summary Calculations'!$E$6:$E$455,'Non-Demographic Change'!$C11,'Summary Calculations'!$F$6:$F$455,'Non-Demographic Change'!$C13) -> 2069.635586 | AC13: =SUMIFS('Summary Calculations'!K$6:K$455,'Summary Calculations'!$E$6:$E$455,'Non-Demographic Change'!$C11,'Summary Calculations'!$F$6:$F$455,'Non-Demographic Change'!$C13) -> 2069.271172 | AD13: =SUMIFS('Summary Calculations'!L$6:L$455,'Summary Calculations'!$E$6:$E$455,'Non-Demographic Change'!$C11,'Summary Calculations'!$F$6:$F$455,'Non-Demographic Change'!$C13) -> 2068.722866 | AE13: =SUMIFS('Summary Calculations'!M$6:M$455,'Summary Calculations'!$E$6:$E$455,'Non-Demographic Change'!$C11,'Summary Calculations'!$F$6:$F$455,'Non-Demographic Change'!$C13) -> 2068.173334 | AF13: =SUMIFS('Summary Calculations'!N$6:N$455,'Summary Calculations'!$E$6:$E$455,'Non-Demographic Change'!$C11,'Summary Calculations'!$F$6:$F$455,'Non-Demographic Change'!$C13) -> 2067.601992 | AI13: =IF($C17="Percentage",AB13*(1+D13),AB13+D13) -> 2078.618708 | AJ13: =IF($C17="Percentage",AC13*(1+E13),AC13+E13) -> 2079.151229 | AK13: =IF($C17="Percentage",AD13*(1+F13),AD13+F13) -> 2079.498756 | AL13: =IF($C17="Percentage",AE13*(1+G13),AE13+G13) -> 2077.151264 | AM13: =IF($C17="Percentage",AF13*(1+H13),AF13+H13) -> 2077.116479
C14: Non-elective | D14: =IFERROR(IF($C17="Percentage",D17,D17*AB14/SUM(AB12:AB16)),0) -> 10.54754946 | E14: =IFERROR(IF($C17="Percentage",E17,E17*AC14/SUM(AC12:AC16)),0) -> 11.60304638 | F14: 12.65913581 | G14: 10.55034542 | H14: 11.18450732 | AA14: =IFERROR(CONCATENATE(INDEX('Summary Calculations'!$BC$6:$BC$15,MATCH($C$11,'Summary Calculations'!$BB$6:$BB$15,0)),INDEX('Summary Calculations'!$BE$6:$BE$15,MATCH(C14,'Summary Calculations'!$BD$6:$BD$15,0))),"NA") -> AC | AB14: =SUMIFS('Summary Calculations'!J$6:J$455,'Summary Calculations'!$E$6:$E$455,'Non-Demographic Change'!$C11,'Summary Calculations'!$F$6:$F$455,'Non-Demographic Change'!$C14) -> 2430.066372 | AC14: =SUMIFS('Summary Calculations'!K$6:K$455,'Summary Calculations'!$E$6:$E$455,'Non-Demographic Change'!$C11,'Summary Calculations'!$F$6:$F$455,'Non-Demographic Change'!$C14) -> 2430.132744 | AD14: =SUMIFS('Summary Calculations'!L$6:L$455,'Summary Calculations'!$E$6:$E$455,'Non-Demographic Change'!$C11,'Summary Calculations'!$F$6:$F$455,'Non-Demographic Change'!$C14) -> 2430.262576 | AE14: =SUMIFS('Summary Calculations'!M$6:M$455,'Summary Calculations'!$E$6:$E$455,'Non-Demographic Change'!$C11,'Summary Calculations'!$F$6:$F$455,'Non-Demographic Change'!$C14) -> 2430.398011 | AF14: =SUMIFS('Summary Calculations'!N$6:N$455,'Summary Calculations'!$E$6:$E$455,'Non-Demographic Change'!$C11,'Summary Calculations'!$F$6:$F$455,'Non-Demographic Change'!$C14) -> 2430.51581 | AI14: =IF($C17="Percentage",AB14*(1+D14),AB14+D14) -> 2440.613921 | AJ14: =IF($C17="Percentage",AC14*(1+E14),AC14+E14) -> 2441.73579 | AK14: =IF($C17="Percentage",AD14*(1+F14),AD14+F14) -> 2442.921711 | AL14: =IF($C17="Percentage",AE14*(1+G14),AE14+G14) -> 2440.948356 | AM14: =IF($C17="Percentage",AF14*(1+H14),AF14+H14) -> 2441.700318
C15: A&E | D15: =IFERROR(IF($C17="Percentage",D17,D17*AB15/SUM(AB12:AB16)),0) -> 10.93865622 | E15: =IFERROR(IF($C17="Percentage",E17,E17*AC15/SUM(AC12:AC16)),0) -> 12.03379379 | F15: 13.12994711 | G15: 10.94344929 | H15: 11.60201255 | AA15: =IFERROR(CONCATENATE(INDEX('Summary Calculations'!$BC$6:$BC$15,MATCH($C$11,'Summary Calculations'!$BB$6:$BB$15,0)),INDEX('Summary Calculations'!$BE$6:$BE$15,MATCH(C15,'Summary Calculations'!$BD$6:$BD$15,0))),"NA") -> AD | AB15: =SUMIFS('Summary Calculations'!J$6:J$455,'Summary Calculations'!$E$6:$E$455,'Non-Demographic Change'!$C11,'Summary Calculations'!$F$6:$F$455,'Non-Demographic Change'!$C15) -> 2520.174068 | AC15: =SUMIFS('Summary Calculations'!K$6:K$455,'Summary Calculations'!$E$6:$E$455,'Non-Demographic Change'!$C11,'Summary Calculations'!$F$6:$F$455,'Non-Demographic Change'!$C15) -> 2520.348136 | AD15: =SUMIFS('Summary Calculations'!L$6:L$455,'Summary Calculations'!$E$6:$E$455,'Non-Demographic Change'!$C11,'Summary Calculations'!$F$6:$F$455,'Non-Demographic Change'!$C15) -> 2520.647503 | AE15: =SUMIFS('Summary Calculations'!M$6:M$455,'Summary Calculations'!$E$6:$E$455,'Non-Demographic Change'!$C11,'Summary Calculations'!$F$6:$F$455,'Non-Demographic Change'!$C15) -> 2520.95418 | AF15: =SUMIFS('Summary Calculations'!N$6:N$455,'Summary Calculations'!$E$6:$E$455,'Non-Demographic Change'!$C11,'Summary Calculations'!$F$6:$F$455,'Non-Demographic Change'!$C15) -> 2521.244265 | AI15: =IF($C17="Percentage",AB15*(1+D15),AB15+D15) -> 2531.112724 | AJ15: =IF($C17="Percentage",AC15*(1+E15),AC15+E15) -> 2532.38193 | AK15: =IF($C17="Percentage",AD15*(1+F15),AD15+F15) -> 2533.77745 | AL15: =IF($C17="Percentage",AE15*(1+G15),AE15+G15) -> 2531.897629 | AM15: =IF($C17="Percentage",AF15*(1+H15),AF15+H15) -> 2532.846277
C16: Community | D16: =IFERROR(IF($C17="Percentage",D17,D17*AB16/SUM(AB12:AB16)),0) -> 11.72086974 | E16: =IFERROR(IF($C17="Percentage",E17,E17*AC16/SUM(AC12:AC16)),0) -> 12.89528861 | F16: 14.0715697 | G16: 11.72965703 | H16: 12.43702301 | AA16: =IFERROR(CONCATENATE(INDEX('Summary Calculations'!$BC$6:$BC$15,MATCH($C$11,'Summary Calculations'!$BB$6:$BB$15,0)),INDEX('Summary Calculations'!$BE$6:$BE$15,MATCH(C16,'Summary Calculations'!$BD$6:$BD$15,0))),"NA") -> AE | AB16: =SUMIFS('Summary Calculations'!J$6:J$455,'Summary Calculations'!$E$6:$E$455,'Non-Demographic Change'!$C11,'Summary Calculations'!$F$6:$F$455,'Non-Demographic Change'!$C16) -> 2700.389461 | AC16: =SUMIFS('Summary Calculations'!K$6:K$455,'Summary Calculations'!$E$6:$E$455,'Non-Demographic Change'!$C11,'Summary Calculations'!$F$6:$F$455,'Non-Demographic Change'!$C16) -> 2700.778922 | AD16: =SUMIFS('Summary Calculations'!L$6:L$455,'Summary Calculations'!$E$6:$E$455,'Non-Demographic Change'!$C11,'Summary Calculations'!$F$6:$F$455,'Non-Demographic Change'!$C16) -> 2701.417358 | AE16: =SUMIFS('Summary Calculations'!M$6:M$455,'Summary Calculations'!$E$6:$E$455,'Non-Demographic Change'!$C11,'Summary Calculations'!$F$6:$F$455,'Non-Demographic Change'!$C16) -> 2702.066518 | AF16: =SUMIFS('Summary Calculations'!N$6:N$455,'Summary Calculations'!$E$6:$E$455,'Non-Demographic Change'!$C11,'Summary Calculations'!$F$6:$F$455,'Non-Demographic Change'!$C16) -> 2702.701174 | AI16: =IF($C17="Percentage",AB16*(1+D16),AB16+D16) -> 2712.110331 | AJ16: =IF($C17="Percentage",AC16*(1+E16),AC16+E16) -> 2713.674211 | AK16: =IF($C17="Percentage",AD16*(1+F16),AD16+F16) -> 2715.488927 | AL16: =IF($C17="Percentage",AE16*(1+G16),AE16+G16) -> 2713.796175 | AM16: =IF($C17="Percentage",AF16*(1+H16),AF16+H16) -> 2715.138197
C17: Change in number of cases | D17: 50 | E17: 55 | F17: 60 | G17: 50 | H17: 53
B20: =B11+1 -> 2 | C20: Obstetrics
C21: Outpatient | D21: =IFERROR(IF($C26="Percentage",D26,D26*AB21/SUM(AB21:AB25)),0) -> 0.2 | E21: =IFERROR(IF($C26="Percentage",E26,E26*AC21/SUM(AC21:AC25)),0) -> 0.15 | F21: 0.14 | G21: 0.12 | H21: 0.1 | AA21: =IFERROR(CONCATENATE(INDEX('Summary Calculations'!$BC$6:$BC$15,MATCH($C$20,'Summary Calculations'!$BB$6:$BB$15,0)),INDEX('Summary Calculations'!$BE$6:$BE$15,MATCH(C21,'Summary Calculations'!$BD$6:$BD$15,0))),"NA") -> BA | AB21: =SUMIFS('Summary Calculations'!J$6:J$455,'Summary Calculations'!$E$6:$E$455,'Non-Demographic Change'!$C20,'Summary Calculations'!$F$6:$F$455,'Non-Demographic Change'!$C21) -> 2249.850979 | AC21: =SUMIFS('Summary Calculations'!K$6:K$455,'Summary Calculations'!$E$6:$E$455,'Non-Demographic Change'!$C20,'Summary Calculations'!$F$6:$F$455,'Non-Demographic Change'!$C21) -> 2249.701958 | AD21: =SUMIFS('Summary Calculations'!L$6:L$455,'Summary Calculations'!$E$6:$E$455,'Non-Demographic Change'!$C20,'Summary Calculations'!$F$6:$F$455,'Non-Demographic Change'!$C21) -> 2249.492721 | AE21: =SUMIFS('Summary Calculations'!M$6:M$455,'Summary Calculations'!$E$6:$E$455,'Non-Demographic Change'!$C20,'Summary Calculations'!$F$6:$F$455,'Non-Demographic Change'!$C21) -> 2249.285672 | AF21: =SUMIFS('Summary Calculations'!N$6:N$455,'Summary Calculations'!$E$6:$E$455,'Non-Demographic Change'!$C20,'Summary Calculations'!$F$6:$F$455,'Non-Demographic Change'!$C21) -> 2249.058901 | AI21: =IF($C26="Percentage",AB21*(1+D21),AB21+D21) -> 2699.821175 | AJ21: =IF($C26="Percentage",AC21*(1+E21),AC21+E21) -> 2587.157251 | AK21: =IF($C26="Percentage",AD21*(1+F21),AD21+F21) -> 2564.421702 | AL21: =IF($C26="Percentage",AE21*(1+G21),AE21+G21) -> 2519.199953 | AM21: =IF($C26="Percentage",AF21*(1+H21),AF21+H21) -> 2473.964791
C22: Elective | D22: =IFERROR(IF($C26="Percentage",D26,D26*AB22/SUM(AB21:AB25)),0) -> 0.2 | E22: =IFERROR(IF($C26="Percentage",E26,E26*AC22/SUM(AC21:AC25)),0) -> 0.15 | F22: 0.14 | G22: 0.12 | H22: 0.1 | AA22: =IFERROR(CONCATENATE(INDEX('Summary Calculations'!$BC$6:$BC$15,MATCH($C$20,'Summary Calculations'!$BB$6:$BB$15,0)),INDEX('Summary Calculations'!$BE$6:$BE$15,MATCH(C22,'Summary Calculations'!$BD$6:$BD$15,0))),"NA") -> BB | AB22: =SUMIFS('Summary Calculations'!J$6:J$455,'Summary Calculations'!$E$6:$E$455,'Non-Demographic Change'!$C20,'Summary Calculations'!$F$6:$F$455,'Non-Demographic Change'!$C22) -> 2520.174068 | AC22: =SUMIFS('Summary Calculations'!K$6:K$455,'Summary Calculations'!$E$6:$E$455,'Non-Demographic Change'!$C20,'Summary Calculations'!$F$6:$F$455,'Non-Demographic Change'!$C22) -> 2520.348136 | AD22: =SUMIFS('Summary Calculations'!L$6:L$455,'Summary Calculations'!$E$6:$E$455,'Non-Demographic Change'!$C20,'Summary Calculations'!$F$6:$F$455,'Non-Demographic Change'!$C22) -> 2520.647503 | AE22: =SUMIFS('Summary Calculations'!M$6:M$455,'Summary Calculations'!$E$6:$E$455,'Non-Demographic Change'!$C20,'Summary Calculations'!$F$6:$F$455,'Non-Demographic Change'!$C22) -> 2520.95418 | AF22: =SUMIFS('Summary Calculations'!N$6:N$455,'Summary Calculations'!$E$6:$E$455,'Non-Demographic Change'!$C20,'Summary Calculations'!$F$6:$F$455,'Non-Demographic Change'!$C22) -> 2521.244265 | AI22: =IF($C26="Percentage",AB22*(1+D22),AB22+D22) -> 3024.208882 | AJ22: =IF($C26="Percentage",AC22*(1+E22),AC22+E22) -> 2898.400357 | AK22: =IF($C26="Percentage",AD22*(1+F22),AD22+F22) -> 2873.538153 | AL22: =IF($C26="Percentage",AE22*(1+G22),AE22+G22) -> 2823.468682 | AM22: =IF($C26="Percentage",AF22*(1+H22),AF22+H22) -> 2773.368691
C23: Non-elective | D23: =IFERROR(IF($C26="Percentage",D26,D26*AB23/SUM(AB21:AB25)),0) -> 0.2 | E23: =IFERROR(IF($C26="Percentage",E26,E26*AC23/SUM(AC21:AC25)),0) -> 0.15 | F23: 0.14 | G23: 0.12 | H23: 0.1 | AA23: =IFERROR(CONCATENATE(INDEX('Summary Calculations'!$BC$6:$BC$15,MATCH($C$20,'Summary Calculations'!$BB$6:$BB$15,0)),INDEX('Summary Calculations'!$BE$6:$BE$15,MATCH(C23,'Summary Calculations'!$BD$6:$BD$15,0))),"NA") -> BC | AB23: =SUMIFS('Summary Calculations'!J$6:J$455,'Summary Calculations'!$E$6:$E$455,'Non-Demographic Change'!$C20,'Summary Calculations'!$F$6:$F$455,'Non-Demographic Change'!$C23) -> 2880.604854 | AC23: =SUMIFS('Summary Calculations'!K$6:K$455,'Summary Calculations'!$E$6:$E$455,'Non-Demographic Change'!$C20,'Summary Calculations'!$F$6:$F$455,'Non-Demographic Change'!$C23) -> 2881.209708 | AD23: =SUMIFS('Summary Calculations'!L$6:L$455,'Summary Calculations'!$E$6:$E$455,'Non-Demographic Change'!$C20,'Summary Calculations'!$F$6:$F$455,'Non-Demographic Change'!$C23) -> 2882.187213 | AE23: =SUMIFS('Summary Calculations'!M$6:M$455,'Summary Calculations'!$E$6:$E$455,'Non-Demographic Change'!$C20,'Summary Calculations'!$F$6:$F$455,'Non-Demographic Change'!$C23) -> 2883.178857 | AF23: =SUMIFS('Summary Calculations'!N$6:N$455,'Summary Calculations'!$E$6:$E$455,'Non-Demographic Change'!$C20,'Summary Calculations'!$F$6:$F$455,'Non-Demographic Change'!$C23) -> 2884.158083 | AI23: =IF($C26="Percentage",AB23*(1+D23),AB23+D23) -> 3456.725825 | AJ23: =IF($C26="Percentage",AC23*(1+E23),AC23+E23) -> 3313.391164 | AK23: =IF($C26="Percentage",AD23*(1+F23),AD23+F23) -> 3285.693422 | AL23: =IF($C26="Percentage",AE23*(1+G23),AE23+G23) -> 3229.16032 | AM23: =IF($C26="Percentage",AF23*(1+H23),AF23+H23) -> 3172.573891
C24: A&E | D24: =IFERROR(IF($C26="Percentage",D26,D26*AB24/SUM(AB21:AB25)),0) -> 0.2 | E24: =IFERROR(IF($C26="Percentage",E26,E26*AC24/SUM(AC21:AC25)),0) -> 0.15 | F24: 0.14 | G24: 0.12 | H24: 0.1 | AA24: =IFERROR(CONCATENATE(INDEX('Summary Calculations'!$BC$6:$BC$15,MATCH($C$20,'Summary Calculations'!$BB$6:$BB$15,0)),INDEX('Summary Calculations'!$BE$6:$BE$15,MATCH(C24,'Summary Calculations'!$BD$6:$BD$15,0))),"NA") -> BD | AB24: =SUMIFS('Summary Calculations'!J$6:J$455,'Summary Calculations'!$E$6:$E$455,'Non-Demographic Change'!$C20,'Summary Calculations'!$F$6:$F$455,'Non-Demographic Change'!$C24) -> 2970.71255 | AC24: =SUMIFS('Summary Calculations'!K$6:K$455,'Summary Calculations'!$E$6:$E$455,'Non-Demographic Change'!$C20,'Summary Calculations'!$F$6:$F$455,'Non-Demographic Change'!$C24) -> 2971.425101 | AD24: =SUMIFS('Summary Calculations'!L$6:L$455,'Summary Calculations'!$E$6:$E$455,'Non-Demographic Change'!$C20,'Summary Calculations'!$F$6:$F$455,'Non-Demographic Change'!$C24) -> 2972.57214 | AE24: =SUMIFS('Summary Calculations'!M$6:M$455,'Summary Calculations'!$E$6:$E$455,'Non-Demographic Change'!$C20,'Summary Calculations'!$F$6:$F$455,'Non-Demographic Change'!$C24) -> 2973.735026 | AF24: =SUMIFS('Summary Calculations'!N$6:N$455,'Summary Calculations'!$E$6:$E$455,'Non-Demographic Change'!$C20,'Summary Calculations'!$F$6:$F$455,'Non-Demographic Change'!$C24) -> 2974.886537 | AI24: =IF($C26="Percentage",AB24*(1+D24),AB24+D24) -> 3564.855061 | AJ24: =IF($C26="Percentage",AC24*(1+E24),AC24+E24) -> 3417.138866 | AK24: =IF($C26="Percentage",AD24*(1+F24),AD24+F24) -> 3388.73224 | AL24: =IF($C26="Percentage",AE24*(1+G24),AE24+G24) -> 3330.583229 | AM24: =IF($C26="Percentage",AF24*(1+H24),AF24+H24) -> 3272.375191
C25: Community | D25: =IFERROR(IF($C26="Percentage",D26,D26*AB25/SUM(AB21:AB25)),0) -> 0.2 | E25: =IFERROR(IF($C26="Percentage",E26,E26*AC25/SUM(AC21:AC25)),0) -> 0.15 | F25: 0.14 | G25: 0.12 | H25: 0.1 | AA25: =IFERROR(CONCATENATE(INDEX('Summary Calculations'!$BC$6:$BC$15,MATCH($C$20,'Summary Calculations'!$BB$6:$BB$15,0)),INDEX('Summary Calculations'!$BE$6:$BE$15,MATCH(C25,'Summary Calculations'!$BD$6:$BD$15,0))),"NA") -> BE | AB25: =SUMIFS('Summary Calculations'!J$6:J$455,'Summary Calculations'!$E$6:$E$455,'Non-Demographic Change'!$C20,'Summary Calculations'!$F$6:$F$455,'Non-Demographic Change'!$C25) -> 3150.927943 | AC25: =SUMIFS('Summary Calculations'!K$6:K$455,'Summary Calculations'!$E$6:$E$455,'Non-Demographic Change'!$C20,'Summary Calculations'!$F$6:$F$455,'Non-Demographic Change'!$C25) -> 3151.855887 | AD25: =SUMIFS('Summary Calculations'!L$6:L$455,'Summary Calculations'!$E$6:$E$455,'Non-Demographic Change'!$C20,'Summary Calculations'!$F$6:$F$455,'Non-Demographic Change'!$C25) -> 3153.341995 | AE25: =SUMIFS('Summary Calculations'!M$6:M$455,'Summary Calculations'!$E$6:$E$455,'Non-Demographic Change'!$C20,'Summary Calculations'!$F$6:$F$455,'Non-Demographic Change'!$C25) -> 3154.847365 | AF25: =SUMIFS('Summary Calculations'!N$6:N$455,'Summary Calculations'!$E$6:$E$455,'Non-Demographic Change'!$C20,'Summary Calculations'!$F$6:$F$455,'Non-Demographic Change'!$C25) -> 3156.343446 | AI25: =IF($C26="Percentage",AB25*(1+D25),AB25+D25) -> 3781.113532 | AJ25: =IF($C26="Percentage",AC25*(1+E25),AC25+E25) -> 3624.63427 | AK25: =IF($C26="Percentage",AD25*(1+F25),AD25+F25) -> 3594.809874 | AL25: =IF($C26="Percentage",AE25*(1+G25),AE25+G25) -> 3533.429048 | AM25: =IF($C26="Percentage",AF25*(1+H25),AF25+H25) -> 3471.97779
C26: Percentage | D26: 0.2 | E26: 0.15 | F26: 0.14 | G26: 0.12 | H26: 0.1
B29: =B20+1 -> 3 | C29: Test Spec 1
C30: Outpatient | D30: =IFERROR(IF($C35="Percentage",D35,D35*AB30/SUM(AB30:AB34)),0) -> 0.12 | E30: =IFERROR(IF($C35="Percentage",E35,E35*AC30/SUM(AC30:AC34)),0) -> 0.11 | F30: 0.1 | G30: 0.08 | H30: 0.06 | AA30: =IFERROR(CONCATENATE(INDEX('Summary Calculations'!$BC$6:$BC$15,MATCH($C$29,'Summary Calculations'!$BB$6:$BB$15,0)),INDEX('Summary Calculations'!$BE$6:$BE$15,MATCH(C30,'Summary Calculations'!$BD$6:$BD$15,0))),"NA") -> NA | AB30: =SUMIFS('Summary Calculations'!J$6:J$455,'Summary Calculations'!$E$6:$E$455,'Non-Demographic Change'!$C29,'Summary Calculations'!$F$6:$F$455,'Non-Demographic Change'!$C30) -> 0 | AC30: =SUMIFS('Summary Calculations'!K$6:K$455,'Summary Calculations'!$E$6:$E$455,'Non-Demographic Change'!$C29,'Summary Calculations'!$F$6:$F$455,'Non-Demographic Change'!$C30) -> 0 | AD30: =SUMIFS('Summary Calculations'!L$6:L$455,'Summary Calculations'!$E$6:$E$455,'Non-Demographic Change'!$C29,'Summary Calculations'!$F$6:$F$455,'Non-Demographic Change'!$C30) -> 0 | AE30: =SUMIFS('Summary Calculations'!M$6:M$455,'Summary Calculations'!$E$6:$E$455,'Non-Demographic Change'!$C29,'Summary Calculations'!$F$6:$F$455,'Non-Demographic Change'!$C30) -> 0 | AF30: =SUMIFS('Summary Calculations'!N$6:N$455,'Summary Calculations'!$E$6:$E$455,'Non-Demographic Change'!$C29,'Summary Calculations'!$F$6:$F$455,'Non-Demographic Change'!$C30) -> 0 | AI30: =IF($C35="Percentage",AB30*(1+D30),AB30+D30) -> 0 | AJ30: =IF($C35="Percentage",AC30*(1+E30),AC30+E30) -> 0 | AK30: =IF($C35="Percentage",AD30*(1+F30),AD30+F30) -> 0 | AL30: =IF($C35="Percentage",AE30*(1+G30),AE30+G30) -> 0 | AM30: =IF($C35="Percentage",AF30*(1+H30),AF30+H30) -> 0
C31: Elective | D31: =IFERROR(IF($C35="Percentage",D35,D35*AB31/SUM(AB30:AB34)),0) -> 0.12 | E31: =IFERROR(IF($C35="Percentage",E35,E35*AC31/SUM(AC30:AC34)),0) -> 0.11 | F31: 0.1 | G31: 0.08 | H31: 0.06 | AA31: =IFERROR(CONCATENATE(INDEX('Summary Calculations'!$BC$6:$BC$15,MATCH($C$29,'Summary Calculations'!$BB$6:$BB$15,0)),INDEX('Summary Calculations'!$BE$6:$BE$15,MATCH(C31,'Summary Calculations'!$BD$6:$BD$15,0))),"NA") -> NA | AB31: =SUMIFS('Summary Calculations'!J$6:J$455,'Summary Calculations'!$E$6:$E$455,'Non-Demographic Change'!$C29,'Summary Calculations'!$F$6:$F$455,'Non-Demographic Change'!$C31) -> 0 | AC31: =SUMIFS('Summary Calculations'!K$6:K$455,'Summary Calculations'!$E$6:$E$455,'Non-Demographic Change'!$C29,'Summary Calculations'!$F$6:$F$455,'Non-Demographic Change'!$C31) -> 0 | AD31: =SUMIFS('Summary Calculations'!L$6:L$455,'Summary Calculations'!$E$6:$E$455,'Non-Demographic Change'!$C29,'Summary Calculations'!$F$6:$F$455,'Non-Demographic Change'!$C31) -> 0 | AE31: =SUMIFS('Summary Calculations'!M$6:M$455,'Summary Calculations'!$E$6:$E$455,'Non-Demographic Change'!$C29,'Summary Calculations'!$F$6:$F$455,'Non-Demographic Change'!$C31) -> 0 | AF31: =SUMIFS('Summary Calculations'!N$6:N$455,'Summary Calculations'!$E$6:$E$455,'Non-Demographic Change'!$C29,'Summary Calculations'!$F$6:$F$455,'Non-Demographic Change'!$C31) -> 0 | AI31: =IF($C35="Percentage",AB31*(1+D31),AB31+D31) -> 0 | AJ31: =IF($C35="Percentage",AC31*(1+E31),AC31+E31) -> 0 | AK31: =IF($C35="Percentage",AD31*(1+F31),AD31+F31) -> 0 | AL31: =IF($C35="Percentage",AE31*(1+G31),AE31+G31) -> 0 | AM31: =IF($C35="Percentage",AF31*(1+H31),AF31+H31) -> 0
C32: Non-elective | D32: =IFERROR(IF($C35="Percentage",D35,D35*AB32/SUM(AB30:AB34)),0) -> 0.12 | E32: =IFERROR(IF($C35="Percentage",E35,E35*AC32/SUM(AC30:AC34)),0) -> 0.11 | F32: 0.1 | G32: 0.08 | H32: 0.06 | AA32: =IFERROR(CONCATENATE(INDEX('Summary Calculations'!$BC$6:$BC$15,MATCH($C$29,'Summary Calculations'!$BB$6:$BB$15,0)),INDEX('Summary Calculations'!$BE$6:$BE$15,MATCH(C32,'Summary Calculations'!$BD$6:$BD$15,0))),"NA") -> NA | AB32: =SUMIFS('Summary Calculations'!J$6:J$455,'Summary Calculations'!$E$6:$E$455,'Non-Demographic Change'!$C29,'Summary Calculations'!$F$6:$F$455,'Non-Demographic Change'!$C32) -> 0 | AC32: =SUMIFS('Summary Calculations'!K$6:K$455,'Summary Calculations'!$E$6:$E$455,'Non-Demographic Change'!$C29,'Summary Calculations'!$F$6:$F$455,'Non-Demographic Change'!$C32) -> 0 | AD32: =SUMIFS('Summary Calculations'!L$6:L$455,'Summary Calculations'!$E$6:$E$455,'Non-Demographic Change'!$C29,'Summary Calculations'!$F$6:$F$455,'Non-Demographic Change'!$C32) -> 0 | AE32: =SUMIFS('Summary Calculations'!M$6:M$455,'Summary Calculations'!$E$6:$E$455,'Non-Demographic Change'!$C29,'Summary Calculations'!$F$6:$F$455,'Non-Demographic Change'!$C32) -> 0 | AF32: =SUMIFS('Summary Calculations'!N$6:N$455,'Summary Calculations'!$E$6:$E$455,'Non-Demographic Change'!$C29,'Summary Calculations'!$F$6:$F$455,'Non-Demographic Change'!$C32) -> 0 | AI32: =IF($C35="Percentage",AB32*(1+D32),AB32+D32) -> 0 | AJ32: =IF($C35="Percentage",AC32*(1+E32),AC32+E32) -> 0 | AK32: =IF($C35="Percentage",AD32*(1+F32),AD32+F32) -> 0 | AL32: =IF($C35="Percentage",AE32*(1+G32),AE32+G32) -> 0 | AM32: =IF($C35="Percentage",AF32*(1+H32),AF32+H32) -> 0
C33: A&E | D33: =IFERROR(IF($C35="Percentage",D35,D35*AB33/SUM(AB30:AB34)),0) -> 0.12 | E33: =IFERROR(IF($C35="Percentage",E35,E35*AC33/SUM(AC30:AC34)),0) -> 0.11 | F33: 0.1 | G33: 0.08 | H33: 0.06 | AA33: =IFERROR(CONCATENATE(INDEX('Summary Calculations'!$BC$6:$BC$15,MATCH($C$29,'Summary Calculations'!$BB$6:$BB$15,0)),INDEX('Summary Calculations'!$BE$6:$BE$15,MATCH(C33,'Summary Calculations'!$BD$6:$BD$15,0))),"NA") -> NA | AB33: =SUMIFS('Summary Calculations'!J$6:J$455,'Summary Calculations'!$E$6:$E$455,'Non-Demographic Change'!$C29,'Summary Calculations'!$F$6:$F$455,'Non-Demographic Change'!$C33) -> 0 | AC33: =SUMIFS('Summary Calculations'!K$6:K$455,'Summary Calculations'!$E$6:$E$455,'Non-Demographic Change'!$C29,'Summary Calculations'!$F$6:$F$455,'Non-Demographic Change'!$C33) -> 0 | AD33: =SUMIFS('Summary Calculations'!L$6:L$455,'Summary Calculations'!$E$6:$E$455,'Non-Demographic Change'!$C29,'Summary Calculations'!$F$6:$F$455,'Non-Demographic Change'!$C33) -> 0 | AE33: =SUMIFS('Summary Calculations'!M$6:M$455,'Summary Calculations'!$E$6:$E$455,'Non-Demographic Change'!$C29,'Summary Calculations'!$F$6:$F$455,'Non-Demographic Change'!$C33) -> 0 | AF33: =SUMIFS('Summary Calculations'!N$6:N$455,'Summary Calculations'!$E$6:$E$455,'Non-Demographic Change'!$C29,'Summary Calculations'!$F$6:$F$455,'Non-Demographic Change'!$C33) -> 0 | AI33: =IF($C35="Percentage",AB33*(1+D33),AB33+D33) -> 0 | AJ33: =IF($C35="Percentage",AC33*(1+E33),AC33+E33) -> 0 | AK33: =IF($C35="Percentage",AD33*(1+F33),AD33+F33) -> 0 | AL33: =IF($C35="Percentage",AE33*(1+G33),AE33+G33) -> 0 | AM33: =IF($C35="Percentage",AF33*(1+H33),AF33+H33) -> 0
C34: Community | D34: =IFERROR(IF($C35="Percentage",D35,D35*AB34/SUM(AB30:AB34)),0) -> 0.12 | E34: =IFERROR(IF($C35="Percentage",E35,E35*AC34/SUM(AC30:AC34)),0) -> 0.11 | F34: 0.1 | G34: 0.08 | H34: 0.06 | AA34: =IFERROR(CONCATENATE(INDEX('Summary Calculations'!$BC$6:$BC$15,MATCH($C$29,'Summary Calculations'!$BB$6:$BB$15,0)),INDEX('Summary Calculations'!$BE$6:$BE$15,MATCH(C34,'Summary Calculations'!$BD$6:$BD$15,0))),"NA") -> NA | AB34: =SUMIFS('Summary Calculations'!J$6:J$455,'Summary Calculations'!$E$6:$E$455,'Non-Demographic Change'!$C29,'Summary Calculations'!$F$6:$F$455,'Non-Demographic Change'!$C34) -> 0 | AC34: =SUMIFS('Summary Calculations'!K$6:K$455,'Summary Calculations'!$E$6:$E$455,'Non-Demographic Change'!$C29,'Summary Calculations'!$F$6:$F$455,'Non-Demographic Change'!$C34) -> 0 | AD34: =SUMIFS('Summary Calculations'!L$6:L$455,'Summary Calculations'!$E$6:$E$455,'Non-Demographic Change'!$C29,'Summary Calculations'!$F$6:$F$455,'Non-Demographic Change'!$C34) -> 0 | AE34: =SUMIFS('Summary Calculations'!M$6:M$455,'Summary Calculations'!$E$6:$E$455,'Non-Demographic Change'!$C29,'Summary Calculations'!$F$6:$F$455,'Non-Demographic Change'!$C34) -> 0 | AF34: =SUMIFS('Summary Calculations'!N$6:N$455,'Summary Calculations'!$E$6:$E$455,'Non-Demographic Change'!$C29,'Summary Calculations'!$F$6:$F$455,'Non-Demographic Change'!$C34) -> 0 | AI34: =IF($C35="Percentage",AB34*(1+D34),AB34+D34) -> 0 | AJ34: =IF($C35="Percentage",AC34*(1+E34),AC34+E34) -> 0 | AK34: =IF($C35="Percentage",AD34*(1+F34),AD34+F34) -> 0 | AL34: =IF($C35="Percentage",AE34*(1+G34),AE34+G34) -> 0 | AM34: =IF($C35="Percentage",AF34*(1+H34),AF34+H34) -> 0
C35: Percentage | D35: 0.12 | E35: 0.11 | F35: 0.1 | G35: 0.08 | H35: 0.06
B38: =B29+1 -> 4 | C38: Test Spec 2
C39: Outpatient | D39: =IFERROR(IF($C44="Percentage",D44,D44*AB39/SUM(AB39:AB43)),0) -> 0 | E39: =IFERROR(IF($C44="Percentage",E44,E44*AC39/SUM(AC39:AC43)),0) -> 0 | F39: 0 | G39: 0 | H39: 0 | AA39: =IFERROR(CONCATENATE(INDEX('Summary Calculations'!$BC$6:$BC$15,MATCH($C$38,'Summary Calculations'!$BB$6:$BB$15,0)),INDEX('Summary Calculations'!$BE$6:$BE$15,MATCH(C39,'Summary Calculations'!$BD$6:$BD$15,0))),"NA") -> NA | AB39: =SUMIFS('Summary Calculations'!J$6:J$455,'Summary Calculations'!$E$6:$E$455,'Non-Demographic Change'!$C38,'Summary Calculations'!$F$6:$F$455,'Non-Demographic Change'!$C39) -> 0 | AC39: =SUMIFS('Summary Calculations'!K$6:K$455,'Summary Calculations'!$E$6:$E$455,'Non-Demographic Change'!$C38,'Summary Calculations'!$F$6:$F$455,'Non-Demographic Change'!$C39) -> 0 | AD39: =SUMIFS('Summary Calculations'!L$6:L$455,'Summary Calculations'!$E$6:$E$455,'Non-Demographic Change'!$C38,'Summary Calculations'!$F$6:$F$455,'Non-Demographic Change'!$C39) -> 0 | AE39: =SUMIFS('Summary Calculations'!M$6:M$455,'Summary Calculations'!$E$6:$E$455,'Non-Demographic Change'!$C38,'Summary Calculations'!$F$6:$F$455,'Non-Demographic Change'!$C39) -> 0 | AF39: =SUMIFS('Summary Calculations'!N$6:N$455,'Summary Calculations'!$E$6:$E$455,'Non-Demographic Change'!$C38,'Summary Calculations'!$F$6:$F$455,'Non-Demographic Change'!$C39) -> 0 | AI39: =IF($C44="Percentage",AB39*(1+D39),AB39+D39) -> 0 | AJ39: =IF($C44="Percentage",AC39*(1+E39),AC39+E39) -> 0 | AK39: =IF($C44="Percentage",AD39*(1+F39),AD39+F39) -> 0 | AL39: =IF($C44="Percentage",AE39*(1+G39),AE39+G39) -> 0 | AM39: =IF($C44="Percentage",AF39*(1+H39),AF39+H39) -> 0
C40: Elective | D40: =IFERROR(IF($C44="Percentage",D44,D44*AB40/SUM(AB39:AB43)),0) -> 0 | E40: =IFERROR(IF($C44="Percentage",E44,E44*AC40/SUM(AC39:AC43)),0) -> 0 | F40: 0 | G40: 0 | H40: 0 | AA40: =IFERROR(CONCATENATE(INDEX('Summary Calculations'!$BC$6:$BC$15,MATCH($C$38,'Summary Calculations'!$BB$6:$BB$15,0)),INDEX('Summary Calculations'!$BE$6:$BE$15,MATCH(C40,'Summary Calculations'!$BD$6:$BD$15,0))),"NA") -> NA | AB40: =SUMIFS('Summary Calculations'!J$6:J$455,'Summary Calculations'!$E$6:$E$455,'Non-Demographic Change'!$C38,'Summary Calculations'!$F$6:$F$455,'Non-Demographic Change'!$C40) -> 0 | AC40: =SUMIFS('Summary Calculations'!K$6:K$455,'Summary Calculations'!$E$6:$E$455,'Non-Demographic Change'!$C38,'Summary Calculations'!$F$6:$F$455,'Non-Demographic Change'!$C40) -> 0 | AD40: =SUMIFS('Summary Calculations'!L$6:L$455,'Summary Calculations'!$E$6:$E$455,'Non-Demographic Change'!$C38,'Summary Calculations'!$F$6:$F$455,'Non-Demographic Change'!$C40) -> 0 | AE40: =SUMIFS('Summary Calculations'!M$6:M$455,'Summary Calculations'!$E$6:$E$455,'Non-Demographic Change'!$C38,'Summary Calculations'!$F$6:$F$455,'Non-Demographic Change'!$C40) -> 0 | AF40: =SUMIFS('Summary Calculations'!N$6:N$455,'Summary Calculations'!$E$6:$E$455,'Non-Demographic Change'!$C38,'Summary Calculations'!$F$6:$F$455,'Non-Demographic Change'!$C40) -> 0 | AI40: =IF($C44="Percentage",AB40*(1+D40),AB40+D40) -> 0 | AJ40: =IF($C44="Percentage",AC40*(1+E40),AC40+E40) -> 0 | AK40: =IF($C44="Percentage",AD40*(1+F40),AD40+F40) -> 0 | AL40: =IF($C44="Percentage",AE40*(1+G40),AE40+G40) -> 0 | AM40: =IF($C44="Percentage",AF40*(1+H40),AF40+H40) -> 0
C41: Non-elective | D41: =IFERROR(IF($C44="Percentage",D44,D44*AB41/SUM(AB39:AB43)),0) -> 0 | E41: =IFERROR(IF($C44="Percentage",E44,E44*AC41/SUM(AC39:AC43)),0) -> 0 | F41: 0 | G41: 0 | H41: 0 | AA41: =IFERROR(CONCATENATE(INDEX('Summary Calculations'!$BC$6:$BC$15,MATCH($C$38,'Summary Calculations'!$BB$6:$BB$15,0)),INDEX('Summary Calculations'!$BE$6:$BE$15,MATCH(C41,'Summary Calculations'!$BD$6:$BD$15,0))),"NA") -> NA | AB41: =SUMIFS('Summary Calculations'!J$6:J$455,'Summary Calculations'!$E$6:$E$455,'Non-Demographic Change'!$C38,'Summary Calculations'!$F$6:$F$455,'Non-Demographic Change'!$C41) -> 0 | AC41: =SUMIFS('Summary Calculations'!K$6:K$455,'Summary Calculations'!$E$6:$E$455,'Non-Demographic Change'!$C38,'Summary Calculations'!$F$6:$F$455,'Non-Demographic Change'!$C41) -> 0 | AD41: =SUMIFS('Summary Calculations'!L$6:L$455,'Summary Calculations'!$E$6:$E$455,'Non-Demographic Change'!$C38,'Summary Calculations'!$F$6:$F$455,'Non-Demographic Change'!$C41) -> 0 | AE41: =SUMIFS('Summary Calculations'!M$6:M$455,'Summary Calculations'!$E$6:$E$455,'Non-Demographic Change'!$C38,'Summary Calculations'!$F$6:$F$455,'Non-Demographic Change'!$C41) -> 0 | AF41: =SUMIFS('Summary Calculations'!N$6:N$455,'Summary Calculations'!$E$6:$E$455,'Non-Demographic Change'!$C38,'Summary Calculations'!$F$6:$F$455,'Non-Demographic Change'!$C41) -> 0 | AI41: =IF($C44="Percentage",AB41*(1+D41),AB41+D41) -> 0 | AJ41: =IF($C44="Percentage",AC41*(1+E41),AC41+E41) -> 0 | AK41: =IF($C44="Percentage",AD41*(1+F41),AD41+F41) -> 0 | AL41: =IF($C44="Percentage",AE41*(1+G41),AE41+G41) -> 0 | AM41: =IF($C44="Percentage",AF41*(1+H41),AF41+H41) -> 0
C42: A&E | D42: =IFERROR(IF($C44="Percentage",D44,D44*AB42/SUM(AB39:AB43)),0) -> 0 | E42: =IFERROR(IF($C44="Percentage",E44,E44*AC42/SUM(AC39:AC43)),0) -> 0 | F42: 0 | G42: 0 | H42: 0 | AA42: =IFERROR(CONCATENATE(INDEX('Summary Calculations'!$BC$6:$BC$15,MATCH($C$38,'Summary Calculations'!$BB$6:$BB$15,0)),INDEX('Summary Calculations'!$BE$6:$BE$15,MATCH(C42,'Summary Calculations'!$BD$6:$BD$15,0))),"NA") -> NA | AB42: =SUMIFS('Summary Calculations'!J$6:J$455,'Summary Calculations'!$E$6:$E$455,'Non-Demographic Change'!$C38,'Summary Calculations'!$F$6:$F$455,'Non-Demographic Change'!$C42) -> 0 | AC42: =SUMIFS('Summary Calculations'!K$6:K$455,'Summary Calculations'!$E$6:$E$455,'Non-Demographic Change'!$C38,'Summary Calculations'!$F$6:$F$455,'Non-Demographic Change'!$C42) -> 0 | AD42: =SUMIFS('Summary Calculations'!L$6:L$455,'Summary Calculations'!$E$6:$E$455,'Non-Demographic Change'!$C38,'Summary Calculations'!$F$6:$F$455,'Non-Demographic Change'!$C42) -> 0 | AE42: =SUMIFS('Summary Calculations'!M$6:M$455,'Summary Calculations'!$E$6:$E$455,'Non-Demographic Change'!$C38,'Summary Calculations'!$F$6:$F$455,'Non-Demographic Change'!$C42) -> 0 | AF42: =SUMIFS('Summary Calculations'!N$6:N$455,'Summary Calculations'!$E$6:$E$455,'Non-Demographic Change'!$C38,'Summary Calculations'!$F$6:$F$455,'Non-Demographic Change'!$C42) -> 0 | AI42: =IF($C44="Percentage",AB42*(1+D42),AB42+D42) -> 0 | AJ42: =IF($C44="Percentage",AC42*(1+E42),AC42+E42) -> 0 | AK42: =IF($C44="Percentage",AD42*(1+F42),AD42+F42) -> 0 | AL42: =IF($C44="Percentage",AE42*(1+G42),AE42+G42) -> 0 | AM42: =IF($C44="Percentage",AF42*(1+H42),AF42+H42) -> 0
C43: Community | D43: =IFERROR(IF($C44="Percentage",D44,D44*AB43/SUM(AB39:AB43)),0) -> 0 | E43: =IFERROR(IF($C44="Percentage",E44,E44*AC43/SUM(AC39:AC43)),0) -> 0 | F43: 0 | G43: 0 | H43: 0 | AA43: =IFERROR(CONCATENATE(INDEX('Summary Calculations'!$BC$6:$BC$15,MATCH($C$38,'Summary Calculations'!$BB$6:$BB$15,0)),INDEX('Summary Calculations'!$BE$6:$BE$15,MATCH(C43,'Summary Calculations'!$BD$6:$BD$15,0))),"NA") -> NA | AB43: =SUMIFS('Summary Calculations'!J$6:J$455,'Summary Calculations'!$E$6:$E$455,'Non-Demographic Change'!$C38,'Summary Calculations'!$F$6:$F$455,'Non-Demographic Change'!$C43) -> 0 | AC43: =SUMIFS('Summary Calculations'!K$6:K$455,'Summary Calculations'!$E$6:$E$455,'Non-Demographic Change'!$C38,'Summary Calculations'!$F$6:$F$455,'Non-Demographic Change'!$C43) -> 0 | AD43: =SUMIFS('Summary Calculations'!L$6:L$455,'Summary Calculations'!$E$6:$E$455,'Non-Demographic Change'!$C38,'Summary Calculations'!$F$6:$F$455,'Non-Demographic Change'!$C43) -> 0 | AE43: =SUMIFS('Summary Calculations'!M$6:M$455,'Summary Calculations'!$E$6:$E$455,'Non-Demographic Change'!$C38,'Summary Calculations'!$F$6:$F$455,'Non-Demographic Change'!$C43) -> 0 | AF43: =SUMIFS('Summary Calculations'!N$6:N$455,'Summary Calculations'!$E$6:$E$455,'Non-Demographic Change'!$C38,'Summary Calculations'!$F$6:$F$455,'Non-Demographic Change'!$C43) -> 0 | AI43: =IF($C44="Percentage",AB43*(1+D43),AB43+D43) -> 0 | AJ43: =IF($C44="Percentage",AC43*(1+E43),AC43+E43) -> 0 | AK43: =IF($C44="Percentage",AD43*(1+F43),AD43+F43) -> 0 | AL43: =IF($C44="Percentage",AE43*(1+G43),AE43+G43) -> 0 | AM43: =IF($C44="Percentage",AF43*(1+H43),AF43+H43) -> 0
C44: Number of cases | D44: 150 | E44: 160 | F44: 140 | G44: 135 | H44: 125
B47: =B38+1 -> 5 | C47: Test Spec 3
C48: Outpatient | D48: =IFERROR(IF($C53="Percentage",D53,D53*AB48/SUM(AB48:AB52)),0) -> 0.12 | E48: =IFERROR(IF($C53="Percentage",E53,E53*AC48/SUM(AC48:AC52)),0) -> 0.12 | F48: 0.12 | G48: 0.11 | H48: 0.1 | AA48: =IFERROR(CONCATENATE(INDEX('Summary Calculations'!$BC$6:$BC$15,MATCH($C$47,'Summary Calculations'!$BB$6:$BB$15,0)),INDEX('Summary Calculations'!$BE$6:$BE$15,MATCH(C48,'Summary Calculations'!$BD$6:$BD$15,0))),"NA") -> NA | AB48: =SUMIFS('Summary Calculations'!J$6:J$455,'Summary Calculations'!$E$6:$E$455,'Non-Demographic Change'!$C47,'Summary Calculations'!$F$6:$F$455,'Non-Demographic Change'!$C48) -> 0 | AC48: =SUMIFS('Summary Calculations'!K$6:K$455,'Summary Calculations'!$E$6:$E$455,'Non-Demographic Change'!$C47,'Summary Calculations'!$F$6:$F$455,'Non-Demographic Change'!$C48) -> 0 | AD48: =SUMIFS('Summary Calculations'!L$6:L$455,'Summary Calculations'!$E$6:$E$455,'Non-Demographic Change'!$C47,'Summary Calculations'!$F$6:$F$455,'Non-Demographic Change'!$C48) -> 0 | AE48: =SUMIFS('Summary Calculations'!M$6:M$455,'Summary Calculations'!$E$6:$E$455,'Non-Demographic Change'!$C47,'Summary Calculations'!$F$6:$F$455,'Non-Demographic Change'!$C48) -> 0 | AF48: =SUMIFS('Summary Calculations'!N$6:N$455,'Summary Calculations'!$E$6:$E$455,'Non-Demographic Change'!$C47,'Summary Calculations'!$F$6:$F$455,'Non-Demographic Change'!$C48) -> 0 | AI48: =IF($C53="Percentage",AB48*(1+D48),AB48+D48) -> 0 | AJ48: =IF($C53="Percentage",AC48*(1+E48),AC48+E48) -> 0 | AK48: =IF($C53="Percentage",AD48*(1+F48),AD48+F48) -> 0 | AL48: =IF($C53="Percentage",AE48*(1+G48),AE48+G48) -> 0 | AM48: =IF($C53="Percentage",AF48*(1+H48),AF48+H48) -> 0
C49: Elective | D49: =IFERROR(IF($C53="Percentage",D53,D53*AB49/SUM(AB48:AB52)),0) -> 0.12 | E49: =IFERROR(IF($C53="Percentage",E53,E53*AC49/SUM(AC48:AC52)),0) -> 0.12 | F49: 0.12 | G49: 0.11 | H49: 0.1 | AA49: =IFERROR(CONCATENATE(INDEX('Summary Calculations'!$BC$6:$BC$15,MATCH($C$47,'Summary Calculations'!$BB$6:$BB$15,0)),INDEX('Summary Calculations'!$BE$6:$BE$15,MATCH(C49,'Summary Calculations'!$BD$6:$BD$15,0))),"NA") -> NA | AB49: =SUMIFS('Summary Calculations'!J$6:J$455,'Summary Calculations'!$E$6:$E$455,'Non-Demographic Change'!$C47,'Summary Calculations'!$F$6:$F$455,'Non-Demographic Change'!$C49) -> 0 | AC49: =SUMIFS('Summary Calculations'!K$6:K$455,'Summary Calculations'!$E$6:$E$455,'Non-Demographic Change'!$C47,'Summary Calculations'!$F$6:$F$455,'Non-Demographic Change'!$C49) -> 0 | AD49: =SUMIFS('Summary Calculations'!L$6:L$455,'Summary Calculations'!$E$6:$E$455,'Non-Demographic Change'!$C47,'Summary Calculations'!$F$6:$F$455,'Non-Demographic Change'!$C49) -> 0 | AE49: =SUMIFS('Summary Calculations'!M$6:M$455,'Summary Calculations'!$E$6:$E$455,'Non-Demographic Change'!$C47,'Summary Calculations'!$F$6:$F$455,'Non-Demographic Change'!$C49) -> 0 | AF49: =SUMIFS('Summary Calculations'!N$6:N$455,'Summary Calculations'!$E$6:$E$455,'Non-Demographic Change'!$C47,'Summary Calculations'!$F$6:$F$455,'Non-Demographic Change'!$C49) -> 0 | AI49: =IF($C53="Percentage",AB49*(1+D49),AB49+D49) -> 0 | AJ49: =IF($C53="Percentage",AC49*(1+E49),AC49+E49) -> 0 | AK49: =IF($C53="Percentage",AD49*(1+F49),AD49+F49) -> 0 | AL49: =IF($C53="Percentage",AE49*(1+G49),AE49+G49) -> 0 | AM49: =IF($C53="Percentage",AF49*(1+H49),AF49+H49) -> 0
C50: Non-elective | D50: =IFERROR(IF($C53="Percentage",D53,D53*AB50/SUM(AB48:AB52)),0) -> 0.12 | E50: =IFERROR(IF($C53="Percentage",E53,E53*AC50/SUM(AC48:AC52)),0) -> 0.12 | F50: 0.12 | G50: 0.11 | H50: 0.1 | AA50: =IFERROR(CONCATENATE(INDEX('Summary Calculations'!$BC$6:$BC$15,MATCH($C$47,'Summary Calculations'!$BB$6:$BB$15,0)),INDEX('Summary Calculations'!$BE$6:$BE$15,MATCH(C50,'Summary Calculations'!$BD$6:$BD$15,0))),"NA") -> NA | AB50: =SUMIFS('Summary Calculations'!J$6:J$455,'Summary Calculations'!$E$6:$E$455,'Non-Demographic Change'!$C47,'Summary Calculations'!$F$6:$F$455,'Non-Demographic Change'!$C50) -> 0 | AC50: =SUMIFS('Summary Calculations'!K$6:K$455,'Summary Calculations'!$E$6:$E$455,'Non-Demographic Change'!$C47,'Summary Calculations'!$F$6:$F$455,'Non-Demographic Change'!$C50) -> 0 | AD50: =SUMIFS('Summary Calculations'!L$6:L$455,'Summary Calculations'!$E$6:$E$455,'Non-Demographic Change'!$C47,'Summary Calculations'!$F$6:$F$455,'Non-Demographic Change'!$C50) -> 0 | AE50: =SUMIFS('Summary Calculations'!M$6:M$455,'Summary Calculations'!$E$6:$E$455,'Non-Demographic Change'!$C47,'Summary Calculations'!$F$6:$F$455,'Non-Demographic Change'!$C50) -> 0 | AF50: =SUMIFS('Summary Calculations'!N$6:N$455,'Summary Calculations'!$E$6:$E$455,'Non-Demographic Change'!$C47,'Summary Calculations'!$F$6:$F$455,'Non-Demographic Change'!$C50) -> 0 | AI50: =IF($C53="Percentage",AB50*(1+D50),AB50+D50) -> 0 | AJ50: =IF($C53="Percentage",AC50*(1+E50),AC50+E50) -> 0 | AK50: =IF($C53="Percentage",AD50*(1+F50),AD50+F50) -> 0 | AL50: =IF($C53="Percentage",AE50*(1+G50),AE50+G50) -> 0 | AM50: =IF($C53="Percentage",AF50*(1+H50),AF50+H50) -> 0
C51: A&E | D51: =IFERROR(IF($C53="Percentage",D53,D53*AB51/SUM(AB48:AB52)),0) -> 0.12 | E51: =IFERROR(IF($C53="Percentage",E53,E53*AC51/SUM(AC48:AC52)),0) -> 0.12 | F51: 0.12 | G51: 0.11 | H51: 0.1 | AA51: =IFERROR(CONCATENATE(INDEX('Summary Calculations'!$BC$6:$BC$15,MATCH($C$47,'Summary Calculations'!$BB$6:$BB$15,0)),INDEX('Summary Calculations'!$BE$6:$BE$15,MATCH(C51,'Summary Calculations'!$BD$6:$BD$15,0))),"NA") -> NA | AB51: =SUMIFS('Summary Calculations'!J$6:J$455,'Summary Calculations'!$E$6:$E$455,'Non-Demographic Change'!$C47,'Summary Calculations'!$F$6:$F$455,'Non-Demographic Change'!$C51) -> 0 | AC51: =SUMIFS('Summary Calculations'!K$6:K$455,'Summary Calculations'!$E$6:$E$455,'Non-Demographic Change'!$C47,'Summary Calculations'!$F$6:$F$455,'Non-Demographic Change'!$C51) -> 0 | AD51: =SUMIFS('Summary Calculations'!L$6:L$455,'Summary Calculations'!$E$6:$E$455,'Non-Demographic Change'!$C47,'Summary Calculations'!$F$6:$F$455,'Non-Demographic Change'!$C51) -> 0 | AE51: =SUMIFS('Summary Calculations'!M$6:M$455,'Summary Calculations'!$E$6:$E$455,'Non-Demographic Change'!$C47,'Summary Calculations'!$F$6:$F$455,'Non-Demographic Change'!$C51) -> 0 | AF51: =SUMIFS('Summary Calculations'!N$6:N$455,'Summary Calculations'!$E$6:$E$455,'Non-Demographic Change'!$C47,'Summary Calculations'!$F$6:$F$455,'Non-Demographic Change'!$C51) -> 0 | AI51: =IF($C53="Percentage",AB51*(1+D51),AB51+D51) -> 0 | AJ51: =IF($C53="Percentage",AC51*(1+E51),AC51+E51) -> 0 | AK51: =IF($C53="Percentage",AD51*(1+F51),AD51+F51) -> 0 | AL51: =IF($C53="Percentage",AE51*(1+G51),AE51+G51) -> 0 | AM51: =IF($C53="Percentage",AF51*(1+H51),AF51+H51) -> 0
C52: Community | D52: =IFERROR(IF($C53="Percentage",D53,D53*AB52/SUM(AB48:AB52)),0) -> 0.12 | E52: =IFERROR(IF($C53="Percentage",E53,E53*AC52/SUM(AC48:AC52)),0) -> 0.12 | F52: 0.12 | G52: 0.11 | H52: 0.1 | AA52: =IFERROR(CONCATENATE(INDEX('Summary Calculations'!$BC$6:$BC$15,MATCH($C$47,'Summary Calculations'!$BB$6:$BB$15,0)),INDEX('Summary Calculations'!$BE$6:$BE$15,MATCH(C52,'Summary Calculations'!$BD$6:$BD$15,0))),"NA") -> NA | AB52: =SUMIFS('Summary Calculations'!J$6:J$455,'Summary Calculations'!$E$6:$E$455,'Non-Demographic Change'!$C47,'Summary Calculations'!$F$6:$F$455,'Non-Demographic Change'!$C52) -> 0 | AC52: =SUMIFS('Summary Calculations'!K$6:K$455,'Summary Calculations'!$E$6:$E$455,'Non-Demographic Change'!$C47,'Summary Calculations'!$F$6:$F$455,'Non-Demographic Change'!$C52) -> 0 | AD52: =SUMIFS('Summary Calculations'!L$6:L$455,'Summary Calculations'!$E$6:$E$455,'Non-Demographic Change'!$C47,'Summary Calculations'!$F$6:$F$455,'Non-Demographic Change'!$C52) -> 0 | AE52: =SUMIFS('Summary Calculations'!M$6:M$455,'Summary Calculations'!$E$6:$E$455,'Non-Demographic Change'!$C47,'Summary Calculations'!$F$6:$F$455,'Non-Demographic Change'!$C52) -> 0 | AF52: =SUMIFS('Summary Calculations'!N$6:N$455,'Summary Calculations'!$E$6:$E$455,'Non-Demographic Change'!$C47,'Summary Calculations'!$F$6:$F$455,'Non-Demographic Change'!$C52) -> 0 | AI52: =IF($C53="Percentage",AB52*(1+D52),AB52+D52) -> 0 | AJ52: =IF($C53="Percentage",AC52*(1+E52),AC52+E52) -> 0 | AK52: =IF($C53="Percentage",AD52*(1+F52),AD52+F52) -> 0 | AL52: =IF($C53="Percentage",AE52*(1+G52),AE52+G52) -> 0 | AM52: =IF($C53="Percentage",AF52*(1+H52),AF52+H52) -> 0
C53: Percentage | D53: 0.12 | E53: 0.12 | F53: 0.12 | G53: 0.11 | H53: 0.1
B56: =B47+1 -> 6 | C56: Choose Specialty
C57: Outpatient | D57: =IFERROR(IF($C62="Percentage",D62,D62*AB57/SUM(AB57:AB61)),0) -> 0 | E57: =IFERROR(IF($C62="Percentage",E62,E62*AC57/SUM(AC57:AC61)),0) -> 0 | F57: 0 | G57: 0 | H57: 0 | AA57: =IFERROR(CONCATENATE(INDEX('Summary Calculations'!$BC$6:$BC$15,MATCH($C$56,'Summary Calculations'!$BB$6:$BB$15,0)),INDEX('Summary Calculations'!$BE$6:$BE$15,MATCH(C57,'Summary Calculations'!$BD$6:$BD$15,0))),"NA") -> NA | AB57: =SUMIFS('Summary Calculations'!J$6:J$455,'Summary Calculations'!$E$6:$E$455,'Non-Demographic Change'!$C56,'Summary Calculations'!$F$6:$F$455,'Non-Demographic Change'!$C57) -> 0 | AC57: =SUMIFS('Summary Calculations'!K$6:K$455,'Summary Calculations'!$E$6:$E$455,'Non-Demographic Change'!$C56,'Summary Calculations'!$F$6:$F$455,'Non-Demographic Change'!$C57) -> 0 | AD57: =SUMIFS('Summary Calculations'!L$6:L$455,'Summary Calculations'!$E$6:$E$455,'Non-Demographic Change'!$C56,'Summary Calculations'!$F$6:$F$455,'Non-Demographic Change'!$C57) -> 0 | AE57: =SUMIFS('Summary Calculations'!M$6:M$455,'Summary Calculations'!$E$6:$E$455,'Non-Demographic Change'!$C56,'Summary Calculations'!$F$6:$F$455,'Non-Demographic Change'!$C57) -> 0 | AF57: =SUMIFS('Summary Calculations'!N$6:N$455,'Summary Calculations'!$E$6:$E$455,'Non-Demographic Change'!$C56,'Summary Calculations'!$F$6:$F$455,'Non-Demographic Change'!$C57) -> 0 | AI57: =IF($C62="Percentage",AB57*(1+D57),AB57+D57) -> 0 | AJ57: =IF($C62="Percentage",AC57*(1+E57),AC57+E57) -> 0 | AK57: =IF($C62="Percentage",AD57*(1+F57),AD57+F57) -> 0 | AL57: =IF($C62="Percentage",AE57*(1+G57),AE57+G57) -> 0 | AM57: =IF($C62="Percentage",AF57*(1+H57),AF57+H57) -> 0
C58: Elective | D58: =IFERROR(IF($C62="Percentage",D62,D62*AB58/SUM(AB57:AB61)),0) -> 0 | E58: =IFERROR(IF($C62="Percentage",E62,E62*AC58/SUM(AC57:AC61)),0) -> 0 | F58: 0 | G58: 0 | H58: 0 | AA58: =IFERROR(CONCATENATE(INDEX('Summary Calculations'!$BC$6:$BC$15,MATCH($C$56,'Summary Calculations'!$BB$6:$BB$15,0)),INDEX('Summary Calculations'!$BE$6:$BE$15,MATCH(C58,'Summary Calculations'!$BD$6:$BD$15,0))),"NA") -> NA | AB58: =SUMIFS('Summary Calculations'!J$6:J$455,'Summary Calculations'!$E$6:$E$455,'Non-Demographic Change'!$C56,'Summary Calculations'!$F$6:$F$455,'Non-Demographic Change'!$C58) -> 0 | AC58: =SUMIFS('Summary Calculations'!K$6:K$455,'Summary Calculations'!$E$6:$E$455,'Non-Demographic Change'!$C56,'Summary Calculations'!$F$6:$F$455,'Non-Demographic Change'!$C58) -> 0 | AD58: =SUMIFS('Summary Calculations'!L$6:L$455,'Summary Calculations'!$E$6:$E$455,'Non-Demographic Change'!$C56,'Summary Calculations'!$F$6:$F$455,'Non-Demographic Change'!$C58) -> 0 | AE58: =SUMIFS('Summary Calculations'!M$6:M$455,'Summary Calculations'!$E$6:$E$455,'Non-Demographic Change'!$C56,'Summary Calculations'!$F$6:$F$455,'Non-Demographic Change'!$C58) -> 0 | AF58: =SUMIFS('Summary Calculations'!N$6:N$455,'Summary Calculations'!$E$6:$E$455,'Non-Demographic Change'!$C56,'Summary Calculations'!$F$6:$F$455,'Non-Demographic Change'!$C58) -> 0 | AI58: =IF($C62="Percentage",AB58*(1+D58),AB58+D58) -> 0 | AJ58: =IF($C62="Percentage",AC58*(1+E58),AC58+E58) -> 0 | AK58: =IF($C62="Percentage",AD58*(1+F58),AD58+F58) -> 0 | AL58: =IF($C62="Percentage",AE58*(1+G58),AE58+G58) -> 0 | AM58: =IF($C62="Percentage",AF58*(1+H58),AF58+H58) -> 0
C59: Non-elective | D59: =IFERROR(IF($C62="Percentage",D62,D62*AB59/SUM(AB57:AB61)),0) -> 0 | E59: =IFERROR(IF($C62="Percentage",E62,E62*AC59/SUM(AC57:AC61)),0) -> 0 | F59: 0 | G59: 0 | H59: 0 | AA59: =IFERROR(CONCATENATE(INDEX('Summary Calculations'!$BC$6:$BC$15,MATCH($C$56,'Summary Calculations'!$BB$6:$BB$15,0)),INDEX('Summary Calculations'!$BE$6:$BE$15,MATCH(C59,'Summary Calculations'!$BD$6:$BD$15,0))),"NA") -> NA | AB59: =SUMIFS('Summary Calculations'!J$6:J$455,'Summary Calculations'!$E$6:$E$455,'Non-Demographic Change'!$C56,'Summary Calculations'!$F$6:$F$455,'Non-Demographic Change'!$C59) -> 0 | AC59: =SUMIFS('Summary Calculations'!K$6:K$455,'Summary Calculations'!$E$6:$E$455,'Non-Demographic Change'!$C56,'Summary Calculations'!$F$6:$F$455,'Non-Demographic Change'!$C59) -> 0 | AD59: =SUMIFS('Summary Calculations'!L$6:L$455,'Summary Calculations'!$E$6:$E$455,'Non-Demographic Change'!$C56,'Summary Calculations'!$F$6:$F$455,'Non-Demographic Change'!$C59) -> 0 | AE59: =SUMIFS('Summary Calculations'!M$6:M$455,'Summary Calculations'!$E$6:$E$455,'Non-Demographic Change'!$C56,'Summary Calculations'!$F$6:$F$455,'Non-Demographic Change'!$C59) -> 0 | AF59: =SUMIFS('Summary Calculations'!N$6:N$455,'Summary Calculations'!$E$6:$E$455,'Non-Demographic Change'!$C56,'Summary Calculations'!$F$6:$F$455,'Non-Demographic Change'!$C59) -> 0 | AI59: =IF($C62="Percentage",AB59*(1+D59),AB59+D59) -> 0 | AJ59: =IF($C62="Percentage",AC59*(1+E59),AC59+E59) -> 0 | AK59: =IF($C62="Percentage",AD59*(1+F59),AD59+F59) -> 0 | AL59: =IF($C62="Percentage",AE59*(1+G59),AE59+G59) -> 0 | AM59: =IF($C62="Percentage",AF59*(1+H59),AF59+H59) -> 0
C60: A&E | D60: =IFERROR(IF($C62="Percentage",D62,D62*AB60/SUM(AB57:AB61)),0) -> 0 | E60: =IFERROR(IF($C62="Percentage",E62,E62*AC60/SUM(AC57:AC61)),0) -> 0 | F60: 0 | G60: 0 | H60: 0 | AA60: =IFERROR(CONCATENATE(INDEX('Summary Calculations'!$BC$6:$BC$15,MATCH($C$56,'Summary Calculations'!$BB$6:$BB$15,0)),INDEX('Summary Calculations'!$BE$6:$BE$15,MATCH(C60,'Summary Calculations'!$BD$6:$BD$15,0))),"NA") -> NA | AB60: =SUMIFS('Summary Calculations'!J$6:J$455,'Summary Calculations'!$E$6:$E$455,'Non-Demographic Change'!$C56,'Summary Calculations'!$F$6:$F$455,'Non-Demographic Change'!$C60) -> 0 | AC60: =SUMIFS('Summary Calculations'!K$6:K$455,'Summary Calculations'!$E$6:$E$455,'Non-Demographic Change'!$C56,'Summary Calculations'!$F$6:$F$455,'Non-Demographic Change'!$C60) -> 0 | AD60: =SUMIFS('Summary Calculations'!L$6:L$455,'Summary Calculations'!$E$6:$E$455,'Non-Demographic Change'!$C56,'Summary Calculations'!$F$6:$F$455,'Non-Demographic Change'!$C60) -> 0 | AE60: =SUMIFS('Summary Calculations'!M$6:M$455,'Summary Calculations'!$E$6:$E$455,'Non-Demographic Change'!$C56,'Summary Calculations'!$F$6:$F$455,'Non-Demographic Change'!$C60) -> 0 | AF60: =SUMIFS('Summary Calculations'!N$6:N$455,'Summary Calculations'!$E$6:$E$455,'Non-Demographic Change'!$C56,'Summary Calculations'!$F$6:$F$455,'Non-Demographic Change'!$C60) -> 0 | AI60: =IF($C62="Percentage",AB60*(1+D60),AB60+D60) -> 0 | AJ60: =IF($C62="Percentage",AC60*(1+E60),AC60+E60) -> 0 | AK60: =IF($C62="Percentage",AD60*(1+F60),AD60+F60) -> 0 | AL60: =IF($C62="Percentage",AE60*(1+G60),AE60+G60) -> 0 | AM60: =IF($C62="Percentage",AF60*(1+H60),AF60+H60) -> 0
C61: Community | D61: =IFERROR(IF($C62="Percentage",D62,D62*AB61/SUM(AB57:AB61)),0) -> 0 | E61: =IFERROR(IF($C62="Percentage",E62,E62*AC61/SUM(AC57:AC61)),0) -> 0 | F61: 0 | G61: 0 | H61: 0 | AA61: =IFERROR(CONCATENATE(INDEX('Summary Calculations'!$BC$6:$BC$15,MATCH($C$56,'Summary Calculations'!$BB$6:$BB$15,0)),INDEX('Summary Calculations'!$BE$6:$BE$15,MATCH(C61,'Summary Calculations'!$BD$6:$BD$15,0))),"NA") -> NA | AB61: =SUMIFS('Summary Calculations'!J$6:J$455,'Summary Calculations'!$E$6:$E$455,'Non-Demographic Change'!$C56,'Summary Calculations'!$F$6:$F$455,'Non-Demographic Change'!$C61) -> 0 | AC61: =SUMIFS('Summary Calculations'!K$6:K$455,'Summary Calculations'!$E$6:$E$455,'Non-Demographic Change'!$C56,'Summary Calculations'!$F$6:$F$455,'Non-Demographic Change'!$C61) -> 0 | AD61: =SUMIFS('Summary Calculations'!L$6:L$455,'Summary Calculations'!$E$6:$E$455,'Non-Demographic Change'!$C56,'Summary Calculations'!$F$6:$F$455,'Non-Demographic Change'!$C61) -> 0 | AE61: =SUMIFS('Summary Calculations'!M$6:M$455,'Summary Calculations'!$E$6:$E$455,'Non-Demographic Change'!$C56,'Summary Calculations'!$F$6:$F$455,'Non-Demographic Change'!$C61) -> 0 | AF61: =SUMIFS('Summary Calculations'!N$6:N$455,'Summary Calculations'!$E$6:$E$455,'Non-Demographic Change'!$C56,'Summary Calculations'!$F$6:$F$455,'Non-Demographic Change'!$C61) -> 0 | AI61: =IF($C62="Percentage",AB61*(1+D61),AB61+D61) -> 0 | AJ61: =IF($C62="Percentage",AC61*(1+E61),AC61+E61) -> 0 | AK61: =IF($C62="Percentage",AD61*(1+F61),AD61+F61) -> 0 | AL61: =IF($C62="Percentage",AE61*(1+G61),AE61+G61) -> 0 | AM61: =IF($C62="Percentage",AF61*(1+H61),AF61+H61) -> 0
C62: Number of cases | D62: 0 | E62: 0 | F62: 0 | G62: 0 | H62: 0
B65: =B56+1 -> 7
C66: Outpatient | D66: =IFERROR(IF($C71="Percentage",D71,D71*AB66/SUM(AB66:AB70)),0) -> 0 | E66: =IFERROR(IF($C71="Percentage",E71,E71*AC66/SUM(AC66:AC70)),0) -> 0 | F66: 0 | G66: 0 | H66: 0 | AA66: =IFERROR(CONCATENATE(INDEX('Summary Calculations'!$BC$6:$BC$15,MATCH($C$65,'Summary Calculations'!$BB$6:$BB$15,0)),INDEX('Summary Calculations'!$BE$6:$BE$15,MATCH(C66,'Summary Calculations'!$BD$6:$BD$15,0))),"NA") -> NA | AB66: =SUMIFS('Summary Calculations'!J$6:J$455,'Summary Calculations'!$E$6:$E$455,'Non-Demographic Change'!$C65,'Summary Calculations'!$F$6:$F$455,'Non-Demographic Change'!$C66) -> 0 | AC66: =SUMIFS('Summary Calculations'!K$6:K$455,'Summary Calculations'!$E$6:$E$455,'Non-Demographic Change'!$C65,'Summary Calculations'!$F$6:$F$455,'Non-Demographic Change'!$C66) -> 0 | AD66: =SUMIFS('Summary Calculations'!L$6:L$455,'Summary Calculations'!$E$6:$E$455,'Non-Demographic Change'!$C65,'Summary Calculations'!$F$6:$F$455,'Non-Demographic Change'!$C66) -> 0 | AE66: =SUMIFS('Summary Calculations'!M$6:M$455,'Summary Calculations'!$E$6:$E$455,'Non-Demographic Change'!$C65,'Summary Calculations'!$F$6:$F$455,'Non-Demographic Change'!$C66) -> 0 | AF66: =SUMIFS('Summary Calculations'!N$6:N$455,'Summary Calculations'!$E$6:$E$455,'Non-Demographic Change'!$C65,'Summary Calculations'!$F$6:$F$455,'Non-Demographic Change'!$C66) -> 0 | AI66: =IF($C71="Percentage",AB66*(1+D66),AB66+D66) -> 0 | AJ66: =IF($C71="Percentage",AC66*(1+E66),AC66+E66) -> 0 | AK66: =IF($C71="Percentage",AD66*(1+F66),AD66+F66) -> 0 | AL66: =IF($C71="Percentage",AE66*(1+G66),AE66+G66) -> 0 | AM66: =IF($C71="Percentage",AF66*(1+H66),AF66+H66) -> 0
C67: Elective | D67: =IFERROR(IF($C71="Percentage",D71,D71*AB67/SUM(AB66:AB70)),0) -> 0 | E67: =IFERROR(IF($C71="Percentage",E71,E71*AC67/SUM(AC66:AC70)),0) -> 0 | F67: 0 | G67: 0 | H67: 0 | AA67: =IFERROR(CONCATENATE(INDEX('Summary Calculations'!$BC$6:$BC$15,MATCH($C$65,'Summary Calculations'!$BB$6:$BB$15,0)),INDEX('Summary Calculations'!$BE$6:$BE$15,MATCH(C67,'Summary Calculations'!$BD$6:$BD$15,0))),"NA") -> NA | AB67: =SUMIFS('Summary Calculations'!J$6:J$455,'Summary Calculations'!$E$6:$E$455,'Non-Demographic Change'!$C65,'Summary Calculations'!$F$6:$F$455,'Non-Demographic Change'!$C67) -> 0 | AC67: =SUMIFS('Summary Calculations'!K$6:K$455,'Summary Calculations'!$E$6:$E$455,'Non-Demographic Change'!$C65,'Summary Calculations'!$F$6:$F$455,'Non-Demographic Change'!$C67) -> 0 | AD67: =SUMIFS('Summary Calculations'!L$6:L$455,'Summary Calculations'!$E$6:$E$455,'Non-Demographic Change'!$C65,'Summary Calculations'!$F$6:$F$455,'Non-Demographic Change'!$C67) -> 0 | AE67: =SUMIFS('Summary Calculations'!M$6:M$455,'Summary Calculations'!$E$6:$E$455,'Non-Demographic Change'!$C65,'Summary Calculations'!$F$6:$F$455,'Non-Demographic Change'!$C67) -> 0 | AF67: =SUMIFS('Summary Calculations'!N$6:N$455,'Summary Calculations'!$E$6:$E$455,'Non-Demographic Change'!$C65,'Summary Calculations'!$F$6:$F$455,'Non-Demographic Change'!$C67) -> 0 | AI67: =IF($C71="Percentage",AB67*(1+D67),AB67+D67) -> 0 | AJ67: =IF($C71="Percentage",AC67*(1+E67),AC67+E67) -> 0 | AK67: =IF($C71="Percentage",AD67*(1+F67),AD67+F67) -> 0 | AL67: =IF($C71="Percentage",AE67*(1+G67),AE67+G67) -> 0 | AM67: =IF($C71="Percentage",AF67*(1+H67),AF67+H67) -> 0
C68: Non-elective | D68: =IFERROR(IF($C71="Percentage",D71,D71*AB68/SUM(AB66:AB70)),0) -> 0 | E68: =IFERROR(IF($C71="Percentage",E71,E71*AC68/SUM(AC66:AC70)),0) -> 0 | F68: 0 | G68: 0 | H68: 0 | AA68: =IFERROR(CONCATENATE(INDEX('Summary Calculations'!$BC$6:$BC$15,MATCH($C$65,'Summary Calculations'!$BB$6:$BB$15,0)),INDEX('Summary Calculations'!$BE$6:$BE$15,MATCH(C68,'Summary Calculations'!$BD$6:$BD$15,0))),"NA") -> NA | AB68: =SUMIFS('Summary Calculations'!J$6:J$455,'Summary Calculations'!$E$6:$E$455,'Non-Demographic Change'!$C65,'Summary Calculations'!$F$6:$F$455,'Non-Demographic Change'!$C68) -> 0 | AC68: =SUMIFS('Summary Calculations'!K$6:K$455,'Summary Calculations'!$E$6:$E$455,'Non-Demographic Change'!$C65,'Summary Calculations'!$F$6:$F$455,'Non-Demographic Change'!$C68) -> 0 | AD68: =SUMIFS('Summary Calculations'!L$6:L$455,'Summary Calculations'!$E$6:$E$455,'Non-Demographic Change'!$C65,'Summary Calculations'!$F$6:$F$455,'Non-Demographic Change'!$C68) -> 0 | AE68: =SUMIFS('Summary Calculations'!M$6:M$455,'Summary Calculations'!$E$6:$E$455,'Non-Demographic Change'!$C65,'Summary Calculations'!$F$6:$F$455,'Non-Demographic Change'!$C68) -> 0 | AF68: =SUMIFS('Summary Calculations'!N$6:N$455,'Summary Calculations'!$E$6:$E$455,'Non-Demographic Change'!$C65,'Summary Calculations'!$F$6:$F$455,'Non-Demographic Change'!$C68) -> 0 | AI68: =IF($C71="Percentage",AB68*(1+D68),AB68+D68) -> 0 | AJ68: =IF($C71="Percentage",AC68*(1+E68),AC68+E68) -> 0 | AK68: =IF($C71="Percentage",AD68*(1+F68),AD68+F68) -> 0 | AL68: =IF($C71="Percentage",AE68*(1+G68),AE68+G68) -> 0 | AM68: =IF($C71="Percentage",AF68*(1+H68),AF68+H68) -> 0
C69: A&E | D69: =IFERROR(IF($C71="Percentage",D71,D71*AB69/SUM(AB66:AB70)),0) -> 0 | E69: =IFERROR(IF($C71="Percentage",E71,E71*AC69/SUM(AC66:AC70)),0) -> 0 | F69: 0 | G69: 0 | H69: 0 | AA69: =IFERROR(CONCATENATE(INDEX('Summary Calculations'!$BC$6:$BC$15,MATCH($C$65,'Summary Calculations'!$BB$6:$BB$15,0)),INDEX('Summary Calculations'!$BE$6:$BE$15,MATCH(C69,'Summary Calculations'!$BD$6:$BD$15,0))),"NA") -> NA | AB69: =SUMIFS('Summary Calculations'!J$6:J$455,'Summary Calculations'!$E$6:$E$455,'Non-Demographic Change'!$C65,'Summary Calculations'!$F$6:$F$455,'Non-Demographic Change'!$C69) -> 0 | AC69: =SUMIFS('Summary Calculations'!K$6:K$455,'Summary Calculations'!$E$6:$E$455,'Non-Demographic Change'!$C65,'Summary Calculations'!$F$6:$F$455,'Non-Demographic Change'!$C69) -> 0 | AD69: =SUMIFS('Summary Calculations'!L$6:L$455,'Summary Calculations'!$E$6:$E$455,'Non-Demographic Change'!$C65,'Summary Calculations'!$F$6:$F$455,'Non-Demographic Change'!$C69) -> 0 | AE69: =SUMIFS('Summary Calculations'!M$6:M$455,'Summary Calculations'!$E$6:$E$455,'Non-Demographic Change'!$C65,'Summary Calculations'!$F$6:$F$455,'Non-Demographic Change'!$C69) -> 0 | AF69: =SUMIFS('Summary Calculations'!N$6:N$455,'Summary Calculations'!$E$6:$E$455,'Non-Demographic Change'!$C65,'Summary Calculations'!$F$6:$F$455,'Non-Demographic Change'!$C69) -> 0 | AI69: =IF($C71="Percentage",AB69*(1+D69),AB69+D69) -> 0 | AJ69: =IF($C71="Percentage",AC69*(1+E69),AC69+E69) -> 0 | AK69: =IF($C71="Percentage",AD69*(1+F69),AD69+F69) -> 0 | AL69: =IF($C71="Percentage",AE69*(1+G69),AE69+G69) -> 0 | AM69: =IF($C71="Percentage",AF69*(1+H69),AF69+H69) -> 0
C70: Community | D70: =IFERROR(IF($C71="Percentage",D71,D71*AB70/SUM(AB66:AB70)),0) -> 0 | E70: =IFERROR(IF($C71="Percentage",E71,E71*AC70/SUM(AC66:AC70)),0) -> 0 | F70: 0 | G70: 0 | H70: 0 | AA70: =IFERROR(CONCATENATE(INDEX('Summary Calculations'!$BC$6:$BC$15,MATCH($C$65,'Summary Calculations'!$BB$6:$BB$15,0)),INDEX('Summary Calculations'!$BE$6:$BE$15,MATCH(C70,'Summary Calculations'!$BD$6:$BD$15,0))),"NA") -> NA | AB70: =SUMIFS('Summary Calculations'!J$6:J$455,'Summary Calculations'!$E$6:$E$455,'Non-Demographic Change'!$C65,'Summary Calculations'!$F$6:$F$455,'Non-Demographic Change'!$C70) -> 0 | AC70: =SUMIFS('Summary Calculations'!K$6:K$455,'Summary Calculations'!$E$6:$E$455,'Non-Demographic Change'!$C65,'Summary Calculations'!$F$6:$F$455,'Non-Demographic Change'!$C70) -> 0 | AD70: =SUMIFS('Summary Calculations'!L$6:L$455,'Summary Calculations'!$E$6:$E$455,'Non-Demographic Change'!$C65,'Summary Calculations'!$F$6:$F$455,'Non-Demographic Change'!$C70) -> 0 | AE70: =SUMIFS('Summary Calculations'!M$6:M$455,'Summary Calculations'!$E$6:$E$455,'Non-Demographic Change'!$C65,'Summary Calculations'!$F$6:$F$455,'Non-Demographic Change'!$C70) -> 0 | AF70: =SUMIFS('Summary Calculations'!N$6:N$455,'Summary Calculations'!$E$6:$E$455,'Non-Demographic Change'!$C65,'Summary Calculations'!$F$6:$F$455,'Non-Demographic Change'!$C70) -> 0 | AI70: =IF($C71="Percentage",AB70*(1+D70),AB70+D70) -> 0 | AJ70: =IF($C71="Percentage",AC70*(1+E70),AC70+E70) -> 0 | AK70: =IF($C71="Percentage",AD70*(1+F70),AD70+F70) -> 0 | AL70: =IF($C71="Percentage",AE70*(1+G70),AE70+G70) -> 0 | AM70: =IF($C71="Percentage",AF70*(1+H70),AF70+H70) -> 0
C71: Number of cases | D71: 0 | E71: 0 | F71: 0 | G71: 0 | H71: 0
B74: =B65+1 -> 8
C75: Outpatient | D75: =IFERROR(IF($C80="Percentage",D80,D80*AB75/SUM(AB75:AB79)),0) -> 0 | E75: =IFERROR(IF($C80="Percentage",E80,E80*AC75/SUM(AC75:AC79)),0) -> 0 | F75: 0 | G75: 0 | H75: 0 | AA75: =IFERROR(CONCATENATE(INDEX('Summary Calculations'!$BC$6:$BC$15,MATCH($C$74,'Summary Calculations'!$BB$6:$BB$15,0)),INDEX('Summary Calculations'!$BE$6:$BE$15,MATCH(C75,'Summary Calculations'!$BD$6:$BD$15,0))),"NA") -> NA | AB75: =SUMIFS('Summary Calculations'!J$6:J$455,'Summary Calculations'!$E$6:$E$455,'Non-Demographic Change'!$C74,'Summary Calculations'!$F$6:$F$455,'Non-Demographic Change'!$C75) -> 0 | AC75: =SUMIFS('Summary Calculations'!K$6:K$455,'Summary Calculations'!$E$6:$E$455,'Non-Demographic Change'!$C74,'Summary Calculations'!$F$6:$F$455,'Non-Demographic Change'!$C75) -> 0 | AD75: =SUMIFS('Summary Calculations'!L$6:L$455,'Summary Calculations'!$E$6:$E$455,'Non-Demographic Change'!$C74,'Summary Calculations'!$F$6:$F$455,'Non-Demographic Change'!$C75) -> 0 | AE75: =SUMIFS('Summary Calculations'!M$6:M$455,'Summary Calculations'!$E$6:$E$455,'Non-Demographic Change'!$C74,'Summary Calculations'!$F$6:$F$455,'Non-Demographic Change'!$C75) -> 0 | AF75: =SUMIFS('Summary Calculations'!N$6:N$455,'Summary Calculations'!$E$6:$E$455,'Non-Demographic Change'!$C74,'Summary Calculations'!$F$6:$F$455,'Non-Demographic Change'!$C75) -> 0 | AI75: =IF($C80="Percentage",AB75*(1+D75),AB75+D75) -> 0 | AJ75: =IF($C80="Percentage",AC75*(1+E75),AC75+E75) -> 0 | AK75: =IF($C80="Percentage",AD75*(1+F75),AD75+F75) -> 0 | AL75: =IF($C80="Percentage",AE75*(1+G75),AE75+G75) -> 0 | AM75: =IF($C80="Percentage",AF75*(1+H75),AF75+H75) -> 0
C76: Elective | D76: =IFERROR(IF($C80="Percentage",D80,D80*AB76/SUM(AB75:AB79)),0) -> 0 | E76: =IFERROR(IF($C80="Percentage",E80,E80*AC76/SUM(AC75:AC79)),0) -> 0 | F76: 0 | G76: 0 | H76: 0 | AA76: =IFERROR(CONCATENATE(INDEX('Summary Calculations'!$BC$6:$BC$15,MATCH($C$74,'Summary Calculations'!$BB$6:$BB$15,0)),INDEX('Summary Calculations'!$BE$6:$BE$15,MATCH(C76,'Summary Calculations'!$BD$6:$BD$15,0))),"NA") -> NA | AB76: =SUMIFS('Summary Calculations'!J$6:J$455,'Summary Calculations'!$E$6:$E$455,'Non-Demographic Change'!$C74,'Summary Calculations'!$F$6:$F$455,'Non-Demographic Change'!$C76) -> 0 | AC76: =SUMIFS('Summary Calculations'!K$6:K$455,'Summary Calculations'!$E$6:$E$455,'Non-Demographic Change'!$C74,'Summary Calculations'!$F$6:$F$455,'Non-Demographic Change'!$C76) -> 0 | AD76: =SUMIFS('Summary Calculations'!L$6:L$455,'Summary Calculations'!$E$6:$E$455,'Non-Demographic Change'!$C74,'Summary Calculations'!$F$6:$F$455,'Non-Demographic Change'!$C76) -> 0 | AE76: =SUMIFS('Summary Calculations'!M$6:M$455,'Summary Calculations'!$E$6:$E$455,'Non-Demographic Change'!$C74,'Summary Calculations'!$F$6:$F$455,'Non-Demographic Change'!$C76) -> 0 | AF76: =SUMIFS('Summary Calculations'!N$6:N$455,'Summary Calculations'!$E$6:$E$455,'Non-Demographic Change'!$C74,'Summary Calculations'!$F$6:$F$455,'Non-Demographic Change'!$C76) -> 0 | AI76: =IF($C80="Percentage",AB76*(1+D76),AB76+D76) -> 0 | AJ76: =IF($C80="Percentage",AC76*(1+E76),AC76+E76) -> 0 | AK76: =IF($C80="Percentage",AD76*(1+F76),AD76+F76) -> 0 | AL76: =IF($C80="Percentage",AE76*(1+G76),AE76+G76) -> 0 | AM76: =IF($C80="Percentage",AF76*(1+H76),AF76+H76) -> 0
C77: Non-elective | D77: =IFERROR(IF($C80="Percentage",D80,D80*AB77/SUM(AB75:AB79)),0) -> 0 | E77: =IFERROR(IF($C80="Percentage",E80,E80*AC77/SUM(AC75:AC79)),0) -> 0 | F77: 0 | G77: 0 | H77: 0 | AA77: =IFERROR(CONCATENATE(INDEX('Summary Calculations'!$BC$6:$BC$15,MATCH($C$74,'Summary Calculations'!$BB$6:$BB$15,0)),INDEX('Summary Calculations'!$BE$6:$BE$15,MATCH(C77,'Summary Calculations'!$BD$6:$BD$15,0))),"NA") -> NA | AB77: =SUMIFS('Summary Calculations'!J$6:J$455,'Summary Calculations'!$E$6:$E$455,'Non-Demographic Change'!$C74,'Summary Calculations'!$F$6:$F$455,'Non-Demographic Change'!$C77) -> 0 | AC77: =SUMIFS('Summary Calculations'!K$6:K$455,'Summary Calculations'!$E$6:$E$455,'Non-Demographic Change'!$C74,'Summary Calculations'!$F$6:$F$455,'Non-Demographic Change'!$C77) -> 0 | AD77: =SUMIFS('Summary Calculations'!L$6:L$455,'Summary Calculations'!$E$6:$E$455,'Non-Demographic Change'!$C74,'Summary Calculations'!$F$6:$F$455,'Non-Demographic Change'!$C77) -> 0 | AE77: =SUMIFS('Summary Calculations'!M$6:M$455,'Summary Calculations'!$E$6:$E$455,'Non-Demographic Change'!$C74,'Summary Calculations'!$F$6:$F$455,'Non-Demographic Change'!$C77) -> 0 | AF77: =SUMIFS('Summary Calculations'!N$6:N$455,'Summary Calculations'!$E$6:$E$455,'Non-Demographic Change'!$C74,'Summary Calculations'!$F$6:$F$455,'Non-Demographic Change'!$C77) -> 0 | AI77: =IF($C80="Percentage",AB77*(1+D77),AB77+D77) -> 0 | AJ77: =IF($C80="Percentage",AC77*(1+E77),AC77+E77) -> 0 | AK77: =IF($C80="Percentage",AD77*(1+F77),AD77+F77) -> 0 | AL77: =IF($C80="Percentage",AE77*(1+G77),AE77+G77) -> 0 | AM77: =IF($C80="Percentage",AF77*(1+H77),AF77+H77) -> 0
C78: A&E | D78: =IFERROR(IF($C80="Percentage",D80,D80*AB78/SUM(AB75:AB79)),0) -> 0 | E78: =IFERROR(IF($C80="Percentage",E80,E80*AC78/SUM(AC75:AC79)),0) -> 0 | F78: 0 | G78: 0 | H78: 0 | AA78: =IFERROR(CONCATENATE(INDEX('Summary Calculations'!$BC$6:$BC$15,MATCH($C$74,'Summary Calculations'!$BB$6:$BB$15,0)),INDEX('Summary Calculations'!$BE$6:$BE$15,MATCH(C78,'Summary Calculations'!$BD$6:$BD$15,0))),"NA") -> NA | AB78: =SUMIFS('Summary Calculations'!J$6:J$455,'Summary Calculations'!$E$6:$E$455,'Non-Demographic Change'!$C74,'Summary Calculations'!$F$6:$F$455,'Non-Demographic Change'!$C78) -> 0 | AC78: =SUMIFS('Summary Calculations'!K$6:K$455,'Summary Calculations'!$E$6:$E$455,'Non-Demographic Change'!$C74,'Summary Calculations'!$F$6:$F$455,'Non-Demographic Change'!$C78) -> 0 | AD78: =SUMIFS('Summary Calculations'!L$6:L$455,'Summary Calculations'!$E$6:$E$455,'Non-Demographic Change'!$C74,'Summary Calculations'!$F$6:$F$455,'Non-Demographic Change'!$C78) -> 0 | AE78: =SUMIFS('Summary Calculations'!M$6:M$455,'Summary Calculations'!$E$6:$E$455,'Non-Demographic Change'!$C74,'Summary Calculations'!$F$6:$F$455,'Non-Demographic Change'!$C78) -> 0 | AF78: =SUMIFS('Summary Calculations'!N$6:N$455,'Summary Calculations'!$E$6:$E$455,'Non-Demographic Change'!$C74,'Summary Calculations'!$F$6:$F$455,'Non-Demographic Change'!$C78) -> 0 | AI78: =IF($C80="Percentage",AB78*(1+D78),AB78+D78) -> 0 | AJ78: =IF($C80="Percentage",AC78*(1+E78),AC78+E78) -> 0 | AK78: =IF($C80="Percentage",AD78*(1+F78),AD78+F78) -> 0 | AL78: =IF($C80="Percentage",AE78*(1+G78),AE78+G78) -> 0 | AM78: =IF($C80="Percentage",AF78*(1+H78),AF78+H78) -> 0
C79: Community | D79: =IFERROR(IF($C80="Percentage",D80,D80*AB79/SUM(AB75:AB79)),0) -> 0 | E79: =IFERROR(IF($C80="Percentage",E80,E80*AC79/SUM(AC75:AC79)),0) -> 0 | F79: 0 | G79: 0 | H79: 0 | AA79: =IFERROR(CONCATENATE(INDEX('Summary Calculations'!$BC$6:$BC$15,MATCH($C$74,'Summary Calculations'!$BB$6:$BB$15,0)),INDEX('Summary Calculations'!$BE$6:$BE$15,MATCH(C79,'Summary Calculations'!$BD$6:$BD$15,0))),"NA") -> NA | AB79: =SUMIFS('Summary Calculations'!J$6:J$455,'Summary Calculations'!$E$6:$E$455,'Non-Demographic Change'!$C74,'Summary Calculations'!$F$6:$F$455,'Non-Demographic Change'!$C79) -> 0 | AC79: =SUMIFS('Summary Calculations'!K$6:K$455,'Summary Calculations'!$E$6:$E$455,'Non-Demographic Change'!$C74,'Summary Calculations'!$F$6:$F$455,'Non-Demographic Change'!$C79) -> 0 | AD79: =SUMIFS('Summary Calculations'!L$6:L$455,'Summary Calculations'!$E$6:$E$455,'Non-Demographic Change'!$C74,'Summary Calculations'!$F$6:$F$455,'Non-Demographic Change'!$C79) -> 0 | AE79: =SUMIFS('Summary Calculations'!M$6:M$455,'Summary Calculations'!$E$6:$E$455,'Non-Demographic Change'!$C74,'Summary Calculations'!$F$6:$F$455,'Non-Demographic Change'!$C79) -> 0 | AF79: =SUMIFS('Summary Calculations'!N$6:N$455,'Summary Calculations'!$E$6:$E$455,'Non-Demographic Change'!$C74,'Summary Calculations'!$F$6:$F$455,'Non-Demographic Change'!$C79) -> 0 | AI79: =IF($C80="Percentage",AB79*(1+D79),AB79+D79) -> 0 | AJ79: =IF($C80="Percentage",AC79*(1+E79),AC79+E79) -> 0 | AK79: =IF($C80="Percentage",AD79*(1+F79),AD79+F79) -> 0 | AL79: =IF($C80="Percentage",AE79*(1+G79),AE79+G79) -> 0 | AM79: =IF($C80="Percentage",AF79*(1+H79),AF79+H79) -> 0
C80: Number of cases | D80: 0 | E80: 0 | F80: 0 | G80: 0 | H80: 0
B83: =B74+1 -> 9
C84: Outpatient | D84: =IFERROR(IF($C89="Percentage",D89,D89*AB84/SUM(AB84:AB88)),0) -> 0 | E84: =IFERROR(IF($C89="Percentage",E89,E89*AC84/SUM(AC84:AC88)),0) -> 0 | F84: 0 | G84: 0 | H84: 0 | AA84: =IFERROR(CONCATENATE(INDEX('Summary Calculations'!$BC$6:$BC$15,MATCH($C$83,'Summary Calculations'!$BB$6:$BB$15,0)),INDEX('Summary Calculations'!$BE$6:$BE$15,MATCH(C84,'Summary Calculations'!$BD$6:$BD$15,0))),"NA") -> NA | AB84: =SUMIFS('Summary Calculations'!J$6:J$455,'Summary Calculations'!$E$6:$E$455,'Non-Demographic Change'!$C83,'Summary Calculations'!$F$6:$F$455,'Non-Demographic Change'!$C84) -> 0 | AC84: =SUMIFS('Summary Calculations'!K$6:K$455,'Summary Calculations'!$E$6:$E$455,'Non-Demographic Change'!$C83,'Summary Calculations'!$F$6:$F$455,'Non-Demographic Change'!$C84) -> 0 | AD84: =SUMIFS('Summary Calculations'!L$6:L$455,'Summary Calculations'!$E$6:$E$455,'Non-Demographic Change'!$C83,'Summary Calculations'!$F$6:$F$455,'Non-Demographic Change'!$C84) -> 0 | AE84: =SUMIFS('Summary Calculations'!M$6:M$455,'Summary Calculations'!$E$6:$E$455,'Non-Demographic Change'!$C83,'Summary Calculations'!$F$6:$F$455,'Non-Demographic Change'!$C84) -> 0 | AF84: =SUMIFS('Summary Calculations'!N$6:N$455,'Summary Calculations'!$E$6:$E$455,'Non-Demographic Change'!$C83,'Summary Calculations'!$F$6:$F$455,'Non-Demographic Change'!$C84) -> 0 | AI84: =IF($C89="Percentage",AB84*(1+D84),AB84+D84) -> 0 | AJ84: =IF($C89="Percentage",AC84*(1+E84),AC84+E84) -> 0 | AK84: =IF($C89="Percentage",AD84*(1+F84),AD84+F84) -> 0 | AL84: =IF($C89="Percentage",AE84*(1+G84),AE84+G84) -> 0 | AM84: =IF($C89="Percentage",AF84*(1+H84),AF84+H84) -> 0
C85: Elective | D85: =IFERROR(IF($C89="Percentage",D89,D89*AB85/SUM(AB84:AB88)),0) -> 0 | E85: =IFERROR(IF($C89="Percentage",E89,E89*AC85/SUM(AC84:AC88)),0) -> 0 | F85: 0 | G85: 0 | H85: 0 | AA85: =IFERROR(CONCATENATE(INDEX('Summary Calculations'!$BC$6:$BC$15,MATCH($C$83,'Summary Calculations'!$BB$6:$BB$15,0)),INDEX('Summary Calculations'!$BE$6:$BE$15,MATCH(C85,'Summary Calculations'!$BD$6:$BD$15,0))),"NA") -> NA | AB85: =SUMIFS('Summary Calculations'!J$6:J$455,'Summary Calculations'!$E$6:$E$455,'Non-Demographic Change'!$C83,'Summary Calculations'!$F$6:$F$455,'Non-Demographic Change'!$C85) -> 0 | AC85: =SUMIFS('Summary Calculations'!K$6:K$455,'Summary Calculations'!$E$6:$E$455,'Non-Demographic Change'!$C83,'Summary Calculations'!$F$6:$F$455,'Non-Demographic Change'!$C85) -> 0 | AD85: =SUMIFS('Summary Calculations'!L$6:L$455,'Summary Calculations'!$E$6:$E$455,'Non-Demographic Change'!$C83,'Summary Calculations'!$F$6:$F$455,'Non-Demographic Change'!$C85) -> 0 | AE85: =SUMIFS('Summary Calculations'!M$6:M$455,'Summary Calculations'!$E$6:$E$455,'Non-Demographic Change'!$C83,'Summary Calculations'!$F$6:$F$455,'Non-Demographic Change'!$C85) -> 0 | AF85: =SUMIFS('Summary Calculations'!N$6:N$455,'Summary Calculations'!$E$6:$E$455,'Non-Demographic Change'!$C83,'Summary Calculations'!$F$6:$F$455,'Non-Demographic Change'!$C85) -> 0 | AI85: =IF($C89="Percentage",AB85*(1+D85),AB85+D85) -> 0 | AJ85: =IF($C89="Percentage",AC85*(1+E85),AC85+E85) -> 0 | AK85: =IF($C89="Percentage",AD85*(1+F85),AD85+F85) -> 0 | AL85: =IF($C89="Percentage",AE85*(1+G85),AE85+G85) -> 0 | AM85: =IF($C89="Percentage",AF85*(1+H85),AF85+H85) -> 0
C86: Non-elective | D86: =IFERROR(IF($C89="Percentage",D89,D89*AB86/SUM(AB84:AB88)),0) -> 0 | E86: =IFERROR(IF($C89="Percentage",E89,E89*AC86/SUM(AC84:AC88)),0) -> 0 | F86: 0 | G86: 0 | H86: 0 | AA86: =IFERROR(CONCATENATE(INDEX('Summary Calculations'!$BC$6:$BC$15,MATCH($C$83,'Summary Calculations'!$BB$6:$BB$15,0)),INDEX('Summary Calculations'!$BE$6:$BE$15,MATCH(C86,'Summary Calculations'!$BD$6:$BD$15,0))),"NA") -> NA | AB86: =SUMIFS('Summary Calculations'!J$6:J$455,'Summary Calculations'!$E$6:$E$455,'Non-Demographic Change'!$C83,'Summary Calculations'!$F$6:$F$455,'Non-Demographic Change'!$C86) -> 0 | AC86: =SUMIFS('Summary Calculations'!K$6:K$455,'Summary Calculations'!$E$6:$E$455,'Non-Demographic Change'!$C83,'Summary Calculations'!$F$6:$F$455,'Non-Demographic Change'!$C86) -> 0 | AD86: =SUMIFS('Summary Calculations'!L$6:L$455,'Summary Calculations'!$E$6:$E$455,'Non-Demographic Change'!$C83,'Summary Calculations'!$F$6:$F$455,'Non-Demographic Change'!$C86) -> 0 | AE86: =SUMIFS('Summary Calculations'!M$6:M$455,'Summary Calculations'!$E$6:$E$455,'Non-Demographic Change'!$C83,'Summary Calculations'!$F$6:$F$455,'Non-Demographic Change'!$C86) -> 0 | AF86: =SUMIFS('Summary Calculations'!N$6:N$455,'Summary Calculations'!$E$6:$E$455,'Non-Demographic Change'!$C83,'Summary Calculations'!$F$6:$F$455,'Non-Demographic Change'!$C86) -> 0 | AI86: =IF($C89="Percentage",AB86*(1+D86),AB86+D86) -> 0 | AJ86: =IF($C89="Percentage",AC86*(1+E86),AC86+E86) -> 0 | AK86: =IF($C89="Percentage",AD86*(1+F86),AD86+F86) -> 0 | AL86: =IF($C89="Percentage",AE86*(1+G86),AE86+G86) -> 0 | AM86: =IF($C89="Percentage",AF86*(1+H86),AF86+H86) -> 0
C87: A&E | D87: =IFERROR(IF($C89="Percentage",D89,D89*AB87/SUM(AB84:AB88)),0) -> 0 | E87: =IFERROR(IF($C89="Percentage",E89,E89*AC87/SUM(AC84:AC88)),0) -> 0 | F87: 0 | G87: 0 | H87: 0 | AA87: =IFERROR(CONCATENATE(INDEX('Summary Calculations'!$BC$6:$BC$15,MATCH($C$83,'Summary Calculations'!$BB$6:$BB$15,0)),INDEX('Summary Calculations'!$BE$6:$BE$15,MATCH(C87,'Summary Calculations'!$BD$6:$BD$15,0))),"NA") -> NA | AB87: =SUMIFS('Summary Calculations'!J$6:J$455,'Summary Calculations'!$E$6:$E$455,'Non-Demographic Change'!$C83,'Summary Calculations'!$F$6:$F$455,'Non-Demographic Change'!$C87) -> 0 | AC87: =SUMIFS('Summary Calculations'!K$6:K$455,'Summary Calculations'!$E$6:$E$455,'Non-Demographic Change'!$C83,'Summary Calculations'!$F$6:$F$455,'Non-Demographic Change'!$C87) -> 0 | AD87: =SUMIFS('Summary Calculations'!L$6:L$455,'Summary Calculations'!$E$6:$E$455,'Non-Demographic Change'!$C83,'Summary Calculations'!$F$6:$F$455,'Non-Demographic Change'!$C87) -> 0 | AE87: =SUMIFS('Summary Calculations'!M$6:M$455,'Summary Calculations'!$E$6:$E$455,'Non-Demographic Change'!$C83,'Summary Calculations'!$F$6:$F$455,'Non-Demographic Change'!$C87) -> 0 | AF87: =SUMIFS('Summary Calculations'!N$6:N$455,'Summary Calculations'!$E$6:$E$455,'Non-Demographic Change'!$C83,'Summary Calculations'!$F$6:$F$455,'Non-Demographic Change'!$C87) -> 0 | AI87: =IF($C89="Percentage",AB87*(1+D87),AB87+D87) -> 0 | AJ87: =IF($C89="Percentage",AC87*(1+E87),AC87+E87) -> 0 | AK87: =IF($C89="Percentage",AD87*(1+F87),AD87+F87) -> 0 | AL87: =IF($C89="Percentage",AE87*(1+G87),AE87+G87) -> 0 | AM87: =IF($C89="Percentage",AF87*(1+H87),AF87+H87) -> 0
C88: Community | D88: =IFERROR(IF($C89="Percentage",D89,D89*AB88/SUM(AB84:AB88)),0) -> 0 | E88: =IFERROR(IF($C89="Percentage",E89,E89*AC88/SUM(AC84:AC88)),0) -> 0 | F88: 0 | G88: 0 | H88: 0 | AA88: =IFERROR(CONCATENATE(INDEX('Summary Calculations'!$BC$6:$BC$15,MATCH($C$83,'Summary Calculations'!$BB$6:$BB$15,0)),INDEX('Summary Calculations'!$BE$6:$BE$15,MATCH(C88,'Summary Calculations'!$BD$6:$BD$15,0))),"NA") -> NA | AB88: =SUMIFS('Summary Calculations'!J$6:J$455,'Summary Calculations'!$E$6:$E$455,'Non-Demographic Change'!$C83,'Summary Calculations'!$F$6:$F$455,'Non-Demographic Change'!$C88) -> 0 | AC88: =SUMIFS('Summary Calculations'!K$6:K$455,'Summary Calculations'!$E$6:$E$455,'Non-Demographic Change'!$C83,'Summary Calculations'!$F$6:$F$455,'Non-Demographic Change'!$C88) -> 0 | AD88: =SUMIFS('Summary Calculations'!L$6:L$455,'Summary Calculations'!$E$6:$E$455,'Non-Demographic Change'!$C83,'Summary Calculations'!$F$6:$F$455,'Non-Demographic Change'!$C88) -> 0 | AE88: =SUMIFS('Summary Calculations'!M$6:M$455,'Summary Calculations'!$E$6:$E$455,'Non-Demographic Change'!$C83,'Summary Calculations'!$F$6:$F$455,'Non-Demographic Change'!$C88) -> 0 | AF88: =SUMIFS('Summary Calculations'!N$6:N$455,'Summary Calculations'!$E$6:$E$455,'Non-Demographic Change'!$C83,'Summary Calculations'!$F$6:$F$455,'Non-Demographic Change'!$C88) -> 0 | AI88: =IF($C89="Percentage",AB88*(1+D88),AB88+D88) -> 0 | AJ88: =IF($C89="Percentage",AC88*(1+E88),AC88+E88) -> 0 | AK88: =IF($C89="Percentage",AD88*(1+F88),AD88+F88) -> 0 | AL88: =IF($C89="Percentage",AE88*(1+G88),AE88+G88) -> 0 | AM88: =IF($C89="Percentage",AF88*(1+H88),AF88+H88) -> 0
C89: Number of cases | D89: 0 | E89: 0 | F89: 0 | G89: 0 | H89: 0
B92: =B83+1 -> 10 | C92: Choose Specialty
C93: Outpatient | D93: =IFERROR(IF($C98="Percentage",D98,D98*AB93/SUM(AB93:AB97)),0) -> 0 | E93: =IFERROR(IF($C98="Percentage",E98,E98*AC93/SUM(AC93:AC97)),0) -> 0 | F93: 0 | G93: 0 | H93: 0 | AA93: =IFERROR(CONCATENATE(INDEX('Summary Calculations'!$BC$6:$BC$15,MATCH($C$92,'Summary Calculations'!$BB$6:$BB$15,0)),INDEX('Summary Calculations'!$BE$6:$BE$15,MATCH(C93,'Summary Calculations'!$BD$6:$BD$15,0))),"NA") -> NA | AB93: =SUMIFS('Summary Calculations'!J$6:J$455,'Summary Calculations'!$E$6:$E$455,'Non-Demographic Change'!$C92,'Summary Calculations'!$F$6:$F$455,'Non-Demographic Change'!$C93) -> 0 | AC93: =SUMIFS('Summary Calculations'!K$6:K$455,'Summary Calculations'!$E$6:$E$455,'Non-Demographic Change'!$C92,'Summary Calculations'!$F$6:$F$455,'Non-Demographic Change'!$C93) -> 0 | AD93: =SUMIFS('Summary Calculations'!L$6:L$455,'Summary Calculations'!$E$6:$E$455,'Non-Demographic Change'!$C92,'Summary Calculations'!$F$6:$F$455,'Non-Demographic Change'!$C93) -> 0 | AE93: =SUMIFS('Summary Calculations'!M$6:M$455,'Summary Calculations'!$E$6:$E$455,'Non-Demographic Change'!$C92,'Summary Calculations'!$F$6:$F$455,'Non-Demographic Change'!$C93) -> 0 | AF93: =SUMIFS('Summary Calculations'!N$6:N$455,'Summary Calculations'!$E$6:$E$455,'Non-Demographic Change'!$C92,'Summary Calculations'!$F$6:$F$455,'Non-Demographic Change'!$C93) -> 0 | AI93: =IF($C98="Percentage",AB93*(1+D93),AB93+D93) -> 0 | AJ93: =IF($C98="Percentage",AC93*(1+E93),AC93+E93) -> 0 | AK93: =IF($C98="Percentage",AD93*(1+F93),AD93+F93) -> 0 | AL93: =IF($C98="Percentage",AE93*(1+G93),AE93+G93) -> 0 | AM93: =IF($C98="Percentage",AF93*(1+H93),AF93+H93) -> 0
C94: Elective | D94: =IFERROR(IF($C98="Percentage",D98,D98*AB94/SUM(AB93:AB97)),0) -> 0 | E94: =IFERROR(IF($C98="Percentage",E98,E98*AC94/SUM(AC93:AC97)),0) -> 0 | F94: 0 | G94: 0 | H94: 0 | AA94: =IFERROR(CONCATENATE(INDEX('Summary Calculations'!$BC$6:$BC$15,MATCH($C$92,'Summary Calculations'!$BB$6:$BB$15,0)),INDEX('Summary Calculations'!$BE$6:$BE$15,MATCH(C94,'Summary Calculations'!$BD$6:$BD$15,0))),"NA") -> NA | AB94: =SUMIFS('Summary Calculations'!J$6:J$455,'Summary Calculations'!$E$6:$E$455,'Non-Demographic Change'!$C92,'Summary Calculations'!$F$6:$F$455,'Non-Demographic Change'!$C94) -> 0 | AC94: =SUMIFS('Summary Calculations'!K$6:K$455,'Summary Calculations'!$E$6:$E$455,'Non-Demographic Change'!$C92,'Summary Calculations'!$F$6:$F$455,'Non-Demographic Change'!$C94) -> 0 | AD94: =SUMIFS('Summary Calculations'!L$6:L$455,'Summary Calculations'!$E$6:$E$455,'Non-Demographic Change'!$C92,'Summary Calculations'!$F$6:$F$455,'Non-Demographic Change'!$C94) -> 0 | AE94: =SUMIFS('Summary Calculations'!M$6:M$455,'Summary Calculations'!$E$6:$E$455,'Non-Demographic Change'!$C92,'Summary Calculations'!$F$6:$F$455,'Non-Demographic Change'!$C94) -> 0 | AF94: =SUMIFS('Summary Calculations'!N$6:N$455,'Summary Calculations'!$E$6:$E$455,'Non-Demographic Change'!$C92,'Summary Calculations'!$F$6:$F$455,'Non-Demographic Change'!$C94) -> 0 | AI94: =IF($C98="Percentage",AB94*(1+D94),AB94+D94) -> 0 | AJ94: =IF($C98="Percentage",AC94*(1+E94),AC94+E94) -> 0 | AK94: =IF($C98="Percentage",AD94*(1+F94),AD94+F94) -> 0 | AL94: =IF($C98="Percentage",AE94*(1+G94),AE94+G94) -> 0 | AM94: =IF($C98="Percentage",AF94*(1+H94),AF94+H94) -> 0
C95: Non-elective | D95: =IFERROR(IF($C98="Percentage",D98,D98*AB95/SUM(AB93:AB97)),0) -> 0 | E95: =IFERROR(IF($C98="Percentage",E98,E98*AC95/SUM(AC93:AC97)),0) -> 0 | F95: 0 | G95: 0 | H95: 0 | AA95: =IFERROR(CONCATENATE(INDEX('Summary Calculations'!$BC$6:$BC$15,MATCH($C$92,'Summary Calculations'!$BB$6:$BB$15,0)),INDEX('Summary Calculations'!$BE$6:$BE$15,MATCH(C95,'Summary Calculations'!$BD$6:$BD$15,0))),"NA") -> NA | AB95: =SUMIFS('Summary Calculations'!J$6:J$455,'Summary Calculations'!$E$6:$E$455,'Non-Demographic Change'!$C92,'Summary Calculations'!$F$6:$F$455,'Non-Demographic Change'!$C95) -> 0 | AC95: =SUMIFS('Summary Calculations'!K$6:K$455,'Summary Calculations'!$E$6:$E$455,'Non-Demographic Change'!$C92,'Summary Calculations'!$F$6:$F$455,'Non-Demographic Change'!$C95) -> 0 | AD95: =SUMIFS('Summary Calculations'!L$6:L$455,'Summary Calculations'!$E$6:$E$455,'Non-Demographic Change'!$C92,'Summary Calculations'!$F$6:$F$455,'Non-Demographic Change'!$C95) -> 0 | AE95: =SUMIFS('Summary Calculations'!M$6:M$455,'Summary Calculations'!$E$6:$E$455,'Non-Demographic Change'!$C92,'Summary Calculations'!$F$6:$F$455,'Non-Demographic Change'!$C95) -> 0 | AF95: =SUMIFS('Summary Calculations'!N$6:N$455,'Summary Calculations'!$E$6:$E$455,'Non-Demographic Change'!$C92,'Summary Calculations'!$F$6:$F$455,'Non-Demographic Change'!$C95) -> 0 | AI95: =IF($C98="Percentage",AB95*(1+D95),AB95+D95) -> 0 | AJ95: =IF($C98="Percentage",AC95*(1+E95),AC95+E95) -> 0 | AK95: =IF($C98="Percentage",AD95*(1+F95),AD95+F95) -> 0 | AL95: =IF($C98="Percentage",AE95*(1+G95),AE95+G95) -> 0 | AM95: =IF($C98="Percentage",AF95*(1+H95),AF95+H95) -> 0
C96: A&E | D96: =IFERROR(IF($C98="Percentage",D98,D98*AB96/SUM(AB93:AB97)),0) -> 0 | E96: =IFERROR(IF($C98="Percentage",E98,E98*AC96/SUM(AC93:AC97)),0) -> 0 | F96: 0 | G96: 0 | H96: 0 | AA96: =IFERROR(CONCATENATE(INDEX('Summary Calculations'!$BC$6:$BC$15,MATCH($C$92,'Summary Calculations'!$BB$6:$BB$15,0)),INDEX('Summary Calculations'!$BE$6:$BE$15,MATCH(C96,'Summary Calculations'!$BD$6:$BD$15,0))),"NA") -> NA | AB96: =SUMIFS('Summary Calculations'!J$6:J$455,'Summary Calculations'!$E$6:$E$455,'Non-Demographic Change'!$C92,'Summary Calculations'!$F$6:$F$455,'Non-Demographic Change'!$C96) -> 0 | AC96: =SUMIFS('Summary Calculations'!K$6:K$455,'Summary Calculations'!$E$6:$E$455,'Non-Demographic Change'!$C92,'Summary Calculations'!$F$6:$F$455,'Non-Demographic Change'!$C96) -> 0 | AD96: =SUMIFS('Summary Calculations'!L$6:L$455,'Summary Calculations'!$E$6:$E$455,'Non-Demographic Change'!$C92,'Summary Calculations'!$F$6:$F$455,'Non-Demographic Change'!$C96) -> 0 | AE96: =SUMIFS('Summary Calculations'!M$6:M$455,'Summary Calculations'!$E$6:$E$455,'Non-Demographic Change'!$C92,'Summary Calculations'!$F$6:$F$455,'Non-Demographic Change'!$C96) -> 0 | AF96: =SUMIFS('Summary Calculations'!N$6:N$455,'Summary Calculations'!$E$6:$E$455,'Non-Demographic Change'!$C92,'Summary Calculations'!$F$6:$F$455,'Non-Demographic Change'!$C96) -> 0 | AI96: =IF($C98="Percentage",AB96*(1+D96),AB96+D96) -> 0 | AJ96: =IF($C98="Percentage",AC96*(1+E96),AC96+E96) -> 0 | AK96: =IF($C98="Percentage",AD96*(1+F96),AD96+F96) -> 0 | AL96: =IF($C98="Percentage",AE96*(1+G96),AE96+G96) -> 0 | AM96: =IF($C98="Percentage",AF96*(1+H96),AF96+H96) -> 0
C97: Community | D97: =IFERROR(IF($C98="Percentage",D98,D98*AB97/SUM(AB93:AB97)),0) -> 0 | E97: =IFERROR(IF($C98="Percentage",E98,E98*AC97/SUM(AC93:AC97)),0) -> 0 | F97: 0 | G97: 0 | H97: 0 | AA97: =IFERROR(CONCATENATE(INDEX('Summary Calculations'!$BC$6:$BC$15,MATCH($C$92,'Summary Calculations'!$BB$6:$BB$15,0)),INDEX('Summary Calculations'!$BE$6:$BE$15,MATCH(C97,'Summary Calculations'!$BD$6:$BD$15,0))),"NA") -> NA | AB97: =SUMIFS('Summary Calculations'!J$6:J$455,'Summary Calculations'!$E$6:$E$455,'Non-Demographic Change'!$C92,'Summary Calculations'!$F$6:$F$455,'Non-Demographic Change'!$C97) -> 0 | AC97: =SUMIFS('Summary Calculations'!K$6:K$455,'Summary Calculations'!$E$6:$E$455,'Non-Demographic Change'!$C92,'Summary Calculations'!$F$6:$F$455,'Non-Demographic Change'!$C97) -> 0 | AD97: =SUMIFS('Summary Calculations'!L$6:L$455,'Summary Calculations'!$E$6:$E$455,'Non-Demographic Change'!$C92,'Summary Calculations'!$F$6:$F$455,'Non-Demographic Change'!$C97) -> 0 | AE97: =SUMIFS('Summary Calculations'!M$6:M$455,'Summary Calculations'!$E$6:$E$455,'Non-Demographic Change'!$C92,'Summary Calculations'!$F$6:$F$455,'Non-Demographic Change'!$C97) -> 0 | AF97: =SUMIFS('Summary Calculations'!N$6:N$455,'Summary Calculations'!$E$6:$E$455,'Non-Demographic Change'!$C92,'Summary Calculations'!$F$6:$F$455,'Non-Demographic Change'!$C97) -> 0 | AI97: =IF($C98="Percentage",AB97*(1+D97),AB97+D97) -> 0 | AJ97: =IF($C98="Percentage",AC97*(1+E97),AC97+E97) -> 0 | AK97: =IF($C98="Percentage",AD97*(1+F97),AD97+F97) -> 0 | AL97: =IF($C98="Percentage",AE97*(1+G97),AE97+G97) -> 0 | AM97: =IF($C98="Percentage",AF97*(1+H97),AF97+H97) -> 0
C98: Number of cases | D98: 0 | E98: 0 | F98: 0 | G98: 0 | H98: 0

Sheet Commissioner plans
A1: Commissioner demand management plans
A2: If your commissioner has published QIPP plans that match to the service lines you are projecting, use these as the basis for decreasing demand in those segments.
A3: Use the "% of Target Change Achieved" cell to estimate the Trust's view of the % of commissioners' demand reduction initiatives that will be achieved
A4: Percentage
A5: Number of cases
A6: You can also create overarching demand management schemes by using the "Overall demand decline/(increase)", either as a percentage or as a number of cases.
AA7: Impact | AB7: Baseline with demographic & non-demographic growth | AI7: Baseline with demographic & non-demographic growth & commissioners' planned demand reduction
D8: ='Demographic Change'!D3 -> 2014/15 | E8: ='Demographic Change'!E3 -> 2015/16 | F8: ='Demographic Change'!F3 -> 2016/17 | G8: ='Demographic Change'!G3 -> 2017/18 | H8: ='Demographic Change'!H3 -> 2018/19 | AB8: =D8 -> 2014/15 | AC8: =E8 -> 2015/16 | AD8: 2016/17 | AE8: 2017/18 | AF8: 2018/19 | AI8: =AB8 -> 2014/15 | AJ8: =AC8 -> 2015/16 | AK8: 2016/17 | AL8: 2017/18 | AM8: 2018/19
B9: Overall demand decline / (increase) | D9: 0.005 | E9: 0.005 | F9: 0.005 | G9: 0.005 | H9: 0.005 | I9: <<< Optional input: overall change
B11: Demand decline / (increase) by service line
B12: 1 | C12: Paediatrics
C13: Outpatient | D13: 33.64582356 | E13: 7.520204023 | F13: 9.478558492 | G13: 9.821309128 | H13: 10.33617667 | AA13: =CONCATENATE(INDEX('Summary Calculations'!$BC$6:$BC$15,MATCH(C12,'Summary Calculations'!$BB$6:$BB$15,0)),INDEX('Summary Calculations'!$BE$6:$BE$15,MATCH(C13,'Summary Calculations'!$BD$6:$BD$15,0))) -> AA | AB13: =SUMIFS('Summary Calculations'!Q$6:Q$455,'Summary Calculations'!$E$6:$E$455,'Commissioner plans'!$C12,'Summary Calculations'!$F$6:$F$455,'Commissioner plans'!$C13) -> 1807.122299 | AC13: =SUMIFS('Summary Calculations'!R$6:R$455,'Summary Calculations'!$E$6:$E$455,'Commissioner plans'!$C12,'Summary Calculations'!$F$6:$F$455,'Commissioner plans'!$C13) -> 1806.93154 | AD13: =SUMIFS('Summary Calculations'!S$6:S$455,'Summary Calculations'!$E$6:$E$455,'Commissioner plans'!$C12,'Summary Calculations'!$F$6:$F$455,'Commissioner plans'!$C13) -> 1806.93154 | AE13: =SUMIFS('Summary Calculations'!T$6:T$455,'Summary Calculations'!$E$6:$E$455,'Commissioner plans'!$C12,'Summary Calculations'!$F$6:$F$455,'Commissioner plans'!$C13) -> 1804.303444 | AF13: =SUMIFS('Summary Calculations'!U$6:U$455,'Summary Calculations'!$E$6:$E$455,'Commissioner plans'!$C12,'Summary Calculations'!$F$6:$F$455,'Commissioner plans'!$C13) -> 1803.6786 | AI13: =IF($C18="Percentage",AB13*(1-D13*$D$19),AB13-D13*$D$19) -> 1776.841058 | AJ13: =IF($C18="Percentage",AC13*(1-E13*$D$19),AC13-E13*$D$19) -> 1800.163357 | AK13: 1798.400838 | AL13: 1795.464266 | AM13: 1794.376041
C14: Elective | D14: 37.82172908 | E14: 9.607006055 | F14: 10.29361644 | G14: 10.66703638 | H14: 11.2275106 | AA14: =CONCATENATE(INDEX('Summary Calculations'!$BC$6:$BC$15,MATCH(C12,'Summary Calculations'!$BB$6:$BB$15,0)),INDEX('Summary Calculations'!$BE$6:$BE$15,MATCH(C14,'Summary Calculations'!$BD$6:$BD$15,0))) -> AB | AB14: =SUMIFS('Summary Calculations'!Q$6:Q$455,'Summary Calculations'!$E$6:$E$455,'Commissioner plans'!$C12,'Summary Calculations'!$F$6:$F$455,'Commissioner plans'!$C14) -> 2078.618708 | AC14: =SUMIFS('Summary Calculations'!R$6:R$455,'Summary Calculations'!$E$6:$E$455,'Commissioner plans'!$C12,'Summary Calculations'!$F$6:$F$455,'Commissioner plans'!$C14) -> 2079.498756 | AD14: =SUMIFS('Summary Calculations'!S$6:S$455,'Summary Calculations'!$E$6:$E$455,'Commissioner plans'!$C12,'Summary Calculations'!$F$6:$F$455,'Commissioner plans'!$C14) -> 2079.498756 | AE14: =SUMIFS('Summary Calculations'!T$6:T$455,'Summary Calculations'!$E$6:$E$455,'Commissioner plans'!$C12,'Summary Calculations'!$F$6:$F$455,'Commissioner plans'!$C14) -> 2077.151264 | AF14: =SUMIFS('Summary Calculations'!U$6:U$455,'Summary Calculations'!$E$6:$E$455,'Commissioner plans'!$C12,'Summary Calculations'!$F$6:$F$455,'Commissioner plans'!$C14) -> 2077.116479 | AI14: =IF($C19="Percentage",AB14*(1-D14*$D$19),AB14-D14*$D$19) -> 2044.579152 | AJ14: 2070.852451 | AK14: 2070.234502 | AL14: 2067.550931 | AM14: 2067.011719
C15: Non-elective | D15: 39.43091397 | E15: 10.61994899 | F15: 11.38036038 | G15: 11.79467272 | H15: 12.41595583 | AA15: =CONCATENATE(INDEX('Summary Calculations'!$BC$6:$BC$15,MATCH(C12,'Summary Calculations'!$BB$6:$BB$15,0)),INDEX('Summary Calculations'!$BE$6:$BE$15,MATCH(C15,'Summary Calculations'!$BD$6:$BD$15,0))) -> AC | AB15: =SUMIFS('Summary Calculations'!Q$6:Q$455,'Summary Calculations'!$E$6:$E$455,'Commissioner plans'!$C12,'Summary Calculations'!$F$6:$F$455,'Commissioner plans'!$C15) -> 2440.613921 | AC15: =SUMIFS('Summary Calculations'!R$6:R$455,'Summary Calculations'!$E$6:$E$455,'Commissioner plans'!$C12,'Summary Calculations'!$F$6:$F$455,'Commissioner plans'!$C15) -> 2442.921711 | AD15: =SUMIFS('Summary Calculations'!S$6:S$455,'Summary Calculations'!$E$6:$E$455,'Commissioner plans'!$C12,'Summary Calculations'!$F$6:$F$455,'Commissioner plans'!$C15) -> 2442.921711 | AE15: =SUMIFS('Summary Calculations'!T$6:T$455,'Summary Calculations'!$E$6:$E$455,'Commissioner plans'!$C12,'Summary Calculations'!$F$6:$F$455,'Commissioner plans'!$C15) -> 2440.948356 | AF15: =SUMIFS('Summary Calculations'!U$6:U$455,'Summary Calculations'!$E$6:$E$455,'Commissioner plans'!$C12,'Summary Calculations'!$F$6:$F$455,'Commissioner plans'!$C15) -> 2441.700318 | AI15: 2405.126099 | AJ15: 2433.363757 | AK15: 2432.679387 | AL15: 2430.333151 | AM15: 2430.525957
C16: A&E | D16: 43.28879649 | E16: 10.87318473 | F16: 11.65204636 | G16: 12.0765818 | H16: 12.71306714 | AA16: =CONCATENATE(INDEX('Summary Calculations'!$BC$6:$BC$15,MATCH(C12,'Summary Calculations'!$BB$6:$BB$15,0)),INDEX('Summary Calculations'!$BE$6:$BE$15,MATCH(C16,'Summary Calculations'!$BD$6:$BD$15,0))) -> AD | AB16: =SUMIFS('Summary Calculations'!Q$6:Q$455,'Summary Calculations'!$E$6:$E$455,'Commissioner plans'!$C12,'Summary Calculations'!$F$6:$F$455,'Commissioner plans'!$C16) -> 2531.112724 | AC16: =SUMIFS('Summary Calculations'!R$6:R$455,'Summary Calculations'!$E$6:$E$455,'Commissioner plans'!$C12,'Summary Calculations'!$F$6:$F$455,'Commissioner plans'!$C16) -> 2533.77745 | AD16: =SUMIFS('Summary Calculations'!S$6:S$455,'Summary Calculations'!$E$6:$E$455,'Commissioner plans'!$C12,'Summary Calculations'!$F$6:$F$455,'Commissioner plans'!$C16) -> 2533.77745 | AE16: =SUMIFS('Summary Calculations'!T$6:T$455,'Summary Calculations'!$E$6:$E$455,'Commissioner plans'!$C12,'Summary Calculations'!$F$6:$F$455,'Commissioner plans'!$C16) -> 2531.897629 | AF16: =SUMIFS('Summary Calculations'!U$6:U$455,'Summary Calculations'!$E$6:$E$455,'Commissioner plans'!$C12,'Summary Calculations'!$F$6:$F$455,'Commissioner plans'!$C16) -> 2532.846277 | AI16: 2492.152808 | AJ16: 2523.991584 | AK16: 2523.290608 | AL16: 2521.028706 | AM16: 2521.404517
C17: Community | D17: 45.81273691 | E17: 11.3796562 | F17: 12.19541833 | G17: 12.64039997 | H17: 13.30728976 | AA17: =CONCATENATE(INDEX('Summary Calculations'!$BC$6:$BC$15,MATCH(C12,'Summary Calculations'!$BB$6:$BB$15,0)),INDEX('Summary Calculations'!$BE$6:$BE$15,MATCH(C17,'Summary Calculations'!$BD$6:$BD$15,0))) -> AE | AB17: =SUMIFS('Summary Calculations'!Q$6:Q$455,'Summary Calculations'!$E$6:$E$455,'Commissioner plans'!$C12,'Summary Calculations'!$F$6:$F$455,'Commissioner plans'!$C17) -> 2712.110331 | AC17: =SUMIFS('Summary Calculations'!R$6:R$455,'Summary Calculations'!$E$6:$E$455,'Commissioner plans'!$C12,'Summary Calculations'!$F$6:$F$455,'Commissioner plans'!$C17) -> 2715.488927 | AD17: =SUMIFS('Summary Calculations'!S$6:S$455,'Summary Calculations'!$E$6:$E$455,'Commissioner plans'!$C12,'Summary Calculations'!$F$6:$F$455,'Commissioner plans'!$C17) -> 2715.488927 | AE17: =SUMIFS('Summary Calculations'!T$6:T$455,'Summary Calculations'!$E$6:$E$455,'Commissioner plans'!$C12,'Summary Calculations'!$F$6:$F$455,'Commissioner plans'!$C17) -> 2713.796175 | AF17: =SUMIFS('Summary Calculations'!U$6:U$455,'Summary Calculations'!$E$6:$E$455,'Commissioner plans'!$C12,'Summary Calculations'!$F$6:$F$455,'Commissioner plans'!$C17) -> 2715.138197 | AI17: 2670.878868 | AJ17: 2705.247237 | AK17: 2704.513051 | AL17: 2702.419815 | AM17: 2703.161636
C18: Number of cases | D18: =IFERROR(IF($C18="Percentage",SUMPRODUCT(D13:D17,AB13:AB17)/SUM(AB13:AB17),SUM(D13:D17)),0) -> 200 | E18: =IFERROR(IF($C18="Percentage",SUMPRODUCT(E13:E17,AC13:AC17)/SUM(AC13:AC17),SUM(E13:E17)),0) -> 50 | F18: 55 | G18: 57 | H18: 60 | AB18: =SUM(AB13:AB17) -> 11569.57798 | AC18: =SUM(AC13:AC17) -> 11578.61839 | AD18: 11578.61839 | AE18: 11568.09687 | AF18: 11570.47987 | AI18: 11389.57798 | AJ18: 11533.61839 | AK18: 11529.11839 | AL18: 11516.79687 | AM18: 11516.47987
C19: % of Target Change Achieved | D19: 0.9
B21: =B12+1 -> 2 | C21: Test Spec 4
C22: Outpatient | D22: 0.15 | E22: 0.15 | F22: 0 | G22: 0 | H22: 0 | AA22: =CONCATENATE(INDEX('Summary Calculations'!$BC$6:$BC$15,MATCH(C21,'Summary Calculations'!$BB$6:$BB$15,0)),INDEX('Summary Calculations'!$BE$6:$BE$15,MATCH(C22,'Summary Calculations'!$BD$6:$BD$15,0))) -> DA | AB22: =SUMIFS('Summary Calculations'!Q$6:Q$455,'Summary Calculations'!$E$6:$E$455,'Commissioner plans'!$C21,'Summary Calculations'!$F$6:$F$455,'Commissioner plans'!$C22) -> 3150.927943 | AC22: =SUMIFS('Summary Calculations'!R$6:R$455,'Summary Calculations'!$E$6:$E$455,'Commissioner plans'!$C21,'Summary Calculations'!$F$6:$F$455,'Commissioner plans'!$C22) -> 3151.855887 | AD22: =SUMIFS('Summary Calculations'!S$6:S$455,'Summary Calculations'!$E$6:$E$455,'Commissioner plans'!$C21,'Summary Calculations'!$F$6:$F$455,'Commissioner plans'!$C22) -> 3153.341995 | AE22: =SUMIFS('Summary Calculations'!T$6:T$455,'Summary Calculations'!$E$6:$E$455,'Commissioner plans'!$C21,'Summary Calculations'!$F$6:$F$455,'Commissioner plans'!$C22) -> 3154.847365 | AF22: =SUMIFS('Summary Calculations'!U$6:U$455,'Summary Calculations'!$E$6:$E$455,'Commissioner plans'!$C21,'Summary Calculations'!$F$6:$F$455,'Commissioner plans'!$C22) -> 3156.343446 | AI22: =IF($C$27="Percentage",AB22*(1-D22*$D$28),AB22-D22*$D$28) -> 2725.552671 | AJ22: =IF($C$27="Percentage",AC22*(1-E22*$D$28),AC22-E22*$D$28) -> 2726.355342 | AK22: 3153.341995 | AL22: 3154.847365 | AM22: 3156.343446
C23: Elective | D23: 0.12 | E23: 0 | F23: 0 | G23: 0 | H23: 0 | AA23: =CONCATENATE(INDEX('Summary Calculations'!$BC$6:$BC$15,MATCH(C21,'Summary Calculations'!$BB$6:$BB$15,0)),INDEX('Summary Calculations'!$BE$6:$BE$15,MATCH(C23,'Summary Calculations'!$BD$6:$BD$15,0))) -> DB | AB23: =SUMIFS('Summary Calculations'!Q$6:Q$455,'Summary Calculations'!$E$6:$E$455,'Commissioner plans'!$C21,'Summary Calculations'!$F$6:$F$455,'Commissioner plans'!$C23) -> 3421.251033 | AC23: =SUMIFS('Summary Calculations'!R$6:R$455,'Summary Calculations'!$E$6:$E$455,'Commissioner plans'!$C21,'Summary Calculations'!$F$6:$F$455,'Commissioner plans'!$C23) -> 3422.502065 | AD23: =SUMIFS('Summary Calculations'!S$6:S$455,'Summary Calculations'!$E$6:$E$455,'Commissioner plans'!$C21,'Summary Calculations'!$F$6:$F$455,'Commissioner plans'!$C23) -> 3424.496777 | AE23: =SUMIFS('Summary Calculations'!T$6:T$455,'Summary Calculations'!$E$6:$E$455,'Commissioner plans'!$C21,'Summary Calculations'!$F$6:$F$455,'Commissioner plans'!$C23) -> 3426.515872 | AF23: =SUMIFS('Summary Calculations'!U$6:U$455,'Summary Calculations'!$E$6:$E$455,'Commissioner plans'!$C21,'Summary Calculations'!$F$6:$F$455,'Commissioner plans'!$C23) -> 3428.528809 | AI23: =IF($C$27="Percentage",AB23*(1-D23*$D$28),AB23-D23*$D$28) -> 3051.755921 | AJ23: 3422.502065 | AK23: 3424.496777 | AL23: 3426.515872 | AM23: 3428.528809
C24: Non-elective | D24: 0.17 | E24: 0 | F24: 0 | G24: 0 | H24: 0 | AA24: =CONCATENATE(INDEX('Summary Calculations'!$BC$6:$BC$15,MATCH(C21,'Summary Calculations'!$BB$6:$BB$15,0)),INDEX('Summary Calculations'!$BE$6:$BE$15,MATCH(C24,'Summary Calculations'!$BD$6:$BD$15,0))) -> DC | AB24: =SUMIFS('Summary Calculations'!Q$6:Q$455,'Summary Calculations'!$E$6:$E$455,'Commissioner plans'!$C21,'Summary Calculations'!$F$6:$F$455,'Commissioner plans'!$C24) -> 3781.681818 | AC24: =SUMIFS('Summary Calculations'!R$6:R$455,'Summary Calculations'!$E$6:$E$455,'Commissioner plans'!$C21,'Summary Calculations'!$F$6:$F$455,'Commissioner plans'!$C24) -> 3783.363637 | AD24: =SUMIFS('Summary Calculations'!S$6:S$455,'Summary Calculations'!$E$6:$E$455,'Commissioner plans'!$C21,'Summary Calculations'!$F$6:$F$455,'Commissioner plans'!$C24) -> 3786.036487 | AE24: =SUMIFS('Summary Calculations'!T$6:T$455,'Summary Calculations'!$E$6:$E$455,'Commissioner plans'!$C21,'Summary Calculations'!$F$6:$F$455,'Commissioner plans'!$C24) -> 3788.74055 | AF24: =SUMIFS('Summary Calculations'!U$6:U$455,'Summary Calculations'!$E$6:$E$455,'Commissioner plans'!$C21,'Summary Calculations'!$F$6:$F$455,'Commissioner plans'!$C24) -> 3791.442627 | AI24: 3203.0845 | AJ24: 3783.363637 | AK24: 3786.036487 | AL24: 3788.74055 | AM24: 3791.442627
C25: A&E | D25: 0.11 | E25: 0 | F25: 0 | G25: 0 | H25: 0 | AA25: =CONCATENATE(INDEX('Summary Calculations'!$BC$6:$BC$15,MATCH(C21,'Summary Calculations'!$BB$6:$BB$15,0)),INDEX('Summary Calculations'!$BE$6:$BE$15,MATCH(C25,'Summary Calculations'!$BD$6:$BD$15,0))) -> DD | AB25: =SUMIFS('Summary Calculations'!Q$6:Q$455,'Summary Calculations'!$E$6:$E$455,'Commissioner plans'!$C21,'Summary Calculations'!$F$6:$F$455,'Commissioner plans'!$C25) -> 3871.789515 | AC25: =SUMIFS('Summary Calculations'!R$6:R$455,'Summary Calculations'!$E$6:$E$455,'Commissioner plans'!$C21,'Summary Calculations'!$F$6:$F$455,'Commissioner plans'!$C25) -> 3873.57903 | AD25: =SUMIFS('Summary Calculations'!S$6:S$455,'Summary Calculations'!$E$6:$E$455,'Commissioner plans'!$C21,'Summary Calculations'!$F$6:$F$455,'Commissioner plans'!$C25) -> 3876.421414 | AE25: =SUMIFS('Summary Calculations'!T$6:T$455,'Summary Calculations'!$E$6:$E$455,'Commissioner plans'!$C21,'Summary Calculations'!$F$6:$F$455,'Commissioner plans'!$C25) -> 3879.296719 | AF25: =SUMIFS('Summary Calculations'!U$6:U$455,'Summary Calculations'!$E$6:$E$455,'Commissioner plans'!$C21,'Summary Calculations'!$F$6:$F$455,'Commissioner plans'!$C25) -> 3882.171082 | AI25: 3488.482353 | AJ25: 3873.57903 | AK25: 3876.421414 | AL25: 3879.296719 | AM25: 3882.171082
C26: Community | D26: 0.1 | E26: 0 | F26: 0 | G26: 0 | H26: 0 | AA26: =CONCATENATE(INDEX('Summary Calculations'!$BC$6:$BC$15,MATCH(C21,'Summary Calculations'!$BB$6:$BB$15,0)),INDEX('Summary Calculations'!$BE$6:$BE$15,MATCH(C26,'Summary Calculations'!$BD$6:$BD$15,0))) -> DE | AB26: =SUMIFS('Summary Calculations'!Q$6:Q$455,'Summary Calculations'!$E$6:$E$455,'Commissioner plans'!$C21,'Summary Calculations'!$F$6:$F$455,'Commissioner plans'!$C26) -> 4052.004908 | AC26: =SUMIFS('Summary Calculations'!R$6:R$455,'Summary Calculations'!$E$6:$E$455,'Commissioner plans'!$C21,'Summary Calculations'!$F$6:$F$455,'Commissioner plans'!$C26) -> 4054.009816 | AD26: =SUMIFS('Summary Calculations'!S$6:S$455,'Summary Calculations'!$E$6:$E$455,'Commissioner plans'!$C21,'Summary Calculations'!$F$6:$F$455,'Commissioner plans'!$C26) -> 4057.191269 | AE26: =SUMIFS('Summary Calculations'!T$6:T$455,'Summary Calculations'!$E$6:$E$455,'Commissioner plans'!$C21,'Summary Calculations'!$F$6:$F$455,'Commissioner plans'!$C26) -> 4060.409057 | AF26: =SUMIFS('Summary Calculations'!U$6:U$455,'Summary Calculations'!$E$6:$E$455,'Commissioner plans'!$C21,'Summary Calculations'!$F$6:$F$455,'Commissioner plans'!$C26) -> 4063.62799 | AI26: 3687.324466 | AJ26: 4054.009816 | AK26: 4057.191269 | AL26: 4060.409057 | AM26: 4063.62799
C27: Percentage | D27: =IFERROR(IF($C27="Percentage",SUMPRODUCT(D22:D26,AB22:AB26)/SUM(AB22:AB26),SUM(D22:D26)),0) -> 0.1289647131 | E27: =IFERROR(IF($C27="Percentage",SUMPRODUCT(E22:E26,AC22:AC26)/SUM(AC22:AC26),SUM(E22:E26)),0) -> 0.02585563886 | F27: 0 | G27: 0 | H27: 0
C28: % of Target Change Achieved | D28: 0.9
B30: =B21+1 -> 3 | C30: Choose Specialty
C31: Outpatient | D31: 0 | E31: 0 | F31: 0 | G31: 0 | H31: 0 | AA31: =IFERROR(CONCATENATE(INDEX('Summary Calculations'!$BC$6:$BC$15,MATCH($C$30,'Summary Calculations'!$BB$6:$BB$15,0)),INDEX('Summary Calculations'!$BE$6:$BE$15,MATCH(C31,'Summary Calculations'!$BD$6:$BD$15,0))),"NA") -> NA | AB31: =SUMIFS('Summary Calculations'!Q$6:Q$455,'Summary Calculations'!$E$6:$E$455,'Commissioner plans'!$C30,'Summary Calculations'!$F$6:$F$455,'Commissioner plans'!$C31) -> 0 | AC31: =SUMIFS('Summary Calculations'!R$6:R$455,'Summary Calculations'!$E$6:$E$455,'Commissioner plans'!$C30,'Summary Calculations'!$F$6:$F$455,'Commissioner plans'!$C31) -> 0 | AD31: =SUMIFS('Summary Calculations'!S$6:S$455,'Summary Calculations'!$E$6:$E$455,'Commissioner plans'!$C30,'Summary Calculations'!$F$6:$F$455,'Commissioner plans'!$C31) -> 0 | AE31: =SUMIFS('Summary Calculations'!T$6:T$455,'Summary Calculations'!$E$6:$E$455,'Commissioner plans'!$C30,'Summary Calculations'!$F$6:$F$455,'Commissioner plans'!$C31) -> 0 | AF31: =SUMIFS('Summary Calculations'!U$6:U$455,'Summary Calculations'!$E$6:$E$455,'Commissioner plans'!$C30,'Summary Calculations'!$F$6:$F$455,'Commissioner plans'!$C31) -> 0 | AI31: =IF($C36="Percentage",AB31*(1-D31*$D$37),AB31-D31*$D$37) -> 0 | AJ31: =IF($C36="Percentage",AC31*(1-E31*$D$37),AC31-E31*$D$37) -> 0 | AK31: 0 | AL31: 0 | AM31: 0
C32: Elective | D32: 0 | E32: 0 | F32: 0 | G32: 0 | H32: 0 | AA32: =IFERROR(CONCATENATE(INDEX('Summary Calculations'!$BC$6:$BC$15,MATCH($C$30,'Summary Calculations'!$BB$6:$BB$15,0)),INDEX('Summary Calculations'!$BE$6:$BE$15,MATCH(C32,'Summary Calculations'!$BD$6:$BD$15,0))),"NA") -> NA | AB32: =SUMIFS('Summary Calculations'!Q$6:Q$455,'Summary Calculations'!$E$6:$E$455,'Commissioner plans'!$C30,'Summary Calculations'!$F$6:$F$455,'Commissioner plans'!$C32) -> 0 | AC32: =SUMIFS('Summary Calculations'!R$6:R$455,'Summary Calculations'!$E$6:$E$455,'Commissioner plans'!$C30,'Summary Calculations'!$F$6:$F$455,'Commissioner plans'!$C32) -> 0 | AD32: =SUMIFS('Summary Calculations'!S$6:S$455,'Summary Calculations'!$E$6:$E$455,'Commissioner plans'!$C30,'Summary Calculations'!$F$6:$F$455,'Commissioner plans'!$C32) -> 0 | AE32: =SUMIFS('Summary Calculations'!T$6:T$455,'Summary Calculations'!$E$6:$E$455,'Commissioner plans'!$C30,'Summary Calculations'!$F$6:$F$455,'Commissioner plans'!$C32) -> 0 | AF32: =SUMIFS('Summary Calculations'!U$6:U$455,'Summary Calculations'!$E$6:$E$455,'Commissioner plans'!$C30,'Summary Calculations'!$F$6:$F$455,'Commissioner plans'!$C32) -> 0 | AI32: =IF($C37="Percentage",AB32*(1-D32*$D$37),AB32-D32*$D$37) -> 0 | AJ32: 0 | AK32: 0 | AL32: 0 | AM32: 0
C33: Non-elective | D33: 0 | E33: 0 | F33: 0 | G33: 0 | H33: 0 | AA33: =IFERROR(CONCATENATE(INDEX('Summary Calculations'!$BC$6:$BC$15,MATCH($C$30,'Summary Calculations'!$BB$6:$BB$15,0)),INDEX('Summary Calculations'!$BE$6:$BE$15,MATCH(C33,'Summary Calculations'!$BD$6:$BD$15,0))),"NA") -> NA | AB33: =SUMIFS('Summary Calculations'!Q$6:Q$455,'Summary Calculations'!$E$6:$E$455,'Commissioner plans'!$C30,'Summary Calculations'!$F$6:$F$455,'Commissioner plans'!$C33) -> 0 | AC33: =SUMIFS('Summary Calculations'!R$6:R$455,'Summary Calculations'!$E$6:$E$455,'Commissioner plans'!$C30,'Summary Calculations'!$F$6:$F$455,'Commissioner plans'!$C33) -> 0 | AD33: =SUMIFS('Summary Calculations'!S$6:S$455,'Summary Calculations'!$E$6:$E$455,'Commissioner plans'!$C30,'Summary Calculations'!$F$6:$F$455,'Commissioner plans'!$C33) -> 0 | AE33: =SUMIFS('Summary Calculations'!T$6:T$455,'Summary Calculations'!$E$6:$E$455,'Commissioner plans'!$C30,'Summary Calculations'!$F$6:$F$455,'Commissioner plans'!$C33) -> 0 | AF33: =SUMIFS('Summary Calculations'!U$6:U$455,'Summary Calculations'!$E$6:$E$455,'Commissioner plans'!$C30,'Summary Calculations'!$F$6:$F$455,'Commissioner plans'!$C33) -> 0 | AI33: 0 | AJ33: 0 | AK33: 0 | AL33: 0 | AM33: 0
C34: A&E | D34: 0 | E34: 0 | F34: 0 | G34: 0 | H34: 0 | AA34: =IFERROR(CONCATENATE(INDEX('Summary Calculations'!$BC$6:$BC$15,MATCH($C$30,'Summary Calculations'!$BB$6:$BB$15,0)),INDEX('Summary Calculations'!$BE$6:$BE$15,MATCH(C34,'Summary Calculations'!$BD$6:$BD$15,0))),"NA") -> NA | AB34: =SUMIFS('Summary Calculations'!Q$6:Q$455,'Summary Calculations'!$E$6:$E$455,'Commissioner plans'!$C30,'Summary Calculations'!$F$6:$F$455,'Commissioner plans'!$C34) -> 0 | AC34: =SUMIFS('Summary Calculations'!R$6:R$455,'Summary Calculations'!$E$6:$E$455,'Commissioner plans'!$C30,'Summary Calculations'!$F$6:$F$455,'Commissioner plans'!$C34) -> 0 | AD34: =SUMIFS('Summary Calculations'!S$6:S$455,'Summary Calculations'!$E$6:$E$455,'Commissioner plans'!$C30,'Summary Calculations'!$F$6:$F$455,'Commissioner plans'!$C34) -> 0 | AE34: =SUMIFS('Summary Calculations'!T$6:T$455,'Summary Calculations'!$E$6:$E$455,'Commissioner plans'!$C30,'Summary Calculations'!$F$6:$F$455,'Commissioner plans'!$C34) -> 0 | AF34: =SUMIFS('Summary Calculations'!U$6:U$455,'Summary Calculations'!$E$6:$E$455,'Commissioner plans'!$C30,'Summary Calculations'!$F$6:$F$455,'Commissioner plans'!$C34) -> 0 | AI34: 0 | AJ34: 0 | AK34: 0 | AL34: 0 | AM34: 0
C35: Community | D35: 0 | E35: 0 | F35: 0 | G35: 0 | H35: 0 | AA35: =IFERROR(CONCATENATE(INDEX('Summary Calculations'!$BC$6:$BC$15,MATCH($C$30,'Summary Calculations'!$BB$6:$BB$15,0)),INDEX('Summary Calculations'!$BE$6:$BE$15,MATCH(C35,'Summary Calculations'!$BD$6:$BD$15,0))),"NA") -> NA | AB35: =SUMIFS('Summary Calculations'!Q$6:Q$455,'Summary Calculations'!$E$6:$E$455,'Commissioner plans'!$C30,'Summary Calculations'!$F$6:$F$455,'Commissioner plans'!$C35) -> 0 | AC35: =SUMIFS('Summary Calculations'!R$6:R$455,'Summary Calculations'!$E$6:$E$455,'Commissioner plans'!$C30,'Summary Calculations'!$F$6:$F$455,'Commissioner plans'!$C35) -> 0 | AD35: =SUMIFS('Summary Calculations'!S$6:S$455,'Summary Calculations'!$E$6:$E$455,'Commissioner plans'!$C30,'Summary Calculations'!$F$6:$F$455,'Commissioner plans'!$C35) -> 0 | AE35: =SUMIFS('Summary Calculations'!T$6:T$455,'Summary Calculations'!$E$6:$E$455,'Commissioner plans'!$C30,'Summary Calculations'!$F$6:$F$455,'Commissioner plans'!$C35) -> 0 | AF35: =SUMIFS('Summary Calculations'!U$6:U$455,'Summary Calculations'!$E$6:$E$455,'Commissioner plans'!$C30,'Summary Calculations'!$F$6:$F$455,'Commissioner plans'!$C35) -> 0 | AI35: 0 | AJ35: 0 | AK35: 0 | AL35: 0 | AM35: 0
C36: Number of cases | D36: =IFERROR(IF($C36="Percentage",SUMPRODUCT(D31:D35,AB31:AB35)/SUM(AB31:AB35),SUM(D31:D35)),0) -> 0 | E36: =IFERROR(IF($C36="Percentage",SUMPRODUCT(E31:E35,AC31:AC35)/SUM(AC31:AC35),SUM(E31:E35)),0) -> 0 | F36: 0 | G36: 0 | H36: 0
C37: % of Target Change Achieved | D37: 1
B39: =B30+1 -> 4 | C39: Choose Specialty
